Workbook

Sheet Select School
B3: =VLOOKUP(C3,SchList!$I$1:$J$475,2,FALSE) -> 9999 | C3: 1
L5: =B3 -> 9999

Sheet Note

Sheet Cut Scores
B1: 2015-16 Mid-Year Aessment (MYA) - English Language Art
B2: Grade | C2: %Insufficient Progress | D2: % Limited Progress | E2: % Satisfactory Progress
C3: % Scores
B4: 3 | C4: 0 to 55% | D4: 56% - 61% | E4: 62% or higher
B5: 4 | C5: 0 to 52% | D5: 53% - 57% | E5: 58% or higher
B6: 5 | C6: 0 to 55% | D6: 56% - 61% | E6: 62% or higher
B7: 6 | C7: 0 to 54% | D7: 55% - 60% | E7: 61% or higher
B8: 7 | C8: 0 to 50% | D8: 51% - 57% | E8: 58% or higher
B9: 8 | C9: 0 to 54% | D9: 55% - 61% | E9: 62% or higher
B10: 9 | C10: 0 to 51% | D10: 52% - 58% | E10: 59% or higher
B11: 10 | C11: 0 to 46% | D11: 47% - 53% | E11: 54% or higher
B12: 2015-16 Mid-Year Aessment (MYA) - Mathematics
B13: Grade | C13: %Insufficient Progress | D13: % Limited Progress | E13: % Satisfactory Progress
C14: % Scores
B15: 3 | C15: 0 to 54% | D15: 55% - 60% | E15: 61% or higher
B16: 4 | C16: 0 to 51% | D16: 52% - 57% | E16: 58% or higher
B17: 5 | C17: 0 to 58% | D17: 59% - 65% | E17: 66% or higher
B18: 6 | C18: 0 to 44% | D18: 45% - 49% | E18: 50% or higher
B19: 7 | C19: 0 to 37% | D19: 38% - 43% | E19: 44% or higher
B20: 8 | C20: 0 to 32% | D20: 33% - 39% | E20: 40% or higher
B21: ALG | C21: 0 to 30% | D21: 31% - 36% | E21: 37% or higher
B22: GEO | C22: 0 to 38% | D22: 39% - 44% | E22: 45% or higher
B23: Algebra II EOC cut of score is 70% and it is NOT a predictive value (Default cut score for the first year administration)

Sheet Grades 3-5
A2: Click here to return to the school and sheet selection interface
A3: ='Select School'!B3 -> 9999
A4: =TEXT(A3,"0000")&"-"&VLOOKUP(A3,SchList!$A$2:$B$475,2,FALSE) -> 9999-DISTRICT (9999) | Q4: District ELA | U4: School ELA | Y4: District Math | AD4: Mathematics
P5: Grade | Q5: Grade 3 | R5: Grade 4 | S5: Grade 5 | U5: Grade 3 | V5: Grade 4 | W5: Grade 5 | Y5: Grade | Z5: Grade 3 | AA5: Grade 4 | AB5: Grade 5 | AD5: Grade 3 | AE5: Grade 4 | AF5: Grade 5
P6: 2015 FSA Dist. | Q6: =IFERROR(VLOOKUP(TEXT(9999,"0000"),'15 FSA ELA'!$A$3:$F$300,5,FALSE),#N/A) -> 53 | R6: =IFERROR(VLOOKUP(TEXT(9999,"0000"),'15 FSA ELA'!$G$3:$L$300,5,FALSE),#N/A) -> 54 | S6: =IFERROR(VLOOKUP(TEXT(9999,"0000"),'15 FSA ELA'!$M$3:$R$300,5,FALSE),#N/A) -> 54 | T6: 2015 FSA School | U6: =IFERROR(VLOOKUP(TEXT($A$3,"0000"),'15 FSA ELA'!$A$3:$F$300,5,FALSE),#N/A) -> 53 | V6: =IFERROR(VLOOKUP(TEXT($A$3,"0000"),'15 FSA ELA'!$G$3:$L$300,5,FALSE),#N/A) -> 54 | W6: =IFERROR(VLOOKUP(TEXT($A$3,"0000"),'15 FSA ELA'!$M$3:$R$300,5,FALSE),#N/A) -> 54 | Y6: 2015 FSA Dist. | Z6: =IFERROR(VLOOKUP(TEXT(9999,"0000"),'15 FSA Math'!$A$3:$F$500,5,FALSE),#N/A) -> 60 | AA6: =IFERROR(VLOOKUP(TEXT(9999,"0000"),'15 FSA Math'!$G$3:$L$500,5,FALSE),#N/A) -> 62 | AB6: =IFERROR(VLOOKUP(TEXT(9999,"0000"),'15 FSA Math'!$M$3:$R$500,5,FALSE),#N/A) -> 54 | AC6: 2015 FSA School | AD6: =IFERROR(VLOOKUP(TEXT($A$3,"0000"),'15 FSA Math'!$A$3:$F$500,5,FALSE),#N/A) -> 60 | AE6: =IFERROR(VLOOKUP(TEXT($A$3,"0000"),'15 FSA Math'!$G$3:$L$500,5,FALSE),#N/A) -> 62 | AF6: =IFERROR(VLOOKUP(TEXT($A$3,"0000"),'15 FSA Math'!$M$3:$R$500,5,FALSE),#N/A) -> 54
P7: 2016 MYA Dist. | Q7: =IFERROR(ROUND(VLOOKUP(9999,'1516ELA-G03'!$B$3:$AH$300,12,FALSE)*100,0),#N/A) -> 62 | R7: =IFERROR(ROUND(VLOOKUP(9999,'1516ELA-G04'!$B$3:$AH$300,12,FALSE)*100,0),#N/A) -> 42 | S7: =IFERROR(ROUND(VLOOKUP(9999,'1516ELA-G05'!$B$3:$AH$300,12,FALSE)*100,0),#N/A) -> 54 | T7: 2016 MYA School | U7: =IFERROR(ROUND(VLOOKUP($A$3,'1516ELA-G03'!$B$3:$AH$300,12,FALSE)*100,0),#N/A) -> 62 | V7: =IFERROR(ROUND(VLOOKUP($A$3,'1516ELA-G04'!$B$3:$AH$300,12,FALSE)*100,0),#N/A) -> 42 | W7: =IFERROR(ROUND(VLOOKUP($A$3,'1516ELA-G05'!$B$3:$AH$300,12,FALSE)*100,0),#N/A) -> 54 | Y7: 2016 MYA Dist. | Z7: =IFERROR(ROUND(VLOOKUP(9999,'1516M-G03'!$B$3:$AH$300,12,FALSE)*100,0),#N/A) -> 60 | AA7: =IFERROR(ROUND(VLOOKUP(9999,'1516M-G04'!$B$3:$AH$300,12,FALSE)*100,0),#N/A) -> 61 | AB7: =IFERROR(ROUND(VLOOKUP(9999,'1516M-G05'!$B$3:$AH$300,12,FALSE)*100,0),#N/A) -> 53 | AC7: 2016 MYA School | AD7: =IFERROR(ROUND(VLOOKUP($A$3,'1516M-G03'!$B$3:$AH$300,12,FALSE)*100,0),#N/A) -> 60 | AE7: =IFERROR(ROUND(VLOOKUP($A$3,'1516M-G04'!$B$3:$AH$300,12,FALSE)*100,0),#N/A) -> 61 | AF7: =IFERROR(ROUND(VLOOKUP($A$3,'1516M-G05'!$B$3:$AH$300,12,FALSE)*100,0),#N/A) -> 53
A16: Grade | B16: Enrollment | C16: % Tested | D16: % Satisfactory | F16: All | H16: Key Ideas and Details | J16: Craft and Structure | L16: Integration of Knowledge and Ideas | O16: ELA Number Tested | T16: =VLOOKUP(TEXT($A$3,"0000"),'15 FSA ELA'!$A$3:$F$500,4,FALSE) -> 14684
D17: 2015 FSA | E17: 2016 MYA | F17: Avg. % Correct | G17: Pts. Max | H17: Avg.% Correct | I17: Pts. Max | J17: Avg.% Correct | K17: Pts. Max | L17: Avg.% Correct | M17: Pts. Max
A18: 3 | B18: =IFERROR(VLOOKUP(TEXT($A$3,"0000"),'Mem12-16-2015'!$A$3:$AF$500,7,FALSE),"NA") -> 27737 | C18: =IF(OR(O18<10,O18="NT",O18<10),"NA",IF(O18>B18,1,O18/B18)) -> 0.9408371489 | D18: =IFERROR(VLOOKUP(TEXT($A$3,"0000"),'15 FSA ELA'!$A$3:$F$500,5,FALSE),"NA") -> 53 | E18: =IFERROR(IF($C18="NA","NA",VLOOKUP($A$3,'1516ELA-G03'!$B$3:$AH$300,12,FALSE)),"NT") -> 0.6175275904 | F18: =IFERROR(IF($C18="NA","NA",VLOOKUP($A$3,'1516ELA-G03'!$B$3:$AH$300,5,FALSE)),"NT") -> 64.21475322 | G18: =IFERROR(IF($C18="NA","NA",VLOOKUP($A$3,'1516ELA-G03'!$B$3:$AH$300,4,FALSE)),"NT") -> 51 | H18: =IFERROR(IF($C18="NA","NA",VLOOKUP($A$3,'1516ELA-G03'!$B$3:$AH$300,15,FALSE)),"NT") -> 0.696064531 | I18: =IFERROR(IF($C18="NA","NA",VLOOKUP($A$3,'1516ELA-G03'!$B$3:$AH$300,14,FALSE)),"NT") -> 15 | J18: =IFERROR(IF($C18="NA","NA",VLOOKUP($A$3,'1516ELA-G03'!$B$3:$AH$300,20,FALSE)),"NT") -> 0.6483403587 | K18: =IFERROR(IF($C18="NA","NA",VLOOKUP($A$3,'1516ELA-G03'!$B$3:$AH$300,19,FALSE)),"NT") -> 26 | L18: =IFERROR(IF($C18="NA","NA",VLOOKUP($A$3,'1516ELA-G03'!$B$3:$AH$300,25,FALSE)),"NT") -> 0.5448689454 | M18: =IFERROR(IF($C18="NA","NA",VLOOKUP($A$3,'1516ELA-G03'!$B$3:$AH$300,24,FALSE)),"NT") -> 10 | O18: =IFERROR(VLOOKUP($A$3,'1516ELA-G03'!$B$3:$AH$300,3,FALSE),"NT") -> 26096
A19: 4 | B19: =IFERROR(VLOOKUP(TEXT($A$3,"0000"),'Mem12-16-2015'!$A$3:$AF$500,8,FALSE),"NA") -> 26844 | C19: =IF(OR(O19="NA",O19="NT",O19<10),"NA",IF(O19>B19,1,O19/B19)) -> 0.9620026822 | D19: =IFERROR(VLOOKUP(TEXT($A$3,"0000"),'15 FSA ELA'!$G$3:$L$500,5,FALSE),"NA") -> 54 | E19: =IFERROR(IF($C19="NA","NA",VLOOKUP($A$3,'1516ELA-G04'!$B$3:$AH$300,12,FALSE)),"NT") -> 0.4197258364 | F19: =IFERROR(IF($C19="NA","NA",VLOOKUP($A$3,'1516ELA-G04'!$B$3:$AH$300,5,FALSE)),"NT") -> 53.50486137 | G19: =IFERROR(IF($C19="NA","NA",VLOOKUP($A$3,'1516ELA-G04'!$B$3:$AH$300,4,FALSE)),"NT") -> 56 | H19: =IFERROR(IF($C19="NA","NA",VLOOKUP($A$3,'1516ELA-G04'!$B$3:$AH$300,15,FALSE)),"NT") -> 0.54880886 | I19: =IFERROR(IF($C19="NA","NA",VLOOKUP($A$3,'1516ELA-G04'!$B$3:$AH$300,14,FALSE)),"NT") -> 18 | J19: =IFERROR(IF($C19="NA","NA",VLOOKUP($A$3,'1516ELA-G04'!$B$3:$AH$300,20,FALSE)),"NT") -> 0.5149461741 | K19: =IFERROR(IF($C19="NA","NA",VLOOKUP($A$3,'1516ELA-G04'!$B$3:$AH$300,19,FALSE)),"NT") -> 24 | L19: =IFERROR(IF($C19="NA","NA",VLOOKUP($A$3,'1516ELA-G04'!$B$3:$AH$300,25,FALSE)),"NT") -> 0.553327912 | M19: =IFERROR(IF($C19="NA","NA",VLOOKUP($A$3,'1516ELA-G04'!$B$3:$AH$300,24,FALSE)),"NT") -> 14 | O19: =IFERROR(VLOOKUP($A$3,'1516ELA-G04'!$B$3:$AH$300,3,FALSE),"NT") -> 25824
A20: 5 | B20: =IFERROR(VLOOKUP(TEXT($A$3,"0000"),'Mem12-16-2015'!$A$3:$AF$500,9,FALSE),"NA") -> 25254 | C20: =IF(OR(O20="NA",O20="NT",O20<10),"NA",IF(O20>B20,1,O20/B20)) -> 0.9616694385 | D20: =IFERROR(VLOOKUP(TEXT($A$3,"0000"),'15 FSA ELA'!$M$3:$R$500,5,FALSE),"NA") -> 54 | E20: =IFERROR(IF($C20="NA","NA",VLOOKUP($A$3,'1516ELA-G05'!$B$3:$AH$300,12,FALSE)),"NT") -> 0.5403524664 | F20: =IFERROR(IF($C20="NA","NA",VLOOKUP($A$3,'1516ELA-G05'!$B$3:$AH$300,5,FALSE)),"NT") -> 61.21380425 | G20: =IFERROR(IF($C20="NA","NA",VLOOKUP($A$3,'1516ELA-G05'!$B$3:$AH$300,4,FALSE)),"NT") -> 48 | H20: =IFERROR(IF($C20="NA","NA",VLOOKUP($A$3,'1516ELA-G05'!$B$3:$AH$300,15,FALSE)),"NT") -> 0.6078449077 | I20: =IFERROR(IF($C20="NA","NA",VLOOKUP($A$3,'1516ELA-G05'!$B$3:$AH$300,14,FALSE)),"NT") -> 14 | J20: =IFERROR(IF($C20="NA","NA",VLOOKUP($A$3,'1516ELA-G05'!$B$3:$AH$300,20,FALSE)),"NT") -> 0.5976282632 | K20: =IFERROR(IF($C20="NA","NA",VLOOKUP($A$3,'1516ELA-G05'!$B$3:$AH$300,19,FALSE)),"NT") -> 25 | L20: =IFERROR(IF($C20="NA","NA",VLOOKUP($A$3,'1516ELA-G05'!$B$3:$AH$300,25,FALSE)),"NT") -> 0.6601727561 | M20: =IFERROR(IF($C20="NA","NA",VLOOKUP($A$3,'1516ELA-G05'!$B$3:$AH$300,24,FALSE)),"NT") -> 9 | O20: =IFERROR(VLOOKUP($A$3,'1516ELA-G05'!$B$3:$AH$300,3,FALSE),"NT") -> 24286
A22: Grade | B22: Enrollment | C22: % Tested | D22: % Satisfactory | F22: All | H22: Operations; Algebraic Thinking; and Numbers in Base Ten | L22: Measurement; Data; and Geometry | O22: Math Number Tested
D23: 2015 FSA | E23: 2016 MYA | F23: Avg. % Correct | G23: Pts. Max | H23: Avg.% Correct | J23: Pts. Max | L23: Avg.% Correct | M23: Pts. Max
A24: 3 | B24: =IFERROR(VLOOKUP(TEXT($A$3,"0000"),'Mem12-16-2015'!$A$3:$AF$500,7,FALSE),"NA") -> 27737 | C24: =IF(OR(O24="NA",O24="NT",O24<10),"NA",IF(O24>B24,1,O24/B24)) -> 0.940296355 | D24: =IFERROR(VLOOKUP(TEXT($A$3,"0000"),'15 FSA Math'!$A$3:$F$500,5,FALSE),"NA") -> 60 | E24: =IFERROR(IF($C24="NA","NA",VLOOKUP($A$3,'1516M-G03'!$B$3:$AH$300,12,FALSE)),"NT") -> 0.6030827039 | F24: =IFERROR(IF($C24="NA","NA",VLOOKUP($A$3,'1516M-G03'!$B$3:$AH$300,5,FALSE)),"NT") -> 64.70191174 | G24: =IFERROR(IF($C24="NA","NA",VLOOKUP($A$3,'1516M-G03'!$B$3:$AH$300,4,FALSE)),"NT") -> 52 | H24: =IFERROR(IF($C24="NA","NA",VLOOKUP($A$3,'1516M-G03'!$B$3:$AH$300,15,FALSE)),"NT") -> 0.6411322419 | J24: =IFERROR(IF($C24="NA","NA",VLOOKUP($A$3,'1516M-G03'!$B$3:$AH$300,14,FALSE)),"NT") -> 46 | L24: =IFERROR(IF($C24="NA","NA",VLOOKUP($A$3,'1516M-G03'!$B$3:$AH$300,25,FALSE)),"NT") -> 0.691531383 | M24: =IFERROR(IF($C24="NA","NA",VLOOKUP($A$3,'1516M-G03'!$B$3:$AH$300,24,FALSE)),"NT") -> 6 | O24: =IFERROR(VLOOKUP($A$3,'1516M-G03'!$B$3:$AH$300,3,FALSE),"NT") -> 26081
A25: Grade | B25: Enrollment | C25: % Tested | D25: % Satisfactory | F25: All | H25: Operations and Algebraic Thinking | L25: Numbers and Operations in Base Ten
D26: 2015 FSA | E26: 2016 MYA | F26: Avg. % Correct | G26: Pts. Max | H26: Avg.% Correct | J26: Pts. Max | L26: Avg.% Correct | M26: Pts. Max
A27: 4 | B27: =IFERROR(VLOOKUP(TEXT($A$3,"0000"),'Mem12-16-2015'!$A$3:$AF$500,8,FALSE),"NA") -> 26844 | C27: =IF(OR(O27="NA",O27="NT",O27<10),"NA",IF(O27>B27,1,O27/B27)) -> 0.9449411414 | D27: =IFERROR(VLOOKUP(TEXT($A$3,"0000"),'15 FSA Math'!$G$3:$L$500,5,FALSE),"NA") -> 62 | E27: =IFERROR(IF($C27="NA","NA",VLOOKUP($A$3,'1516M-G04'!$B$3:$AH$300,12,FALSE)),"NT") -> 0.6136560751 | F27: =IFERROR(IF($C27="NA","NA",VLOOKUP($A$3,'1516M-G04'!$B$3:$AH$300,5,FALSE)),"NT") -> 62.90932745 | G27: =IFERROR(IF($C27="NA","NA",VLOOKUP($A$3,'1516M-G04'!$B$3:$AH$300,4,FALSE)),"NT") -> 50 | H27: =IFERROR(IF($C27="NA","NA",VLOOKUP($A$3,'1516M-G04'!$B$3:$AH$300,15,FALSE)),"NT") -> 0.5852314121 | J27: =IFERROR(IF($C27="NA","NA",VLOOKUP($A$3,'1516M-G04'!$B$3:$AH$300,14,FALSE)),"NT") -> 22 | L27: =IFERROR(IF($C27="NA","NA",VLOOKUP($A$3,'1516M-G04'!$B$3:$AH$300,20,FALSE)),"NT") -> 0.6632709138 | M27: =IFERROR(IF($C27="NA","NA",VLOOKUP($A$3,'1516M-G04'!$B$3:$AH$300,19,FALSE)),"NT") -> 28 | O27: =IFERROR(VLOOKUP($A$3,'1516M-G04'!$B$3:$AH$300,3,FALSE),"NT") -> 25366
A28: Grade | B28: Enrollment | C28: % Tested | D28: % Satisfactory | F28: All | H28: Operations; Algebraic Thinking; and Fractions | L28: Numbers and Operations in Base Ten
D29: 2015 FSA | E29: 2016 MYA | F29: Avg. % Correct | G29: Pts. Max | H29: Avg.% Correct | J29: Pts. Max | L29: Avg.% Correct | M29: Pts. Max
A30: 5 | B30: =IFERROR(VLOOKUP(TEXT($A$3,"0000"),'Mem12-16-2015'!$A$3:$AF$500,9,FALSE),"NA") -> 25254 | C30: =IF(OR(O30="NA",O30="NT",O30<10),"NA",IF(O30>B30,1,O30/B30)) -> 0.9647976558 | D30: =IFERROR(VLOOKUP(TEXT($A$3,"0000"),'15 FSA Math'!$M$3:$R$500,5,FALSE),"NA") -> 54 | E30: =IFERROR(IF($C30="NA","NA",VLOOKUP($A$3,'1516M-G05'!$B$3:$AH$300,12,FALSE)),"NT") -> 0.525795198 | F30: =IFERROR(IF($C30="NA","NA",VLOOKUP($A$3,'1516M-G05'!$B$3:$AH$300,5,FALSE)),"NT") -> 64.08546891 | G30: =IFERROR(IF($C30="NA","NA",VLOOKUP($A$3,'1516M-G05'!$B$3:$AH$300,4,FALSE)),"NT") -> 47 | H30: =IFERROR(IF($C30="NA","NA",VLOOKUP($A$3,'1516M-G05'!$B$3:$AH$300,15,FALSE)),"NT") -> 0.5086279499 | J30: =IFERROR(IF($C30="NA","NA",VLOOKUP($A$3,'1516M-G05'!$B$3:$AH$300,14,FALSE)),"NT") -> 11 | L30: =IFERROR(IF($C30="NA","NA",VLOOKUP($A$3,'1516M-G05'!$B$3:$AH$300,20,FALSE)),"NT") -> 0.6811725836 | M30: =IFERROR(IF($C30="NA","NA",VLOOKUP($A$3,'1516M-G05'!$B$3:$AH$300,19,FALSE)),"NT") -> 36 | O30: =IFERROR(VLOOKUP($A$3,'1516M-G05'!$B$3:$AH$300,3,FALSE),"NT") -> 24365

Sheet Grades 6-8
A2: Click here to return to the school and sheet selection interface
A3: ='Select School'!B3 -> 9999
A4: =TEXT(A3,"0000")&"-"&VLOOKUP(A3,SchList!$A$2:$B$475,2,FALSE) -> 9999-DISTRICT (9999) | Q4: District ELA | U4: School ELA | Y4: District Math | AF4: Mathematics
P5: Grade | Q5: Grade 6 | R5: Grade 7 | S5: Grade 8 | U5: Grade 6 | V5: Grade 7 | W5: Grade 8 | Y5: Grade | Z5: Grade 6 | AA5: Grade 7 | AB5: Grade 8 | AC5: Alg1 | AD5: Geo | AF5: Grade 6 | AG5: Grade 7 | AH5: Grade 8 | AI5: ALG 1 | AJ5: GEO
P6: 2015 FSA Dist. | Q6: =IFERROR(VLOOKUP(TEXT(9999,"0000"),'15 FSA ELA'!$S$3:$X$300,5,FALSE),#N/A) -> 49 | R6: =IFERROR(VLOOKUP(TEXT(9999,"0000"),'15 FSA ELA'!$Y$3:$AD$300,5,FALSE),#N/A) -> 50 | S6: =IFERROR(VLOOKUP(TEXT(9999,"0000"),'15 FSA ELA'!$AE$3:$AJ$300,5,FALSE),#N/A) -> 55 | T6: 2015 FSA School | U6: =IFERROR(VLOOKUP(TEXT($A$3,"0000"),'15 FSA ELA'!$S$3:$X$300,5,FALSE),#N/A) -> 49 | V6: =IFERROR(VLOOKUP(TEXT($A$3,"0000"),'15 FSA ELA'!$Y$3:$AD$300,5,FALSE),#N/A) -> 50 | W6: =IFERROR(VLOOKUP(TEXT($A$3,"0000"),'15 FSA ELA'!$AE$3:$AJ$300,5,FALSE),#N/A) -> 55 | Y6: 2015 FSA Dist. | Z6: =IFERROR(VLOOKUP(TEXT(9999,"0000"),'15 FSA Math'!$S$3:$X$500,5,FALSE),#N/A) -> 49 | AA6: =IFERROR(VLOOKUP(TEXT(9999,"0000"),'15 FSA Math'!$Y$3:$AD$500,5,FALSE),#N/A) -> 46 | AB6: =IFERROR(VLOOKUP(TEXT(9999,"0000"),'15 FSA Math'!$AE$3:$AJ$500,5,FALSE),#N/A) -> 38 | AC6: =IFERROR(VLOOKUP(TEXT(9999,"0000"),'15 FSA Alg1'!$A$3:$F$500,5,FALSE),#N/A) -> 52 | AD6: =IFERROR(VLOOKUP(TEXT(9999,"0000"),'15 FSA Geo'!$A$3:$F$500,5,FALSE),#N/A) -> 48 | AE6: 2015 FSA School | AF6: =IFERROR(VLOOKUP(TEXT($A$3,"0000"),'15 FSA Math'!$S$3:$X$500,5,FALSE),#N/A) -> 49 | AG6: =IFERROR(VLOOKUP(TEXT($A$3,"0000"),'15 FSA Math'!$Y$3:$AD$500,5,FALSE),#N/A) -> 46 | AH6: =IFERROR(VLOOKUP(TEXT($A$3,"0000"),'15 FSA Math'!$AE$3:$AJ$500,5,FALSE),#N/A) -> 38 | AI6: =IFERROR(VLOOKUP(TEXT($A$3,"0000"),'15 FSA Alg1'!$A$3:$F$500,5,FALSE),#N/A) -> 52 | AJ6: =IFERROR(VLOOKUP(TEXT($A$3,"0000"),'15 FSA Geo'!$A$3:$F$500,5,FALSE),#N/A) -> 48
P7: 2016 MYA Dist. | Q7: =IFERROR(ROUND(VLOOKUP(9999,'1516ELA-G06'!$B$3:$AH$300,12,FALSE)*100,0),#N/A) -> 48 | R7: =IFERROR(ROUND(VLOOKUP(9999,'1516ELA-G07'!$B$3:$AH$300,12,FALSE)*100,0),#N/A) -> 48 | S7: =IFERROR(ROUND(VLOOKUP(9999,'1516ELA-G08'!$B$3:$AH$300,12,FALSE)*100,0),#N/A) -> 52 | T7: 2016 MYA School | U7: =IFERROR(ROUND(VLOOKUP($A$3,'1516ELA-G06'!$B$3:$AH$300,12,FALSE)*100,0),#N/A) -> 48 | V7: =IFERROR(ROUND(VLOOKUP($A$3,'1516ELA-G07'!$B$3:$AH$300,12,FALSE)*100,0),#N/A) -> 48 | W7: =IFERROR(ROUND(VLOOKUP($A$3,'1516ELA-G08'!$B$3:$AH$300,12,FALSE)*100,0),#N/A) -> 52 | Y7: 2016 MYA Dist. | Z7: =IFERROR(ROUND(VLOOKUP(9999,'1516M-G06'!$B$3:$AH$300,12,FALSE)*100,0),#N/A) -> 45 | AA7: =IFERROR(ROUND(VLOOKUP(9999,'1516M-G07'!$B$3:$AH$300,12,FALSE)*100,0),#N/A) -> 34 | AB7: =IFERROR(ROUND(VLOOKUP(9999,'1516M-G08'!$B$3:$AH$300,12,FALSE)*100,0),#N/A) -> 25 | AC7: =IFERROR(ROUND(VLOOKUP(9999,'1516M-ALG1'!$B$3:$AH$300,12,FALSE)*100,0),#N/A) -> 47 | AD7: =IFERROR(ROUND(VLOOKUP(9999,'1516M-GEO'!$B$3:$AH$300,12,FALSE)*100,0),#N/A) -> 41 | AE7: 2016 MYA School | AF7: =IFERROR(ROUND(VLOOKUP($A$3,'1516M-G06'!$B$3:$AH$300,12,FALSE)*100,0),#N/A) -> 45 | AG7: =IFERROR(ROUND(VLOOKUP($A$3,'1516M-G07'!$B$3:$AH$300,12,FALSE)*100,0),#N/A) -> 34 | AH7: =IFERROR(ROUND(VLOOKUP($A$3,'1516M-G08'!$B$3:$AH$300,12,FALSE)*100,0),#N/A) -> 25 | AI7: =IFERROR(ROUND(VLOOKUP($A$3,'1516M-ALG1'!$B$3:$AH$300,12,FALSE)*100,0),#N/A) -> 47 | AJ7: =IFERROR(ROUND(VLOOKUP($A$3,'1516M-GEO'!$B$3:$AH$300,12,FALSE)*100,0),#N/A) -> 41
A16: Grade | B16: Enrollment | C16: % Tested | D16: % Satisfactory | F16: All | H16: Key Ideas and Details | J16: Craft and Structure | L16: Integration of Knowledge and Ideas | O16: ELA Number Tested
D17: 2015 FSA | E17: 2016 MYA | F17: Avg. % Correct | G17: Pts. Max | H17: Avg. % Correct | I17: Pts. Max | J17: Avg.% Correct | K17: Pts. Max | L17: Avg.% Correct | M17: Pts. Max
A18: 6 | B18: =IFERROR(VLOOKUP(TEXT($A$3,"0000"),'Mem12-16-2015'!$A$3:$AF$500,10,FALSE),"NA") -> 25610 | C18: =IF(OR(O18<10,O18="NT",O18<10),"NA",IF(O18>B18,1,O18/B18)) -> 0.9475595471 | D18: =IFERROR(VLOOKUP(TEXT($A$3,"0000"),'15 FSA ELA'!$S$3:$X$500,5,FALSE),"NA") -> 49 | E18: =IFERROR(IF($C18="NA","NA",VLOOKUP($A$3,'1516ELA-G06'!$B$3:$AH$300,12,FALSE)),"NT") -> 0.4753368772 | F18: =IFERROR(IF($C18="NA","NA",VLOOKUP($A$3,'1516ELA-G06'!$B$3:$AH$300,5,FALSE)),"NT") -> 56.61383072 | G18: =IFERROR(IF($C18="NA","NA",VLOOKUP($A$3,'1516ELA-G06'!$B$3:$AH$300,4,FALSE)),"NT") -> 49 | H18: =IFERROR(IF($C18="NA","NA",VLOOKUP($A$3,'1516ELA-G06'!$B$3:$AH$300,15,FALSE)),"NT") -> 0.5774327276 | I18: =IFERROR(IF($C18="NA","NA",VLOOKUP($A$3,'1516ELA-G06'!$B$3:$AH$300,14,FALSE)),"NT") -> 19 | J18: =IFERROR(IF($C18="NA","NA",VLOOKUP($A$3,'1516ELA-G06'!$B$3:$AH$300,20,FALSE)),"NT") -> 0.5772534718 | K18: =IFERROR(IF($C18="NA","NA",VLOOKUP($A$3,'1516ELA-G06'!$B$3:$AH$300,19,FALSE)),"NT") -> 24 | L18: =IFERROR(IF($C18="NA","NA",VLOOKUP($A$3,'1516ELA-G06'!$B$3:$AH$300,25,FALSE)),"NT") -> 0.4884847736 | M18: =IFERROR(IF($C18="NA","NA",VLOOKUP($A$3,'1516ELA-G06'!$B$3:$AH$300,24,FALSE)),"NT") -> 6 | O18: =IFERROR(VLOOKUP($A$3,'1516ELA-G06'!$B$3:$AH$300,3,FALSE),"NT") -> 24267
A19: 7 | B19: =IFERROR(VLOOKUP(TEXT($A$3,"0000"),'Mem12-16-2015'!$A$3:$AF$500,11,FALSE),"NA") -> 26293 | C19: =IF(OR(O19="NA",O19="NT",O19<10),"NA",IF(O19>B19,1,O19/B19)) -> 0.9430266611 | D19: =IFERROR(VLOOKUP(TEXT($A$3,"0000"),'15 FSA ELA'!$Y$3:$AD$500,5,FALSE),"NA") -> 50 | E19: =IFERROR(IF($C19="NA","NA",VLOOKUP($A$3,'1516ELA-G07'!$B$3:$AH$300,12,FALSE)),"NT") -> 0.484815487 | F19: =IFERROR(IF($C19="NA","NA",VLOOKUP($A$3,'1516ELA-G07'!$B$3:$AH$300,5,FALSE)),"NT") -> 54.95142004 | G19: =IFERROR(IF($C19="NA","NA",VLOOKUP($A$3,'1516ELA-G07'!$B$3:$AH$300,4,FALSE)),"NT") -> 43 | H19: =IFERROR(IF($C19="NA","NA",VLOOKUP($A$3,'1516ELA-G07'!$B$3:$AH$300,15,FALSE)),"NT") -> 0.5469477717 | I19: =IFERROR(IF($C19="NA","NA",VLOOKUP($A$3,'1516ELA-G07'!$B$3:$AH$300,14,FALSE)),"NT") -> 18 | J19: =IFERROR(IF($C19="NA","NA",VLOOKUP($A$3,'1516ELA-G07'!$B$3:$AH$300,20,FALSE)),"NT") -> 0.5420963904 | K19: =IFERROR(IF($C19="NA","NA",VLOOKUP($A$3,'1516ELA-G07'!$B$3:$AH$300,19,FALSE)),"NT") -> 22 | L19: =IFERROR(IF($C19="NA","NA",VLOOKUP($A$3,'1516ELA-G07'!$B$3:$AH$300,25,FALSE)),"NT") -> 0.6198451301 | M19: =IFERROR(IF($C19="NA","NA",VLOOKUP($A$3,'1516ELA-G07'!$B$3:$AH$300,24,FALSE)),"NT") -> 3 | O19: =IFERROR(VLOOKUP($A$3,'1516ELA-G07'!$B$3:$AH$300,3,FALSE),"NT") -> 24795
A20: 8 | B20: =IFERROR(VLOOKUP(TEXT($A$3,"0000"),'Mem12-16-2015'!$A$3:$AF$500,12,FALSE),"NA") -> 26543 | C20: =IF(OR(O20="NA",O20="NT",O20<10),"NA",IF(O20>B20,1,O20/B20)) -> 0.9445051426 | D20: =IFERROR(VLOOKUP(TEXT($A$3,"0000"),'15 FSA ELA'!$AE$3:$AJ$500,5,FALSE),"NA") -> 55 | E20: =IFERROR(IF($C20="NA","NA",VLOOKUP($A$3,'1516ELA-G08'!$B$3:$AH$300,12,FALSE)),"NT") -> 0.5188272836 | F20: =IFERROR(IF($C20="NA","NA",VLOOKUP($A$3,'1516ELA-G08'!$B$3:$AH$300,5,FALSE)),"NT") -> 59.32748584 | G20: =IFERROR(IF($C20="NA","NA",VLOOKUP($A$3,'1516ELA-G08'!$B$3:$AH$300,4,FALSE)),"NT") -> 45 | H20: =IFERROR(IF($C20="NA","NA",VLOOKUP($A$3,'1516ELA-G08'!$B$3:$AH$300,15,FALSE)),"NT") -> 0.6166398085 | I20: =IFERROR(IF($C20="NA","NA",VLOOKUP($A$3,'1516ELA-G08'!$B$3:$AH$300,14,FALSE)),"NT") -> 18 | J20: =IFERROR(IF($C20="NA","NA",VLOOKUP($A$3,'1516ELA-G08'!$B$3:$AH$300,20,FALSE)),"NT") -> 0.5783298763 | K20: =IFERROR(IF($C20="NA","NA",VLOOKUP($A$3,'1516ELA-G08'!$B$3:$AH$300,19,FALSE)),"NT") -> 24 | L20: =IFERROR(IF($C20="NA","NA",VLOOKUP($A$3,'1516ELA-G08'!$B$3:$AH$300,25,FALSE)),"NT") -> 0.5797311528 | M20: =IFERROR(IF($C20="NA","NA",VLOOKUP($A$3,'1516ELA-G08'!$B$3:$AH$300,24,FALSE)),"NT") -> 3 | O20: =IFERROR(VLOOKUP($A$3,'1516ELA-G08'!$B$3:$AH$300,3,FALSE),"NT") -> 25070
A22: Grade | B22: Enrollment | C22: % Tested | D22: % Satisfactory | F22: All | H22: Ratio and Proportional Relationships | L22: The Number System | O22: Math Number Tested
D23: 2015 FSA | E23: 2016 MYA | F23: Avg. % Correct | G23: Pts. Max | H23: Avg.% Correct | J23: Pts. Max | L23: Avg.% Correct | M23: Pts. Max
A24: 6 | B24: =IFERROR(VLOOKUP(TEXT($A$3,"0000"),'Mem12-16-2015'!$A$3:$AF$500,19,FALSE),"NA") -> 25595 | C24: =IF(OR(O24="NA",O24="NT",O24<10),"NA",IF(O24>B24,1,O24/B24)) -> 0.9452627466 | D24: =IFERROR(VLOOKUP(TEXT($A$3,"0000"),'15 FSA Math'!$S$3:$X$500,5,FALSE),"NA") -> 49 | E24: =IFERROR(IF($C24="NA","NA",VLOOKUP($A$3,'1516M-G06'!$B$3:$AH$300,12,FALSE)),"NT") -> 0.450194263 | F24: =IFERROR(IF($C24="NA","NA",VLOOKUP($A$3,'1516M-G06'!$B$3:$AH$300,5,FALSE)),"NT") -> 49.98238448 | G24: =IFERROR(IF($C24="NA","NA",VLOOKUP($A$3,'1516M-G06'!$B$3:$AH$300,4,FALSE)),"NT") -> 61 | H24: =IFERROR(IF($C24="NA","NA",VLOOKUP($A$3,'1516M-G06'!$B$3:$AH$300,15,FALSE)),"NT") -> 0.5087765382 | J24: =IFERROR(IF($C24="NA","NA",VLOOKUP($A$3,'1516M-G06'!$B$3:$AH$300,14,FALSE)),"NT") -> 23 | L24: =IFERROR(IF($C24="NA","NA",VLOOKUP($A$3,'1516M-G06'!$B$3:$AJ$300,35,FALSE)),"NT") -> 0.4942609955 | M24: =IFERROR(IF($C24="NA","NA",VLOOKUP($A$3,'1516M-G06'!$B$3:$AJ$300,34,FALSE)),"NT") -> 38 | O24: =IFERROR(VLOOKUP($A$3,'1516M-G06'!$B$3:$AH$300,3,FALSE),"NT") -> 24194
A25: Grade | B25: Enrollment | C25: % Tested | D25: % Satisfactory | F25: All | H25: Ratio and Proportional Relationships | J25: Expressions and Equations | L25: The Number System
D26: 2015 FSA | E26: 2016 MYA | F26: Avg. % Correct | G26: Pts. Max | H26: Avg.% Correct | I26: Pts. Max | J26: Avg.% Correct | K26: Pts. Max | L26: Avg.% Correct | M26: Pts. Max
A27: 7 | B27: =IFERROR(VLOOKUP(TEXT($A$3,"0000"),'Mem12-16-2015'!$A$3:$AF$500,23,FALSE),"NA") -> 23250 | C27: =IF(OR(O27="NA",O27="NT",O27<10),"NA",IF(O27>B27,1,O27/B27)) -> 0.9336344086 | D27: =IFERROR(VLOOKUP(TEXT($A$3,"0000"),'15 FSA Math'!$Y$3:$AD$500,5,FALSE),"NA") -> 46 | E27: =IFERROR(IF($C27="NA","NA",VLOOKUP($A$3,'1516M-G07'!$B$3:$AH$300,12,FALSE)),"NT") -> 0.3418252177 | F27: =IFERROR(IF($C27="NA","NA",VLOOKUP($A$3,'1516M-G07'!$B$3:$AH$300,5,FALSE)),"NT") -> 39.82253709 | G27: =IFERROR(IF($C27="NA","NA",VLOOKUP($A$3,'1516M-G07'!$B$3:$AH$300,4,FALSE)),"NT") -> 63 | H27: =IFERROR(IF($C27="NA","NA",VLOOKUP($A$3,'1516M-G07'!$B$3:$AH$300,15,FALSE)),"NT") -> 0.4014423919 | I27: =IFERROR(IF($C27="NA","NA",VLOOKUP($A$3,'1516M-G07'!$B$3:$AH$300,14,FALSE)),"NT") -> 30 | J27: =IFERROR(IF($C27="NA","NA",VLOOKUP($A$3,'1516M-G07'!$B$3:$AH$300,20,FALSE)),"NT") -> 0.3245294145 | K27: =IFERROR(IF($C27="NA","NA",VLOOKUP($A$3,'1516M-G07'!$B$3:$AH$300,19,FALSE)),"NT") -> 8 | L27: =IFERROR(IF($C27="NA","NA",VLOOKUP($A$3,'1516M-G07'!$B$3:$AJ$300,35,FALSE)),"NT") -> 0.4187552402 | M27: =IFERROR(IF($C27="NA","NA",VLOOKUP($A$3,'1516M-G07'!$B$3:$AJ$300,34,FALSE)),"NT") -> 25 | O27: =IFERROR(VLOOKUP($A$3,'1516M-G07'!$B$3:$AH$300,3,FALSE),"NT") -> 21707
A28: Grade | B28: Enrollment | C28: % Tested | D28: % Satisfactory | F28: All | H28: Expressions and Equations | J28: Functions | L28: =IFERROR(VLOOKUP(9999,'1516M-G08'!$B$3:$AJ$300,28,FALSE),"NT") -> Statistics and Probability and The Number System
D29: 2015 FSA | E29: 2016 MYA | F29: Avg. % Correct | G29: Pts. Max | H29: Avg.% Correct | I29: Pts. Max | J29: Avg.% Correct | K29: Pts. Max | L29: Avg.% Correct | M29: Pts. Max
A30: 8 | B30: =IFERROR(VLOOKUP(TEXT($A$3,"0000"),'Mem12-16-2015'!$A$3:$AF$500,27,FALSE),"NA") -> 16648 | C30: =IF(OR(O30="NA",O30="NT",O30<10),"NA",IF(O30>B30,1,O30/B30)) -> 0.9480418068 | D30: =IFERROR(VLOOKUP(TEXT($A$3,"0000"),'15 FSA Math'!$AE$3:$AJ$500,5,FALSE),"NA") -> 38 | E30: =IFERROR(IF($C30="NA","NA",VLOOKUP($A$3,'1516M-G08'!$B$3:$AH$300,12,FALSE)),"NT") -> 0.2547044288 | F30: =IFERROR(IF($C30="NA","NA",VLOOKUP($A$3,'1516M-G08'!$B$3:$AH$300,5,FALSE)),"NT") -> 33.79607236 | G30: =IFERROR(IF($C30="NA","NA",VLOOKUP($A$3,'1516M-G08'!$B$3:$AH$300,4,FALSE)),"NT") -> 62 | H30: =IFERROR(IF($C30="NA","NA",VLOOKUP($A$3,'1516M-G08'!$B$3:$AH$300,15,FALSE)),"NT") -> 0.3355613283 | I30: =IFERROR(IF($C30="NA","NA",VLOOKUP($A$3,'1516M-G08'!$B$3:$AH$300,14,FALSE)),"NT") -> 45 | J30: =IFERROR(IF($C30="NA","NA",VLOOKUP($A$3,'1516M-G08'!$B$3:$AH$300,20,FALSE)),"NT") -> 0.384336628 | K30: =IFERROR(IF($C30="NA","NA",VLOOKUP($A$3,'1516M-G08'!$B$3:$AH$300,19,FALSE)),"NT") -> 8 | L30: =IFERROR(IF($C30="NA","NA",VLOOKUP($A$3,'1516M-G08'!$B$3:$AJ$300,30,FALSE)),"NT") -> 0.309575563 | M30: =IFERROR(IF($C30="NA","NA",VLOOKUP($A$3,'1516M-G08'!$B$3:$AJ$300,29,FALSE)),"NT") -> 9 | O30: =IFERROR(VLOOKUP($A$3,'1516M-G08'!$B$3:$AH$300,3,FALSE),"NT") -> 15783
A31: EOC Assessments | B31: Enrollment | C31: % Tested | D31: % Satisfactory | F31: All | H31: Algebra and Modeling | J31: Functions and Modeling | L31: Statistics and the Number System | O31: EOC Number Tested
D32: 2015 FSA | E32: 2016 MYA | F32: Avg. % Correct | G32: Pts. Max | H32: Avg.% Correct | I32: Pts. Max | J32: Avg.% Correct | K32: Pts. Max | L32: Avg.% Correct | M32: Pts. Max
A33: Algebra I | B33: =IFERROR(VLOOKUP(TEXT($A$3,"0000"),'Mem12-16-2015'!$A$3:$AF$500,30,FALSE),"NA") -> 26956 | C33: =IF(OR(O33="NA",O33="NT",O33<10),"NA",IF(O33>B33,1,O33/B33)) -> 0.8638151061 | D33: =IFERROR(VLOOKUP(TEXT($A$3,"0000"),'15 FSA Alg1'!$A$3:$F$500,5,FALSE),"NA") -> 52 | E33: =IFERROR(IF($C33="NA","NA",VLOOKUP($A$3,'1516M-ALG1'!$B$3:$AH$300,12,FALSE)),"NT") -> 0.4651492377 | F33: =IFERROR(IF($C33="NA","NA",VLOOKUP($A$3,'1516M-ALG1'!$B$3:$AH$300,5,FALSE)),"NT") -> 37.41700322 | G33: =IFERROR(IF($C33="NA","NA",VLOOKUP($A$3,'1516M-ALG1'!$B$3:$AH$300,4,FALSE)),"NT") -> 54 | H33: =IFERROR(IF($C33="NA","NA",VLOOKUP($A$3,'1516M-ALG1'!$B$3:$AH$300,15,FALSE)),"NT") -> 0.3576139145 | I33: =IFERROR(IF($C33="NA","NA",VLOOKUP($A$3,'1516M-ALG1'!$B$3:$AH$300,14,FALSE)),"NT") -> 25 | J33: =IFERROR(IF($C33="NA","NA",VLOOKUP($A$3,'1516M-ALG1'!$B$3:$AH$300,20,FALSE)),"NT") -> 0.3049032997 | K33: =IFERROR(IF($C33="NA","NA",VLOOKUP($A$3,'1516M-ALG1'!$B$3:$AH$300,19,FALSE)),"NT") -> 6 | L33: =IFERROR(IF($C33="NA","NA",VLOOKUP($A$3,'1516M-ALG1'!$B$3:$AH$300,25,FALSE)),"NT") -> 0.4097256678 | M33: =IFERROR(IF($C33="NA","NA",VLOOKUP($A$3,'1516M-ALG1'!$B$3:$AH$300,24,FALSE)),"NT") -> 23 | O33: =IFERROR(VLOOKUP($A$3,'1516M-ALG1'!$B$3:$AH$300,3,FALSE),"NT") -> 23285
A34: EOC Assessments | B34: Enrollment | C34: % Tested | D34: % Satisfactory | F34: All | H34: Congruence; Similarity; Right Triangles; and Trigonometry | J34: Circles; Geometric Measurement; and Geometric Properties with Equations
D35: 2015 FSA | E35: 2016 MYA | F35: Avg. % Correct | G35: Pts. Max | H35: Avg.% Correct | I35: Pts. Max | J35: Avg.% Correct | L35: Pts. Max
A36: Geometry | B36: =IFERROR(VLOOKUP(TEXT($A$3,"0000"),'Mem12-16-2015'!$A$3:$AF$500,31,FALSE),"NA") -> 28441 | C36: =IF(OR(O36="NA",O36="NT",O36<10),"NA",IF(O36>B36,1,O36/B36)) -> 0.8899124503 | D36: =IFERROR(VLOOKUP(TEXT($A$3,"0000"),'15 FSA Geo'!$A$3:$F$500,5,FALSE),"NA") -> 48 | E36: =IFERROR(IF($C36="NA","NA",VLOOKUP($A$3,'1516M-GEO'!$B$3:$AH$300,12,FALSE)),"NT") -> 0.4062425919 | F36: =IFERROR(IF($C36="NA","NA",VLOOKUP($A$3,'1516M-GEO'!$B$3:$AH$300,5,FALSE)),"NT") -> 42.79088819 | G36: =IFERROR(IF($C36="NA","NA",VLOOKUP($A$3,'1516M-GEO'!$B$3:$AH$300,4,FALSE)),"NT") -> 48 | H36: =IFERROR(IF($C36="NA","NA",VLOOKUP($A$3,'1516M-GEO'!$B$3:$AH$300,15,FALSE)),"NT") -> 0.4359510075 | I36: =IFERROR(IF($C36="NA","NA",VLOOKUP($A$3,'1516M-GEO'!$B$3:$AH$300,14,FALSE)),"NT") -> 44 | J36: =IFERROR(IF($C36="NA","NA",VLOOKUP($A$3,'1516M-GEO'!$B$3:$AH$300,20,FALSE)),"NT") -> 0.3395001976 | L36: =IFERROR(IF($C36="NA","NA",VLOOKUP($A$3,'1516M-GEO'!$B$3:$AH$300,19,FALSE)),"NT") -> 4 | O36: =IFERROR(VLOOKUP($A$3,'1516M-GEO'!$B$3:$AH$300,3,FALSE),"NT") -> 25310

Sheet Grades 9-12
A2: Click here to return to the school and sheet selection interface
A3: ='Select School'!B3 -> 9999
A4: =TEXT(A3,"0000")&"-"&VLOOKUP(A3,SchList!$A$2:$B$475,2,FALSE) -> 9999-DISTRICT (9999) | Q4: District ELA | U4: School ELA | Y4: District Math | AF4: Mathematics
P5: Grade | Q5: Grade 9 | R5: Grade 10 | U5: Grade 9 | V5: Grade 10 | Y5: Grade | Z5: Alg1 | AA5: Geo | AB5: Alg2 | AF5: Alg1 | AG5: Geo | AH5: Alg2
P6: 2015 FSA Dist. | Q6: =IFERROR(VLOOKUP(TEXT(9999,"0000"),'15 FSA ELA'!$AK$3:$AP$300,5,FALSE),#N/A) -> 52 | R6: =IFERROR(VLOOKUP(TEXT(9999,"0000"),'15 FSA ELA'!$AQ$3:$AV$300,5,FALSE),#N/A) -> 49 | T6: 2015 FSA School | U6: =IFERROR(VLOOKUP(TEXT($A$3,"0000"),'15 FSA ELA'!$AK$3:$AP$300,5,FALSE),#N/A) -> 52 | V6: =IFERROR(VLOOKUP(TEXT($A$3,"0000"),'15 FSA ELA'!$AQ$3:$AV$300,5,FALSE),#N/A) -> 49 | Y6: 2015 FSA Dist. | Z6: =IFERROR(VLOOKUP(TEXT(9999,"0000"),'15 FSA Alg1'!$A$3:$F$500,5,FALSE),#N/A) -> 52 | AA6: =IFERROR(VLOOKUP(TEXT(9999,"0000"),'15 FSA Geo'!$A$3:$F$500,5,FALSE),#N/A) -> 48 | AB6: =IFERROR(VLOOKUP(TEXT(9999,"0000"),'15 FSA Alg2'!$A$3:$F$500,5,FALSE),#N/A) -> 27 | AE6: 2015 FSA School | AF6: =IFERROR(VLOOKUP(TEXT($A$3,"0000"),'15 FSA Alg1'!$A$3:$F$500,5,FALSE),#N/A) -> 52 | AG6: =IFERROR(VLOOKUP(TEXT($A$3,"0000"),'15 FSA Geo'!$A$3:$F$500,5,FALSE),#N/A) -> 48 | AH6: =IFERROR(VLOOKUP(TEXT($A$3,"0000"),'15 FSA Alg2'!$A$3:$F$500,5,FALSE),#N/A) -> 27
P7: 2016 MYA Dist. | Q7: =IFERROR(ROUND(VLOOKUP(9999,'1516ELA-G09'!$B$3:$AH$300,12,FALSE)*100,0),#N/A) -> 50 | R7: =IFERROR(ROUND(VLOOKUP(9999,'1516ELA-G10'!$B$3:$AH$300,12,FALSE)*100,0),#N/A) -> 44 | T7: 2016 MYA School | U7: =IFERROR(ROUND(VLOOKUP($A$3,'1516ELA-G09'!$B$3:$AH$300,12,FALSE)*100,0),#N/A) -> 50 | V7: =IFERROR(ROUND(VLOOKUP($A$3,'1516ELA-G10'!$B$3:$AH$300,12,FALSE)*100,0),#N/A) -> 44 | Y7: 2016 MYA Dist. | Z7: =IFERROR(ROUND(VLOOKUP(9999,'1516M-ALG1'!$B$3:$AH$300,12,FALSE)*100,0),#N/A) -> 47 | AA7: =IFERROR(ROUND(VLOOKUP(9999,'1516M-GEO'!$B$3:$AH$300,12,FALSE)*100,0),#N/A) -> 41 | AE7: 2016 MYA School | AF7: =IFERROR(ROUND(VLOOKUP($A$3,'1516M-ALG1'!$B$3:$AH$300,12,FALSE)*100,0),#N/A) -> 47 | AG7: =IFERROR(ROUND(VLOOKUP($A$3,'1516M-GEO'!$B$3:$AH$300,12,FALSE)*100,0),#N/A) -> 41
A16: Grade | B16: Enrollment | C16: % Tested | D16: % Satisfactory | F16: All | H16: =IFERROR(VLOOKUP(9999,'1516ELA-G03'!$B$3:$AH$300,13,FALSE),"NT") -> Key Ideas and Details | J16: =IFERROR(VLOOKUP(9999,'1516ELA-G03'!$B$3:$AH$300,18,FALSE),"NT") -> Craft and Structure | L16: =IFERROR(VLOOKUP(9999,'1516ELA-G03'!$B$3:$AH$300,23,FALSE),"NT") -> Integration of Knowledge and Ideas | O16: ELA Number Tested
D17: 2015 FSA | E17: 2016 MYA | F17: Avg. % Correct | G17: Pts. Max | H17: Avg.% Correct | I17: Pts. Max | J17: Avg.% Correct | K17: Pts. Max | L17: Avg.% Correct | M17: Pts. Max
A18: 9 | B18: =IFERROR(VLOOKUP(TEXT($A$3,"0000"),'Mem12-16-2015'!$A$3:$AF$500,13,FALSE),"NA") -> 27680 | C18: =IF(OR(O18<10,O18="NT",O18<10),"NA",IF(O18>B18,1,O18/B18)) -> 0.9069725434 | D18: =IFERROR(VLOOKUP(TEXT($A$3,"0000"),'15 FSA ELA'!$AK$3:$AP$500,5,FALSE),"NA") -> 52 | E18: =IFERROR(IF($C18="NA","NA",VLOOKUP($A$3,'1516ELA-G09'!$B$3:$AH$300,12,FALSE)),"NT") -> 0.5031666999 | F18: =IFERROR(IF($C18="NA","NA",VLOOKUP($A$3,'1516ELA-G09'!$B$3:$AH$300,5,FALSE)),"NT") -> 56.70532404 | G18: =IFERROR(IF($C18="NA","NA",VLOOKUP($A$3,'1516ELA-G09'!$B$3:$AH$300,4,FALSE)),"NT") -> 44 | H18: =IFERROR(IF($C18="NA","NA",VLOOKUP($A$3,'1516ELA-G09'!$B$3:$AH$300,15,FALSE)),"NT") -> 0.58757618 | I18: =IFERROR(IF($C18="NA","NA",VLOOKUP($A$3,'1516ELA-G09'!$B$3:$AH$300,14,FALSE)),"NT") -> 17 | J18: =IFERROR(IF($C18="NA","NA",VLOOKUP($A$3,'1516ELA-G09'!$B$3:$AH$300,20,FALSE)),"NT") -> 0.5504528978 | K18: =IFERROR(IF($C18="NA","NA",VLOOKUP($A$3,'1516ELA-G09'!$B$3:$AH$300,19,FALSE)),"NT") -> 25 | L18: =IFERROR(IF($C18="NA","NA",VLOOKUP($A$3,'1516ELA-G09'!$B$3:$AH$300,25,FALSE)),"NT") -> 0.5968333001 | M18: =IFERROR(IF($C18="NA","NA",VLOOKUP($A$3,'1516ELA-G09'!$B$3:$AH$300,24,FALSE)),"NT") -> 2 | O18: =IFERROR(VLOOKUP($A$3,'1516ELA-G09'!$B$3:$AH$300,3,FALSE),"NT") -> 25105
A19: 10 | B19: =IFERROR(VLOOKUP(TEXT($A$3,"0000"),'Mem12-16-2015'!$A$3:$AH$500,34,FALSE),"NA") -> 27676 | C19: =IF(OR(O19="NA",O19="NT",O19<10),"NA",IF(O19>B19,1,O19/B19)) -> 0.8716938864 | D19: =IFERROR(VLOOKUP(TEXT($A$3,"0000"),'15 FSA ELA'!$AQ$3:$AV$500,5,FALSE),"NA") -> 49 | E19: =IFERROR(IF($C19="NA","NA",VLOOKUP($A$3,'1516ELA-G10'!$B$3:$AH$300,12,FALSE)),"NT") -> 0.437015544 | F19: =IFERROR(IF($C19="NA","NA",VLOOKUP($A$3,'1516ELA-G10'!$B$3:$AH$300,5,FALSE)),"NT") -> 49.8706313 | G19: =IFERROR(IF($C19="NA","NA",VLOOKUP($A$3,'1516ELA-G10'!$B$3:$AH$300,4,FALSE)),"NT") -> 42 | H19: =IFERROR(IF($C19="NA","NA",VLOOKUP($A$3,'1516ELA-G10'!$B$3:$AH$300,15,FALSE)),"NT") -> 0.5059158549 | I19: =IFERROR(IF($C19="NA","NA",VLOOKUP($A$3,'1516ELA-G10'!$B$3:$AH$300,14,FALSE)),"NT") -> 16 | J19: =IFERROR(IF($C19="NA","NA",VLOOKUP($A$3,'1516ELA-G10'!$B$3:$AH$300,20,FALSE)),"NT") -> 0.4934225907 | K19: =IFERROR(IF($C19="NA","NA",VLOOKUP($A$3,'1516ELA-G10'!$B$3:$AH$300,19,FALSE)),"NT") -> 23 | L19: =IFERROR(IF($C19="NA","NA",VLOOKUP($A$3,'1516ELA-G10'!$B$3:$AH$300,25,FALSE)),"NT") -> 0.5075734715 | M19: =IFERROR(IF($C19="NA","NA",VLOOKUP($A$3,'1516ELA-G10'!$B$3:$AH$300,24,FALSE)),"NT") -> 3 | O19: =IFERROR(VLOOKUP($A$3,'1516ELA-G10'!$B$3:$AH$300,3,FALSE),"NT") -> 24125
A21: EOC Assessments | B21: Enrollment | C21: % Tested | D21: % Satisfactory | F21: All | H21: =IFERROR(VLOOKUP(9999,'1516M-ALG1'!$B$3:$AH$300,13,FALSE),"NT") -> Algebra and Modeling | J21: =IFERROR(VLOOKUP(9999,'1516M-ALG1'!$B$3:$AH$300,18,FALSE),"NT") -> Functions and Modeling | L21: =IFERROR(VLOOKUP(9999,'1516M-ALG1'!$B$3:$AH$300,23,FALSE),"NT") -> Statistics and the Number System | O21: EOC Number Tested
D22: 2015 FSA | E22: 2016 MYA | F22: Avg. % Correct | G22: Pts. Max | H22: Avg.% Correct | I22: Pts. Max | J22: Avg.% Correct | K22: Pts. Max | L22: Avg.% Correct | M22: Pts. Max
A23: Algebra I | B23: =IFERROR(VLOOKUP(TEXT($A$3,"0000"),'Mem12-16-2015'!$A$3:$AF$500,30,FALSE),"NA") -> 26956 | C23: =IF(OR(O23="NA",O23="NT",O23<10),"NA",IF(O23>B23,1,O23/B23)) -> 0.8638151061 | D23: =IFERROR(VLOOKUP(TEXT($A$3,"0000"),'15 FSA Alg1'!$A$3:$F$500,5,FALSE),"NA") -> 52 | E23: =IFERROR(IF($C23="NA","NA",VLOOKUP($A$3,'1516M-ALG1'!$B$3:$AH$300,12,FALSE)),"NT") -> 0.4651492377 | F23: =IFERROR(IF($C23="NA","NA",VLOOKUP($A$3,'1516M-ALG1'!$B$3:$AH$300,5,FALSE)),"NT") -> 37.41700322 | G23: =IFERROR(IF($C23="NA","NA",VLOOKUP($A$3,'1516M-ALG1'!$B$3:$AH$300,4,FALSE)),"NT") -> 54 | H23: =IFERROR(IF($C23="NA","NA",VLOOKUP($A$3,'1516M-ALG1'!$B$3:$AH$300,15,FALSE)),"NT") -> 0.3576139145 | I23: =IFERROR(IF($C23="NA","NA",VLOOKUP($A$3,'1516M-ALG1'!$B$3:$AH$300,14,FALSE)),"NT") -> 25 | J23: =IFERROR(IF($C23="NA","NA",VLOOKUP($A$3,'1516M-ALG1'!$B$3:$AH$300,20,FALSE)),"NT") -> 0.3049032997 | K23: =IFERROR(IF($C23="NA","NA",VLOOKUP($A$3,'1516M-ALG1'!$B$3:$AH$300,19,FALSE)),"NT") -> 6 | L23: =IFERROR(IF($C23="NA","NA",VLOOKUP($A$3,'1516M-ALG1'!$B$3:$AH$300,25,FALSE)),"NT") -> 0.4097256678 | M23: =IFERROR(IF($C23="NA","NA",VLOOKUP($A$3,'1516M-ALG1'!$B$3:$AH$300,24,FALSE)),"NT") -> 23 | O23: =IFERROR(VLOOKUP($A$3,'1516M-ALG1'!$B$3:$AH$300,3,FALSE),"NT") -> 23285
A24: EOC Assessments | B24: Enrollment | C24: % Tested | D24: % Satisfactory | F24: All | H24: =IFERROR(VLOOKUP(9999,'1516M-GEO'!$B$3:$AH$300,13,FALSE),"NT") -> Congruence; Similarity; Right Triangles; and Trigonometry | J24: =IFERROR(VLOOKUP(9999,'1516M-GEO'!$B$3:$AH$300,18,FALSE),"NT") -> Circles; Geometric Measurement; and Geometric Properties with Equations
D25: 2015 FSA | E25: 2016 MYA | F25: Avg. % Correct | G25: Pts. Max | H25: Avg.% Correct | I25: Pts. Max | J25: Avg.% Correct | L25: Pts. Max
A26: Geometry | B26: =IFERROR(VLOOKUP(TEXT($A$3,"0000"),'Mem12-16-2015'!$A$3:$AF$500,31,FALSE),"NA") -> 28441 | C26: =IF(OR(O26="NA",O26="NT",O26<10),"NA",IF(O26>B26,1,O26/B26)) -> 0.8899124503 | D26: =IFERROR(VLOOKUP(TEXT($A$3,"0000"),'15 FSA Geo'!$A$3:$F$500,5,FALSE),"NA") -> 48 | E26: =IFERROR(IF($C26="NA","NA",VLOOKUP($A$3,'1516M-GEO'!$B$3:$AH$300,12,FALSE)),"NT") -> 0.4062425919 | F26: =IFERROR(IF($C26="NA","NA",VLOOKUP($A$3,'1516M-GEO'!$B$3:$AH$300,5,FALSE)),"NT") -> 42.79088819 | G26: =IFERROR(IF($C26="NA","NA",VLOOKUP($A$3,'1516M-GEO'!$B$3:$AH$300,4,FALSE)),"NT") -> 48 | H26: =IFERROR(IF($C26="NA","NA",VLOOKUP($A$3,'1516M-GEO'!$B$3:$AH$300,15,FALSE)),"NT") -> 0.4359510075 | I26: =IFERROR(IF($C26="NA","NA",VLOOKUP($A$3,'1516M-GEO'!$B$3:$AH$300,14,FALSE)),"NT") -> 44 | J26: =IFERROR(IF($C26="NA","NA",VLOOKUP($A$3,'1516M-GEO'!$B$3:$AH$300,20,FALSE)),"NT") -> 0.3395001976 | L26: =IFERROR(IF($C26="NA","NA",VLOOKUP($A$3,'1516M-GEO'!$B$3:$AH$300,19,FALSE)),"NT") -> 4 | O26: =IFERROR(VLOOKUP($A$3,'1516M-GEO'!$B$3:$AH$300,3,FALSE),"NT") -> 25310
A27: EOC Assessments | B27: Enrollment | C27: % Tested | D27: % Satisfactory | F27: All | H27: Functions and Modeling | J27: Statistics, Probability, and the Number System
D28: 2015 FSA | E28: 2016 MYA | F28: Avg. % Correct | G28: Pts. Max | H28: Avg.% Correct | I28: Pts. Max | J28: Avg.% Correct | K28: Pts. Max | L28: Pts. Max
A29: Algebra II | B29: =IFERROR(VLOOKUP(TEXT($A$3,"0000"),'Mem12-16-2015'!$A$3:$AF$500,32,FALSE),"NA") -> 23261 | C29: =IF(OR(O29="NA",O29="NT",O29<10),"NA",IF(O29>B29,1,O29/B29)) -> 0.8937706891 | D29: =IFERROR(VLOOKUP(TEXT($A$3,"0000"),'15 FSA Alg2'!$A$3:$F$500,5,FALSE),"NA") -> 27 | E29: NA | F29: =IFERROR(IF($C29="NA","NA",VLOOKUP($A$3,'1516M-ALG2'!$B$3:$AH$300,5,FALSE)),"NT") -> 35.28650601 | G29: =IFERROR(IF($C29="NA","NA",VLOOKUP($A$3,'1516M-ALG2'!$B$3:$AH$300,4,FALSE)),"NT") -> 52 | H29: =IFERROR(IF($C29="NA","NA",VLOOKUP($A$3,'1516M-ALG2'!$B$3:$AH$300,20,FALSE)),"NT") -> 0.3960606061 | I29: =IFERROR(IF($C29="NA","NA",VLOOKUP($A$3,'1516M-ALG2'!$B$3:$AH$300,19,FALSE)),"NT") -> 6 | J29: =IFERROR(IF($C29="NA","NA",VLOOKUP($A$3,'1516M-ALG2'!$B$3:$AH$300,25,FALSE)),"NT") -> 0.3470591631 | K29: =IFERROR(IF($C29="NA","NA",VLOOKUP($A$3,#REF!,19,FALSE)),"NT") -> NT | L29: =IFERROR(IF($C29="NA","NA",VLOOKUP($A$3,'1516M-ALG2'!$B$3:$AH$300,24,FALSE)),"NT") -> 46 | M29: =IFERROR(IF($C29="NA","NA",VLOOKUP($A$3,#REF!,29,FALSE)),"NT") -> NT | O29: =IFERROR(VLOOKUP($A$3,'1516M-ALG2'!$B$3:$AH$300,3,FALSE),"NT") -> 20790

Sheet 15 FSA ELA (hidden)
B1: School | C1: Grade | D1: Lev 3-5 | F1: Total | G1: Location | H1: School | I1: Grade | J1: Lev 3-5 | L1: Total | M1: Location | N1: School | O1: Grade | P1: Lev 3-5 | R1: Total | S1: Location | T1: School | U1: Grade | V1: Lev 3-5 | X1: Total | Y1: Location | Z1: School | AA1: Grade | AB1: Lev 3-5 | AD1: Total | AE1: Location | AF1: School | AG1: Grade | AH1: Lev 3-5 | AJ1: Total | AK1: Location | AL1: School | AM1: Grade | AN1: Lev 3-5 | AP1: Total | AQ1: Location | AR1: School | AS1: Grade | AT1: Lev 3-5 | AV1: Total
A2: Location | D2: Ct | E2: % | F2: Ct | J2: Ct | K2: % | L2: Ct | P2: Ct | Q2: % | R2: Ct | V2: Ct | W2: % | X2: Ct | AB2: Ct | AC2: % | AD2: Ct | AH2: Ct | AI2: % | AJ2: Ct | AN2: Ct | AO2: % | AP2: Ct | AT2: Ct | AU2: % | AV2: Ct
A3: =LEFT(B3,4) -> 0041 | B3: 0041 AIR BASE K-8 CENTER FOR INTERNATIONAL EDUC | C3: 3 | D3: 102 | E3: 81 | F3: 126 | G3: =LEFT(H3,4) -> 0041 | H3: 0041 AIR BASE K-8 CENTER FOR INTERNATIONAL EDUC | I3: 4 | J3: 108 | K3: 87 | L3: 124 | M3: =LEFT(N3,4) -> 0041 | N3: 0041 AIR BASE K-8 CENTER FOR INTERNATIONAL EDUC | O3: 5 | P3: 83 | Q3: 69 | R3: 120 | S3: =LEFT(T3,4) -> 0041 | T3: 0041 AIR BASE K-8 CENTER FOR INTERNATIONAL EDUC | U3: 6 | V3: 79 | W3: 77 | X3: 102 | Y3: =LEFT(Z3,4) -> 0041 | Z3: 0041 AIR BASE K-8 CENTER FOR INTERNATIONAL EDUC | AA3: 7 | AB3: 39 | AC3: 81 | AD3: 48 | AE3: =LEFT(AF3,4) -> 0070 | AF3: 0070 CORAL REEF MONTESSORI ACADEMY CHARTER | AG3: 8 | AH3: 16 | AI3: 76 | AJ3: 21 | AK3: =LEFT(AL3,4) -> 5032 | AL3: 5032 EXCELSIOR CHARTER ACADEMY | AM3: 9 | AN3: 6 | AO3: 46 | AP3: 13 | AQ3: =LEFT(AR3,4) -> 6016 | AR3: 6016 SOMERSET VIRTUAL ACADEMY | AS3: 10 | AU3: NA | AV3: 3
A4: 0070 | B4: 0070 CORAL REEF MONTESSORI ACADEMY CHARTER | C4: 3 | D4: 33 | E4: 69 | F4: 48 | G4: 0070 | H4: 0070 CORAL REEF MONTESSORI ACADEMY CHARTER | I4: 4 | J4: 30 | K4: 64 | L4: 47 | M4: 0070 | N4: 0070 CORAL REEF MONTESSORI ACADEMY CHARTER | O4: 5 | P4: 24 | Q4: 50 | R4: 48 | S4: 0070 | T4: 0070 CORAL REEF MONTESSORI ACADEMY CHARTER | U4: 6 | V4: 19 | W4: 68 | X4: 28 | Y4: 0070 | Z4: 0070 CORAL REEF MONTESSORI ACADEMY CHARTER | AA4: 7 | AB4: 18 | AC4: 64 | AD4: 28 | AE4: 0071 | AF4: 0071 EUGENIA B. THOMAS K-8 CENTER | AG4: 8 | AH4: 96 | AI4: 63 | AJ4: 152 | AK4: 6016 | AL4: 6016 SOMERSET VIRTUAL ACADEMY | AM4: 9 | AO4: NA | AP4: 2 | AQ4: 6017 | AR4: 6017 INTERNATIONAL STUDIES VIRTUAL | AS4: 10 | AU4: NA | AV4: 2
A5: 0071 | B5: 0071 EUGENIA B. THOMAS K-8 CENTER | C5: 3 | D5: 126 | E5: 58 | F5: 216 | G5: 0071 | H5: 0071 EUGENIA B. THOMAS K-8 CENTER | I5: 4 | J5: 123 | K5: 66 | L5: 187 | M5: 0071 | N5: 0071 EUGENIA B. THOMAS K-8 CENTER | O5: 5 | P5: 114 | Q5: 60 | R5: 190 | S5: 0071 | T5: 0071 EUGENIA B. THOMAS K-8 CENTER | U5: 6 | V5: 113 | W5: 59 | X5: 192 | Y5: 0071 | Z5: 0071 EUGENIA B. THOMAS K-8 CENTER | AA5: 7 | AB5: 89 | AC5: 54 | AD5: 164 | AE5: 0073 | AF5: 0073 MANDARIN LAKES K-8 ACADEMY | AG5: 8 | AH5: 31 | AI5: 37 | AJ5: 83 | AK5: 6017 | AL5: 6017 INTERNATIONAL STUDIES VIRTUAL | AM5: 9 | AO5: NA | AP5: 1 | AQ5: 6040 | AR5: 6040 DOCTORS CHARTER SCHOOL OF MIAMI SHORES | AS5: 10 | AT5: 51 | AU5: 65 | AV5: 78
A6: 0072 | B6: 0072 SUMMERVILLE ADVANTAGE ACADEMY | C6: 3 | D6: 40 | E6: 47 | F6: 85 | G6: 0072 | H6: 0072 SUMMERVILLE ADVANTAGE ACADEMY | I6: 4 | J6: 40 | K6: 46 | L6: 87 | M6: 0072 | N6: 0072 SUMMERVILLE ADVANTAGE ACADEMY | O6: 5 | P6: 36 | Q6: 53 | R6: 68 | S6: 0073 | T6: 0073 MANDARIN LAKES K-8 ACADEMY | U6: 6 | V6: 25 | W6: 24 | X6: 103 | Y6: 0073 | Z6: 0073 MANDARIN LAKES K-8 ACADEMY | AA6: 7 | AB6: 16 | AC6: 17 | AD6: 93 | AE6: 0091 | AF6: 0091 BOB GRAHAM EDUCATION CENTER | AG6: 8 | AH6: 144 | AI6: 69 | AJ6: 209 | AK6: 6040 | AL6: 6040 DOCTORS CHARTER SCHOOL OF MIAMI SHORES | AM6: 9 | AN6: 76 | AO6: 74 | AP6: 103 | AQ6: 6081 | AR6: 6081 CUTLER BAY ACADEMY OF ADVANCED STUDIES | AS6: 10 | AT6: 104 | AU6: 85 | AV6: 122
A7: 0073 | B7: 0073 MANDARIN LAKES K-8 ACADEMY | C7: 3 | D7: 49 | E7: 28 | F7: 176 | G7: 0073 | H7: 0073 MANDARIN LAKES K-8 ACADEMY | I7: 4 | J7: 18 | K7: 18 | L7: 99 | M7: 0073 | N7: 0073 MANDARIN LAKES K-8 ACADEMY | O7: 5 | P7: 29 | Q7: 22 | R7: 130 | S7: 0091 | T7: 0091 BOB GRAHAM EDUCATION CENTER | U7: 6 | V7: 144 | W7: 63 | X7: 229 | Y7: 0091 | Z7: 0091 BOB GRAHAM EDUCATION CENTER | AA7: 7 | AB7: 117 | AC7: 62 | AD7: 190 | AE7: 0092 | AF7: 0092 NORMAN S. EDELCUP/SUNNY ISLES BEACH K-8 | AG7: 8 | AH7: 139 | AI7: 75 | AJ7: 185 | AK7: 6052 | AL7: 6052 ZELDA GLAZER MIDDLE SCHOOL | AM7: 9 | AN7: 92 | AO7: 88 | AP7: 105 | AQ7: 7001 | AR7: 7001 MIAMI-DADE ONLINE ACAD-VIRTUAL INSTRUC PROG | AS7: 10 | AU7: NA | AV7: 7
A8: 0081 | B8: 0081 LENORA BRAYNON SMITH ELEMENTARY | C8: 3 | D8: 13 | E8: 24 | F8: 54 | G8: 0081 | H8: 0081 LENORA BRAYNON SMITH ELEMENTARY | I8: 4 | J8: 15 | K8: 28 | L8: 53 | M8: 0081 | N8: 0081 LENORA BRAYNON SMITH ELEMENTARY | O8: 5 | P8: 26 | Q8: 39 | R8: 66 | S8: 0092 | T8: 0092 NORMAN S. EDELCUP/SUNNY ISLES BEACH K-8 | U8: 6 | V8: 150 | W8: 67 | X8: 223 | Y8: 0092 | Z8: 0092 NORMAN S. EDELCUP/SUNNY ISLES BEACH K-8 | AA8: 7 | AB8: 122 | AC8: 64 | AD8: 190 | AE8: 0122 | AF8: 0122 DR. ROLANDO ESPINOSA K-8 CENTER | AG8: 8 | AH8: 114 | AI8: 59 | AJ8: 194 | AK8: 6081 | AL8: 6081 CUTLER BAY ACADEMY OF ADVANCED STUDIES | AM8: 9 | AN8: 121 | AO8: 76 | AP8: 160 | AQ8: 7007 | AR8: 7007 INTERNATIONAL STUDIES CHARTER | AS8: 10 | AT8: 68 | AU8: 70 | AV8: 97
A9: 0091 | B9: 0091 BOB GRAHAM EDUCATION CENTER | C9: 3 | D9: 120 | E9: 69 | F9: 175 | G9: 0091 | H9: 0091 BOB GRAHAM EDUCATION CENTER | I9: 4 | J9: 123 | K9: 62 | L9: 200 | M9: 0091 | N9: 0091 BOB GRAHAM EDUCATION CENTER | O9: 5 | P9: 130 | Q9: 61 | R9: 213 | S9: 0122 | T9: 0122 DR. ROLANDO ESPINOSA K-8 CENTER | U9: 6 | V9: 101 | W9: 51 | X9: 198 | Y9: 0122 | Z9: 0122 DR. ROLANDO ESPINOSA K-8 CENTER | AA9: 7 | AB9: 93 | AC9: 58 | AD9: 161 | AE9: 0231 | AF9: 0231 AVENTURA WATERWAYS K-8 CENTER | AG9: 8 | AH9: 140 | AI9: 78 | AJ9: 180 | AK9: 7001 | AL9: 7001 MIAMI-DADE ONLINE ACAD-VIRTUAL INSTRUC PROG | AM9: 9 | AN9: 12 | AO9: 71 | AP9: 17 | AQ9: 7009 | AR9: 7009 DORAL PERFORMING ARTS & ENTERTAINMENT ACADEMY | AS9: 10 | AT9: 74 | AU9: 89 | AV9: 83
A10: 0092 | B10: 0092 NORMAN S. EDELCUP/SUNNY ISLES BEACH K-8 | C10: 3 | D10: 145 | E10: 64 | F10: 228 | G10: 0092 | H10: 0092 NORMAN S. EDELCUP/SUNNY ISLES BEACH K-8 | I10: 4 | J10: 167 | K10: 67 | L10: 250 | M10: 0092 | N10: 0092 NORMAN S. EDELCUP/SUNNY ISLES BEACH K-8 | O10: 5 | P10: 155 | Q10: 68 | R10: 227 | S10: 0231 | T10: 0231 AVENTURA WATERWAYS K-8 CENTER | U10: 6 | V10: 141 | W10: 64 | X10: 222 | Y10: 0231 | Z10: 0231 AVENTURA WATERWAYS K-8 CENTER | AA10: 7 | AB10: 124 | AC10: 62 | AD10: 199 | AE10: 0241 | AF10: 0241 RUTH K. BROAD BAY HARBOR K-8 CENTER | AG10: 8 | AH10: 122 | AI10: 80 | AJ10: 152 | AK10: 7005 | AL10: 7005 ITECH@THOMAS A EDISON EDUCATIONAL CENTER | AM10: 9 | AN10: 44 | AO10: 46 | AP10: 96 | AQ10: 7011 | AR10: 7011 AMERICAN SENIOR HIGH SCHOOL | AS10: 10 | AT10: 161 | AU10: 30 | AV10: 530
A11: 0100 | B11: 0100 MATER ACADEMY | C11: 3 | D11: 123 | E11: 70 | F11: 176 | G11: 0100 | H11: 0100 MATER ACADEMY | I11: 4 | J11: 111 | K11: 72 | L11: 154 | M11: 0100 | N11: 0100 MATER ACADEMY | O11: 5 | P11: 101 | Q11: 74 | R11: 137 | S11: 0241 | T11: 0241 RUTH K. BROAD BAY HARBOR K-8 CENTER | U11: 6 | V11: 118 | W11: 74 | X11: 159 | Y11: 0241 | Z11: 0241 RUTH K. BROAD BAY HARBOR K-8 CENTER | AA11: 7 | AB11: 82 | AC11: 63 | AD11: 130 | AE11: 0332 | AF11: 0332 SOMERSET ACADEMY (SILVER PALMS) | AG11: 8 | AH11: 112 | AI11: 85 | AJ11: 132 | AK11: 7007 | AL11: 7007 INTERNATIONAL STUDIES CHARTER | AM11: 9 | AN11: 81 | AO11: 75 | AP11: 108 | AQ11: 7014 | AR11: 7014 MATER PERFORMING ARTS & ENTERTAINMENT ACADEMY | AS11: 10 | AT11: 87 | AU11: 89 | AV11: 98
A12: 0101 | B12: 0101 ARCOLA LAKE ELEMENTARY SCHOOL | C12: 3 | D12: 11 | E12: 13 | F12: 82 | G12: 0101 | H12: 0101 ARCOLA LAKE ELEMENTARY SCHOOL | I12: 4 | J12: 19 | K12: 31 | L12: 61 | M12: 0101 | N12: 0101 ARCOLA LAKE ELEMENTARY SCHOOL | O12: 5 | P12: 10 | Q12: 20 | R12: 49 | S12: 0332 | T12: 0332 SOMERSET ACADEMY (SILVER PALMS) | U12: 6 | V12: 98 | W12: 62 | X12: 157 | Y12: 0332 | Z12: 0332 SOMERSET ACADEMY (SILVER PALMS) | AA12: 7 | AB12: 97 | AC12: 81 | AD12: 120 | AE12: 0451 | AF12: 0451 BOWMAN ASHE/DOOLIN K-8 ACADEMY | AG12: 8 | AH12: 74 | AI12: 48 | AJ12: 153 | AK12: 7008 | AL12: 7008 BIOTECH@RICHMOND HEIGHTS 9-12 HIGH SCHOOL | AM12: 9 | AN12: 90 | AO12: 74 | AP12: 122 | AQ12: 7015 | AR12: 7015 STELLAR LEADERSHIP ACADEMY | AS12: 10 | AT12: 1 | AU12: 4 | AV12: 25
A13: 0102 | B13: 0102 MIAMI COMMUNITY CHARTER SCHOOL | C13: 3 | D13: 47 | E13: 54 | F13: 87 | G13: 0102 | H13: 0102 MIAMI COMMUNITY CHARTER SCHOOL | I13: 4 | J13: 29 | K13: 36 | L13: 80 | M13: 0102 | N13: 0102 MIAMI COMMUNITY CHARTER SCHOOL | O13: 5 | P13: 25 | Q13: 32 | R13: 78 | S13: 0451 | T13: 0451 BOWMAN ASHE/DOOLIN K-8 ACADEMY | U13: 6 | V13: 59 | W13: 49 | X13: 120 | Y13: 0451 | Z13: 0451 BOWMAN ASHE/DOOLIN K-8 ACADEMY | AA13: 7 | AB13: 47 | AC13: 39 | AD13: 119 | AE13: 0651 | AF13: 0651 CAMPBELL DRIVE K-8 CENTER | AG13: 8 | AH13: 24 | AI13: 36 | AJ13: 67 | AK13: 7009 | AL13: 7009 DORAL PERFORMING ARTS & ENTERTAINMENT ACADEMY | AM13: 9 | AN13: 64 | AO13: 94 | AP13: 68 | AQ13: 7016 | AR13: 7016 SPORTS LEADERSHIP OF MIAMI CHARTER HIGH | AS13: 10 | AT13: 54 | AU13: 47 | AV13: 115
A14: 0111 | B14: 0111 MAYA ANGELOU ELEMENTARY SCHOOL | C14: 3 | D14: 37 | E14: 28 | F14: 133 | G14: 0111 | H14: 0111 MAYA ANGELOU ELEMENTARY SCHOOL | I14: 4 | J14: 38 | K14: 43 | L14: 89 | M14: 0111 | N14: 0111 MAYA ANGELOU ELEMENTARY SCHOOL | O14: 5 | P14: 26 | Q14: 28 | R14: 92 | S14: 0651 | T14: 0651 CAMPBELL DRIVE K-8 CENTER | U14: 6 | V14: 21 | W14: 26 | X14: 80 | Y14: 0651 | Z14: 0651 CAMPBELL DRIVE K-8 CENTER | AA14: 7 | AB14: 28 | AC14: 35 | AD14: 81 | AE14: 0761 | AF14: 0761 FIENBERG/FISHER K-8 CENTER | AG14: 8 | AH14: 49 | AI14: 49 | AJ14: 99 | AK14: 7011 | AL14: 7011 AMERICAN SENIOR HIGH SCHOOL | AM14: 9 | AN14: 224 | AO14: 43 | AP14: 518 | AQ14: 7018 | AR14: 7018 MATER ACADEMY LAKES HIGH SCHOOL | AS14: 10 | AT14: 195 | AU14: 63 | AV14: 309
A15: 0121 | B15: 0121 AUBURNDALE ELEMENTARY SCHOOL | C15: 3 | D15: 77 | E15: 49 | F15: 156 | G15: 0121 | H15: 0121 AUBURNDALE ELEMENTARY SCHOOL | I15: 4 | J15: 62 | K15: 43 | L15: 144 | M15: 0121 | N15: 0121 AUBURNDALE ELEMENTARY SCHOOL | O15: 5 | P15: 66 | Q15: 54 | R15: 123 | S15: 0761 | T15: 0761 FIENBERG/FISHER K-8 CENTER | U15: 6 | V15: 36 | W15: 35 | X15: 103 | Y15: 0761 | Z15: 0761 FIENBERG/FISHER K-8 CENTER | AA15: 7 | AB15: 34 | AC15: 33 | AD15: 102 | AE15: 0950 | AF15: 0950 AVENTURA CITY OF EXCELLENCE | AG15: 8 | AH15: 100 | AI15: 96 | AJ15: 104 | AK15: 7014 | AL15: 7014 MATER PERFORMING ARTS & ENTERTAINMENT ACADEMY | AM15: 9 | AN15: 69 | AO15: 92 | AP15: 75 | AQ15: 7020 | AR15: 7020 DORAL ACADEMY CHARTER HIGH SCHOOL | AS15: 10 | AT15: 296 | AU15: 76 | AV15: 392
A16: 0122 | B16: 0122 DR. ROLANDO ESPINOSA K-8 CENTER | C16: 3 | D16: 123 | E16: 58 | F16: 213 | G16: 0122 | H16: 0122 DR. ROLANDO ESPINOSA K-8 CENTER | I16: 4 | J16: 110 | K16: 53 | L16: 206 | M16: 0122 | N16: 0122 DR. ROLANDO ESPINOSA K-8 CENTER | O16: 5 | P16: 85 | Q16: 45 | R16: 189 | S16: 0950 | T16: 0950 AVENTURA CITY OF EXCELLENCE | U16: 6 | V16: 99 | W16: 85 | X16: 116 | Y16: 0950 | Z16: 0950 AVENTURA CITY OF EXCELLENCE | AA16: 7 | AB16: 89 | AC16: 85 | AD16: 105 | AE16: 0961 | AF16: 0961 CORAL GABLES PREPARATORY ACADEMY | AG16: 8 | AH16: 61 | AI16: 82 | AJ16: 74 | AK16: 7015 | AL16: 7015 STELLAR LEADERSHIP ACADEMY | AM16: 9 | AO16: NA | AP16: 9 | AQ16: 7022 | AR16: 7022 ACADEMY OF ARTS & MINDS | AS16: 10 | AT16: 57 | AU16: 63 | AV16: 91
A17: 0125 | B17: 0125 NORMA BUTLER BOSSARD ELEMENTARY SCHOOL | C17: 3 | D17: 157 | E17: 69 | F17: 227 | G17: 0125 | H17: 0125 NORMA BUTLER BOSSARD ELEMENTARY SCHOOL | I17: 4 | J17: 117 | K17: 62 | L17: 188 | M17: 0125 | N17: 0125 NORMA BUTLER BOSSARD ELEMENTARY SCHOOL | O17: 5 | P17: 157 | Q17: 67 | R17: 233 | S17: 0961 | T17: 0961 CORAL GABLES PREPARATORY ACADEMY | U17: 6 | V17: 74 | W17: 85 | X17: 87 | Y17: 0961 | Z17: 0961 CORAL GABLES PREPARATORY ACADEMY | AA17: 7 | AB17: 51 | AC17: 76 | AD17: 67 | AE17: 1020 | AF17: 1020 YOUTH CO-OP CHARTER SCHOOL | AG17: 8 | AH17: 39 | AI17: 56 | AJ17: 70 | AK17: 7016 | AL17: 7016 SPORTS LEADERSHIP OF MIAMI CHARTER HIGH | AM17: 9 | AN17: 68 | AO17: 52 | AP17: 130 | AQ17: 7029 | AR17: 7029 TERRA ENVIRONMENTAL RESEARCH INSTITUTE | AS17: 10 | AT17: 406 | AU17: 92 | AV17: 439
A18: 0161 | B18: 0161 AVOCADO ELEMENTARY SCHOOL | C18: 3 | D18: 42 | E18: 32 | F18: 131 | G18: 0201 | H18: 0201 BANYAN ELEMENTARY SCHOOL | I18: 4 | J18: 45 | K18: 67 | L18: 67 | M18: 0201 | N18: 0201 BANYAN ELEMENTARY SCHOOL | O18: 5 | P18: 25 | Q18: 64 | R18: 39 | S18: 1014 | T18: 1014 HIGHLY INQUISITIVE/VERSATILE EDUC(HIVE) PREP | U18: 6 | V18: 29 | W18: 63 | X18: 46 | Y18: 1014 | Z18: 1014 HIGHLY INQUISITIVE/VERSATILE EDUC(HIVE) PREP | AA18: 7 | AC18: NA | AD18: 9 | AE18: 1121 | AF18: 1121 CORAL WAY K-8 CENTER | AG18: 8 | AH18: 96 | AI18: 60 | AJ18: 159 | AK18: 7018 | AL18: 7018 MATER ACADEMY LAKES HIGH SCHOOL | AM18: 9 | AN18: 264 | AO18: 75 | AP18: 352 | AQ18: 7031 | AR18: 7031 MAST@FIU | AS18: 10 | AT18: 68 | AU18: 92 | AV18: 74
A19: 0201 | B19: 0201 BANYAN ELEMENTARY SCHOOL | C19: 3 | D19: 32 | E19: 52 | F19: 61 | G19: 0211 | H19: 0211 DR. MANUEL C. BARREIRO ELEMENTARY SCHOOL | I19: 4 | J19: 86 | K19: 65 | L19: 133 | M19: 0211 | N19: 0211 DR. MANUEL C. BARREIRO ELEMENTARY SCHOOL | O19: 5 | P19: 97 | Q19: 72 | R19: 134 | S19: 1020 | T19: 1020 YOUTH CO-OP CHARTER SCHOOL | U19: 6 | V19: 55 | W19: 65 | X19: 84 | Y19: 1020 | Z19: 1020 YOUTH CO-OP CHARTER SCHOOL | AA19: 7 | AB19: 41 | AC19: 67 | AD19: 61 | AE19: 1331 | AF19: 1331 DEVON AIRE K-8 CENTER | AG19: 8 | AH19: 140 | AI19: 71 | AJ19: 196 | AK19: 7020 | AL19: 7020 DORAL ACADEMY CHARTER HIGH SCHOOL | AM19: 9 | AN19: 376 | AO19: 82 | AP19: 461 | AQ19: 7032 | AR19: 7032 PALM GLADES PREPARATORY ACADEMY HIGH SCHOOL | AS19: 10 | AT19: 28 | AU19: 26 | AV19: 107
A20: 0211 | B20: 0211 DR. MANUEL C. BARREIRO ELEMENTARY SCHOOL | C20: 3 | D20: 92 | E20: 69 | F20: 134 | G20: 0231 | H20: 0231 AVENTURA WATERWAYS K-8 CENTER | I20: 4 | J20: 150 | K20: 63 | L20: 238 | M20: 0231 | N20: 0231 AVENTURA WATERWAYS K-8 CENTER | O20: 5 | P20: 129 | Q20: 60 | R20: 215 | S20: 1121 | T20: 1121 CORAL WAY K-8 CENTER | U20: 6 | V20: 68 | W20: 44 | X20: 155 | Y20: 1121 | Z20: 1121 CORAL WAY K-8 CENTER | AA20: 7 | AB20: 80 | AC20: 49 | AD20: 164 | AE20: 1401 | AF20: 1401 CHARLES R DREW K-8 CENTER | AG20: 8 | AH20: 9 | AI20: 26 | AJ20: 34 | AK20: 7021 | AL20: 7021 CENTER FOR INTERNATIONAL EDUCATION | AM20: 9 | AN20: 50 | AO20: 86 | AP20: 58 | AQ20: 7033 | AR20: 7033 LAW ENFORCEMENT OFFICERS MEMORIAL HIGH SCHOOL | AS20: 10 | AT20: 67 | AU20: 75 | AV20: 89
A21: 0231 | B21: 0231 AVENTURA WATERWAYS K-8 CENTER | C21: 3 | D21: 167 | E21: 62 | F21: 270 | G21: 0241 | H21: 0241 RUTH K. BROAD BAY HARBOR K-8 CENTER | I21: 4 | J21: 113 | K21: 74 | L21: 153 | M21: 0241 | N21: 0241 RUTH K. BROAD BAY HARBOR K-8 CENTER | O21: 5 | P21: 110 | Q21: 73 | R21: 151 | S21: 1331 | T21: 1331 DEVON AIRE K-8 CENTER | U21: 6 | V21: 114 | W21: 65 | X21: 176 | Y21: 1331 | Z21: 1331 DEVON AIRE K-8 CENTER | AA21: 7 | AB21: 136 | AC21: 74 | AD21: 184 | AE21: 1441 | AF21: 1441 PAUL LAURENCE DUNBAR K-8 CENTER | AG21: 8 | AH21: 6 | AI21: 46 | AJ21: 13 | AK21: 7022 | AL21: 7022 ACADEMY OF ARTS & MINDS | AM21: 9 | AN21: 32 | AO21: 48 | AP21: 66 | AQ21: 7034 | AR21: 7034 SOMERSET ACADEMY CHARTER HIGH (S HOMESTEAD) | AS21: 10 | AT21: 11 | AU21: 44 | AV21: 25
A22: 0241 | B22: 0241 RUTH K. BROAD BAY HARBOR K-8 CENTER | C22: 3 | D22: 102 | E22: 76 | F22: 134 | G22: 0251 | H22: 0251 ETHEL KOGER BECKHAM ELEMENTARY | I22: 4 | J22: 108 | K22: 87 | L22: 124 | M22: 0251 | N22: 0251 ETHEL KOGER BECKHAM ELEMENTARY | O22: 5 | P22: 100 | Q22: 81 | R22: 123 | S22: 1401 | T22: 1401 CHARLES R DREW K-8 CENTER | U22: 6 | V22: 20 | W22: 37 | X22: 54 | Y22: 1401 | Z22: 1401 CHARLES R DREW K-8 CENTER | AA22: 7 | AB22: 8 | AC22: 19 | AD22: 42 | AE22: 1601 | AF22: 1601 EDISON PARK K-8 CENTER | AG22: 8 | AH22: 2 | AI22: 9 | AJ22: 23 | AK22: 7024 | AL22: 7024 MATER ACADEMY HIGH OF INTERNATIONAL STUDIES | AM22: 9 | AN22: 12 | AO22: 60 | AP22: 20 | AQ22: 7037 | AR22: 7037 MATER ACADEMY EAST CHARTER HIGH SCHOOL | AS22: 10 | AT22: 50 | AU22: 49 | AV22: 102
A23: 0251 | B23: 0251 ETHEL KOGER BECKHAM ELEMENTARY | C23: 3 | D23: 107 | E23: 79 | F23: 136 | G23: 0261 | H23: 0261 BEL-AIRE ELEMENTARY SCHOOL | I23: 4 | J23: 18 | K23: 33 | L23: 54 | M23: 0261 | N23: 0261 BEL-AIRE ELEMENTARY SCHOOL | O23: 5 | P23: 22 | Q23: 35 | R23: 62 | S23: 1441 | T23: 1441 PAUL LAURENCE DUNBAR K-8 CENTER | U23: 6 | V23: 11 | W23: 32 | X23: 34 | Y23: 1441 | Z23: 1441 PAUL LAURENCE DUNBAR K-8 CENTER | AA23: 7 | AB23: 5 | AC23: 50 | AD23: 10 | AE23: 1681 | AF23: 1681 LILLIE C. EVANS K-8 CENTER | AG23: 8 | AH23: 16 | AI23: 44 | AJ23: 36 | AK23: 7025 | AL23: 7025 MATER ACADEMY HIGH SCHOOL (MIAMI BEACH) | AM23: 9 | AN23: 16 | AO23: 55 | AP23: 29 | AQ23: 7038 | AR23: 7038 SOMERSET ACADEMY CHARTER HIGH (SOUTH CAMPUS) | AS23: 10 | AT23: 7 | AU23: 50 | AV23: 14
A24: 0261 | B24: 0261 BEL-AIRE ELEMENTARY SCHOOL | C24: 3 | D24: 21 | E24: 30 | F24: 70 | G24: 0271 | H24: 0271 BENT TREE ELEMENTARY SCHOOL | I24: 4 | J24: 54 | K24: 64 | L24: 85 | M24: 0271 | N24: 0271 BENT TREE ELEMENTARY SCHOOL | O24: 5 | P24: 54 | Q24: 67 | R24: 81 | S24: 1601 | T24: 1601 EDISON PARK K-8 CENTER | U24: 6 | V24: 8 | W24: 18 | X24: 44 | Y24: 1601 | Z24: 1601 EDISON PARK K-8 CENTER | AA24: 7 | AB24: 6 | AC24: 17 | AD24: 36 | AE24: 1721 | AF24: 1721 EVERGLADES K-8 CENTER | AG24: 8 | AH24: 100 | AI24: 70 | AJ24: 142 | AK24: 7029 | AL24: 7029 TERRA ENVIRONMENTAL RESEARCH INSTITUTE | AM24: 9 | AN24: 464 | AO24: 97 | AP24: 479 | AQ24: 7042 | AR24: 7042 SOMERSET ACADEMY CHARTER HIGH SCHOOL | AS24: 10 | AT24: 54 | AU24: 66 | AV24: 82
A25: 0271 | B25: 0271 BENT TREE ELEMENTARY SCHOOL | C25: 3 | D25: 36 | E25: 57 | F25: 63 | G25: 0311 | H25: 0311 GOULDS ELEMENTARY SCHOOL | I25: 4 | J25: 35 | K25: 36 | L25: 97 | M25: 0311 | N25: 0311 GOULDS ELEMENTARY SCHOOL | O25: 5 | P25: 21 | Q25: 28 | R25: 76 | S25: 1681 | T25: 1681 LILLIE C. EVANS K-8 CENTER | U25: 6 | V25: 9 | W25: 18 | X25: 49 | Y25: 1681 | Z25: 1681 LILLIE C. EVANS K-8 CENTER | AA25: 7 | AB25: 13 | AC25: 26 | AD25: 50 | AE25: 2041 | AF25: 2041 BENJAMIN FRANKLIN K-8 CENTER | AG25: 8 | AH25: 17 | AI25: 31 | AJ25: 55 | AK25: 7031 | AL25: 7031 MAST@FIU | AM25: 9 | AN25: 78 | AO25: 98 | AP25: 80 | AQ25: 7048 | AR25: 7048 ALONZO & TRACY MOURNING SENIOR HIGH BISCAYNE | AS25: 10 | AT25: 192 | AU25: 50 | AV25: 381
A26: 0311 | B26: 0311 GOULDS ELEMENTARY SCHOOL | C26: 3 | D26: 41 | E26: 36 | F26: 113 | G26: 0312 | H26: 0312 MATER GARDENS ACADEMY | I26: 4 | J26: 62 | K26: 66 | L26: 94 | M26: 0312 | N26: 0312 MATER GARDENS ACADEMY | O26: 5 | P26: 72 | Q26: 70 | R26: 103 | S26: 1721 | T26: 1721 EVERGLADES K-8 CENTER | U26: 6 | V26: 59 | W26: 51 | X26: 116 | Y26: 1721 | Z26: 1721 EVERGLADES K-8 CENTER | AA26: 7 | AB26: 87 | AC26: 64 | AD26: 137 | AE26: 2060 | AF26: 2060 THEODORE R. AND THELMA A. GIBSON CHARTER | AG26: 8 | AH26: 6 | AI26: 20 | AJ26: 30 | AK26: 7032 | AL26: 7032 PALM GLADES PREPARATORY ACADEMY HIGH SCHOOL | AM26: 9 | AN26: 33 | AO26: 33 | AP26: 100 | AQ26: 7049 | AR26: 7049 WESTLAND HIALEAH SENIOR HIGH SCHOOL | AS26: 10 | AT26: 208 | AU26: 43 | AV26: 486
A27: 0312 | B27: 0312 MATER GARDENS ACADEMY | C27: 3 | D27: 74 | E27: 75 | F27: 99 | G27: 0321 | H27: 0321 BISCAYNE ELEMENTARY SCHOOL | I27: 4 | J27: 45 | K27: 49 | L27: 92 | M27: 0321 | N27: 0321 BISCAYNE ELEMENTARY SCHOOL | O27: 5 | P27: 33 | Q27: 33 | R27: 99 | S27: 2003 | T27: 2003 BRIDGEPREP ACADEMY SOUTH | U27: 6 | V27: 26 | W27: 67 | X27: 39 | Y27: 2003 | Z27: 2003 BRIDGEPREP ACADEMY SOUTH | AA27: 7 | AB27: 23 | AC27: 79 | AD27: 29 | AE27: 2701 | AF27: 2701 KENWOOD K-8 CENTER | AG27: 8 | AH27: 100 | AI27: 68 | AJ27: 146 | AK27: 7033 | AL27: 7033 LAW ENFORCEMENT OFFICERS MEMORIAL HIGH SCHOOL | AM27: 9 | AN27: 75 | AO27: 74 | AP27: 102 | AQ27: 7050 | AR27: 7050 KEYS GATE CHARTER HIGH SCHOOL | AS27: 10 | AT27: 116 | AU27: 36 | AV27: 320
A28: 0321 | B28: 0321 BISCAYNE ELEMENTARY SCHOOL | C28: 3 | D28: 48 | E28: 42 | F28: 115 | G28: 0332 | H28: 0332 SOMERSET ACADEMY (SILVER PALMS) | I28: 4 | J28: 43 | K28: 57 | L28: 75 | M28: 0332 | N28: 0332 SOMERSET ACADEMY (SILVER PALMS) | O28: 5 | P28: 46 | Q28: 61 | R28: 75 | S28: 2041 | T28: 2041 BENJAMIN FRANKLIN K-8 CENTER | U28: 6 | V28: 6 | W28: 11 | X28: 53 | Y28: 2041 | Z28: 2041 BENJAMIN FRANKLIN K-8 CENTER | AA28: 7 | AB28: 19 | AC28: 36 | AD28: 53 | AE28: 2741 | AF28: 2741 KEY BISCAYNE K-8 CENTER | AG28: 8 | AH28: 62 | AI28: 72 | AJ28: 86 | AK28: 7034 | AL28: 7034 SOMERSET ACADEMY CHARTER HIGH (S HOMESTEAD) | AM28: 9 | AN28: 14 | AO28: 37 | AP28: 38 | AQ28: 7051 | AR28: 7051 G. HOLMES BRADDOCK SENIOR HIGH | AS28: 10 | AT28: 469 | AU28: 53 | AV28: 886
A29: 0332 | B29: 0332 SOMERSET ACADEMY (SILVER PALMS) | C29: 3 | D29: 24 | E29: 40 | F29: 60 | G29: 0339 | H29: 0339 SOMERSET ACAD CHARTER ELEM SCHOOL S HOMESTEAD | I29: 4 | J29: 36 | K29: 47 | L29: 77 | M29: 0339 | N29: 0339 SOMERSET ACAD CHARTER ELEM SCHOOL S HOMESTEAD | O29: 5 | P29: 49 | Q29: 65 | R29: 75 | S29: 2060 | T29: 2060 THEODORE R. AND THELMA A. GIBSON CHARTER | U29: 6 | V29: 5 | W29: 16 | X29: 31 | Y29: 2060 | Z29: 2060 THEODORE R. AND THELMA A. GIBSON CHARTER | AA29: 7 | AB29: 8 | AC29: 26 | AD29: 31 | AE29: 2881 | AF29: 2881 LEEWOOD K-8 CENTER | AG29: 8 | AH29: 58 | AI29: 81 | AJ29: 72 | AK29: 7037 | AL29: 7037 MATER ACADEMY EAST CHARTER HIGH SCHOOL | AM29: 9 | AN29: 45 | AO29: 48 | AP29: 93 | AQ29: 7053 | AR29: 7053 PINECREST PREPARATORY ACADEMY CHARTER HIGH | AS29: 10 | AT29: 82 | AU29: 63 | AV29: 131
A30: 0339 | B30: 0339 SOMERSET ACAD CHARTER ELEM SCHOOL S HOMESTEAD | C30: 3 | D30: 36 | E30: 49 | F30: 73 | G30: 0341 | H30: 0341 ARCHCREEK ELEMENTARY SCHOOL | I30: 4 | J30: 34 | K30: 34 | L30: 99 | M30: 0341 | N30: 0341 ARCHCREEK ELEMENTARY SCHOOL | O30: 5 | P30: 39 | Q30: 47 | R30: 83 | S30: 2241 | T30: 2241 GRATIGNY ELEMENTARY SCHOOL | U30: 6 | V30: 10 | W30: 16 | X30: 64 | Y30: 2701 | Z30: 2701 KENWOOD K-8 CENTER | AA30: 7 | AB30: 61 | AC30: 61 | AD30: 100 | AE30: 2901 | AF30: 2901 LEISURE CITY K-8 CENTER | AG30: 8 | AH30: 46 | AI30: 42 | AJ30: 110 | AK30: 7038 | AL30: 7038 SOMERSET ACADEMY CHARTER HIGH (SOUTH CAMPUS) | AM30: 9 | AN30: 15 | AO30: 94 | AP30: 16 | AQ30: 7055 | AR30: 7055 YOUNG WOMENS PREPARATORY ACADEMY | AS30: 10 | AT30: 42 | AU30: 91 | AV30: 46
A31: 0341 | B31: 0341 ARCHCREEK ELEMENTARY SCHOOL | C31: 3 | D31: 31 | E31: 34 | F31: 91 | G31: 0342 | H31: 0342 PINECREST ACADEMY (SOUTH CAMPUS) | I31: 4 | J31: 77 | K31: 75 | L31: 103 | M31: 0342 | N31: 0342 PINECREST ACADEMY (SOUTH CAMPUS) | O31: 5 | P31: 96 | Q31: 87 | R31: 110 | S31: 2701 | T31: 2701 KENWOOD K-8 CENTER | U31: 6 | V31: 63 | W31: 52 | X31: 121 | Y31: 2741 | Z31: 2741 KEY BISCAYNE K-8 CENTER | AA31: 7 | AB31: 122 | AC31: 80 | AD31: 153 | AE31: 2911 | AF31: 2911 LINDA LENTIN K-8 CENTER | AG31: 8 | AH31: 45 | AI31: 42 | AJ31: 106 | AK31: 7042 | AL31: 7042 SOMERSET ACADEMY CHARTER HIGH SCHOOL | AM31: 9 | AN31: 60 | AO31: 58 | AP31: 104 | AQ31: 7056 | AR31: 7056 YOUNG MEN'S PREPARATORY ACADEMY | AS31: 10 | AT31: 7 | AU31: 33 | AV31: 21
A32: 0342 | B32: 0342 PINECREST ACADEMY (SOUTH CAMPUS) | C32: 3 | D32: 107 | E32: 84 | F32: 128 | G32: 0361 | H32: 0361 BISCAYNE GARDENS ELEMENTARY | I32: 4 | J32: 15 | K32: 28 | L32: 53 | M32: 0361 | N32: 0361 BISCAYNE GARDENS ELEMENTARY | O32: 5 | P32: 29 | Q32: 37 | R32: 78 | S32: 2741 | T32: 2741 KEY BISCAYNE K-8 CENTER | U32: 6 | V32: 118 | W32: 78 | X32: 151 | Y32: 2881 | Z32: 2881 LEEWOOD K-8 CENTER | AA32: 7 | AB32: 62 | AC32: 89 | AD32: 70 | AE32: 3029 | AF32: 3029 DORAL ACADEMY OF TECHNOLOGY | AG32: 8 | AH32: 61 | AI32: 97 | AJ32: 63 | AK32: 7048 | AL32: 7048 ALONZO & TRACY MOURNING SENIOR HIGH BISCAYNE | AM32: 9 | AN32: 218 | AO32: 56 | AP32: 389 | AQ32: 7058 | AR32: 7058 MIAMI COMMUNITY CHARTER HIGH SCHOOL | AS32: 10 | AT32: 23 | AU32: 37 | AV32: 62
A33: 0361 | B33: 0361 BISCAYNE GARDENS ELEMENTARY | C33: 3 | D33: 31 | E33: 35 | F33: 89 | G33: 0400 | H33: 0400 RENAISSANCE ELEMENTARY CHARTER SCHOOL | I33: 4 | J33: 126 | K33: 86 | L33: 147 | M33: 0400 | N33: 0400 RENAISSANCE ELEMENTARY CHARTER SCHOOL | O33: 5 | P33: 127 | Q33: 85 | R33: 149 | S33: 2881 | T33: 2881 LEEWOOD K-8 CENTER | U33: 6 | V33: 66 | W33: 77 | X33: 86 | Y33: 2901 | Z33: 2901 LEISURE CITY K-8 CENTER | AA33: 7 | AB33: 35 | AC33: 32 | AD33: 110 | AE33: 3032 | AF33: 3032 PALM GLADES PREPARATORY ACADEMY | AG33: 8 | AH33: 62 | AI33: 39 | AJ33: 161 | AK33: 7049 | AL33: 7049 WESTLAND HIALEAH SENIOR HIGH SCHOOL | AM33: 9 | AN33: 190 | AO33: 38 | AP33: 504 | AQ33: 7059 | AR33: 7059 MIAMI ARTS CHARTER | AS33: 10 | AT33: 108 | AU33: 69 | AV33: 157
A34: 0400 | B34: 0400 RENAISSANCE ELEMENTARY CHARTER SCHOOL | C34: 3 | D34: 137 | E34: 90 | F34: 152 | G34: 0401 | H34: 0401 VAN E. BLANTON ELEMENTARY SCHL | I34: 4 | J34: 23 | K34: 27 | L34: 85 | M34: 0401 | N34: 0401 VAN E. BLANTON ELEMENTARY SCHL | O34: 5 | P34: 21 | Q34: 27 | R34: 77 | S34: 2901 | T34: 2901 LEISURE CITY K-8 CENTER | U34: 6 | V34: 39 | W34: 33 | X34: 120 | Y34: 2911 | Z34: 2911 LINDA LENTIN K-8 CENTER | AA34: 7 | AB34: 40 | AC34: 34 | AD34: 117 | AE34: 3101 | AF34: 3101 FRANK CRAWFORD MARTIN K-8 CENTER | AG34: 8 | AH34: 99 | AI34: 85 | AJ34: 116 | AK34: 7050 | AL34: 7050 KEYS GATE CHARTER HIGH SCHOOL | AM34: 9 | AN34: 101 | AO34: 35 | AP34: 288 | AQ34: 7060 | AR34: 7060 EVERGLADES PREPARATORY ACADEMY HIGH SCHOOL | AS34: 10 | AT34: 63 | AU34: 49 | AV34: 129
A35: 0401 | B35: 0401 VAN E. BLANTON ELEMENTARY SCHL | C35: 3 | D35: 31 | E35: 34 | F35: 92 | G35: 0410 | H35: 0410 ACADEMIR CHARTER SCHOOL WEST | I35: 4 | J35: 76 | K35: 76 | L35: 100 | M35: 0410 | N35: 0410 ACADEMIR CHARTER SCHOOL WEST | O35: 5 | P35: 58 | Q35: 62 | R35: 93 | S35: =LEFT(T35,4) -> 2911 | T35: 2911 LINDA LENTIN K-8 CENTER | U35: 6 | V35: 29 | W35: 32 | X35: 91 | Y35: =LEFT(Z35,4) -> 3029 | Z35: 3029 DORAL ACADEMY OF TECHNOLOGY | AA35: 7 | AB35: 63 | AC35: 97 | AD35: 65 | AE35: =LEFT(AF35,4) -> 3191 | AF35: 3191 ADA MERRITT K-8 CENTER | AG35: 8 | AH35: 89 | AI35: 98 | AJ35: 91 | AK35: =LEFT(AL35,4) -> 7051 | AL35: 7051 G. HOLMES BRADDOCK SENIOR HIGH | AM35: 9 | AN35: 511 | AO35: 58 | AP35: 876 | AQ35: =LEFT(AR35,4) -> 7062 | AR35: 7062 MAVERICKS HIGH OF NORTH MIAMI DADE COUNTY | AS35: 10 | AT35: 7 | AU35: 13 | AV35: 55
A36: 0410 | B36: 0410 ACADEMIR CHARTER SCHOOL WEST | C36: 3 | D36: 132 | E36: 87 | F36: 152 | G36: 0441 | H36: 0441 BLUE LAKES ELEMENTARY SCHOOL | I36: 4 | J36: 35 | K36: 53 | L36: 66 | M36: 0441 | N36: 0441 BLUE LAKES ELEMENTARY SCHOOL | O36: 5 | P36: 33 | Q36: 49 | R36: 68 | S36: 3029 | T36: 3029 DORAL ACADEMY OF TECHNOLOGY | U36: 6 | V36: 57 | W36: 100 | X36: 57 | Y36: 3032 | Z36: 3032 PALM GLADES PREPARATORY ACADEMY | AA36: 7 | AB36: 45 | AC36: 36 | AD36: 126 | AE36: 3281 | AF36: 3281 MIAMI LAKES K-8 CENTER | AG36: 8 | AH36: 98 | AI36: 64 | AJ36: 153 | AK36: 7053 | AL36: 7053 PINECREST PREPARATORY ACADEMY CHARTER HIGH | AM36: 9 | AN36: 108 | AO36: 77 | AP36: 140 | AQ36: 7065 | AR36: 7065 MAVERICKS HIGH OF SOUTH MIAMI DADE COUNTY | AS36: 10 | AT36: 7 | AU36: 8 | AV36: 86
A37: 0441 | B37: 0441 BLUE LAKES ELEMENTARY SCHOOL | C37: 3 | D37: 33 | E37: 66 | F37: 50 | G37: 0451 | H37: 0451 BOWMAN ASHE/DOOLIN K-8 ACADEMY | I37: 4 | J37: 61 | K37: 53 | L37: 115 | M37: 0451 | N37: 0451 BOWMAN ASHE/DOOLIN K-8 ACADEMY | O37: 5 | P37: 73 | Q37: 51 | R37: 144 | S37: 3032 | T37: 3032 PALM GLADES PREPARATORY ACADEMY | U37: 6 | V37: 32 | W37: 36 | X37: 89 | Y37: 3101 | Z37: 3101 FRANK CRAWFORD MARTIN K-8 CENTER | AA37: 7 | AB37: 103 | AC37: 80 | AD37: 128 | AE37: 3421 | AF37: 3421 MARCUS A. MILAM K-8 CENTER | AG37: 8 | AH37: 88 | AI37: 64 | AJ37: 138 | AK37: 7055 | AL37: 7055 YOUNG WOMENS PREPARATORY ACADEMY | AM37: 9 | AN37: 41 | AO37: 95 | AP37: 43 | AQ37: 7066 | AR37: 7066 LBA CONSTRUCTION AND BUSINESS MANAGEMENT ACAD | AS37: 10 | AT37: 23 | AU37: 41 | AV37: 56
A38: 0451 | B38: 0451 BOWMAN ASHE/DOOLIN K-8 ACADEMY | C38: 3 | D38: 66 | E38: 53 | F38: 124 | G38: 0461 | H38: 0461 BRENTWOOD ELEMENTARY SCHOOL | I38: 4 | J38: 50 | K38: 47 | L38: 106 | M38: 0461 | N38: 0461 BRENTWOOD ELEMENTARY SCHOOL | O38: 5 | P38: 29 | Q38: 30 | R38: 98 | S38: 3033 | T38: 3033 SOMERSET OAKS ACADEMY | U38: 6 | W38: NA | X38: 7 | Y38: 3191 | Z38: 3191 ADA MERRITT K-8 CENTER | AA38: 7 | AB38: 71 | AC38: 92 | AD38: 77 | AE38: 3501 | AF38: 3501 MORNINGSIDE K-8 ACADEMY | AG38: 8 | AH38: 9 | AI38: 39 | AJ38: 23 | AK38: 7056 | AL38: 7056 YOUNG MEN'S PREPARATORY ACADEMY | AM38: 9 | AN38: 6 | AO38: 55 | AP38: 11 | AQ38: 7067 | AR38: 7067 GREEN SPRINGS HIGH SCHOOL CHARTER | AS38: 10 | AT38: 2 | AU38: 6 | AV38: 35
A39: 0461 | B39: 0461 BRENTWOOD ELEMENTARY SCHOOL | C39: 3 | D39: 42 | E39: 38 | F39: 112 | G39: 0481 | H39: 0481 JAMES H. BRIGHT ELEMENTARY/J.W. JOHNSON ELEM | I39: 4 | J39: 40 | K39: 35 | L39: 113 | M39: 0481 | N39: 0481 JAMES H. BRIGHT ELEMENTARY/J.W. JOHNSON ELEM | O39: 5 | P39: 50 | Q39: 36 | R39: 140 | S39: 3101 | T39: 3101 FRANK CRAWFORD MARTIN K-8 CENTER | U39: 6 | V39: 79 | W39: 64 | X39: 124 | Y39: 3281 | Z39: 3281 MIAMI LAKES K-8 CENTER | AA39: 7 | AB39: 96 | AC39: 57 | AD39: 167 | AE39: 3581 | AF39: 3581 MYRTLE GROVE K-8 CENTER | AG39: 8 | AH39: 16 | AI39: 36 | AJ39: 45 | AK39: 7058 | AL39: 7058 MIAMI COMMUNITY CHARTER HIGH SCHOOL | AM39: 9 | AN39: 30 | AO39: 33 | AP39: 91 | AQ39: 7068 | AR39: 7068 NORTH GARDENS HIGH SCHOOL CHARTER | AS39: 10 | AT39: 4 | AU39: 7 | AV39: 56
A40: 0481 | B40: 0481 JAMES H. BRIGHT ELEMENTARY/J.W. JOHNSON ELEM | C40: 3 | D40: 40 | E40: 34 | F40: 118 | G40: 0510 | H40: 0510 ARCHIMEDEAN ACADEMY | I40: 4 | J40: 88 | K40: 89 | L40: 99 | M40: 0510 | N40: 0510 ARCHIMEDEAN ACADEMY | O40: 5 | P40: 77 | Q40: 89 | R40: 87 | S40: 3191 | T40: 3191 ADA MERRITT K-8 CENTER | U40: 6 | V40: 67 | W40: 89 | X40: 75 | Y40: 3421 | Z40: 3421 MARCUS A. MILAM K-8 CENTER | AA40: 7 | AB40: 50 | AC40: 49 | AD40: 102 | AE40: 3610 | AF40: 3610 KEYS GATE CHARTER SCHOOL | AG40: 8 | AH40: 116 | AI40: 41 | AJ40: 284 | AK40: 7059 | AL40: 7059 MIAMI ARTS CHARTER | AM40: 9 | AN40: 140 | AO40: 76 | AP40: 184 | AQ40: 7069 | AR40: 7069 NORTH PARK HIGH SCHOOL | AS40: 10 | AT40: 2 | AU40: 4 | AV40: 55
A41: 0510 | B41: 0510 ARCHIMEDEAN ACADEMY | C41: 3 | D41: 101 | E41: 84 | F41: 120 | G41: 0520 | H41: 0520 SOMERSET ACADEMY CHARTER | I41: 4 | J41: 71 | K41: 79 | L41: 90 | M41: 0520 | N41: 0520 SOMERSET ACADEMY CHARTER | O41: 5 | P41: 81 | Q41: 83 | R41: 98 | S41: 3281 | T41: 3281 MIAMI LAKES K-8 CENTER | U41: 6 | V41: 106 | W41: 59 | X41: 180 | Y41: 3501 | Z41: 3501 MORNINGSIDE K-8 ACADEMY | AA41: 7 | AB41: 12 | AC41: 32 | AD41: 37 | AE41: 3621 | AF41: 3621 COCONUT PALM K-8 ACADEMY | AG41: 8 | AH41: 52 | AI41: 45 | AJ41: 116 | AK41: 7060 | AL41: 7060 EVERGLADES PREPARATORY ACADEMY HIGH SCHOOL | AM41: 9 | AN41: 65 | AO41: 44 | AP41: 147 | AQ41: 7070 | AR41: 7070 YOUTH CO-OP PREPARATORY HIGH SCHOOL | AS41: 10 | AT41: 19 | AU41: 59 | AV41: 32
A42: 0520 | B42: 0520 SOMERSET ACADEMY CHARTER | C42: 3 | D42: 87 | E42: 77 | F42: 113 | G42: 0521 | H42: 0521 BROADMOOR ELEMENTARY SCHOOL | I42: 4 | J42: 20 | K42: 30 | L42: 66 | M42: 0521 | N42: 0521 BROADMOOR ELEMENTARY SCHOOL | O42: 5 | P42: 25 | Q42: 39 | R42: 64 | S42: 3421 | T42: 3421 MARCUS A. MILAM K-8 CENTER | U42: 6 | V42: 43 | W42: 41 | X42: 104 | Y42: 3581 | Z42: 3581 MYRTLE GROVE K-8 CENTER | AA42: 7 | AB42: 23 | AC42: 34 | AD42: 68 | AE42: 3821 | AF42: 3821 NORTH COUNTY K-8 CENTER | AG42: 8 | AH42: 12 | AI42: 38 | AJ42: 32 | AK42: 7062 | AL42: 7062 MAVERICKS HIGH OF NORTH MIAMI DADE COUNTY | AM42: 9 | AN42: 0 | AO42: 0 | AP42: 24 | AQ42: 7071 | AR42: 7071 CORAL GABLES SENIOR HIGH SCHOOL | AS42: 10 | AT42: 381 | AU42: 49 | AV42: 776
A43: 0521 | B43: 0521 BROADMOOR ELEMENTARY SCHOOL | C43: 3 | D43: 32 | E43: 37 | F43: 86 | G43: 0561 | H43: 0561 W. J. BRYAN ELEMENTARY | I43: 4 | J43: 43 | K43: 42 | L43: 103 | M43: 0561 | N43: 0561 W. J. BRYAN ELEMENTARY | O43: 5 | P43: 62 | Q43: 58 | R43: 107 | S43: 3501 | T43: 3501 MORNINGSIDE K-8 ACADEMY | U43: 6 | V43: 22 | W43: 40 | X43: 55 | Y43: 3610 | Z43: 3610 KEYS GATE CHARTER SCHOOL | AA43: 7 | AB43: 101 | AC43: 37 | AD43: 271 | AE43: 4031 | AF43: 4031 GATEWAY ENVIRONMENTAL K-8 LEARNING CENTER | AG43: 8 | AH43: 59 | AI43: 40 | AJ43: 148 | AK43: 7065 | AL43: 7065 MAVERICKS HIGH OF SOUTH MIAMI DADE COUNTY | AM43: 9 | AN43: 1 | AO43: 3 | AP43: 34 | AQ43: 7080 | AR43: 7080 CHARTER HIGH SCHOOL OF THE AMERICAS | AS43: 10 | AT43: 27 | AU43: 73 | AV43: 37
A44: 0561 | B44: 0561 W. J. BRYAN ELEMENTARY | C44: 3 | D44: 45 | E44: 32 | F44: 141 | G44: 0600 | H44: 0600 PINECREST PREPARATORY ACADEMY | I44: 4 | J44: 78 | K44: 70 | L44: 112 | M44: 0600 | N44: 0600 PINECREST PREPARATORY ACADEMY | O44: 5 | P44: 94 | Q44: 80 | R44: 118 | S44: 3581 | T44: 3581 MYRTLE GROVE K-8 CENTER | U44: 6 | V44: 19 | W44: 27 | X44: 70 | Y44: 3621 | Z44: 3621 COCONUT PALM K-8 ACADEMY | AA44: 7 | AB44: 34 | AC44: 28 | AD44: 123 | AE44: 4391 | AF44: 4391 IRVING & BEATRICE PESKOE K-8 CENTER | AG44: 8 | AH44: 15 | AI44: 32 | AJ44: 47 | AK44: 7066 | AL44: 7066 LBA CONSTRUCTION AND BUSINESS MANAGEMENT ACAD | AM44: 9 | AN44: 27 | AO44: 49 | AP44: 55 | AQ44: 7081 | AR44: 7081 DESIGN & ARCHITECTURE SENIOR HIGH | AS44: 10 | AT44: 109 | AU44: 88 | AV44: 124
A45: 0600 | B45: 0600 PINECREST PREPARATORY ACADEMY | C45: 3 | D45: 107 | E45: 86 | F45: 125 | G45: 0641 | H45: 0641 BUNCHE PARK ELEMENTARY SCHOOL | I45: 4 | J45: 11 | K45: 32 | L45: 34 | M45: 0641 | N45: 0641 BUNCHE PARK ELEMENTARY SCHOOL | O45: 5 | P45: 7 | Q45: 24 | R45: 29 | S45: 3600 | T45: 3600 DOWNTOWN MIAMI CHARTER SCHOOL | U45: 6 | V45: 39 | W45: 55 | X45: 71 | Y45: 3821 | Z45: 3821 NORTH COUNTY K-8 CENTER | AA45: 7 | AB45: 11 | AC45: 29 | AD45: 38 | AE45: 4691 | AF45: 4691 JANE S. ROBERTS K-8 CENTER | AG45: 8 | AH45: 67 | AI45: 77 | AJ45: 87 | AK45: 7067 | AL45: 7067 GREEN SPRINGS HIGH SCHOOL CHARTER | AM45: 9 | AO45: NA | AP45: 6 | AQ45: 7090 | AR45: 7090 IMATER PREPARATORY ACADEMY HIGH SCHOOL | AS45: 10 | AT45: 68 | AU45: 55 | AV45: 124
A46: 0641 | B46: 0641 BUNCHE PARK ELEMENTARY SCHOOL | C46: 3 | D46: 9 | E46: 18 | F46: 50 | G46: 0651 | H46: 0651 CAMPBELL DRIVE K-8 CENTER | I46: 4 | J46: 23 | K46: 23 | L46: 98 | M46: 0651 | N46: 0651 CAMPBELL DRIVE K-8 CENTER | O46: 5 | P46: 26 | Q46: 28 | R46: 92 | S46: 3610 | T46: 3610 KEYS GATE CHARTER SCHOOL | U46: 6 | V46: 118 | W46: 45 | X46: 262 | Y46: 4031 | Z46: 4031 GATEWAY ENVIRONMENTAL K-8 LEARNING CENTER | AA46: 7 | AB46: 58 | AC46: 38 | AD46: 152 | AE46: 5003 | AF46: 5003 SOUTH DADE MIDDLE SCHOOL | AG46: 8 | AH46: 70 | AI46: 32 | AJ46: 221 | AK46: 7068 | AL46: 7068 NORTH GARDENS HIGH SCHOOL CHARTER | AM46: 9 | AN46: 0 | AO46: 0 | AP46: 22 | AQ46: 7101 | AR46: 7101 CORAL REEF SENIOR HIGH SCHOOL | AS46: 10 | AT46: 693 | AU46: 87 | AV46: 801
A47: 0651 | B47: 0651 CAMPBELL DRIVE K-8 CENTER | C47: 3 | D47: 34 | E47: 28 | F47: 120 | G47: 0661 | H47: 0661 CARIBBEAN ELEMENTARY SCHOOL | I47: 4 | J47: 32 | K47: 38 | L47: 85 | M47: 0661 | N47: 0661 CARIBBEAN ELEMENTARY SCHOOL | O47: 5 | P47: 25 | Q47: 32 | R47: 79 | S47: 3621 | T47: 3621 COCONUT PALM K-8 ACADEMY | U47: 6 | V47: 46 | W47: 32 | X47: 146 | Y47: 4391 | Z47: 4391 IRVING & BEATRICE PESKOE K-8 CENTER | AA47: 7 | AB47: 21 | AC47: 38 | AD47: 56 | AE47: 5005 | AF47: 5005 DAVID LAWRENCE JR. K-8 CENTER | AG47: 8 | AH47: 96 | AI47: 52 | AJ47: 184 | AK47: 7069 | AL47: 7069 NORTH PARK HIGH SCHOOL | AM47: 9 | AN47: 2 | AO47: 8 | AP47: 24 | AQ47: 7111 | AR47: 7111 HIALEAH SENIOR HIGH SCHOOL | AS47: 10 | AT47: 226 | AU47: 37 | AV47: 615
A48: 0661 | B48: 0661 CARIBBEAN ELEMENTARY SCHOOL | C48: 3 | D48: 28 | E48: 30 | F48: 94 | G48: 0671 | H48: 0671 CALUSA ELEMENTARY SCHOOL | I48: 4 | J48: 110 | K48: 84 | L48: 131 | M48: 0671 | N48: 0671 CALUSA ELEMENTARY SCHOOL | O48: 5 | P48: 121 | Q48: 79 | R48: 154 | S48: 3821 | T48: 3821 NORTH COUNTY K-8 CENTER | U48: 6 | V48: 9 | W48: 23 | X48: 40 | Y48: 4691 | Z48: 4691 JANE S. ROBERTS K-8 CENTER | AA48: 7 | AB48: 60 | AC48: 55 | AD48: 109 | AE48: 5006 | AF48: 5006 EVERGLADES PREPARATORY ACADEMY | AG48: 8 | AH48: 113 | AI48: 51 | AJ48: 222 | AK48: 7070 | AL48: 7070 YOUTH CO-OP PREPARATORY HIGH SCHOOL | AM48: 9 | AN48: 46 | AO48: 55 | AP48: 83 | AQ48: 7121 | AR48: 7121 JOHN A. FERGUSON SR HIGH | AS48: 10 | AT48: 650 | AU48: 60 | AV48: 1082
A49: 0671 | B49: 0671 CALUSA ELEMENTARY SCHOOL | C49: 3 | D49: 112 | E49: 72 | F49: 156 | G49: 0681 | H49: 0681 CAROL CITY ELEMENTARY SCHOOL | I49: 4 | J49: 32 | K49: 42 | L49: 76 | M49: 0681 | N49: 0681 CAROL CITY ELEMENTARY SCHOOL | O49: 5 | P49: 10 | Q49: 18 | R49: 57 | S49: 4021 | T49: 4021 OAK GROVE ELEMENTARY SCHOOL | U49: 6 | V49: 10 | W49: 31 | X49: 32 | Y49: 5003 | Z49: 5003 SOUTH DADE MIDDLE SCHOOL | AA49: 7 | AB49: 59 | AC49: 25 | AD49: 232 | AE49: 5007 | AF49: 5007 LINCOLN-MARTI CHARTER SCHOOL HIALEAH | AG49: 8 | AH49: 16 | AI49: 48 | AJ49: 33 | AK49: 7071 | AL49: 7071 CORAL GABLES SENIOR HIGH SCHOOL | AM49: 9 | AN49: 478 | AO49: 56 | AP49: 850 | AQ49: 7131 | AR49: 7131 HIALEAH-MIAMI LAKES SR. HIGH | AS49: 10 | AT49: 155 | AU49: 38 | AV49: 408
A50: 0681 | B50: 0681 CAROL CITY ELEMENTARY SCHOOL | C50: 3 | D50: 17 | E50: 26 | F50: 65 | G50: 0721 | H50: 0721 GEORGE W. CARVER ELEMENTARY SCHOOL | I50: 4 | J50: 31 | K50: 48 | L50: 64 | M50: 0721 | N50: 0721 GEORGE W. CARVER ELEMENTARY SCHOOL | O50: 5 | P50: 54 | Q50: 59 | R50: 91 | S50: 4031 | T50: 4031 GATEWAY ENVIRONMENTAL K-8 LEARNING CENTER | U50: 6 | V50: 45 | W50: 27 | X50: 167 | Y50: 5005 | Z50: 5005 DAVID LAWRENCE JR. K-8 CENTER | AA50: 7 | AB50: 93 | AC50: 53 | AD50: 175 | AE50: 5010 | AF50: 5010 OXFORD ACADEMY OF MIAMI | AG50: 8 | AH50: 6 | AI50: 55 | AJ50: 11 | AK50: 7080 | AL50: 7080 CHARTER HIGH SCHOOL OF THE AMERICAS | AM50: 9 | AN50: 22 | AO50: 42 | AP50: 52 | AQ50: 7141 | AR50: 7141 DR MICHAEL M. KROP SENIOR HIGH | AS50: 10 | AT50: 406 | AU50: 60 | AV50: 681
A51: 0721 | B51: 0721 GEORGE W. CARVER ELEMENTARY SCHOOL | C51: 3 | D51: 45 | E51: 52 | F51: 86 | G51: 0761 | H51: 0761 FIENBERG/FISHER K-8 CENTER | I51: 4 | J51: 29 | K51: 37 | L51: 79 | M51: 0761 | N51: 0761 FIENBERG/FISHER K-8 CENTER | O51: 5 | P51: 31 | Q51: 38 | R51: 82 | S51: 4391 | T51: 4391 IRVING & BEATRICE PESKOE K-8 CENTER | U51: 6 | V51: 19 | W51: 27 | X51: 70 | Y51: 5006 | Z51: 5006 EVERGLADES PREPARATORY ACADEMY | AA51: 7 | AB51: 83 | AC51: 50 | AD51: 167 | AE51: 5022 | AF51: 5022 BEN GAMLA CHARTER SCHOOL | AG51: 8 | AH51: 12 | AI51: 80 | AJ51: 15 | AK51: 7081 | AL51: 7081 DESIGN & ARCHITECTURE SENIOR HIGH | AM51: 9 | AN51: 137 | AO51: 97 | AP51: 141 | AQ51: 7151 | AR51: 7151 HOMESTEAD SENIOR HIGH SCHOOL | AS51: 10 | AT51: 107 | AU51: 27 | AV51: 398
A52: 0761 | B52: 0761 FIENBERG/FISHER K-8 CENTER | C52: 3 | D52: 34 | E52: 40 | F52: 85 | G52: 0771 | H52: 0771 DR. WILLIAM A. CHAPMAN ELEMENTARY SCHOOL | I52: 4 | J52: 24 | K52: 37 | L52: 65 | M52: 0771 | N52: 0771 DR. WILLIAM A. CHAPMAN ELEMENTARY SCHOOL | O52: 5 | P52: 26 | Q52: 35 | R52: 74 | S52: 4691 | T52: 4691 JANE S. ROBERTS K-8 CENTER | U52: 6 | V52: 64 | W52: 68 | X52: 94 | Y52: 5007 | Z52: 5007 LINCOLN-MARTI CHARTER SCHOOL HIALEAH | AA52: 7 | AB52: 15 | AC52: 38 | AD52: 39 | AE52: 5025 | AF52: 5025 LINCOLN-MARTI CHARTER SCHOOL LITTLE HAVANA | AG52: 8 | AH52: 26 | AI52: 39 | AJ52: 66 | AK52: 7090 | AL52: 7090 IMATER PREPARATORY ACADEMY HIGH SCHOOL | AM52: 9 | AN52: 98 | AO52: 51 | AP52: 194 | AQ52: 7160 | AR52: 7160 MATER ACADEMY CHARTER HIGH | AS52: 10 | AT52: 250 | AU52: 61 | AV52: 410
A53: 0771 | B53: 0771 DR. WILLIAM A. CHAPMAN ELEMENTARY SCHOOL | C53: 3 | D53: 31 | E53: 41 | F53: 75 | G53: 0801 | H53: 0801 CITRUS GROVE ELEMENTARY SCHOOL | I53: 4 | J53: 46 | K53: 43 | L53: 108 | M53: 0801 | N53: 0801 CITRUS GROVE ELEMENTARY SCHOOL | O53: 5 | P53: 43 | Q53: 39 | R53: 111 | S53: 5003 | T53: 5003 SOUTH DADE MIDDLE SCHOOL | U53: 6 | V53: 67 | W53: 32 | X53: 210 | Y53: 5010 | Z53: 5010 OXFORD ACADEMY OF MIAMI | AA53: 7 | AC53: NA | AD53: 9 | AE53: 5029 | AF53: 5029 EXCELSIOR LANGUAGE ACADEMY OF HIALEAH | AG53: 8 | AH53: 3 | AI53: 19 | AJ53: 16 | AK53: 7101 | AL53: 7101 CORAL REEF SENIOR HIGH SCHOOL | AM53: 9 | AN53: 795 | AO53: 87 | AP53: 911 | AQ53: 7161 | AR53: 7161 MAST ACADEMY | AS53: 10 | AT53: 224 | AU53: 89 | AV53: 252
A54: 0801 | B54: 0801 CITRUS GROVE ELEMENTARY SCHOOL | C54: 3 | D54: 42 | E54: 28 | F54: 148 | G54: 0831 | H54: 0831 CLAUDE PEPPER ELEMENTARY SCHL | I54: 4 | J54: 65 | K54: 65 | L54: 100 | M54: 0831 | N54: 0831 CLAUDE PEPPER ELEMENTARY SCHL | O54: 5 | P54: 72 | Q54: 58 | R54: 125 | S54: 5005 | T54: 5005 DAVID LAWRENCE JR. K-8 CENTER | U54: 6 | V54: 81 | W54: 45 | X54: 179 | Y54: 5022 | Z54: 5022 BEN GAMLA CHARTER SCHOOL | AA54: 7 | AB54: 9 | AC54: 90 | AD54: 10 | AE54: 5032 | AF54: 5032 EXCELSIOR CHARTER ACADEMY | AG54: 8 | AH54: 10 | AI54: 30 | AJ54: 33 | AK54: 7111 | AL54: 7111 HIALEAH SENIOR HIGH SCHOOL | AM54: 9 | AN54: 232 | AO54: 39 | AP54: 598 | AQ54: 7171 | AR54: 7171 MEDICAL ACADEMY FOR SCIENCE/TECH @ HOMESTEAD | AS54: 10 | AT54: 96 | AU54: 86 | AV54: 112
A55: 0831 | B55: 0831 CLAUDE PEPPER ELEMENTARY SCHL | C55: 3 | D55: 74 | E55: 63 | F55: 117 | G55: 0841 | H55: 0841 COCONUT GROVE ELEMENTARY SCHL | I55: 4 | J55: 40 | K55: 63 | L55: 63 | M55: 0841 | N55: 0841 COCONUT GROVE ELEMENTARY SCHL | O55: 5 | P55: 34 | Q55: 55 | R55: 62 | S55: 5006 | T55: 5006 EVERGLADES PREPARATORY ACADEMY | U55: 6 | V55: 56 | W55: 39 | X55: 145 | Y55: 5025 | Z55: 5025 LINCOLN-MARTI CHARTER SCHOOL LITTLE HAVANA | AA55: 7 | AB55: 15 | AC55: 23 | AD55: 65 | AE55: 5044 | AF55: 5044 ACADEMY FOR INTERNATIONAL EDUCATION CHARTER | AG55: 8 | AH55: 22 | AI55: 51 | AJ55: 43 | AK55: 7121 | AL55: 7121 JOHN A. FERGUSON SR HIGH | AM55: 9 | AN55: 637 | AO55: 64 | AP55: 999 | AQ55: 7191 | AR55: 7191 HIALEAH GARDENS SENIOR HIGH SCHOOL | AS55: 10 | AT55: 383 | AU55: 50 | AV55: 764
A56: 0841 | B56: 0841 COCONUT GROVE ELEMENTARY SCHL | C56: 3 | D56: 47 | E56: 66 | F56: 71 | G56: 0861 | H56: 0861 COLONIAL DRIVE ELEMENTARY SCHL | I56: 4 | J56: 14 | K56: 39 | L56: 36 | M56: 0861 | N56: 0861 COLONIAL DRIVE ELEMENTARY SCHL | O56: 5 | P56: 15 | Q56: 33 | R56: 46 | S56: 5007 | T56: 5007 LINCOLN-MARTI CHARTER SCHOOL HIALEAH | U56: 6 | V56: 11 | W56: 28 | X56: 40 | Y56: 5029 | Z56: 5029 EXCELSIOR LANGUAGE ACADEMY OF HIALEAH | AA56: 7 | AB56: 12 | AC56: 29 | AD56: 42 | AE56: 5045 | AF56: 5045 MATER GROVE ACADEMY | AG56: 8 | AH56: 19 | AI56: 95 | AJ56: 20 | AK56: 7131 | AL56: 7131 HIALEAH-MIAMI LAKES SR. HIGH | AM56: 9 | AN56: 125 | AO56: 31 | AP56: 402 | AQ56: 7201 | AR56: 7201 MIAMI BEACH SENIOR HIGH SCHOOL | AS56: 10 | AT56: 281 | AU56: 52 | AV56: 536
A57: 0861 | B57: 0861 COLONIAL DRIVE ELEMENTARY SCHL | C57: 3 | D57: 23 | E57: 50 | F57: 46 | G57: 0881 | H57: 0881 COMSTOCK ELEMENTARY SCHOOL | I57: 4 | J57: 23 | K57: 32 | L57: 71 | M57: 0881 | N57: 0881 COMSTOCK ELEMENTARY SCHOOL | O57: 5 | P57: 16 | Q57: 25 | R57: 64 | S57: 5008 | T57: 5008 SOMERSET GABLES ACADEMY | U57: 6 | W57: NA | X57: 4 | Y57: 5032 | Z57: 5032 EXCELSIOR CHARTER ACADEMY | AA57: 7 | AB57: 3 | AC57: 13 | AD57: 23 | AE57: 5046 | AF57: 5046 MATER BRICKELL PREPARATORY ACADEMY | AG57: 8 | AH57: 10 | AI57: 56 | AJ57: 18 | AK57: 7141 | AL57: 7141 DR MICHAEL M. KROP SENIOR HIGH | AM57: 9 | AN57: 428 | AO57: 57 | AP57: 746 | AQ57: 7231 | AR57: 7231 MIAMI CAROL CITY SENIOR HIGH | AS57: 10 | AT57: 88 | AU57: 25 | AV57: 351
A58: 0881 | B58: 0881 COMSTOCK ELEMENTARY SCHOOL | C58: 3 | D58: 30 | E58: 33 | F58: 91 | G58: 0950 | H58: 0950 AVENTURA CITY OF EXCELLENCE | I58: 4 | J58: 93 | K58: 83 | L58: 112 | M58: 0950 | N58: 0950 AVENTURA CITY OF EXCELLENCE | O58: 5 | P58: 94 | Q58: 78 | R58: 120 | S58: 5010 | T58: 5010 OXFORD ACADEMY OF MIAMI | U58: 6 | W58: NA | X58: 5 | Y58: 5044 | Z58: 5044 ACADEMY FOR INTERNATIONAL EDUCATION CHARTER | AA58: 7 | AB58: 34 | AC58: 76 | AD58: 45 | AE58: 5047 | AF58: 5047 MATER ACADEMY MIAMI BEACH | AG58: 8 | AH58: 34 | AI58: 74 | AJ58: 46 | AK58: 7151 | AL58: 7151 HOMESTEAD SENIOR HIGH SCHOOL | AM58: 9 | AN58: 85 | AO58: 19 | AP58: 445 | AQ58: 7241 | AR58: 7241 RONALD W. REAGAN/DORAL SENIOR HIGH SCHOOL | AS58: 10 | AT58: 310 | AU58: 60 | AV58: 520
A59: 0950 | B59: 0950 AVENTURA CITY OF EXCELLENCE | C59: 3 | D59: 93 | E59: 85 | F59: 109 | G59: 0961 | H59: 0961 CORAL GABLES PREPARATORY ACADEMY | I59: 4 | J59: 61 | K59: 81 | L59: 75 | M59: 0961 | N59: 0961 CORAL GABLES PREPARATORY ACADEMY | O59: 5 | P59: 77 | Q59: 84 | R59: 92 | S59: 5020 | T59: 5020 BRIDGEPREP ACADEMY INTERAMERICAN CAMPUS | U59: 6 | W59: NA | X59: 7 | Y59: 5045 | Z59: 5045 MATER GROVE ACADEMY | AA59: 7 | AB59: 18 | AC59: 90 | AD59: 20 | AE59: 5049 | AF59: 5049 PINECREST COVE ACADEMY | AG59: 8 | AH59: 54 | AI59: 72 | AJ59: 75 | AK59: 7160 | AL59: 7160 MATER ACADEMY CHARTER HIGH | AM59: 9 | AN59: 330 | AO59: 65 | AP59: 509 | AQ59: 7251 | AR59: 7251 MIAMI CENTRAL SENIOR HIGH SCHL | AS59: 10 | AT59: 73 | AU59: 17 | AV59: 434
A60: 0961 | B60: 0961 CORAL GABLES PREPARATORY ACADEMY | C60: 3 | D60: 74 | E60: 96 | F60: 77 | G60: 1001 | H60: 1001 CORAL PARK ELEMENTARY SCHOOL | I60: 4 | J60: 127 | K60: 84 | L60: 151 | M60: 1001 | N60: 1001 CORAL PARK ELEMENTARY SCHOOL | O60: 5 | P60: 141 | Q60: 79 | R60: 179 | S60: 5022 | T60: 5022 BEN GAMLA CHARTER SCHOOL | U60: 6 | V60: 9 | W60: 82 | X60: 11 | Y60: 5046 | Z60: 5046 MATER BRICKELL PREPARATORY ACADEMY | AA60: 7 | AB60: 16 | AC60: 84 | AD60: 19 | AE60: 5051 | AF60: 5051 ERNEST R. GRAHAM K-8 ACADEMY | AG60: 8 | AH60: 74 | AI60: 59 | AJ60: 125 | AK60: 7161 | AL60: 7161 MAST ACADEMY | AM60: 9 | AN60: 246 | AO60: 90 | AP60: 272 | AQ60: 7262 | AR60: 7262 CITY OF HIALEAH EDUCATION ACADEMY | AS60: 10 | AT60: 72 | AU60: 58 | AV60: 124
A61: 1001 | B61: 1001 CORAL PARK ELEMENTARY SCHOOL | C61: 3 | D61: 153 | E61: 82 | F61: 186 | G61: 1010 | H61: 1010 THE CHARTER SCHOOL AT WATERSTONE | I61: 4 | J61: 123 | K61: 64 | L61: 192 | M61: 1010 | N61: 1010 THE CHARTER SCHOOL AT WATERSTONE | O61: 5 | P61: 92 | Q61: 58 | R61: 158 | S61: 5025 | T61: 5025 LINCOLN-MARTI CHARTER SCHOOL LITTLE HAVANA | U61: 6 | V61: 31 | W61: 40 | X61: 78 | Y61: 5047 | Z61: 5047 MATER ACADEMY MIAMI BEACH | AA61: 7 | AB61: 32 | AC61: 67 | AD61: 48 | AE61: 5101 | AF61: 5101 JOHN I. SMITH K-8 CENTER | AG61: 8 | AH61: 55 | AI61: 47 | AJ61: 118 | AK61: 7171 | AL61: 7171 MEDICAL ACADEMY FOR SCIENCE/TECH @ HOMESTEAD | AM61: 9 | AN61: 121 | AO61: 86 | AP61: 141 | AQ61: 7265 | AR61: 7265 ARCHIMEDEAN UPPER CONSERVATORY | AS61: 10 | AT61: 64 | AU61: 98 | AV61: 65
A62: 1010 | B62: 1010 THE CHARTER SCHOOL AT WATERSTONE | C62: 3 | D62: 145 | E62: 63 | F62: 232 | G62: 1014 | H62: 1014 HIGHLY INQUISITIVE/VERSATILE EDUC(HIVE) PREP | I62: 4 | J62: 50 | K62: 60 | L62: 83 | M62: 1014 | N62: 1014 HIGHLY INQUISITIVE/VERSATILE EDUC(HIVE) PREP | O62: 5 | P62: 45 | Q62: 69 | R62: 65 | S62: 5029 | T62: 5029 EXCELSIOR LANGUAGE ACADEMY OF HIALEAH | U62: 6 | V62: 8 | W62: 17 | X62: 46 | Y62: 5049 | Z62: 5049 PINECREST COVE ACADEMY | AA62: 7 | AB62: 36 | AC62: 82 | AD62: 44 | AE62: 5141 | AF62: 5141 HUBERT O. SIBLEY K-8 ACADEMY | AG62: 8 | AH62: 39 | AI62: 41 | AJ62: 95 | AK62: 7191 | AL62: 7191 HIALEAH GARDENS SENIOR HIGH SCHOOL | AM62: 9 | AN62: 407 | AO62: 54 | AP62: 748 | AQ62: 7271 | AR62: 7271 MIAMI CORAL PARK SENIOR HIGH | AS62: 10 | AT62: 314 | AU62: 44 | AV62: 708
A63: 1014 | B63: 1014 HIGHLY INQUISITIVE/VERSATILE EDUC(HIVE) PREP | C63: 3 | D63: 81 | E63: 75 | F63: 108 | G63: 1017 | H63: 1017 MATER ACADEMY OF INTERNATIONAL STUDIES | I63: 4 | J63: 36 | K63: 46 | L63: 78 | M63: 1017 | N63: 1017 MATER ACADEMY OF INTERNATIONAL STUDIES | O63: 5 | P63: 7 | Q63: 28 | R63: 25 | S63: 5032 | T63: 5032 EXCELSIOR CHARTER ACADEMY | U63: 6 | V63: 7 | W63: 24 | X63: 29 | Y63: 5051 | Z63: 5051 ERNEST R. GRAHAM K-8 ACADEMY | AA63: 7 | AB63: 59 | AC63: 49 | AD63: 121 | AE63: 5241 | AF63: 5241 SOUTH MIAMI K-8 CENTER | AG63: 8 | AH63: 47 | AI63: 62 | AJ63: 76 | AK63: 7201 | AL63: 7201 MIAMI BEACH SENIOR HIGH SCHOOL | AM63: 9 | AN63: 303 | AO63: 55 | AP63: 553 | AQ63: 7291 | AR63: 7291 JOSE MARTI MAST 6-12 ACADEMY | AS63: 10 | AT63: 50 | AU63: 94 | AV63: 53
A64: 1017 | B64: 1017 MATER ACADEMY OF INTERNATIONAL STUDIES | C64: 3 | D64: 58 | E64: 53 | F64: 110 | G64: 1020 | H64: 1020 YOUTH CO-OP CHARTER SCHOOL | I64: 4 | J64: 51 | K64: 59 | L64: 87 | M64: 1020 | N64: 1020 YOUTH CO-OP CHARTER SCHOOL | O64: 5 | P64: 57 | Q64: 55 | R64: 103 | S64: 5043 | T64: 5043 LINCOLN-MARTI SCHOOLS INTERNATIONAL CAMPUS | U64: 6 | W64: NA | X64: 5 | Y64: 5101 | Z64: 5101 JOHN I. SMITH K-8 CENTER | AA64: 7 | AB64: 77 | AC64: 56 | AD64: 138 | AE64: 5671 | AF64: 5671 VINELAND K-8 CENTER | AG64: 8 | AH64: 69 | AI64: 86 | AJ64: 80 | AK64: 7231 | AL64: 7231 MIAMI CAROL CITY SENIOR HIGH | AM64: 9 | AN64: 66 | AO64: 21 | AP64: 319 | AQ64: 7301 | AR64: 7301 MIAMI EDISON SENIOR HIGH SCHL | AS64: 10 | AT64: 37 | AU64: 22 | AV64: 170
A65: 1020 | B65: 1020 YOUTH CO-OP CHARTER SCHOOL | C65: 3 | D65: 47 | E65: 57 | F65: 83 | G65: 1041 | H65: 1041 CORAL REEF ELEMENTARY SCHOOL | I65: 4 | J65: 121 | K65: 82 | L65: 147 | M65: 1041 | N65: 1041 CORAL REEF ELEMENTARY SCHOOL | O65: 5 | P65: 112 | Q65: 80 | R65: 140 | S65: 5044 | T65: 5044 ACADEMY FOR INTERNATIONAL EDUCATION CHARTER | U65: 6 | V65: 31 | W65: 61 | X65: 51 | Y65: 5141 | Z65: 5141 HUBERT O. SIBLEY K-8 ACADEMY | AA65: 7 | AB65: 30 | AC65: 30 | AD65: 100 | AE65: 5861 | AF65: 5861 DR. HENRY W MACK/WEST LITTLE RIVER K-8 CENTER | AG65: 8 | AH65: 15 | AI65: 32 | AJ65: 47 | AK65: 7241 | AL65: 7241 RONALD W. REAGAN/DORAL SENIOR HIGH SCHOOL | AM65: 9 | AN65: 325 | AO65: 65 | AP65: 498 | AQ65: 7341 | AR65: 7341 MIAMI JACKSON SENIOR HIGH SCHL | AS65: 10 | AT65: 100 | AU65: 27 | AV65: 372
A66: 1041 | B66: 1041 CORAL REEF ELEMENTARY SCHOOL | C66: 3 | D66: 87 | E66: 81 | F66: 108 | G66: 1081 | H66: 1081 CORAL TERRACE ELEMENTARY SCHL | I66: 4 | J66: 48 | K66: 56 | L66: 85 | M66: 1081 | N66: 1081 CORAL TERRACE ELEMENTARY SCHL | O66: 5 | P66: 34 | Q66: 44 | R66: 77 | S66: 5045 | T66: 5045 MATER GROVE ACADEMY | U66: 6 | V66: 12 | W66: 60 | X66: 20 | Y66: 5241 | Z66: 5241 SOUTH MIAMI K-8 CENTER | AA66: 7 | AB66: 33 | AC66: 53 | AD66: 62 | AE66: 5901 | AF66: 5901 CARRIE P. MEEK/WESTVIEW K-8 CENTER | AG66: 8 | AH66: 18 | AI66: 27 | AJ66: 67 | AK66: 7251 | AL66: 7251 MIAMI CENTRAL SENIOR HIGH SCHL | AM66: 9 | AN66: 90 | AO66: 20 | AP66: 443 | AQ66: 7351 | AR66: 7351 ARTHUR AND POLLY MAYS CONSERVATORY OF THE ART | AS66: 10 | AT66: 21 | AU66: 36 | AV66: 58
A67: =LEFT(B67,4) -> 1081 | B67: 1081 CORAL TERRACE ELEMENTARY SCHL | C67: 3 | D67: 29 | E67: 39 | F67: 75 | G67: =LEFT(H67,4) -> 1121 | H67: 1121 CORAL WAY K-8 CENTER | I67: 4 | J67: 97 | K67: 57 | L67: 169 | M67: =LEFT(N67,4) -> 1121 | N67: 1121 CORAL WAY K-8 CENTER | O67: 5 | P67: 82 | Q67: 49 | R67: 169 | S67: =LEFT(T67,4) -> 5046 | T67: 5046 MATER BRICKELL PREPARATORY ACADEMY | U67: 6 | V67: 15 | W67: 79 | X67: 19 | Y67: =LEFT(Z67,4) -> 5671 | Z67: 5671 VINELAND K-8 CENTER | AA67: 7 | AB67: 79 | AC67: 84 | AD67: 94 | AE67: =LEFT(AF67,4) -> 5961 | AF67: 5961 WINSTON PARK K-8 CENTER | AG67: 8 | AH67: 99 | AI67: 61 | AJ67: 162 | AK67: =LEFT(AL67,4) -> 7262 | AL67: 7262 CITY OF HIALEAH EDUCATION ACADEMY | AM67: 9 | AN67: 48 | AO67: 44 | AP67: 109 | AQ67: =LEFT(AR67,4) -> 7361 | AR67: 7361 MIAMI KILLIAN SENIOR HIGH SCHL | AS67: 10 | AT67: 265 | AU67: 48 | AV67: 553
A68: 1121 | B68: 1121 CORAL WAY K-8 CENTER | C68: 3 | D68: 98 | E68: 61 | F68: 161 | G68: 1161 | H68: 1161 CRESTVIEW ELEMENTARY SCHOOL | I68: 4 | J68: 23 | K68: 51 | L68: 45 | M68: 1161 | N68: 1161 CRESTVIEW ELEMENTARY SCHOOL | O68: 5 | P68: 28 | Q68: 41 | R68: 69 | S68: 5047 | T68: 5047 MATER ACADEMY MIAMI BEACH | U68: 6 | V68: 38 | W68: 59 | X68: 64 | Y68: 5791 | Z68: 5791 WEST HOMESTEAD K-8 CENTER | AA68: 7 | AB68: 9 | AC68: 23 | AD68: 40 | AE68: 6001 | AF68: 6001 HERBERT A. AMMONS MIDDLE SCHL | AG68: 8 | AH68: 355 | AI68: 91 | AJ68: 391 | AK68: 7265 | AL68: 7265 ARCHIMEDEAN UPPER CONSERVATORY | AM68: 9 | AN68: 90 | AO68: 94 | AP68: 96 | AQ68: 7371 | AR68: 7371 ROBERT MORGAN EDUCATIONAL CENTER | AS68: 10 | AT68: 342 | AU68: 60 | AV68: 572
A69: 1161 | B69: 1161 CRESTVIEW ELEMENTARY SCHOOL | C69: 3 | D69: 8 | E69: 12 | F69: 65 | G69: 1241 | H69: 1241 CUTLER RIDGE ELEMENTARY SCHOOL | I69: 4 | J69: 52 | K69: 50 | L69: 105 | M69: 1241 | N69: 1241 CUTLER RIDGE ELEMENTARY SCHOOL | O69: 5 | P69: 64 | Q69: 47 | R69: 136 | S69: 5049 | T69: 5049 PINECREST COVE ACADEMY | U69: 6 | V69: 54 | W69: 76 | X69: 71 | Y69: 5861 | Z69: 5861 DR. HENRY W MACK/WEST LITTLE RIVER K-8 CENTER | AA69: 7 | AB69: 12 | AC69: 27 | AD69: 44 | AE69: 6004 | AF69: 6004 SOMERSET ACADEMY CHARTER MIDDLE SCHOOL | AG69: 8 | AH69: 60 | AI69: 85 | AJ69: 71 | AK69: 7271 | AL69: 7271 MIAMI CORAL PARK SENIOR HIGH | AM69: 9 | AN69: 247 | AO69: 42 | AP69: 583 | AQ69: 7381 | AR69: 7381 MIAMI NORLAND SENIOR HIGH SCHOOL | AS69: 10 | AT69: 99 | AU69: 28 | AV69: 348
A70: 1241 | B70: 1241 CUTLER RIDGE ELEMENTARY SCHOOL | C70: 3 | D70: 47 | E70: 52 | F70: 90 | G70: 1281 | H70: 1281 CYPRESS ELEMENTARY SCHOOL | I70: 4 | J70: 18 | K70: 49 | L70: 37 | M70: 1281 | N70: 1281 CYPRESS ELEMENTARY SCHOOL | O70: 5 | P70: 14 | Q70: 35 | R70: 40 | S70: 5051 | T70: 5051 ERNEST R. GRAHAM K-8 ACADEMY | U70: 6 | V70: 65 | W70: 50 | X70: 129 | Y70: 5901 | Z70: 5901 CARRIE P. MEEK/WESTVIEW K-8 CENTER | AA70: 7 | AB70: 20 | AC70: 33 | AD70: 60 | AE70: 6006 | AF70: 6006 ARCHIMEDEAN MIDDLE CONSERVATORY | AG70: 8 | AH70: 94 | AI70: 94 | AJ70: 100 | AK70: 7291 | AL70: 7291 JOSE MARTI MAST 6-12 ACADEMY | AM70: 9 | AN70: 81 | AO70: 96 | AP70: 84 | AQ70: 7391 | AR70: 7391 MIAMI LAKES EDUCATIONAL CENTER | AS70: 10 | AT70: 225 | AU70: 61 | AV70: 369
A71: 1281 | B71: 1281 CYPRESS ELEMENTARY SCHOOL | C71: 3 | D71: 41 | E71: 64 | F71: 64 | G71: 1331 | H71: 1331 DEVON AIRE K-8 CENTER | I71: 4 | J71: 136 | K71: 77 | L71: 177 | M71: 1331 | N71: 1331 DEVON AIRE K-8 CENTER | O71: 5 | P71: 112 | Q71: 66 | R71: 169 | S71: 5101 | T71: 5101 JOHN I. SMITH K-8 CENTER | U71: 6 | V71: 78 | W71: 52 | X71: 151 | Y71: 5961 | Z71: 5961 WINSTON PARK K-8 CENTER | AA71: 7 | AB71: 77 | AC71: 54 | AD71: 143 | AE71: 6009 | AF71: 6009 MATER EAST ACADEMY MIDDLE SCHOOL | AG71: 8 | AH71: 61 | AI71: 55 | AJ71: 111 | AK71: 7301 | AL71: 7301 MIAMI EDISON SENIOR HIGH SCHL | AM71: 9 | AN71: 27 | AO71: 14 | AP71: 187 | AQ71: 7411 | AR71: 7411 MIAMI NORTHWESTERN SENIOR HIGH | AS71: 10 | AT71: 51 | AU71: 16 | AV71: 323
A72: 1331 | B72: 1331 DEVON AIRE K-8 CENTER | C72: 3 | D72: 139 | E72: 76 | F72: 184 | G72: 1361 | H72: 1361 FREDERICK R. DOUGLASS ELEM. | I72: 4 | J72: 6 | K72: 20 | L72: 30 | M72: 1361 | N72: 1361 FREDERICK R. DOUGLASS ELEM. | O72: 5 | P72: 10 | Q72: 28 | R72: 36 | S72: 5141 | T72: 5141 HUBERT O. SIBLEY K-8 ACADEMY | U72: 6 | V72: 24 | W72: 32 | X72: 75 | Y72: 6001 | Z72: 6001 HERBERT A. AMMONS MIDDLE SCHL | AA72: 7 | AB72: 345 | AC72: 86 | AD72: 400 | AE72: 6010 | AF72: 6010 FLORIDA INTERNATIONAL ACADEMY | AG72: 8 | AH72: 33 | AI72: 35 | AJ72: 95 | AK72: 7341 | AL72: 7341 MIAMI JACKSON SENIOR HIGH SCHL | AM72: 9 | AN72: 95 | AO72: 22 | AP72: 436 | AQ72: 7431 | AR72: 7431 MIAMI PALMETTO SR. HIGH SCHL | AS72: 10 | AT72: 349 | AU72: 58 | AV72: 601
A73: 1361 | B73: 1361 FREDERICK R. DOUGLASS ELEM. | C73: 3 | D73: 10 | E73: 34 | F73: 29 | G73: 1371 | H73: 1371 MARJORY STONEMAN DOUGLAS ELEM | I73: 4 | J73: 89 | K73: 54 | L73: 165 | M73: 1371 | N73: 1371 MARJORY STONEMAN DOUGLAS ELEM | O73: 5 | P73: 93 | Q73: 58 | R73: 159 | S73: 5241 | T73: 5241 SOUTH MIAMI K-8 CENTER | U73: 6 | V73: 41 | W73: 54 | X73: 76 | Y73: 6004 | Z73: 6004 SOMERSET ACADEMY CHARTER MIDDLE SCHOOL | AA73: 7 | AB73: 52 | AC73: 76 | AD73: 68 | AE73: 6011 | AF73: 6011 ALLAPATTAH MIDDLE SCHOOL | AG73: 8 | AH73: 36 | AI73: 24 | AJ73: 153 | AK73: 7351 | AL73: 7351 ARTHUR AND POLLY MAYS CONSERVATORY OF THE ART | AM73: 9 | AN73: 39 | AO73: 49 | AP73: 79 | AQ73: 7461 | AR73: 7461 MIAMI SENIOR HIGH SCHOOL | AS73: 10 | AT73: 251 | AU73: 36 | AV73: 707
A74: 1371 | B74: 1371 MARJORY STONEMAN DOUGLAS ELEM | C74: 3 | D74: 96 | E74: 54 | F74: 177 | G74: 1401 | H74: 1401 CHARLES R DREW K-8 CENTER | I74: 4 | J74: 9 | K74: 30 | L74: 30 | M74: 1401 | N74: 1401 CHARLES R DREW K-8 CENTER | O74: 5 | P74: 4 | Q74: 12 | R74: 34 | S74: 5671 | T74: 5671 VINELAND K-8 CENTER | U74: 6 | V74: 78 | W74: 70 | X74: 112 | Y74: 6006 | Z74: 6006 ARCHIMEDEAN MIDDLE CONSERVATORY | AA74: 7 | AB74: 94 | AC74: 87 | AD74: 108 | AE74: 6012 | AF74: 6012 MATER ACADEMY CHARTER MIDDLE | AG74: 8 | AH74: 338 | AI74: 70 | AJ74: 483 | AK74: 7361 | AL74: 7361 MIAMI KILLIAN SENIOR HIGH SCHL | AM74: 9 | AN74: 232 | AO74: 45 | AP74: 513 | AQ74: 7511 | AR74: 7511 MIAMI SPRINGS SENIOR HIGH SCHL | AS74: 10 | AT74: 137 | AU74: 36 | AV74: 383
A75: 1401 | B75: 1401 CHARLES R DREW K-8 CENTER | C75: 3 | D75: 6 | E75: 15 | F75: 40 | G75: 1441 | H75: 1441 PAUL LAURENCE DUNBAR K-8 CENTER | I75: 4 | J75: 12 | K75: 25 | L75: 48 | M75: 1441 | N75: 1441 PAUL LAURENCE DUNBAR K-8 CENTER | O75: 5 | P75: 10 | Q75: 23 | R75: 44 | S75: 5791 | T75: 5791 WEST HOMESTEAD K-8 CENTER | U75: 6 | V75: 4 | W75: 9 | X75: 47 | Y75: 6009 | Z75: 6009 MATER EAST ACADEMY MIDDLE SCHOOL | AA75: 7 | AB75: 53 | AC75: 43 | AD75: 122 | AE75: 6013 | AF75: 6013 SOMERSET ACADEMY CHARTER MIDDLE S HOMESTEAD | AG75: 8 | AH75: 42 | AI75: 58 | AJ75: 73 | AK75: 7371 | AL75: 7371 ROBERT MORGAN EDUCATIONAL CENTER | AM75: 9 | AN75: 379 | AO75: 62 | AP75: 615 | AQ75: 7531 | AR75: 7531 MIAMI SUNSET SENIOR HIGH SCHL | AS75: 10 | AT75: 181 | AU75: 40 | AV75: 457
A76: 1441 | B76: 1441 PAUL LAURENCE DUNBAR K-8 CENTER | C76: 3 | D76: 11 | E76: 19 | F76: 57 | G76: 1481 | H76: 1481 JOHN G. DUPUIS ELEMENTARY SCHL | I76: 4 | J76: 45 | K76: 38 | L76: 117 | M76: 1481 | N76: 1481 JOHN G. DUPUIS ELEMENTARY SCHL | O76: 5 | P76: 57 | Q76: 53 | R76: 107 | S76: 5861 | T76: 5861 DR. HENRY W MACK/WEST LITTLE RIVER K-8 CENTER | U76: 6 | V76: 9 | W76: 16 | X76: 56 | Y76: 6010 | Z76: 6010 FLORIDA INTERNATIONAL ACADEMY | AA76: 7 | AB76: 31 | AC76: 30 | AD76: 102 | AE76: 6014 | AF76: 6014 IMATER ACADEMY MIDDLE SCHOOL | AG76: 8 | AH76: 104 | AI76: 53 | AJ76: 198 | AK76: 7381 | AL76: 7381 MIAMI NORLAND SENIOR HIGH SCHOOL | AM76: 9 | AN76: 114 | AO76: 28 | AP76: 413 | AQ76: 7541 | AR76: 7541 NORTH MIAMI BEACH SENIOR HIGH | AS76: 10 | AT76: 138 | AU76: 32 | AV76: 426
A77: 1481 | B77: 1481 JOHN G. DUPUIS ELEMENTARY SCHL | C77: 3 | D77: 60 | E77: 53 | F77: 113 | G77: 1521 | H77: 1521 AMELIA EARHART ELEMENTARY SCHL | I77: 4 | J77: 34 | K77: 49 | L77: 69 | M77: 1521 | N77: 1521 AMELIA EARHART ELEMENTARY SCHL | O77: 5 | P77: 44 | Q77: 56 | R77: 79 | S77: 5901 | T77: 5901 CARRIE P. MEEK/WESTVIEW K-8 CENTER | U77: 6 | V77: 14 | W77: 25 | X77: 56 | Y77: 6011 | Z77: 6011 ALLAPATTAH MIDDLE SCHOOL | AA77: 7 | AB77: 31 | AC77: 22 | AD77: 144 | AE77: 6015 | AF77: 6015 SLAM CHARTER MIDDLE SCHOOL | AG77: 8 | AH77: 81 | AI77: 46 | AJ77: 176 | AK77: 7391 | AL77: 7391 MIAMI LAKES EDUCATIONAL CENTER | AM77: 9 | AN77: 232 | AO77: 66 | AP77: 354 | AQ77: 7571 | AR77: 7571 INTERNATIONAL STUDIES PREPARATORY ACADEMY | AS77: 10 | AT77: 66 | AU77: 80 | AV77: 83
A78: 1521 | B78: 1521 AMELIA EARHART ELEMENTARY SCHL | C78: 3 | D78: 23 | E78: 35 | F78: 65 | G78: 1561 | H78: 1561 EARLINGTON HEIGHTS ELEM. SCHL | I78: 4 | J78: 9 | K78: 14 | L78: 63 | M78: 1561 | N78: 1561 EARLINGTON HEIGHTS ELEM. SCHL | O78: 5 | P78: 15 | Q78: 25 | R78: 60 | S78: 5961 | T78: 5961 WINSTON PARK K-8 CENTER | U78: 6 | V78: 108 | W78: 67 | X78: 161 | Y78: 6012 | Z78: 6012 MATER ACADEMY CHARTER MIDDLE | AA78: 7 | AB78: 255 | AC78: 61 | AD78: 421 | AE78: 6016 | AF78: 6016 SOMERSET VIRTUAL ACADEMY | AG78: 8 | AI78: NA | AJ78: 3 | AK78: 7411 | AL78: 7411 MIAMI NORTHWESTERN SENIOR HIGH | AM78: 9 | AN78: 77 | AO78: 19 | AP78: 399 | AQ78: 7581 | AR78: 7581 I PREPARATORY ACADEMY | AS78: 10 | AT78: 34 | AU78: 87 | AV78: 39
A79: 1561 | B79: 1561 EARLINGTON HEIGHTS ELEM. SCHL | C79: 3 | D79: 15 | E79: 16 | F79: 93 | G79: 1601 | H79: 1601 EDISON PARK K-8 CENTER | I79: 4 | J79: 6 | K79: 11 | L79: 53 | M79: 1601 | N79: 1601 EDISON PARK K-8 CENTER | O79: 5 | P79: 6 | Q79: 12 | R79: 49 | S79: 6001 | T79: 6001 HERBERT A. AMMONS MIDDLE SCHL | U79: 6 | V79: 357 | W79: 87 | X79: 409 | Y79: 6013 | Z79: 6013 SOMERSET ACADEMY CHARTER MIDDLE S HOMESTEAD | AA79: 7 | AB79: 39 | AC79: 48 | AD79: 82 | AE79: 6020 | AF79: 6020 ASPIRA RAUL ARNALDO MARTINEZ CHARTER SCHOOL | AG79: 8 | AH79: 71 | AI79: 35 | AJ79: 202 | AK79: 7431 | AL79: 7431 MIAMI PALMETTO SR. HIGH SCHL | AM79: 9 | AN79: 392 | AO79: 66 | AP79: 595 | AQ79: 7591 | AR79: 7591 NORTH MIAMI SENIOR HIGH SCHOOL | AS79: 10 | AT79: 202 | AU79: 35 | AV79: 581
A80: 1601 | B80: 1601 EDISON PARK K-8 CENTER | C80: 3 | D80: 8 | E80: 13 | F80: 63 | G80: 1641 | H80: 1641 EMERSON ELEMENTARY SCHOOL | I80: 4 | J80: 26 | K80: 55 | L80: 47 | M80: 1641 | N80: 1641 EMERSON ELEMENTARY SCHOOL | O80: 5 | P80: 47 | Q80: 68 | R80: 69 | S80: 6003 | T80: 6003 PINECREST ACADEMY MIDDLE SCHOOL NORTH CAMPUS | U80: 6 | V80: 21 | W80: 95 | X80: 22 | Y80: 6014 | Z80: 6014 IMATER ACADEMY MIDDLE SCHOOL | AA80: 7 | AB80: 132 | AC80: 51 | AD80: 259 | AE80: 6021 | AF80: 6021 ARVIDA MIDDLE SCHOOL | AG80: 8 | AH80: 290 | AI80: 66 | AJ80: 440 | AK80: 7461 | AL80: 7461 MIAMI SENIOR HIGH SCHOOL | AM80: 9 | AN80: 278 | AO80: 37 | AP80: 750 | AQ80: 7601 | AR80: 7601 WILLIAM H. TURNER TECHNICAL ARTS HIGH SCHOOL | AS80: 10 | AT80: 198 | AU80: 50 | AV80: 398
A81: 1641 | B81: 1641 EMERSON ELEMENTARY SCHOOL | C81: 3 | D81: 37 | E81: 53 | F81: 70 | G81: 1681 | H81: 1681 LILLIE C. EVANS K-8 CENTER | I81: 4 | J81: 15 | K81: 31 | L81: 48 | M81: 1681 | N81: 1681 LILLIE C. EVANS K-8 CENTER | O81: 5 | P81: 8 | Q81: 22 | R81: 36 | S81: 6004 | T81: 6004 SOMERSET ACADEMY CHARTER MIDDLE SCHOOL | U81: 6 | V81: 50 | W81: 71 | X81: 70 | Y81: 6015 | Z81: 6015 SLAM CHARTER MIDDLE SCHOOL | AA81: 7 | AB81: 101 | AC81: 54 | AD81: 186 | AE81: 6022 | AF81: 6022 PINECREST ACADEMY CHARTER MIDDLE SCHOOL | AG81: 8 | AH81: 147 | AI81: 74 | AJ81: 199 | AK81: 7511 | AL81: 7511 MIAMI SPRINGS SENIOR HIGH SCHL | AM81: 9 | AN81: 200 | AO81: 48 | AP81: 415 | AQ81: 7631 | AR81: 7631 MIAMI MACARTHUR SOUTH | AS81: 10 | AT81: 1 | AU81: 6 | AV81: 17
A82: 1681 | B82: 1681 LILLIE C. EVANS K-8 CENTER | C82: 3 | D82: 6 | E82: 13 | F82: 46 | G82: 1691 | H82: 1691 CHRISTINA M. EVE ELEM. SCHOOL | I82: 4 | J82: 98 | K82: 69 | L82: 143 | M82: 1691 | N82: 1691 CHRISTINA M. EVE ELEM. SCHOOL | O82: 5 | P82: 71 | Q82: 72 | R82: 99 | S82: 6006 | T82: 6006 ARCHIMEDEAN MIDDLE CONSERVATORY | U82: 6 | V82: 110 | W82: 91 | X82: 121 | Y82: 6017 | Z82: 6017 INTERNATIONAL STUDIES VIRTUAL | AA82: 7 | AC82: NA | AD82: 1 | AE82: 6023 | AF82: 6023 ANDOVER MIDDLE SCHOOL | AG82: 8 | AH82: 118 | AI82: 43 | AJ82: 272 | AK82: 7531 | AL82: 7531 MIAMI SUNSET SENIOR HIGH SCHL | AM82: 9 | AN82: 122 | AO82: 34 | AP82: 363 | AQ82: 7701 | AR82: 7701 SOUTH DADE SENIOR HIGH SCHOOL | AS82: 10 | AT82: 253 | AU82: 33 | AV82: 775
A83: 1691 | B83: 1691 CHRISTINA M. EVE ELEM. SCHOOL | C83: 3 | D83: 97 | E83: 75 | F83: 129 | G83: 1721 | H83: 1721 EVERGLADES K-8 CENTER | I83: 4 | J83: 71 | K83: 66 | L83: 108 | M83: 1721 | N83: 1721 EVERGLADES K-8 CENTER | O83: 5 | P83: 52 | Q83: 50 | R83: 104 | S83: 6009 | T83: 6009 MATER EAST ACADEMY MIDDLE SCHOOL | U83: 6 | V83: 35 | W83: 36 | X83: 96 | Y83: 6020 | Z83: 6020 ASPIRA RAUL ARNALDO MARTINEZ CHARTER SCHOOL | AA83: 7 | AB83: 52 | AC83: 25 | AD83: 212 | AE83: 6028 | AF83: 6028 RENAISSANCE MIDDLE CHARTER SCHOOL | AG83: 8 | AH83: 99 | AI83: 73 | AJ83: 135 | AK83: 7541 | AL83: 7541 NORTH MIAMI BEACH SENIOR HIGH | AM83: 9 | AN83: 129 | AO83: 35 | AP83: 370 | AQ83: 7721 | AR83: 7721 SOUTH MIAMI SENIOR HIGH SCHOOL | AS83: 10 | AT83: 211 | AU83: 41 | AV83: 515
A84: 1721 | B84: 1721 EVERGLADES K-8 CENTER | C84: 3 | D84: 95 | E84: 71 | F84: 133 | G84: 1761 | H84: 1761 DAVID FAIRCHILD ELEMENTARY SCHOOL | I84: 4 | J84: 80 | K84: 76 | L84: 105 | M84: 1761 | N84: 1761 DAVID FAIRCHILD ELEMENTARY SCHOOL | O84: 5 | P84: 68 | Q84: 72 | R84: 95 | S84: 6010 | T84: 6010 FLORIDA INTERNATIONAL ACADEMY | U84: 6 | V84: 16 | W84: 14 | X84: 111 | Y84: 6021 | Z84: 6021 ARVIDA MIDDLE SCHOOL | AA84: 7 | AB84: 357 | AC84: 70 | AD84: 511 | AE84: 6030 | AF84: 6030 DORAL ACADEMY CHARTER MIDDLE SCHOOL | AG84: 8 | AH84: 394 | AI84: 79 | AJ84: 496 | AK84: 7571 | AL84: 7571 INTERNATIONAL STUDIES PREPARATORY ACADEMY | AM84: 9 | AN84: 79 | AO84: 87 | AP84: 91 | AQ84: 7731 | AR84: 7731 MIAMI SOUTHRIDGE SENIOR HIGH | AS84: 10 | AT84: 115 | AU84: 23 | AV84: 496
A85: 1761 | B85: 1761 DAVID FAIRCHILD ELEMENTARY SCHOOL | C85: 3 | D85: 81 | E85: 81 | F85: 100 | G85: 1801 | H85: 1801 FAIRLAWN ELEMENTARY SCHOOL | I85: 4 | J85: 65 | K85: 65 | L85: 100 | M85: 1801 | N85: 1801 FAIRLAWN ELEMENTARY SCHOOL | O85: 5 | P85: 58 | Q85: 58 | R85: 100 | S85: 6011 | T85: 6011 ALLAPATTAH MIDDLE SCHOOL | U85: 6 | V85: 20 | W85: 14 | X85: 140 | Y85: 6022 | Z85: 6022 PINECREST ACADEMY CHARTER MIDDLE SCHOOL | AA85: 7 | AB85: 117 | AC85: 65 | AD85: 179 | AE85: 6031 | AF85: 6031 BROWNSVILLE MIDDLE SCHOOL | AG85: 8 | AH85: 49 | AI85: 21 | AJ85: 229 | AK85: 7581 | AL85: 7581 I PREPARATORY ACADEMY | AM85: 9 | AN85: 48 | AO85: 89 | AP85: 54 | AQ85: 7741 | AR85: 7741 SOUTHWEST MIAMI SENIOR HIGH | AS85: 10 | AT85: 348 | AU85: 46 | AV85: 764
A86: 1801 | B86: 1801 FAIRLAWN ELEMENTARY SCHOOL | C86: 3 | D86: 74 | E86: 62 | F86: 120 | G86: 1811 | H86: 1811 DANTE B. FASCELL ELEM. SCHOOL | I86: 4 | J86: 52 | K86: 67 | L86: 78 | M86: 1811 | N86: 1811 DANTE B. FASCELL ELEM. SCHOOL | O86: 5 | P86: 51 | Q86: 59 | R86: 86 | S86: 6012 | T86: 6012 MATER ACADEMY CHARTER MIDDLE | U86: 6 | V86: 262 | W86: 60 | X86: 435 | Y86: 6023 | Z86: 6023 ANDOVER MIDDLE SCHOOL | AA86: 7 | AB86: 85 | AC86: 34 | AD86: 247 | AE86: 6033 | AF86: 6033 MATER ACADEMY LAKES MIDDLE SCHOOL | AG86: 8 | AH86: 183 | AI86: 67 | AJ86: 273 | AK86: 7591 | AL86: 7591 NORTH MIAMI SENIOR HIGH SCHOOL | AM86: 9 | AN86: 186 | AO86: 33 | AP86: 559 | AQ86: 7751 | AR86: 7751 BARBARA GOLEMAN SENIOR HIGH | AS86: 10 | AT86: 180 | AU86: 50 | AV86: 360
A87: 1811 | B87: 1811 DANTE B. FASCELL ELEM. SCHOOL | C87: 3 | D87: 51 | E87: 59 | F87: 86 | G87: 1841 | H87: 1841 FLAGAMI ELEMENTARY SCHOOL | I87: 4 | J87: 29 | K87: 45 | L87: 64 | M87: 1841 | N87: 1841 FLAGAMI ELEMENTARY SCHOOL | O87: 5 | P87: 40 | Q87: 60 | R87: 67 | S87: 6013 | T87: 6013 SOMERSET ACADEMY CHARTER MIDDLE S HOMESTEAD | U87: 6 | V87: 36 | W87: 56 | X87: 64 | Y87: 6028 | Z87: 6028 RENAISSANCE MIDDLE CHARTER SCHOOL | AA87: 7 | AB87: 104 | AC87: 70 | AD87: 148 | AE87: 6040 | AF87: 6040 DOCTORS CHARTER SCHOOL OF MIAMI SHORES | AG87: 8 | AH87: 63 | AI87: 72 | AJ87: 87 | AK87: 7601 | AL87: 7601 WILLIAM H. TURNER TECHNICAL ARTS HIGH SCHOOL | AM87: 9 | AN87: 233 | AO87: 61 | AP87: 385 | AQ87: 7781 | AR87: 7781 FELIX VARELA SENIOR HIGH SCHL | AS87: 10 | AT87: 408 | AU87: 58 | AV87: 708
A88: 1841 | B88: 1841 FLAGAMI ELEMENTARY SCHOOL | C88: 3 | D88: 33 | E88: 44 | F88: 75 | G88: 1881 | H88: 1881 HENRY M. FLAGLER ELEM. SCHOOL | I88: 4 | J88: 50 | K88: 41 | L88: 122 | M88: 1881 | N88: 1881 HENRY M. FLAGLER ELEM. SCHOOL | O88: 5 | P88: 49 | Q88: 42 | R88: 118 | S88: 6014 | T88: 6014 IMATER ACADEMY MIDDLE SCHOOL | U88: 6 | V88: 170 | W88: 57 | X88: 300 | Y88: 6030 | Z88: 6030 DORAL ACADEMY CHARTER MIDDLE SCHOOL | AA88: 7 | AB88: 397 | AC88: 82 | AD88: 484 | AE88: 6041 | AF88: 6041 PAUL W. BELL MIDDLE SCHOOL | AG88: 8 | AH88: 78 | AI88: 51 | AJ88: 152 | AK88: 7631 | AL88: 7631 MIAMI MACARTHUR SOUTH | AM88: 9 | AN88: 1 | AO88: 7 | AP88: 14 | AQ88: 7791 | AR88: 7791 BOOKER T. WASHINGTON SR HIGH | AS88: 10 | AT88: 36 | AU88: 18 | AV88: 200
A89: 1881 | B89: 1881 HENRY M. FLAGLER ELEM. SCHOOL | C89: 3 | D89: 51 | E89: 44 | F89: 115 | G89: 1921 | H89: 1921 FLAMINGO ELEMENTARY SCHOOL | I89: 4 | J89: 55 | K89: 53 | L89: 104 | M89: 1921 | N89: 1921 FLAMINGO ELEMENTARY SCHOOL | O89: 5 | P89: 69 | Q89: 52 | R89: 133 | S89: 6015 | T89: 6015 SLAM CHARTER MIDDLE SCHOOL | U89: 6 | V89: 104 | W89: 55 | X89: 190 | Y89: 6031 | Z89: 6031 BROWNSVILLE MIDDLE SCHOOL | AA89: 7 | AB89: 21 | AC89: 11 | AD89: 197 | AE89: 6042 | AF89: 6042 MATER GARDENS ACADEMY MIDDLE SCHOOL | AG89: 8 | AH89: 49 | AI89: 69 | AJ89: 71 | AK89: 7701 | AL89: 7701 SOUTH DADE SENIOR HIGH SCHOOL | AM89: 9 | AN89: 241 | AO89: 34 | AP89: 710 | AQ89: 7832 | AR89: 7832 MIAMI BRIDGE NORTH | AS89: 10 | AU89: NA | AV89: 2
A90: 1921 | B90: 1921 FLAMINGO ELEMENTARY SCHOOL | C90: 3 | D90: 49 | E90: 41 | F90: 120 | G90: 2001 | H90: 2001 FLORIDA CITY ELEMENTARY SCHOOL | I90: 4 | J90: 45 | K90: 42 | L90: 108 | M90: 2001 | N90: 2001 FLORIDA CITY ELEMENTARY SCHOOL | O90: 5 | P90: 23 | Q90: 28 | R90: 83 | S90: 6016 | T90: 6016 SOMERSET VIRTUAL ACADEMY | U90: 6 | W90: NA | X90: 1 | Y90: 6033 | Z90: 6033 MATER ACADEMY LAKES MIDDLE SCHOOL | AA90: 7 | AB90: 204 | AC90: 68 | AD90: 302 | AE90: 6045 | AF90: 6045 INTERNATIONAL STUDIES CHARTER MIDDLE SCHOOL | AG90: 8 | AH90: 82 | AI90: 84 | AJ90: 98 | AK90: 7721 | AL90: 7721 SOUTH MIAMI SENIOR HIGH SCHOOL | AM90: 9 | AN90: 249 | AO90: 46 | AP90: 536 | AQ90: 7835 | AR90: 7835 RICHMOND PERRINE OPTIMIST | AS90: 10 | AU90: NA | AV90: 9
A91: 2001 | B91: 2001 FLORIDA CITY ELEMENTARY SCHOOL | C91: 3 | D91: 44 | E91: 34 | F91: 131 | G91: 2003 | H91: 2003 BRIDGEPREP ACADEMY SOUTH | I91: 4 | J91: 56 | K91: 77 | L91: 73 | M91: 2003 | N91: 2003 BRIDGEPREP ACADEMY SOUTH | O91: 5 | P91: 39 | Q91: 85 | R91: 46 | S91: 6017 | T91: 6017 INTERNATIONAL STUDIES VIRTUAL | U91: 6 | W91: NA | X91: 1 | Y91: 6040 | Z91: 6040 DOCTORS CHARTER SCHOOL OF MIAMI SHORES | AA91: 7 | AB91: 67 | AC91: 76 | AD91: 88 | AE91: 6047 | AF91: 6047 MATER ACAD MIDDLE SCHOOL INTERNAT STUDIES | AG91: 8 | AH91: 30 | AI91: 77 | AJ91: 39 | AK91: 7731 | AL91: 7731 MIAMI SOUTHRIDGE SENIOR HIGH | AM91: 9 | AN91: 117 | AO91: 24 | AP91: 483 | AQ91: 7840 | AR91: 7840 TURNER/GUILFORD/KNIGHT | AS91: 10 | AU91: NA | AV91: 7
A92: 2003 | B92: 2003 BRIDGEPREP ACADEMY SOUTH | C92: 3 | D92: 29 | E92: 66 | F92: 44 | G92: 2006 | H92: 2006 RICHARD ALLEN LEADERSHIP ACADEMY | I92: 4 | J92: 0 | K92: NA | L92: 10 | M92: 2006 | N92: 2006 RICHARD ALLEN LEADERSHIP ACADEMY | O92: 5 | Q92: NA | R92: 9 | S92: 6018 | T92: 6018 THE SEED SCHOOL OF MIAMI | U92: 6 | V92: 16 | W92: 26 | X92: 61 | Y92: 6041 | Z92: 6041 PAUL W. BELL MIDDLE SCHOOL | AA92: 7 | AB92: 52 | AC92: 35 | AD92: 147 | AE92: 6048 | AF92: 6048 MIAMI COMMUNITY CHARTER MIDDLE SCHOOL | AG92: 8 | AH92: 31 | AI92: 30 | AJ92: 103 | AK92: 7741 | AL92: 7741 SOUTHWEST MIAMI SENIOR HIGH | AM92: 9 | AN92: 326 | AO92: 49 | AP92: 668 | AQ92: 7860 | AR92: 7860 SECONDARY STUDENT SUCCESS CENTER 801 | AS92: 10 | AU92: NA | AV92: 3
A93: 2006 | B93: 2006 RICHARD ALLEN LEADERSHIP ACADEMY | C93: 3 | E93: NA | F93: 7 | G93: 2007 | H93: 2007 SOMERSET ACADEMY ELEM SCHOOL (S MIAMI CAMPUS) | I93: 4 | J93: 89 | K93: 87 | L93: 102 | M93: 2007 | N93: 2007 SOMERSET ACADEMY ELEM SCHOOL (S MIAMI CAMPUS) | O93: 5 | P93: 81 | Q93: 86 | R93: 94 | S93: 6020 | T93: 6020 ASPIRA RAUL ARNALDO MARTINEZ CHARTER SCHOOL | U93: 6 | V93: 38 | W93: 21 | X93: 177 | Y93: 6042 | Z93: 6042 MATER GARDENS ACADEMY MIDDLE SCHOOL | AA93: 7 | AB93: 45 | AC93: 60 | AD93: 75 | AE93: 6051 | AF93: 6051 CAROL CITY MIDDLE SCHOOL | AG93: 8 | AH93: 26 | AI93: 18 | AJ93: 146 | AK93: 7751 | AL93: 7751 BARBARA GOLEMAN SENIOR HIGH | AM93: 9 | AN93: 191 | AO93: 50 | AP93: 379 | AQ93: 7861 | AR93: 7861 SECONDARY STUDENT SUCCESS CENTER 802 | AS93: 10 | AU93: NA | AV93: 3
A94: 2007 | B94: 2007 SOMERSET ACADEMY ELEM SCHOOL (S MIAMI CAMPUS) | C94: 3 | D94: 67 | E94: 89 | F94: 75 | G94: 2012 | H94: 2012 SOMERSET ARTS ACADEMY | I94: 4 | J94: 16 | K94: 50 | L94: 32 | M94: 2012 | N94: 2012 SOMERSET ARTS ACADEMY | O94: 5 | P94: 34 | Q94: 63 | R94: 54 | S94: 6021 | T94: 6021 ARVIDA MIDDLE SCHOOL | U94: 6 | V94: 268 | W94: 65 | X94: 410 | Y94: 6045 | Z94: 6045 INTERNATIONAL STUDIES CHARTER MIDDLE SCHOOL | AA94: 7 | AB94: 85 | AC94: 82 | AD94: 104 | AE94: 6052 | AF94: 6052 ZELDA GLAZER MIDDLE SCHOOL | AG94: 8 | AH94: 227 | AI94: 60 | AJ94: 378 | AK94: 7781 | AL94: 7781 FELIX VARELA SENIOR HIGH SCHL | AM94: 9 | AN94: 381 | AO94: 57 | AP94: 674 | AQ94: 7862 | AR94: 7862 SECONDARY STUDENT SUCCESS CENTER 803 | AS94: 10 | AU94: NA | AV94: 2
A95: 2012 | B95: 2012 SOMERSET ARTS ACADEMY | C95: 3 | D95: 43 | E95: 62 | F95: 69 | G95: 2013 | H95: 2013 BRIDGEPREP ACADEMY OF GREATER MIAMI | I95: 4 | J95: 17 | K95: 63 | L95: 27 | M95: 2013 | N95: 2013 BRIDGEPREP ACADEMY OF GREATER MIAMI | O95: 5 | P95: 10 | Q95: 48 | R95: 21 | S95: 6022 | T95: 6022 PINECREST ACADEMY CHARTER MIDDLE SCHOOL | U95: 6 | V95: 94 | W95: 62 | X95: 151 | Y95: 6047 | Z95: 6047 MATER ACAD MIDDLE SCHOOL INTERNAT STUDIES | AA95: 7 | AB95: 29 | AC95: 55 | AD95: 53 | AE95: 6053 | AF95: 6053 SOMERSET ACADEMY CHARTER MIDDLE SOUTH MIAMI | AG95: 8 | AH95: 25 | AI95: 76 | AJ95: 33 | AK95: 7791 | AL95: 7791 BOOKER T. WASHINGTON SR HIGH | AM95: 9 | AN95: 44 | AO95: 17 | AP95: 265 | AQ95: 7901 | AR95: 7901 NEW WORLD SCHOOL OF THE ARTS | AS95: 10 | AT95: 117 | AU95: 91 | AV95: 129
A96: 2013 | B96: 2013 BRIDGEPREP ACADEMY OF GREATER MIAMI | C96: 3 | D96: 58 | E96: 81 | F96: 72 | G96: 2021 | H96: 2021 GLORIA FLOYD ELEMENTARY SCHOOL | I96: 4 | J96: 44 | K96: 59 | L96: 75 | M96: 2021 | N96: 2021 GLORIA FLOYD ELEMENTARY SCHOOL | O96: 5 | P96: 37 | Q96: 43 | R96: 87 | S96: 6023 | T96: 6023 ANDOVER MIDDLE SCHOOL | U96: 6 | V96: 69 | W96: 29 | X96: 238 | Y96: 6048 | Z96: 6048 MIAMI COMMUNITY CHARTER MIDDLE SCHOOL | AA96: 7 | AB96: 19 | AC96: 22 | AD96: 85 | AE96: 6060 | AF96: 6060 ASPIRA LEADERSHIP/COLLEGE PREPARATORY ACADEMY | AG96: 8 | AH96: 60 | AI96: 50 | AJ96: 119 | AK96: 7812 | AL96: 7812 MIAMI BRIDGE SOUTH | AM96: 9 | AO96: NA | AP96: 3 | AQ96: 8019 | AR96: 8019 ACADEMY FOR COMMUNITY ED (ACE) | AS96: 10 | AT96: 5 | AU96: 15 | AV96: 33
A97: 2021 | B97: 2021 GLORIA FLOYD ELEMENTARY SCHOOL | C97: 3 | D97: 68 | E97: 75 | F97: 91 | G97: 2041 | H97: 2041 BENJAMIN FRANKLIN K-8 CENTER | I97: 4 | J97: 13 | K97: 21 | L97: 63 | M97: 2041 | N97: 2041 BENJAMIN FRANKLIN K-8 CENTER | O97: 5 | P97: 14 | Q97: 22 | R97: 63 | S97: 6028 | T97: 6028 RENAISSANCE MIDDLE CHARTER SCHOOL | U97: 6 | V97: 102 | W97: 67 | X97: 153 | Y97: 6051 | Z97: 6051 CAROL CITY MIDDLE SCHOOL | AA97: 7 | AB97: 19 | AC97: 14 | AD97: 138 | AE97: 6070 | AF97: 6070 ASPIRA ARTS DECO CHARTER | AG97: 8 | AH97: 41 | AI97: 24 | AJ97: 169 | AK97: 7823 | AL97: 7823 HERE'S HELP | AM97: 9 | AO97: NA | AP97: 4 | AQ97: 8101 | AR97: 8101 JAN MANN OPPORTUNITY SCHOOL | AS97: 10 | AT97: 2 | AU97: 11 | AV97: 18
A98: 2041 | B98: 2041 BENJAMIN FRANKLIN K-8 CENTER | C98: 3 | D98: 31 | E98: 37 | F98: 83 | G98: 2060 | H98: 2060 THEODORE R. AND THELMA A. GIBSON CHARTER | I98: 4 | J98: 3 | K98: 11 | L98: 28 | M98: 2060 | N98: 2060 THEODORE R. AND THELMA A. GIBSON CHARTER | O98: 5 | P98: 2 | Q98: 9 | R98: 22 | S98: 6030 | T98: 6030 DORAL ACADEMY CHARTER MIDDLE SCHOOL | U98: 6 | V98: 208 | W98: 73 | X98: 284 | Y98: 6052 | Z98: 6052 ZELDA GLAZER MIDDLE SCHOOL | AA98: 7 | AB98: 226 | AC98: 55 | AD98: 409 | AE98: 6071 | AF98: 6071 GEORGE WASHINGTON CARVER MIDDLE SCHOOL | AG98: 8 | AH98: 310 | AI98: 97 | AJ98: 318 | AK98: 7832 | AL98: 7832 MIAMI BRIDGE NORTH | AM98: 9 | AO98: NA | AP98: 1 | AQ98: 8121 | AR98: 8121 COPE CENTER NORTH | AS98: 10 | AT98: 2 | AU98: 11 | AV98: 19
A99: 2060 | B99: 2060 THEODORE R. AND THELMA A. GIBSON CHARTER | C99: 3 | D99: 7 | E99: 18 | F99: 40 | G99: 2081 | H99: 2081 FULFORD ELEMENTARY SCHOOL | I99: 4 | J99: 24 | K99: 27 | L99: 90 | M99: 2081 | N99: 2081 FULFORD ELEMENTARY SCHOOL | O99: 5 | P99: 18 | Q99: 24 | R99: 75 | S99: =LEFT(T99,4) -> 6031 | T99: 6031 BROWNSVILLE MIDDLE SCHOOL | U99: 6 | V99: 23 | W99: 12 | X99: 190 | Y99: =LEFT(Z99,4) -> 6053 | Z99: 6053 SOMERSET ACADEMY CHARTER MIDDLE SOUTH MIAMI | AA99: 7 | AB99: 30 | AC99: 67 | AD99: 45 | AE99: =LEFT(AF99,4) -> 6082 | AF99: 6082 ACADEMIR CHARTER SCHOOL MIDDLE | AG99: 8 | AH99: 9 | AI99: 35 | AJ99: 26 | AK99: =LEFT(AL99,4) -> 7835 | AL99: 7835 RICHMOND PERRINE OPTIMIST | AM99: 9 | AO99: NA | AP99: 9 | AQ99: =LEFT(AR99,4) -> 8131 | AR99: 8131 DOROTHY M. WALLACE COPE CENTER | AS99: 10 | AT99: 1 | AU99: 9 | AV99: 11
A100: 2081 | B100: 2081 FULFORD ELEMENTARY SCHOOL | C100: 3 | D100: 47 | E100: 60 | F100: 78 | G100: 2111 | H100: 2111 HIALEAH GARDENS ELEM. SCHOOL | I100: 4 | J100: 85 | K100: 61 | L100: 140 | M100: 2111 | N100: 2111 HIALEAH GARDENS ELEM. SCHOOL | O100: 5 | P100: 80 | Q100: 57 | R100: 141 | S100: 6033 | T100: 6033 MATER ACADEMY LAKES MIDDLE SCHOOL | U100: 6 | V100: 182 | W100: 68 | X100: 268 | Y100: 6060 | Z100: 6060 ASPIRA LEADERSHIP/COLLEGE PREPARATORY ACADEMY | AA100: 7 | AB100: 25 | AC100: 30 | AD100: 83 | AE100: 6091 | AF100: 6091 CITRUS GROVE MIDDLE SCHOOL | AG100: 8 | AH100: 65 | AI100: 24 | AJ100: 268 | AK100: 7840 | AL100: 7840 TURNER/GUILFORD/KNIGHT | AM100: 9 | AO100: NA | AP100: 9 | AQ100: 8151 | AR100: 8151 ROBERT RENICK EDUCATION CENTER | AS100: 10 | AU100: NA | AV100: 3
A101: 2111 | B101: 2111 HIALEAH GARDENS ELEM. SCHOOL | C101: 3 | D101: 95 | E101: 75 | F101: 127 | G101: 2151 | H101: 2151 JACK DAVID GORDON ELEMENTARY SCHOOL | I101: 4 | J101: 126 | K101: 71 | L101: 178 | M101: 2151 | N101: 2151 JACK DAVID GORDON ELEMENTARY SCHOOL | O101: 5 | P101: 123 | Q101: 64 | R101: 192 | S101: 6040 | T101: 6040 DOCTORS CHARTER SCHOOL OF MIAMI SHORES | U101: 6 | V101: 68 | W101: 62 | X101: 109 | Y101: 6070 | Z101: 6070 ASPIRA ARTS DECO CHARTER | AA101: 7 | AB101: 23 | AC101: 16 | AD101: 143 | AE101: 6111 | AF101: 6111 CUTLER BAY ACADEMY OF ADVANCED STUDIES | AG101: 8 | AH101: 117 | AI101: 29 | AJ101: 408 | AK101: 7860 | AL101: 7860 SECONDARY STUDENT SUCCESS CENTER 801 | AM101: 9 | AO101: NA | AP101: 8 | AQ101: 8181 | AR101: 8181 RUTH OWENS KRUSE EDUCATION CENTER | AS101: 10 | AU101: NA | AV101: 9
A102: 2151 | B102: 2151 JACK DAVID GORDON ELEMENTARY SCHOOL | C102: 3 | D102: 128 | E102: 74 | F102: 174 | G102: 2161 | H102: 2161 GOLDEN GLADES ELEMENTARY SCHL | I102: 4 | J102: 4 | K102: 15 | L102: 26 | M102: 2161 | N102: 2161 GOLDEN GLADES ELEMENTARY SCHL | O102: 5 | P102: 9 | Q102: 35 | R102: 26 | S102: 6041 | T102: 6041 PAUL W. BELL MIDDLE SCHOOL | U102: 6 | V102: 40 | W102: 31 | X102: 131 | Y102: 6071 | Z102: 6071 GEORGE WASHINGTON CARVER MIDDLE SCHOOL | AA102: 7 | AB102: 282 | AC102: 93 | AD102: 304 | AE102: 6121 | AF102: 6121 RUBEN DARIO MIDDLE SCHOOL | AG102: 8 | AH102: 109 | AI102: 43 | AJ102: 251 | AK102: 7861 | AL102: 7861 SECONDARY STUDENT SUCCESS CENTER 802 | AM102: 9 | AO102: NA | AP102: 1 | AQ102: 9732 | AR102: 9732 BRUCIE BALL EDUCATIONAL CENTER | AS102: 10 | AT102: 7 | AU102: 29 | AV102: 24
A103: 2161 | B103: 2161 GOLDEN GLADES ELEMENTARY SCHL | C103: 3 | D103: 8 | E103: 19 | F103: 43 | G103: 2181 | H103: 2181 JOELLA GOOD ELEMENTARY SCHOOL | I103: 4 | J103: 92 | K103: 63 | L103: 145 | M103: 2181 | N103: 2181 JOELLA GOOD ELEMENTARY SCHOOL | O103: 5 | P103: 79 | Q103: 48 | R103: 163 | S103: 6042 | T103: 6042 MATER GARDENS ACADEMY MIDDLE SCHOOL | U103: 6 | V103: 49 | W103: 68 | X103: 72 | Y103: 6082 | Z103: 6082 ACADEMIR CHARTER SCHOOL MIDDLE | AA103: 7 | AB103: 47 | AC103: 53 | AD103: 88 | AE103: 6161 | AF103: 6161 LAWTON CHILES MIDDLE SCHOOL | AG103: 8 | AH103: 87 | AI103: 55 | AJ103: 158 | AK103: 7862 | AL103: 7862 SECONDARY STUDENT SUCCESS CENTER 803 | AM103: 9 | AO103: NA | AP103: 9 | AQ103: 9999 | AR103: 9999 MIAMI-DADE COUNTY | AS103: 10 | AT103: 12630 | AU103: 49 | AV103: 25800
A104: 2181 | B104: 2181 JOELLA GOOD ELEMENTARY SCHOOL | C104: 3 | D104: 71 | E104: 43 | F104: 165 | G104: 2191 | H104: 2191 SPANISH LAKE ELEMENTARY SCHOOL | I104: 4 | J104: 155 | K104: 56 | L104: 277 | M104: 2191 | N104: 2191 SPANISH LAKE ELEMENTARY SCHOOL | O104: 5 | P104: 163 | Q104: 51 | R104: 321 | S104: 6043 | T104: 6043 SOMERSET ACAD CHARTER MIDDLE (COUNTRY PALMS) | U104: 6 | V104: 26 | W104: 74 | X104: 35 | Y104: 6091 | Z104: 6091 CITRUS GROVE MIDDLE SCHOOL | AA104: 7 | AB104: 68 | AC104: 24 | AD104: 279 | AE104: 6171 | AF104: 6171 HENRY H. FILER MIDDLE SCHOOL | AG104: 8 | AH104: 132 | AI104: 40 | AJ104: 333 | AK104: 7863 | AL104: 7863 SECONDARY STUDENT SUCCESS CENTER-804 | AM104: 9 | AO104: NA | AP104: 1
A105: 2191 | B105: 2191 SPANISH LAKE ELEMENTARY SCHOOL | C105: 3 | D105: 168 | E105: 57 | F105: 293 | G105: 2241 | H105: 2241 GRATIGNY ELEMENTARY SCHOOL | I105: 4 | J105: 30 | K105: 38 | L105: 79 | M105: 2241 | N105: 2241 GRATIGNY ELEMENTARY SCHOOL | O105: 5 | P105: 26 | Q105: 31 | R105: 83 | S105: 6045 | T105: 6045 INTERNATIONAL STUDIES CHARTER MIDDLE SCHOOL | U105: 6 | V105: 78 | W105: 81 | X105: 96 | Y105: 6111 | Z105: 6111 CUTLER BAY ACADEMY OF ADVANCED STUDIES | AA105: 7 | AB105: 56 | AC105: 18 | AD105: 307 | AE105: 6211 | AF105: 6211 GLADES MIDDLE SCHOOL | AG105: 8 | AH105: 277 | AI105: 65 | AJ105: 427 | AK105: 7865 | AL105: 7865 HIS HOUSE | AM105: 9 | AO105: NA | AP105: 1
A106: 2241 | B106: 2241 GRATIGNY ELEMENTARY SCHOOL | C106: 3 | D106: 20 | E106: 21 | F106: 94 | G106: 2261 | H106: 2261 GREENGLADE ELEMENTARY SCHOOL | I106: 4 | J106: 38 | K106: 58 | L106: 66 | M106: 2261 | N106: 2261 GREENGLADE ELEMENTARY SCHOOL | O106: 5 | P106: 55 | Q106: 63 | R106: 87 | S106: 6047 | T106: 6047 MATER ACAD MIDDLE SCHOOL INTERNAT STUDIES | U106: 6 | V106: 29 | W106: 62 | X106: 47 | Y106: 6121 | Z106: 6121 RUBEN DARIO MIDDLE SCHOOL | AA106: 7 | AB106: 79 | AC106: 36 | AD106: 219 | AE106: 6221 | AF106: 6221 HAMMOCKS MIDDLE SCHOOL | AG106: 8 | AH106: 231 | AI106: 58 | AJ106: 397 | AK106: 7901 | AL106: 7901 NEW WORLD SCHOOL OF THE ARTS | AM106: 9 | AN106: 116 | AO106: 93 | AP106: 125
A107: 2261 | B107: 2261 GREENGLADE ELEMENTARY SCHOOL | C107: 3 | D107: 45 | E107: 59 | F107: 76 | G107: 2281 | H107: 2281 GREYNOLDS PARK ELEMENTARY SCHL | I107: 4 | J107: 37 | K107: 38 | L107: 98 | M107: 2281 | N107: 2281 GREYNOLDS PARK ELEMENTARY SCHL | O107: 5 | P107: 56 | Q107: 51 | R107: 109 | S107: 6048 | T107: 6048 MIAMI COMMUNITY CHARTER MIDDLE SCHOOL | U107: 6 | V107: 27 | W107: 28 | X107: 96 | Y107: 6128 | Z107: 6128 SOMERSET ACADEMY BAY MIDDLE SCHOOL | AA107: 7 | AB107: 22 | AC107: 85 | AD107: 26 | AE107: 6231 | AF107: 6231 HIALEAH MIDDLE SCHOOL | AG107: 8 | AH107: 110 | AI107: 39 | AJ107: 279 | AK107: 8019 | AL107: 8019 ACADEMY FOR COMMUNITY ED (ACE) | AM107: 9 | AN107: 0 | AO107: 0 | AP107: 21
A108: 2281 | B108: 2281 GREYNOLDS PARK ELEMENTARY SCHL | C108: 3 | D108: 50 | E108: 42 | F108: 119 | G108: 2321 | H108: 2321 GULFSTREAM ELEMENTARY SCHOOL | I108: 4 | J108: 43 | K108: 61 | L108: 71 | M108: 2321 | N108: 2321 GULFSTREAM ELEMENTARY SCHOOL | O108: 5 | P108: 51 | Q108: 65 | R108: 78 | S108: 6051 | T108: 6051 CAROL CITY MIDDLE SCHOOL | U108: 6 | V108: 14 | W108: 12 | X108: 121 | Y108: 6161 | Z108: 6161 LAWTON CHILES MIDDLE SCHOOL | AA108: 7 | AB108: 128 | AC108: 54 | AD108: 235 | AE108: 6241 | AF108: 6241 HIGHLAND OAKS MIDDLE SCHOOL | AG108: 8 | AH108: 266 | AI108: 61 | AJ108: 437 | AK108: 8101 | AL108: 8101 JAN MANN OPPORTUNITY SCHOOL | AM108: 9 | AN108: 1 | AO108: 5 | AP108: 19
A109: 2321 | B109: 2321 GULFSTREAM ELEMENTARY SCHOOL | C109: 3 | D109: 49 | E109: 54 | F109: 90 | G109: 2331 | H109: 2331 CHARLES R HADLEY ELEM SCHOOL | I109: 4 | J109: 71 | K109: 51 | L109: 140 | M109: 2331 | N109: 2331 CHARLES R HADLEY ELEM SCHOOL | O109: 5 | P109: 72 | Q109: 50 | R109: 144 | S109: 6052 | T109: 6052 ZELDA GLAZER MIDDLE SCHOOL | U109: 6 | V109: 301 | W109: 59 | X109: 514 | Y109: 6171 | Z109: 6171 HENRY H. FILER MIDDLE SCHOOL | AA109: 7 | AB109: 93 | AC109: 31 | AD109: 298 | AE109: 6251 | AF109: 6251 HOMESTEAD MIDDLE SCHOOL | AG109: 8 | AH109: 73 | AI109: 26 | AJ109: 284 | AK109: 8121 | AL109: 8121 COPE CENTER NORTH | AM109: 9 | AN109: 2 | AO109: 17 | AP109: 12
A110: 2331 | B110: 2331 CHARLES R HADLEY ELEM SCHOOL | C110: 3 | D110: 111 | E110: 64 | F110: 174 | G110: 2341 | H110: 2341 JOE HALL ELEMENTARY SCHOOL | I110: 4 | J110: 71 | K110: 72 | L110: 99 | M110: 2341 | N110: 2341 JOE HALL ELEMENTARY SCHOOL | O110: 5 | P110: 57 | Q110: 56 | R110: 101 | S110: 6053 | T110: 6053 SOMERSET ACADEMY CHARTER MIDDLE SOUTH MIAMI | U110: 6 | V110: 64 | W110: 86 | X110: 74 | Y110: 6211 | Z110: 6211 GLADES MIDDLE SCHOOL | AA110: 7 | AB110: 223 | AC110: 60 | AD110: 372 | AE110: 6281 | AF110: 6281 THOMAS JEFFERSON MIDDLE SCHOOL | AG110: 8 | AH110: 40 | AI110: 33 | AJ110: 120 | AK110: 8131 | AL110: 8131 DOROTHY M. WALLACE COPE CENTER | AM110: 9 | AO110: NA | AP110: 5
A111: 2341 | B111: 2341 JOE HALL ELEMENTARY SCHOOL | C111: 3 | D111: 57 | E111: 65 | F111: 88 | G111: 2351 | H111: 2351 ENEIDA M. HARTNER ELEM. SCHOOL | I111: 4 | J111: 32 | K111: 46 | L111: 69 | M111: 2351 | N111: 2351 ENEIDA M. HARTNER ELEM. SCHOOL | O111: 5 | P111: 20 | Q111: 26 | R111: 76 | S111: 6060 | T111: 6060 ASPIRA LEADERSHIP/COLLEGE PREPARATORY ACADEMY | U111: 6 | V111: 19 | W111: 32 | X111: 59 | Y111: 6221 | Z111: 6221 HAMMOCKS MIDDLE SCHOOL | AA111: 7 | AB111: 140 | AC111: 44 | AD111: 319 | AE111: 6301 | AF111: 6301 JOHN F. KENNEDY MIDDLE SCHOOL | AG111: 8 | AH111: 189 | AI111: 50 | AJ111: 376 | AK111: 8151 | AL111: 8151 ROBERT RENICK EDUCATION CENTER | AM111: 9 | AO111: NA | AP111: 5
A112: 2351 | B112: 2351 ENEIDA M. HARTNER ELEM. SCHOOL | C112: 3 | D112: 46 | E112: 53 | F112: 87 | G112: 2361 | H112: 2361 HIALEAH ELEMENTARY SCHOOL | I112: 4 | J112: 57 | K112: 52 | L112: 110 | M112: 2361 | N112: 2361 HIALEAH ELEMENTARY SCHOOL | O112: 5 | P112: 53 | Q112: 50 | R112: 107 | S112: 6070 | T112: 6070 ASPIRA ARTS DECO CHARTER | U112: 6 | V112: 23 | W112: 15 | X112: 152 | Y112: 6231 | Z112: 6231 HIALEAH MIDDLE SCHOOL | AA112: 7 | AB112: 65 | AC112: 27 | AD112: 238 | AE112: 6331 | AF112: 6331 KINLOCH PARK MIDDLE SCHOOL | AG112: 8 | AH112: 170 | AI112: 39 | AJ112: 440 | AK112: 8181 | AL112: 8181 RUTH OWENS KRUSE EDUCATION CENTER | AM112: 9 | AN112: 4 | AO112: 27 | AP112: 15
A113: 2361 | B113: 2361 HIALEAH ELEMENTARY SCHOOL | C113: 3 | D113: 63 | E113: 45 | F113: 140 | G113: 2371 | H113: 2371 WEST HIALEAH GARDENS ELEMENTARY SCHOOL | I113: 4 | J113: 97 | K113: 42 | L113: 231 | M113: 2371 | N113: 2371 WEST HIALEAH GARDENS ELEMENTARY SCHOOL | O113: 5 | P113: 105 | Q113: 48 | R113: 217 | S113: 6071 | T113: 6071 GEORGE WASHINGTON CARVER MIDDLE SCHOOL | U113: 6 | V113: 322 | W113: 93 | X113: 347 | Y113: 6241 | Z113: 6241 HIGHLAND OAKS MIDDLE SCHOOL | AA113: 7 | AB113: 163 | AC113: 49 | AD113: 332 | AE113: 6351 | AF113: 6351 LAKE STEVENS MIDDLE SCHOOL | AG113: 8 | AH113: 96 | AI113: 44 | AJ113: 217 | AK113: 9732 | AL113: 9732 BRUCIE BALL EDUCATIONAL CENTER | AM113: 9 | AN113: 9 | AO113: 56 | AP113: 16
A114: 2371 | B114: 2371 WEST HIALEAH GARDENS ELEMENTARY SCHOOL | C114: 3 | D114: 84 | E114: 44 | F114: 189 | G114: 2401 | H114: 2401 HIBISCUS ELEMENTARY SCHOOL | I114: 4 | J114: 30 | K114: 43 | L114: 70 | M114: 2401 | N114: 2401 HIBISCUS ELEMENTARY SCHOOL | O114: 5 | P114: 34 | Q114: 55 | R114: 62 | S114: 6082 | T114: 6082 ACADEMIR CHARTER SCHOOL MIDDLE | U114: 6 | V114: 48 | W114: 49 | X114: 97 | Y114: 6251 | Z114: 6251 HOMESTEAD MIDDLE SCHOOL | AA114: 7 | AB114: 30 | AC114: 14 | AD114: 219 | AE114: 6361 | AF114: 6361 JOSE DE DIEGO MIDDLE SCHOOL | AG114: 8 | AH114: 40 | AI114: 18 | AJ114: 223 | AK114: 9999 | AL114: 9999 MIAMI-DADE COUNTY | AM114: 9 | AN114: 13909 | AO114: 52 | AP114: 26710
A115: 2401 | B115: 2401 HIBISCUS ELEMENTARY SCHOOL | C115: 3 | D115: 27 | E115: 38 | F115: 72 | G115: 2441 | H115: 2441 VIRGINIA A BOONE-HIGHLAND OAKS | I115: 4 | J115: 83 | K115: 75 | L115: 110 | M115: 2441 | N115: 2441 VIRGINIA A BOONE-HIGHLAND OAKS | O115: 5 | P115: 85 | Q115: 64 | R115: 133 | S115: 6083 | T115: 6083 JUST ARTS AND MANAGEMENT CHARTER MIDDLE | U115: 6 | V115: 82 | W115: 82 | X115: 100 | Y115: 6281 | Z115: 6281 THOMAS JEFFERSON MIDDLE SCHOOL | AA115: 7 | AB115: 25 | AC115: 24 | AD115: 106 | AE115: 6391 | AF115: 6391 MADISON MIDDLE SCHOOL | AG115: 8 | AH115: 35 | AI115: 20 | AJ115: 173
A116: 2441 | B116: 2441 VIRGINIA A BOONE-HIGHLAND OAKS | C116: 3 | D116: 93 | E116: 70 | F116: 133 | G116: 2501 | H116: 2501 HOLMES ELEMENTARY SCHOOL | I116: 4 | J116: 13 | K116: 19 | L116: 68 | M116: 2501 | N116: 2501 HOLMES ELEMENTARY SCHOOL | O116: 5 | P116: 10 | Q116: 14 | R116: 70 | S116: 6091 | T116: 6091 CITRUS GROVE MIDDLE SCHOOL | U116: 6 | V116: 39 | W116: 16 | X116: 251 | Y116: 6301 | Z116: 6301 JOHN F. KENNEDY MIDDLE SCHOOL | AA116: 7 | AB116: 183 | AC116: 48 | AD116: 379 | AE116: 6411 | AF116: 6411 HORACE MANN MIDDLE SCHOOL | AG116: 8 | AH116: 82 | AI116: 35 | AJ116: 234
A117: 2501 | B117: 2501 HOLMES ELEMENTARY SCHOOL | C117: 3 | D117: 25 | E117: 18 | F117: 141 | G117: 2511 | H117: 2511 ZORA NEALE HURSTON ELEMENTARY SCHOOL | I117: 4 | J117: 64 | K117: 59 | L117: 108 | M117: 2511 | N117: 2511 ZORA NEALE HURSTON ELEMENTARY SCHOOL | O117: 5 | P117: 88 | Q117: 67 | R117: 131 | S117: 6111 | T117: 6111 CUTLER BAY ACADEMY OF ADVANCED STUDIES | U117: 6 | V117: 58 | W117: 19 | X117: 311 | Y117: 6331 | Z117: 6331 KINLOCH PARK MIDDLE SCHOOL | AA117: 7 | AB117: 127 | AC117: 30 | AD117: 425 | AE117: 6441 | AF117: 6441 HOWARD D. MCMILLAN MIDDLE SCHOOL | AG117: 8 | AH117: 190 | AI117: 63 | AJ117: 302
A118: 2511 | B118: 2511 ZORA NEALE HURSTON ELEMENTARY SCHOOL | C118: 3 | D118: 81 | E118: 74 | F118: 110 | G118: 2521 | H118: 2521 OLIVER HOOVER ELEMENTARY SCHL | I118: 4 | J118: 91 | K118: 72 | L118: 126 | M118: 2521 | N118: 2521 OLIVER HOOVER ELEMENTARY SCHL | O118: 5 | P118: 101 | Q118: 69 | R118: 147 | S118: 6121 | T118: 6121 RUBEN DARIO MIDDLE SCHOOL | U118: 6 | V118: 68 | W118: 35 | X118: 196 | Y118: 6351 | Z118: 6351 LAKE STEVENS MIDDLE SCHOOL | AA118: 7 | AB118: 49 | AC118: 23 | AD118: 209 | AE118: 6501 | AF118: 6501 MIAMI LAKES MIDDLE SCHOOL | AG118: 8 | AH118: 155 | AI118: 53 | AJ118: 292
A119: 2521 | B119: 2521 OLIVER HOOVER ELEMENTARY SCHL | C119: 3 | D119: 92 | E119: 72 | F119: 127 | G119: 2541 | H119: 2541 HOWARD DRIVE ELEMENTARY SCHOOL | I119: 4 | J119: 68 | K119: 65 | L119: 104 | M119: 2541 | N119: 2541 HOWARD DRIVE ELEMENTARY SCHOOL | O119: 5 | P119: 67 | Q119: 62 | R119: 108 | S119: 6128 | T119: 6128 SOMERSET ACADEMY BAY MIDDLE SCHOOL | U119: 6 | V119: 14 | W119: 88 | X119: 16 | Y119: 6361 | Z119: 6361 JOSE DE DIEGO MIDDLE SCHOOL | AA119: 7 | AB119: 21 | AC119: 11 | AD119: 183 | AE119: 6521 | AF119: 6521 MIAMI SPRINGS MIDDLE SCHOOL | AG119: 8 | AH119: 183 | AI119: 40 | AJ119: 459
A120: 2541 | B120: 2541 HOWARD DRIVE ELEMENTARY SCHOOL | C120: 3 | D120: 64 | E120: 58 | F120: 111 | G120: 2581 | H120: 2581 MADIE IVES COMMUNITY ELEMENTARY SCHOOL | I120: 4 | J120: 66 | K120: 59 | L120: 111 | M120: 2581 | N120: 2581 MADIE IVES COMMUNITY ELEMENTARY SCHOOL | O120: 5 | P120: 60 | Q120: 59 | R120: 101 | S120: 6161 | T120: 6161 LAWTON CHILES MIDDLE SCHOOL | U120: 6 | V120: 146 | W120: 53 | X120: 277 | Y120: 6391 | Z120: 6391 MADISON MIDDLE SCHOOL | AA120: 7 | AB120: 33 | AC120: 21 | AD120: 154 | AE120: 6541 | AF120: 6541 NAUTILUS MIDDLE SCHOOL | AG120: 8 | AH120: 193 | AI120: 55 | AJ120: 349
A121: 2581 | B121: 2581 MADIE IVES COMMUNITY ELEMENTARY SCHOOL | C121: 3 | D121: 60 | E121: 41 | F121: 145 | G121: 2641 | H121: 2641 KENDALE ELEMENTARY SCHOOL | I121: 4 | J121: 64 | K121: 74 | L121: 87 | M121: 2641 | N121: 2641 KENDALE ELEMENTARY SCHOOL | O121: 5 | P121: 67 | Q121: 78 | R121: 86 | S121: 6171 | T121: 6171 HENRY H. FILER MIDDLE SCHOOL | U121: 6 | V121: 69 | W121: 27 | X121: 254 | Y121: 6411 | Z121: 6411 HORACE MANN MIDDLE SCHOOL | AA121: 7 | AB121: 75 | AC121: 30 | AD121: 250 | AE121: 6571 | AF121: 6571 NORLAND MIDDLE SCHOOL | AG121: 8 | AH121: 108 | AI121: 36 | AJ121: 304
A122: 2641 | B122: 2641 KENDALE ELEMENTARY SCHOOL | C122: 3 | D122: 54 | E122: 70 | F122: 77 | G122: 2651 | H122: 2651 KENDALE LAKES ELEMENTARY SCHL | I122: 4 | J122: 67 | K122: 66 | L122: 102 | M122: 2651 | N122: 2651 KENDALE LAKES ELEMENTARY SCHL | O122: 5 | P122: 79 | Q122: 64 | R122: 123 | S122: 6211 | T122: 6211 GLADES MIDDLE SCHOOL | U122: 6 | V122: 164 | W122: 51 | X122: 322 | Y122: 6441 | Z122: 6441 HOWARD D. MCMILLAN MIDDLE SCHOOL | AA122: 7 | AB122: 136 | AC122: 47 | AD122: 291 | AE122: 6591 | AF122: 6591 NORTH DADE MIDDLE SCHOOL | AG122: 8 | AH122: 77 | AI122: 30 | AJ122: 260
A123: 2651 | B123: 2651 KENDALE LAKES ELEMENTARY SCHL | C123: 3 | D123: 69 | E123: 59 | F123: 117 | G123: 2661 | H123: 2661 KENSINGTON PARK ELEM. SCHOOL | I123: 4 | J123: 73 | K123: 44 | L123: 167 | M123: 2661 | N123: 2661 KENSINGTON PARK ELEM. SCHOOL | O123: 5 | P123: 66 | Q123: 38 | R123: 176 | S123: 6221 | T123: 6221 HAMMOCKS MIDDLE SCHOOL | U123: 6 | V123: 126 | W123: 41 | X123: 308 | Y123: 6501 | Z123: 6501 MIAMI LAKES MIDDLE SCHOOL | AA123: 7 | AB123: 203 | AC123: 55 | AD123: 371 | AE123: 6611 | AF123: 6611 COUNTRY CLUB MIDDLE SCHOOL | AG123: 8 | AH123: 139 | AI123: 41 | AJ123: 337
A124: 2661 | B124: 2661 KENSINGTON PARK ELEM. SCHOOL | C124: 3 | D124: 68 | E124: 36 | F124: 189 | G124: 2701 | H124: 2701 KENWOOD K-8 CENTER | I124: 4 | J124: 61 | K124: 55 | L124: 111 | M124: 2701 | N124: 2701 KENWOOD K-8 CENTER | O124: 5 | P124: 63 | Q124: 54 | R124: 116 | S124: 6231 | T124: 6231 HIALEAH MIDDLE SCHOOL | U124: 6 | V124: 63 | W124: 31 | X124: 203 | Y124: 6521 | Z124: 6521 MIAMI SPRINGS MIDDLE SCHOOL | AA124: 7 | AB124: 159 | AC124: 37 | AD124: 431 | AE124: 6631 | AF124: 6631 NORTH MIAMI MIDDLE SCHOOL | AG124: 8 | AH124: 103 | AI124: 33 | AJ124: 313
A125: 2701 | B125: 2701 KENWOOD K-8 CENTER | C125: 3 | D125: 64 | E125: 63 | F125: 102 | G125: 2741 | H125: 2741 KEY BISCAYNE K-8 CENTER | I125: 4 | J125: 134 | K125: 74 | L125: 181 | M125: 2741 | N125: 2741 KEY BISCAYNE K-8 CENTER | O125: 5 | P125: 161 | Q125: 83 | R125: 194 | S125: 6241 | T125: 6241 HIGHLAND OAKS MIDDLE SCHOOL | U125: 6 | V125: 192 | W125: 50 | X125: 387 | Y125: 6541 | Z125: 6541 NAUTILUS MIDDLE SCHOOL | AA125: 7 | AB125: 178 | AC125: 54 | AD125: 332 | AE125: 6681 | AF125: 6681 PALM SPRINGS MIDDLE SCHOOL | AG125: 8 | AH125: 161 | AI125: 37 | AJ125: 437
A126: 2741 | B126: 2741 KEY BISCAYNE K-8 CENTER | C126: 3 | D126: 149 | E126: 80 | F126: 186 | G126: 2781 | H126: 2781 KINLOCH PARK ELEMENTARY SCHOOL | I126: 4 | J126: 72 | K126: 62 | L126: 116 | M126: 2781 | N126: 2781 KINLOCH PARK ELEMENTARY SCHOOL | O126: 5 | P126: 54 | Q126: 43 | R126: 126 | S126: 6251 | T126: 6251 HOMESTEAD MIDDLE SCHOOL | U126: 6 | V126: 38 | W126: 20 | X126: 191 | Y126: 6571 | Z126: 6571 NORLAND MIDDLE SCHOOL | AA126: 7 | AB126: 96 | AC126: 30 | AD126: 324 | AE126: 6701 | AF126: 6701 PALMETTO MIDDLE SCHOOL | AG126: 8 | AH126: 244 | AI126: 70 | AJ126: 351
A127: 2781 | B127: 2781 KINLOCH PARK ELEMENTARY SCHOOL | C127: 3 | D127: 65 | E127: 50 | F127: 129 | G127: 2801 | H127: 2801 LAKE STEVENS ELEMENTARY SCHOOL | I127: 4 | J127: 17 | K127: 40 | L127: 43 | M127: 2801 | N127: 2801 LAKE STEVENS ELEMENTARY SCHOOL | O127: 5 | P127: 19 | Q127: 53 | R127: 36 | S127: 6281 | T127: 6281 THOMAS JEFFERSON MIDDLE SCHOOL | U127: 6 | V127: 6 | W127: 11 | X127: 54 | Y127: 6591 | Z127: 6591 NORTH DADE MIDDLE SCHOOL | AA127: 7 | AB127: 43 | AC127: 22 | AD127: 199 | AE127: 6741 | AF127: 6741 PONCE DE LEON MIDDLE SCHOOL | AG127: 8 | AH127: 195 | AI127: 52 | AJ127: 376
A128: 2801 | B128: 2801 LAKE STEVENS ELEMENTARY SCHOOL | C128: 3 | D128: 17 | E128: 36 | F128: 47 | G128: 2821 | H128: 2821 LAKEVIEW ELEMENTARY SCHOOL | I128: 4 | J128: 19 | K128: 39 | L128: 49 | M128: 2821 | N128: 2821 LAKEVIEW ELEMENTARY SCHOOL | O128: 5 | P128: 25 | Q128: 42 | R128: 60 | S128: 6301 | T128: 6301 JOHN F. KENNEDY MIDDLE SCHOOL | U128: 6 | V128: 166 | W128: 43 | X128: 385 | Y128: 6611 | Z128: 6611 COUNTRY CLUB MIDDLE SCHOOL | AA128: 7 | AB128: 83 | AC128: 26 | AD128: 316 | AE128: 6751 | AF128: 6751 HIALEAH GARDENS MIDDLE SCHOOL | AG128: 8 | AH128: 401 | AI128: 64 | AJ128: 631
A129: 2821 | B129: 2821 LAKEVIEW ELEMENTARY SCHOOL | C129: 3 | D129: 21 | E129: 28 | F129: 75 | G129: 2881 | H129: 2881 LEEWOOD K-8 CENTER | I129: 4 | J129: 65 | K129: 72 | L129: 90 | M129: 2881 | N129: 2881 LEEWOOD K-8 CENTER | O129: 5 | P129: 86 | Q129: 79 | R129: 109 | S129: 6331 | T129: 6331 KINLOCH PARK MIDDLE SCHOOL | U129: 6 | V129: 95 | W129: 29 | X129: 323 | Y129: 6631 | Z129: 6631 NORTH MIAMI MIDDLE SCHOOL | AA129: 7 | AB129: 92 | AC129: 30 | AD129: 309 | AE129: 6761 | AF129: 6761 REDLAND MIDDLE SCHOOL | AG129: 8 | AH129: 48 | AI129: 27 | AJ129: 181
A130: 2881 | B130: 2881 LEEWOOD K-8 CENTER | C130: 3 | D130: 67 | E130: 80 | F130: 84 | G130: 2891 | H130: 2891 WILLIAM H. LEHMAN ELEMENTARY SCHOOL | I130: 4 | J130: 77 | K130: 82 | L130: 94 | M130: 2891 | N130: 2891 WILLIAM H. LEHMAN ELEMENTARY SCHOOL | O130: 5 | P130: 91 | Q130: 76 | R130: 119 | S130: 6351 | T130: 6351 LAKE STEVENS MIDDLE SCHOOL | U130: 6 | V130: 43 | W130: 21 | X130: 201 | Y130: 6681 | Z130: 6681 PALM SPRINGS MIDDLE SCHOOL | AA130: 7 | AB130: 88 | AC130: 29 | AD130: 308 | AE130: 6771 | AF130: 6771 JORGE MAS CANOSA MIDDLE SCHOOL | AG130: 8 | AH130: 417 | AI130: 61 | AJ130: 681
A131: =LEFT(B131,4) -> 2891 | B131: 2891 WILLIAM H. LEHMAN ELEMENTARY SCHOOL | C131: 3 | D131: 73 | E131: 64 | F131: 114 | G131: =LEFT(H131,4) -> 2901 | H131: 2901 LEISURE CITY K-8 CENTER | I131: 4 | J131: 38 | K131: 38 | L131: 99 | M131: =LEFT(N131,4) -> 2901 | N131: 2901 LEISURE CITY K-8 CENTER | O131: 5 | P131: 19 | Q131: 20 | R131: 96 | S131: =LEFT(T131,4) -> 6361 | T131: 6361 JOSE DE DIEGO MIDDLE SCHOOL | U131: 6 | V131: 17 | W131: 9 | X131: 180 | Y131: =LEFT(Z131,4) -> 6701 | Z131: 6701 PALMETTO MIDDLE SCHOOL | AA131: 7 | AB131: 235 | AC131: 69 | AD131: 342 | AE131: =LEFT(AF131,4) -> 6781 | AF131: 6781 RICHMOND HEIGHTS MIDDLE SCHOOL | AG131: 8 | AH131: 68 | AI131: 35 | AJ131: 193
A132: 2901 | B132: 2901 LEISURE CITY K-8 CENTER | C132: 3 | D132: 25 | E132: 23 | F132: 110 | G132: 2911 | H132: 2911 LINDA LENTIN K-8 CENTER | I132: 4 | J132: 23 | K132: 25 | L132: 93 | M132: 2911 | N132: 2911 LINDA LENTIN K-8 CENTER | O132: 5 | P132: 32 | Q132: 34 | R132: 95 | S132: 6391 | T132: 6391 MADISON MIDDLE SCHOOL | U132: 6 | V132: 26 | W132: 19 | X132: 136 | Y132: 6741 | Z132: 6741 PONCE DE LEON MIDDLE SCHOOL | AA132: 7 | AB132: 217 | AC132: 55 | AD132: 395 | AE132: 6801 | AF132: 6801 RIVIERA MIDDLE SCHOOL | AG132: 8 | AH132: 142 | AI132: 58 | AJ132: 245
A133: 2911 | B133: 2911 LINDA LENTIN K-8 CENTER | C133: 3 | D133: 30 | E133: 32 | F133: 95 | G133: 2941 | H133: 2941 LAURA C. SAUNDERS ELEM. SCHOOL | I133: 4 | J133: 27 | K133: 30 | L133: 90 | M133: 2941 | N133: 2941 LAURA C. SAUNDERS ELEM. SCHOOL | O133: 5 | P133: 18 | Q133: 17 | R133: 103 | S133: 6411 | T133: 6411 HORACE MANN MIDDLE SCHOOL | U133: 6 | V133: 60 | W133: 27 | X133: 222 | Y133: 6751 | Z133: 6751 HIALEAH GARDENS MIDDLE SCHOOL | AA133: 7 | AB133: 348 | AC133: 61 | AD133: 570 | AE133: 6821 | AF133: 6821 ROCKWAY MIDDLE SCHOOL | AG133: 8 | AH133: 184 | AI133: 56 | AJ133: 330
A134: 2941 | B134: 2941 LAURA C. SAUNDERS ELEM. SCHOOL | C134: 3 | D134: 16 | E134: 13 | F134: 125 | G134: 2981 | H134: 2981 LIBERTY CITY ELEMENTARY SCHOOL | I134: 4 | J134: 9 | K134: 20 | L134: 45 | M134: 2981 | N134: 2981 LIBERTY CITY ELEMENTARY SCHOOL | O134: 5 | P134: 7 | Q134: 18 | R134: 39 | S134: 6441 | T134: 6441 HOWARD D. MCMILLAN MIDDLE SCHOOL | U134: 6 | V134: 188 | W134: 64 | X134: 295 | Y134: 6761 | Z134: 6761 REDLAND MIDDLE SCHOOL | AA134: 7 | AB134: 36 | AC134: 22 | AD134: 166 | AE134: 6841 | AF134: 6841 SHENANDOAH MIDDLE SCHOOL | AG134: 8 | AH134: 182 | AI134: 49 | AJ134: 375
A135: 2981 | B135: 2981 LIBERTY CITY ELEMENTARY SCHOOL | C135: 3 | D135: 13 | E135: 21 | F135: 62 | G135: 3021 | H135: 3021 JESSE J. MCCRARY, JR. ELEMENTARY SCHOOL | I135: 4 | J135: 10 | K135: 14 | L135: 74 | M135: 3021 | N135: 3021 JESSE J. MCCRARY, JR. ELEMENTARY SCHOOL | O135: 5 | P135: 20 | Q135: 27 | R135: 74 | S135: 6501 | T135: 6501 MIAMI LAKES MIDDLE SCHOOL | U135: 6 | V135: 181 | W135: 55 | X135: 328 | Y135: 6771 | Z135: 6771 JORGE MAS CANOSA MIDDLE SCHOOL | AA135: 7 | AB135: 335 | AC135: 55 | AD135: 607 | AE135: 6861 | AF135: 6861 SOUTHWOOD MIDDLE SCHOOL | AG135: 8 | AH135: 288 | AI135: 70 | AJ135: 413
A136: 3021 | B136: 3021 JESSE J. MCCRARY, JR. ELEMENTARY SCHOOL | C136: 3 | D136: 25 | E136: 26 | F136: 97 | G136: 3025 | H136: 3025 ADVANTAGE ACADEMY SANTA FE | I136: 4 | J136: 37 | K136: 86 | L136: 43 | M136: 3025 | N136: 3025 ADVANTAGE ACADEMY SANTA FE | O136: 5 | P136: 10 | Q136: 59 | R136: 17 | S136: 6521 | T136: 6521 MIAMI SPRINGS MIDDLE SCHOOL | U136: 6 | V136: 145 | W136: 38 | X136: 386 | Y136: 6781 | Z136: 6781 RICHMOND HEIGHTS MIDDLE SCHOOL | AA136: 7 | AB136: 70 | AC136: 33 | AD136: 214 | AE136: 6881 | AF136: 6881 SOUTH MIAMI MIDDLE SCHOOL | AG136: 8 | AH136: 256 | AI136: 78 | AJ136: 328
A137: 3025 | B137: 3025 ADVANTAGE ACADEMY SANTA FE | C137: 3 | D137: 57 | E137: 76 | F137: 75 | G137: 3030 | H137: 3030 DORAL ACADEMY | I137: 4 | J137: 153 | K137: 86 | L137: 177 | M137: 3030 | N137: 3030 DORAL ACADEMY | O137: 5 | P137: 124 | Q137: 79 | R137: 156 | S137: 6541 | T137: 6541 NAUTILUS MIDDLE SCHOOL | U137: 6 | V137: 128 | W137: 46 | X137: 281 | Y137: 6801 | Z137: 6801 RIVIERA MIDDLE SCHOOL | AA137: 7 | AB137: 107 | AC137: 52 | AD137: 207 | AE137: 6901 | AF137: 6901 W. R. THOMAS MIDDLE SCHOOL | AG137: 8 | AH137: 292 | AI137: 75 | AJ137: 387
A138: 3030 | B138: 3030 DORAL ACADEMY | C138: 3 | D138: 166 | E138: 83 | F138: 200 | G138: 3033 | H138: 3033 SOMERSET OAKS ACADEMY | I138: 4 | J138: 11 | K138: 25 | L138: 44 | M138: 3033 | N138: 3033 SOMERSET OAKS ACADEMY | O138: 5 | P138: 4 | Q138: 24 | R138: 17 | S138: 6571 | T138: 6571 NORLAND MIDDLE SCHOOL | U138: 6 | V138: 56 | W138: 22 | X138: 252 | Y138: 6821 | Z138: 6821 ROCKWAY MIDDLE SCHOOL | AA138: 7 | AB138: 171 | AC138: 53 | AD138: 324 | AE138: 6921 | AF138: 6921 LAMAR LOUISE CURRY MIDDLE SCHL | AG138: 8 | AH138: 287 | AI138: 71 | AJ138: 405
A139: 3033 | B139: 3033 SOMERSET OAKS ACADEMY | C139: 3 | D139: 23 | E139: 40 | F139: 57 | G139: 3034 | H139: 3034 BRIDGEPREP ACADEMY OF VILLAGE GREEN | I139: 4 | J139: 8 | K139: 53 | L139: 15 | M139: 3034 | N139: 3034 BRIDGEPREP ACADEMY OF VILLAGE GREEN | O139: 5 | P139: 10 | Q139: 83 | R139: 12 | S139: 6591 | T139: 6591 NORTH DADE MIDDLE SCHOOL | U139: 6 | V139: 39 | W139: 18 | X139: 212 | Y139: 6841 | Z139: 6841 SHENANDOAH MIDDLE SCHOOL | AA139: 7 | AB139: 137 | AC139: 39 | AD139: 348 | AE139: 6961 | AF139: 6961 WEST MIAMI MIDDLE SCHOOL | AG139: 8 | AH139: 132 | AI139: 43 | AJ139: 304
A140: 3034 | B140: 3034 BRIDGEPREP ACADEMY OF VILLAGE GREEN | C140: 3 | D140: 16 | E140: 43 | F140: 37 | G140: 3035 | H140: 3035 RAMZ ACADEMY K-5 MIAMI CAMPUS | I140: 4 | J140: 12 | K140: 52 | L140: 23 | M140: 3035 | N140: 3035 RAMZ ACADEMY K-5 MIAMI CAMPUS | O140: 5 | P140: 6 | Q140: 27 | R140: 22 | S140: 6611 | T140: 6611 COUNTRY CLUB MIDDLE SCHOOL | U140: 6 | V140: 50 | W140: 22 | X140: 226 | Y140: 6861 | Z140: 6861 SOUTHWOOD MIDDLE SCHOOL | AA140: 7 | AB140: 353 | AC140: 69 | AD140: 510 | AE140: 6997 | AF140: 6997 MATER VIRTUAL ACAD CHARTER MIDDLE/HIGH SCHOOL | AG140: 8 | AI140: NA | AJ140: 2
A141: 3035 | B141: 3035 RAMZ ACADEMY K-5 MIAMI CAMPUS | C141: 3 | D141: 16 | E141: 40 | F141: 40 | G141: 3041 | H141: 3041 LORAH PARK ELEMENTARY SCHOOL | I141: 4 | J141: 24 | K141: 29 | L141: 83 | M141: 3041 | N141: 3041 LORAH PARK ELEMENTARY SCHOOL | O141: 5 | P141: 19 | Q141: 30 | R141: 64 | S141: 6631 | T141: 6631 NORTH MIAMI MIDDLE SCHOOL | U141: 6 | V141: 70 | W141: 25 | X141: 279 | Y141: 6881 | Z141: 6881 SOUTH MIAMI MIDDLE SCHOOL | AA141: 7 | AB141: 217 | AC141: 73 | AD141: 297 | AE141: 7001 | AF141: 7001 MIAMI-DADE ONLINE ACAD-VIRTUAL INSTRUC PROG | AG141: 8 | AH141: 19 | AI141: 90 | AJ141: 21
A142: 3041 | B142: 3041 LORAH PARK ELEMENTARY SCHOOL | C142: 3 | D142: 17 | E142: 25 | F142: 67 | G142: 3051 | H142: 3051 TOUSSAINT L'OUVERTURE ELEM. | I142: 4 | J142: 13 | K142: 20 | L142: 64 | M142: 3051 | N142: 3051 TOUSSAINT L'OUVERTURE ELEM. | O142: 5 | P142: 22 | Q142: 32 | R142: 68 | S142: 6681 | T142: 6681 PALM SPRINGS MIDDLE SCHOOL | U142: 6 | V142: 93 | W142: 35 | X142: 268 | Y142: 6901 | Z142: 6901 W. R. THOMAS MIDDLE SCHOOL | AA142: 7 | AB142: 290 | AC142: 70 | AD142: 413 | AE142: 7055 | AF142: 7055 YOUNG WOMENS PREPARATORY ACADEMY | AG142: 8 | AH142: 61 | AI142: 95 | AJ142: 64
A143: 3051 | B143: 3051 TOUSSAINT L'OUVERTURE ELEM. | C143: 3 | D143: 19 | E143: 21 | F143: 91 | G143: 3061 | H143: 3061 LUDLAM ELEMENTARY SCHOOL | I143: 4 | J143: 36 | K143: 65 | L143: 55 | M143: 3061 | N143: 3061 LUDLAM ELEMENTARY SCHOOL | O143: 5 | P143: 35 | Q143: 65 | R143: 54 | S143: 6701 | T143: 6701 PALMETTO MIDDLE SCHOOL | U143: 6 | V143: 210 | W143: 59 | X143: 354 | Y143: 6921 | Z143: 6921 LAMAR LOUISE CURRY MIDDLE SCHL | AA143: 7 | AB143: 231 | AC143: 67 | AD143: 345 | AE143: 7056 | AF143: 7056 YOUNG MEN'S PREPARATORY ACADEMY | AG143: 8 | AH143: 17 | AI143: 41 | AJ143: 41
A144: 3061 | B144: 3061 LUDLAM ELEMENTARY SCHOOL | C144: 3 | D144: 43 | E144: 68 | F144: 63 | G144: 3100 | H144: 3100 MATER ACADEMY EAST CHARTER | I144: 4 | J144: 70 | K144: 96 | L144: 73 | M144: 3100 | N144: 3100 MATER ACADEMY EAST CHARTER | O144: 5 | P144: 48 | Q144: 73 | R144: 66 | S144: 6741 | T144: 6741 PONCE DE LEON MIDDLE SCHOOL | U144: 6 | V144: 206 | W144: 54 | X144: 385 | Y144: 6961 | Z144: 6961 WEST MIAMI MIDDLE SCHOOL | AA144: 7 | AB144: 93 | AC144: 34 | AD144: 272 | AE144: 7059 | AF144: 7059 MIAMI ARTS CHARTER | AG144: 8 | AH144: 143 | AI144: 70 | AJ144: 203
A145: 3100 | B145: 3100 MATER ACADEMY EAST CHARTER | C145: 3 | D145: 77 | E145: 83 | F145: 93 | G145: 3101 | H145: 3101 FRANK CRAWFORD MARTIN K-8 CENTER | I145: 4 | J145: 92 | K145: 77 | L145: 120 | M145: 3101 | N145: 3101 FRANK CRAWFORD MARTIN K-8 CENTER | O145: 5 | P145: 108 | Q145: 72 | R145: 150 | S145: 6751 | T145: 6751 HIALEAH GARDENS MIDDLE SCHOOL | U145: 6 | V145: 329 | W145: 62 | X145: 528 | Y145: 7001 | Z145: 7001 MIAMI-DADE ONLINE ACAD-VIRTUAL INSTRUC PROG | AA145: 7 | AB145: 8 | AC145: 57 | AD145: 14 | AE145: 7111 | AF145: 7111 HIALEAH SENIOR HIGH SCHOOL | AG145: 8 | AI145: NA | AJ145: 3
A146: 3101 | B146: 3101 FRANK CRAWFORD MARTIN K-8 CENTER | C146: 3 | D146: 101 | E146: 74 | F146: 137 | G146: 3111 | H146: 3111 WESLEY MATTHEWS ELEM. SCHOOL | I146: 4 | J146: 48 | K146: 64 | L146: 75 | M146: 3111 | N146: 3111 WESLEY MATTHEWS ELEM. SCHOOL | O146: 5 | P146: 57 | Q146: 66 | R146: 86 | S146: 6761 | T146: 6761 REDLAND MIDDLE SCHOOL | U146: 6 | V146: 25 | W146: 17 | X146: 143 | Y146: 7055 | Z146: 7055 YOUNG WOMENS PREPARATORY ACADEMY | AA146: 7 | AB146: 60 | AC146: 86 | AD146: 70 | AE146: 7161 | AF146: 7161 MAST ACADEMY | AG146: 8 | AH146: 97 | AI146: 95 | AJ146: 102
A147: 3111 | B147: 3111 WESLEY MATTHEWS ELEM. SCHOOL | C147: 3 | D147: 57 | E147: 73 | F147: 78 | G147: 3141 | H147: 3141 MEADOWLANE ELEMENTARY SCHOOL | I147: 4 | J147: 71 | K147: 42 | L147: 168 | M147: 3141 | N147: 3141 MEADOWLANE ELEMENTARY SCHOOL | O147: 5 | P147: 98 | Q147: 56 | R147: 176 | S147: 6771 | T147: 6771 JORGE MAS CANOSA MIDDLE SCHOOL | U147: 6 | V147: 348 | W147: 56 | X147: 625 | Y147: 7056 | Z147: 7056 YOUNG MEN'S PREPARATORY ACADEMY | AA147: 7 | AB147: 18 | AC147: 38 | AD147: 47 | AE147: 7262 | AF147: 7262 CITY OF HIALEAH EDUCATION ACADEMY | AG147: 8 | AH147: 25 | AI147: 49 | AJ147: 51
A148: 3141 | B148: 3141 MEADOWLANE ELEMENTARY SCHOOL | C148: 3 | D148: 102 | E148: 64 | F148: 160 | G148: 3181 | H148: 3181 MELROSE ELEMENTARY SCHOOL | I148: 4 | J148: 28 | K148: 36 | L148: 77 | M148: 3181 | N148: 3181 MELROSE ELEMENTARY SCHOOL | O148: 5 | P148: 33 | Q148: 35 | R148: 93 | S148: 6781 | T148: 6781 RICHMOND HEIGHTS MIDDLE SCHOOL | U148: 6 | V148: 64 | W148: 32 | X148: 199 | Y148: 7059 | Z148: 7059 MIAMI ARTS CHARTER | AA148: 7 | AB148: 171 | AC148: 72 | AD148: 237 | AE148: 7291 | AF148: 7291 JOSE MARTI MAST 6-12 ACADEMY | AG148: 8 | AH148: 121 | AI148: 89 | AJ148: 136
A149: 3181 | B149: 3181 MELROSE ELEMENTARY SCHOOL | C149: 3 | D149: 18 | E149: 20 | F149: 92 | G149: 3191 | H149: 3191 ADA MERRITT K-8 CENTER | I149: 4 | J149: 72 | K149: 90 | L149: 80 | M149: 3191 | N149: 3191 ADA MERRITT K-8 CENTER | O149: 5 | P149: 71 | Q149: 88 | R149: 81 | S149: 6801 | T149: 6801 RIVIERA MIDDLE SCHOOL | U149: 6 | V149: 100 | W149: 47 | X149: 212 | Y149: 7262 | Z149: 7262 CITY OF HIALEAH EDUCATION ACADEMY | AA149: 7 | AB149: 34 | AC149: 43 | AD149: 80 | AE149: 7351 | AF149: 7351 ARTHUR AND POLLY MAYS CONSERVATORY OF THE ART | AG149: 8 | AH149: 50 | AI149: 50 | AJ149: 101
A150: 3191 | B150: 3191 ADA MERRITT K-8 CENTER | C150: 3 | D150: 72 | E150: 90 | F150: 80 | G150: 3241 | H150: 3241 MIAMI GARDENS ELEMENTARY SCHL | I150: 4 | J150: 18 | K150: 42 | L150: 43 | M150: 3241 | N150: 3241 MIAMI GARDENS ELEMENTARY SCHL | O150: 5 | P150: 16 | Q150: 62 | R150: 26 | S150: 6821 | T150: 6821 ROCKWAY MIDDLE SCHOOL | U150: 6 | V150: 163 | W150: 49 | X150: 331 | Y150: 7291 | Z150: 7291 JOSE MARTI MAST 6-12 ACADEMY | AA150: 7 | AB150: 126 | AC150: 85 | AD150: 149 | AE150: 7631 | AF150: 7631 MIAMI MACARTHUR SOUTH | AG150: 8 | AH150: 0 | AI150: 0 | AJ150: 14
A151: 3241 | B151: 3241 MIAMI GARDENS ELEMENTARY SCHL | C151: 3 | D151: 18 | E151: 39 | F151: 46 | G151: 3261 | H151: 3261 MIAMI HEIGHTS ELEMENTARY SCHL | I151: 4 | J151: 72 | K151: 52 | L151: 139 | M151: 3261 | N151: 3261 MIAMI HEIGHTS ELEMENTARY SCHL | O151: 5 | P151: 79 | Q151: 45 | R151: 174 | S151: 6841 | T151: 6841 SHENANDOAH MIDDLE SCHOOL | U151: 6 | V151: 157 | W151: 37 | X151: 419 | Y151: 7351 | Z151: 7351 ARTHUR AND POLLY MAYS CONSERVATORY OF THE ART | AA151: 7 | AB151: 43 | AC151: 48 | AD151: 90 | AE151: 7823 | AF151: 7823 HERE'S HELP | AG151: 8 | AI151: NA | AJ151: 5
A152: 3261 | B152: 3261 MIAMI HEIGHTS ELEMENTARY SCHL | C152: 3 | D152: 85 | E152: 47 | F152: 181 | G152: 3281 | H152: 3281 MIAMI LAKES K-8 CENTER | I152: 4 | J152: 88 | K152: 64 | L152: 137 | M152: 3281 | N152: 3281 MIAMI LAKES K-8 CENTER | O152: 5 | P152: 83 | Q152: 58 | R152: 143 | S152: 6861 | T152: 6861 SOUTHWOOD MIDDLE SCHOOL | U152: 6 | V152: 303 | W152: 63 | X152: 482 | Y152: 7631 | Z152: 7631 MIAMI MACARTHUR SOUTH | AA152: 7 | AB152: 3 | AC152: 25 | AD152: 12 | AE152: 7835 | AF152: 7835 RICHMOND PERRINE OPTIMIST | AG152: 8 | AI152: NA | AJ152: 9
A153: 3281 | B153: 3281 MIAMI LAKES K-8 CENTER | C153: 3 | D153: 83 | E153: 54 | F153: 153 | G153: 3301 | H153: 3301 MIAMI PARK ELEMENTARY SCHOOL | I153: 4 | J153: 19 | K153: 41 | L153: 46 | M153: 3301 | N153: 3301 MIAMI PARK ELEMENTARY SCHOOL | O153: 5 | P153: 19 | Q153: 51 | R153: 37 | S153: 6881 | T153: 6881 SOUTH MIAMI MIDDLE SCHOOL | U153: 6 | V153: 209 | W153: 70 | X153: 299 | Y153: 7835 | Z153: 7835 RICHMOND PERRINE OPTIMIST | AA153: 7 | AC153: NA | AD153: 6 | AE153: 7840 | AF153: 7840 TURNER/GUILFORD/KNIGHT | AG153: 8 | AI153: NA | AJ153: 3
A154: 3301 | B154: 3301 MIAMI PARK ELEMENTARY SCHOOL | C154: 3 | D154: 14 | E154: 25 | F154: 55 | G154: 3341 | H154: 3341 MIAMI SHORES ELEMENTARY SCHOOL | I154: 4 | J154: 59 | K154: 52 | L154: 113 | M154: 3341 | N154: 3341 MIAMI SHORES ELEMENTARY SCHOOL | O154: 5 | P154: 59 | Q154: 44 | R154: 134 | S154: 6901 | T154: 6901 W. R. THOMAS MIDDLE SCHOOL | U154: 6 | V154: 246 | W154: 72 | X154: 343 | Y154: 7840 | Z154: 7840 TURNER/GUILFORD/KNIGHT | AA154: 7 | AC154: NA | AD154: 2 | AE154: 7860 | AF154: 7860 SECONDARY STUDENT SUCCESS CENTER 801 | AG154: 8 | AH154: 3 | AI154: 20 | AJ154: 15
A155: 3341 | B155: 3341 MIAMI SHORES ELEMENTARY SCHOOL | C155: 3 | D155: 73 | E155: 43 | F155: 169 | G155: 3381 | H155: 3381 MIAMI SPRINGS ELEMENTARY SCHL | I155: 4 | J155: 39 | K155: 57 | L155: 69 | M155: 3381 | N155: 3381 MIAMI SPRINGS ELEMENTARY SCHL | O155: 5 | P155: 38 | Q155: 49 | R155: 77 | S155: 6921 | T155: 6921 LAMAR LOUISE CURRY MIDDLE SCHL | U155: 6 | V155: 209 | W155: 62 | X155: 338 | Y155: 7860 | Z155: 7860 SECONDARY STUDENT SUCCESS CENTER 801 | AA155: 7 | AC155: NA | AD155: 6 | AE155: 7861 | AF155: 7861 SECONDARY STUDENT SUCCESS CENTER 802 | AG155: 8 | AH155: 0 | AI155: 0 | AJ155: 12
A156: 3381 | B156: 3381 MIAMI SPRINGS ELEMENTARY SCHL | C156: 3 | D156: 44 | E156: 56 | F156: 79 | G156: 3421 | H156: 3421 MARCUS A. MILAM K-8 CENTER | I156: 4 | J156: 39 | K156: 51 | L156: 76 | M156: 3421 | N156: 3421 MARCUS A. MILAM K-8 CENTER | O156: 5 | P156: 33 | Q156: 33 | R156: 101 | S156: 6961 | T156: 6961 WEST MIAMI MIDDLE SCHOOL | U156: 6 | V156: 77 | W156: 29 | X156: 264 | Y156: 7861 | Z156: 7861 SECONDARY STUDENT SUCCESS CENTER 802 | AA156: 7 | AC156: NA | AD156: 6 | AE156: 7862 | AF156: 7862 SECONDARY STUDENT SUCCESS CENTER 803 | AG156: 8 | AH156: 0 | AI156: 0 | AJ156: 10
A157: 3421 | B157: 3421 MARCUS A. MILAM K-8 CENTER | C157: 3 | D157: 35 | E157: 43 | F157: 81 | G157: 3431 | H157: 3431 PHYLLIS R. MILLER ELEM. SCHOOL | I157: 4 | J157: 46 | K157: 51 | L157: 90 | M157: 3431 | N157: 3431 PHYLLIS R. MILLER ELEM. SCHOOL | O157: 5 | P157: 67 | Q157: 60 | R157: 111 | S157: 7001 | T157: 7001 MIAMI-DADE ONLINE ACAD-VIRTUAL INSTRUC PROG | U157: 6 | V157: 10 | W157: 53 | X157: 19 | Y157: 7862 | Z157: 7862 SECONDARY STUDENT SUCCESS CENTER 803 | AA157: 7 | AC157: NA | AD157: 5 | AE157: 7863 | AF157: 7863 SECONDARY STUDENT SUCCESS CENTER-804 | AG157: 8 | AI157: NA | AJ157: 7
A158: 3431 | B158: 3431 PHYLLIS R. MILLER ELEM. SCHOOL | C158: 3 | D158: 44 | E158: 47 | F158: 93 | G158: 3501 | H158: 3501 MORNINGSIDE K-8 ACADEMY | I158: 4 | J158: 20 | K158: 30 | L158: 67 | M158: 3501 | N158: 3501 MORNINGSIDE K-8 ACADEMY | O158: 5 | P158: 21 | Q158: 48 | R158: 44 | S158: 7055 | T158: 7055 YOUNG WOMENS PREPARATORY ACADEMY | U158: 6 | V158: 78 | W158: 83 | X158: 94 | Y158: 7863 | Z158: 7863 SECONDARY STUDENT SUCCESS CENTER-804 | AA158: 7 | AB158: 0 | AC158: 0 | AD158: 16 | AE158: 8101 | AF158: 8101 JAN MANN OPPORTUNITY SCHOOL | AG158: 8 | AH158: 0 | AI158: 0 | AJ158: 29
A159: 3501 | B159: 3501 MORNINGSIDE K-8 ACADEMY | C159: 3 | D159: 33 | E159: 47 | F159: 70 | G159: 3541 | H159: 3541 ROBERT RUSSA MOTON ELEMENTARY SCHOOL | I159: 4 | J159: 18 | K159: 49 | L159: 37 | M159: 3541 | N159: 3541 ROBERT RUSSA MOTON ELEMENTARY SCHOOL | O159: 5 | P159: 8 | Q159: 36 | R159: 22 | S159: 7056 | T159: 7056 YOUNG MEN'S PREPARATORY ACADEMY | U159: 6 | V159: 10 | W159: 30 | X159: 33 | Y159: 8101 | Z159: 8101 JAN MANN OPPORTUNITY SCHOOL | AA159: 7 | AC159: NA | AD159: 8 | AE159: 8121 | AF159: 8121 COPE CENTER NORTH | AG159: 8 | AI159: NA | AJ159: 3
A160: 3541 | B160: 3541 ROBERT RUSSA MOTON ELEMENTARY SCHOOL | C160: 3 | D160: 16 | E160: 25 | F160: 63 | G160: 3581 | H160: 3581 MYRTLE GROVE K-8 CENTER | I160: 4 | J160: 16 | K160: 26 | L160: 62 | M160: 3581 | N160: 3581 MYRTLE GROVE K-8 CENTER | O160: 5 | P160: 20 | Q160: 32 | R160: 63 | S160: 7059 | T160: 7059 MIAMI ARTS CHARTER | U160: 6 | V160: 160 | W160: 68 | X160: 235 | Y160: 8121 | Z160: 8121 COPE CENTER NORTH | AA160: 7 | AC160: NA | AD160: 2 | AE160: 8131 | AF160: 8131 DOROTHY M. WALLACE COPE CENTER | AG160: 8 | AI160: NA | AJ160: 5
A161: 3581 | B161: 3581 MYRTLE GROVE K-8 CENTER | C161: 3 | D161: 22 | E161: 31 | F161: 72 | G161: 3600 | H161: 3600 DOWNTOWN MIAMI CHARTER SCHOOL | I161: 4 | J161: 55 | K161: 57 | L161: 97 | M161: 3600 | N161: 3600 DOWNTOWN MIAMI CHARTER SCHOOL | O161: 5 | P161: 38 | Q161: 45 | R161: 85 | S161: 7262 | T161: 7262 CITY OF HIALEAH EDUCATION ACADEMY | U161: 6 | V161: 33 | W161: 58 | X161: 57 | Y161: 8151 | Z161: 8151 ROBERT RENICK EDUCATION CENTER | AA161: 7 | AC161: NA | AD161: 5 | AE161: 8151 | AF161: 8151 ROBERT RENICK EDUCATION CENTER | AG161: 8 | AI161: NA | AJ161: 5
A162: 3600 | B162: 3600 DOWNTOWN MIAMI CHARTER SCHOOL | C162: 3 | D162: 42 | E162: 44 | F162: 95 | G162: 3610 | H162: 3610 KEYS GATE CHARTER SCHOOL | I162: 4 | J162: 143 | K162: 54 | L162: 264 | M162: 3610 | N162: 3610 KEYS GATE CHARTER SCHOOL | O162: 5 | P162: 138 | Q162: 51 | R162: 268 | S162: 7291 | T162: 7291 JOSE MARTI MAST 6-12 ACADEMY | U162: 6 | V162: 134 | W162: 88 | X162: 152 | Y162: 8181 | Z162: 8181 RUTH OWENS KRUSE EDUCATION CENTER | AA162: 7 | AC162: NA | AD162: 6 | AE162: 8181 | AF162: 8181 RUTH OWENS KRUSE EDUCATION CENTER | AG162: 8 | AH162: 4 | AI162: 33 | AJ162: 12
A163: 3610 | B163: 3610 KEYS GATE CHARTER SCHOOL | C163: 3 | D163: 133 | E163: 51 | F163: 263 | G163: 3621 | H163: 3621 COCONUT PALM K-8 ACADEMY | I163: 4 | J163: 39 | K163: 22 | L163: 176 | M163: 3621 | N163: 3621 COCONUT PALM K-8 ACADEMY | O163: 5 | P163: 65 | Q163: 41 | R163: 159 | S163: =LEFT(T163,4) -> 7351 | T163: 7351 ARTHUR AND POLLY MAYS CONSERVATORY OF THE ART | U163: 6 | V163: 44 | W163: 33 | X163: 133 | Y163: =LEFT(Z163,4) -> 9732 | Z163: 9732 BRUCIE BALL EDUCATIONAL CENTER | AA163: 7 | AB163: 5 | AC163: 50 | AD163: 10 | AE163: =LEFT(AF163,4) -> 9732 | AF163: 9732 BRUCIE BALL EDUCATIONAL CENTER | AG163: 8 | AH163: 6 | AI163: 55 | AJ163: 11
A164: 3621 | B164: 3621 COCONUT PALM K-8 ACADEMY | C164: 3 | D164: 60 | E164: 34 | F164: 175 | G164: 3661 | H164: 3661 NATURAL BRIDGE ELEMENTARY SCHL | I164: 4 | J164: 41 | K164: 43 | L164: 96 | M164: 3661 | N164: 3661 NATURAL BRIDGE ELEMENTARY SCHL | O164: 5 | P164: 35 | Q164: 45 | R164: 78 | S164: 7631 | T164: 7631 MIAMI MACARTHUR SOUTH | U164: 6 | W164: NA | X164: 6 | Y164: 9999 | Z164: 9999 MIAMI-DADE COUNTY | AA164: 7 | AB164: 12760 | AC164: 50 | AD164: 25559 | AE164: 9999 | AF164: 9999 MIAMI-DADE COUNTY | AG164: 8 | AH164: 14416 | AI164: 55 | AJ164: 26341
A165: 3661 | B165: 3661 NATURAL BRIDGE ELEMENTARY SCHL | C165: 3 | D165: 34 | E165: 34 | F165: 99 | G165: 3701 | H165: 3701 NORLAND ELEMENTARY SCHOOL | I165: 4 | J165: 31 | K165: 34 | L165: 90 | M165: 3701 | N165: 3701 NORLAND ELEMENTARY SCHOOL | O165: 5 | P165: 38 | Q165: 44 | R165: 87 | S165: 7835 | T165: 7835 RICHMOND PERRINE OPTIMIST | U165: 6 | W165: NA | X165: 4
A166: 3701 | B166: 3701 NORLAND ELEMENTARY SCHOOL | C166: 3 | D166: 31 | E166: 31 | F166: 100 | G166: 3741 | H166: 3741 NORTH BEACH ELEMENTARY SCHOOL | I166: 4 | J166: 141 | K166: 83 | L166: 170 | M166: 3741 | N166: 3741 NORTH BEACH ELEMENTARY SCHOOL | O166: 5 | P166: 144 | Q166: 84 | R166: 171 | S166: 7840 | T166: 7840 TURNER/GUILFORD/KNIGHT | U166: 6 | W166: NA | X166: 2
A167: 3741 | B167: 3741 NORTH BEACH ELEMENTARY SCHOOL | C167: 3 | D167: 129 | E167: 80 | F167: 162 | G167: 3781 | H167: 3781 BARBARA HAWKINS ELEM. SCHOOL | I167: 4 | J167: 18 | K167: 42 | L167: 43 | M167: 3781 | N167: 3781 BARBARA HAWKINS ELEM. SCHOOL | O167: 5 | P167: 21 | Q167: 36 | R167: 58 | S167: 7860 | T167: 7860 SECONDARY STUDENT SUCCESS CENTER 801 | U167: 6 | W167: NA | X167: 1
A168: 3781 | B168: 3781 BARBARA HAWKINS ELEM. SCHOOL | C168: 3 | D168: 14 | E168: 26 | F168: 54 | G168: 3821 | H168: 3821 NORTH COUNTY K-8 CENTER | I168: 4 | J168: 16 | K168: 29 | L168: 55 | M168: 3821 | N168: 3821 NORTH COUNTY K-8 CENTER | O168: 5 | P168: 21 | Q168: 47 | R168: 45 | S168: 7861 | T168: 7861 SECONDARY STUDENT SUCCESS CENTER 802 | U168: 6 | W168: NA | X168: 2
A169: 3821 | B169: 3821 NORTH COUNTY K-8 CENTER | C169: 3 | D169: 14 | E169: 27 | F169: 52 | G169: 3861 | H169: 3861 NORTH GLADE ELEMENTARY SCHOOL | I169: 4 | J169: 14 | K169: 29 | L169: 49 | M169: 3861 | N169: 3861 NORTH GLADE ELEMENTARY SCHOOL | O169: 5 | P169: 20 | Q169: 38 | R169: 52 | S169: 7862 | T169: 7862 SECONDARY STUDENT SUCCESS CENTER 803 | U169: 6 | W169: NA | X169: 2
A170: 3861 | B170: 3861 NORTH GLADE ELEMENTARY SCHOOL | C170: 3 | D170: 14 | E170: 32 | F170: 44 | G170: 3901 | H170: 3901 NORTH HIALEAH ELEMENTARY SCHL | I170: 4 | J170: 39 | K170: 39 | L170: 99 | M170: 3901 | N170: 3901 NORTH HIALEAH ELEMENTARY SCHL | O170: 5 | P170: 53 | Q170: 55 | R170: 97 | S170: 7863 | T170: 7863 SECONDARY STUDENT SUCCESS CENTER-804 | U170: 6 | W170: NA | X170: 7
A171: 3901 | B171: 3901 NORTH HIALEAH ELEMENTARY SCHL | C171: 3 | D171: 41 | E171: 37 | F171: 110 | G171: 3941 | H171: 3941 NORTH MIAMI ELEMENTARY SCHOOL | I171: 4 | J171: 27 | K171: 38 | L171: 71 | M171: 3941 | N171: 3941 NORTH MIAMI ELEMENTARY SCHOOL | O171: 5 | P171: 24 | Q171: 35 | R171: 69 | S171: 8101 | T171: 8101 JAN MANN OPPORTUNITY SCHOOL | U171: 6 | W171: NA | X171: 5
A172: 3941 | B172: 3941 NORTH MIAMI ELEMENTARY SCHOOL | C172: 3 | D172: 33 | E172: 37 | F172: 89 | G172: 3981 | H172: 3981 NORTH TWIN LAKES ELEMENTARY SCHOOL | I172: 4 | J172: 38 | K172: 52 | L172: 73 | M172: 3981 | N172: 3981 NORTH TWIN LAKES ELEMENTARY SCHOOL | O172: 5 | P172: 49 | Q172: 64 | R172: 77 | S172: 8151 | T172: 8151 ROBERT RENICK EDUCATION CENTER | U172: 6 | V172: 0 | W172: 0 | X172: 11
A173: 3981 | B173: 3981 NORTH TWIN LAKES ELEMENTARY SCHOOL | C173: 3 | D173: 53 | E173: 56 | F173: 94 | G173: 4000 | H173: 4000 MIAMI CHILDREN'S MUSEUM CHARTER SCHOOL | I173: 4 | J173: 34 | K173: 71 | L173: 48 | M173: 4000 | N173: 4000 MIAMI CHILDREN'S MUSEUM CHARTER SCHOOL | O173: 5 | P173: 33 | Q173: 70 | R173: 47 | S173: 8181 | T173: 8181 RUTH OWENS KRUSE EDUCATION CENTER | U173: 6 | W173: NA | X173: 8
A174: 4000 | B174: 4000 MIAMI CHILDREN'S MUSEUM CHARTER SCHOOL | C174: 3 | D174: 35 | E174: 70 | F174: 50 | G174: 4001 | H174: 4001 NORWOOD ELEMENTARY SCHOOL | I174: 4 | J174: 43 | K174: 48 | L174: 90 | M174: 4001 | N174: 4001 NORWOOD ELEMENTARY SCHOOL | O174: 5 | P174: 36 | Q174: 57 | R174: 63 | S174: 9732 | T174: 9732 BRUCIE BALL EDUCATIONAL CENTER | U174: 6 | W174: NA | X174: 8
A175: 4001 | B175: 4001 NORWOOD ELEMENTARY SCHOOL | C175: 3 | D175: 29 | E175: 33 | F175: 89 | G175: 4012 | H175: 4012 SOMERSET ACADEMY AT SILVER PALMS | I175: 4 | J175: 54 | K175: 73 | L175: 74 | M175: 4012 | N175: 4012 SOMERSET ACADEMY AT SILVER PALMS | O175: 5 | P175: 50 | Q175: 69 | R175: 72 | S175: 9999 | T175: 9999 MIAMI-DADE COUNTY | U175: 6 | V175: 12473 | W175: 49 | X175: 25510
A176: 4012 | B176: 4012 SOMERSET ACADEMY AT SILVER PALMS | C176: 3 | D176: 71 | E176: 79 | F176: 90 | G176: 4021 | H176: 4021 OAK GROVE ELEMENTARY SCHOOL | I176: 4 | J176: 22 | K176: 26 | L176: 84 | M176: 4021 | N176: 4021 OAK GROVE ELEMENTARY SCHOOL | O176: 5 | P176: 35 | Q176: 43 | R176: 81
A177: 4021 | B177: 4021 OAK GROVE ELEMENTARY SCHOOL | C177: 3 | D177: 32 | E177: 34 | F177: 93 | G177: 4031 | H177: 4031 GATEWAY ENVIRONMENTAL K-8 LEARNING CENTER | I177: 4 | J177: 67 | K177: 33 | L177: 206 | M177: 4031 | N177: 4031 GATEWAY ENVIRONMENTAL K-8 LEARNING CENTER | O177: 5 | P177: 70 | Q177: 38 | R177: 183
A178: 4031 | B178: 4031 GATEWAY ENVIRONMENTAL K-8 LEARNING CENTER | C178: 3 | D178: 88 | E178: 34 | F178: 259 | G178: 4061 | H178: 4061 OJUS ELEMENTARY SCHOOL | I178: 4 | J178: 73 | K178: 55 | L178: 132 | M178: 4061 | N178: 4061 OJUS ELEMENTARY SCHOOL | O178: 5 | P178: 98 | Q178: 67 | R178: 147
A179: 4061 | B179: 4061 OJUS ELEMENTARY SCHOOL | C179: 3 | D179: 100 | E179: 60 | F179: 168 | G179: 4071 | H179: 4071 AGENORIA S PASCHAL/OLINDA ELEMENTARY SCHOOL | I179: 4 | J179: 23 | K179: 43 | L179: 54 | M179: 4071 | N179: 4071 AGENORIA S PASCHAL/OLINDA ELEMENTARY SCHOOL | O179: 5 | P179: 10 | Q179: 19 | R179: 54
A180: 4071 | B180: 4071 AGENORIA S PASCHAL/OLINDA ELEMENTARY SCHOOL | C180: 3 | D180: 19 | E180: 29 | F180: 65 | G180: 4091 | H180: 4091 OLYMPIA HEIGHTS ELEM. SCHOOL | I180: 4 | J180: 44 | K180: 48 | L180: 91 | M180: 4091 | N180: 4091 OLYMPIA HEIGHTS ELEM. SCHOOL | O180: 5 | P180: 30 | Q180: 41 | R180: 73
A181: 4091 | B181: 4091 OLYMPIA HEIGHTS ELEM. SCHOOL | C181: 3 | D181: 41 | E181: 47 | F181: 88 | G181: 4121 | H181: 4121 DR. ROBERT B. INGRAM/OPA-LOCKA ELEMENTARY | I181: 4 | J181: 13 | K181: 26 | L181: 50 | M181: 4121 | N181: 4121 DR. ROBERT B. INGRAM/OPA-LOCKA ELEMENTARY | O181: 5 | P181: 13 | Q181: 24 | R181: 55
A182: 4121 | B182: 4121 DR. ROBERT B. INGRAM/OPA-LOCKA ELEMENTARY | C182: 3 | D182: 11 | E182: 15 | F182: 72 | G182: 4171 | H182: 4171 ORCHARD VILLA ELEMENTARY SCHL | I182: 4 | J182: 23 | K182: 40 | L182: 58 | M182: 4171 | N182: 4171 ORCHARD VILLA ELEMENTARY SCHL | O182: 5 | P182: 19 | Q182: 42 | R182: 45
A183: 4171 | B183: 4171 ORCHARD VILLA ELEMENTARY SCHL | C183: 3 | D183: 20 | E183: 35 | F183: 57 | G183: 4221 | H183: 4221 PALMETTO ELEMENTARY SCHOOL | I183: 4 | J183: 75 | K183: 82 | L183: 91 | M183: 4221 | N183: 4221 PALMETTO ELEMENTARY SCHOOL | O183: 5 | P183: 91 | Q183: 77 | R183: 118
A184: 4221 | B184: 4221 PALMETTO ELEMENTARY SCHOOL | C184: 3 | D184: 88 | E184: 73 | F184: 121 | G184: 4241 | H184: 4241 PALM LAKES ELEMENTARY SCHOOL | I184: 4 | J184: 67 | K184: 54 | L184: 124 | M184: 4241 | N184: 4241 PALM LAKES ELEMENTARY SCHOOL | O184: 5 | P184: 78 | Q184: 58 | R184: 135
A185: 4241 | B185: 4241 PALM LAKES ELEMENTARY SCHOOL | C185: 3 | D185: 68 | E185: 43 | F185: 160 | G185: 4261 | H185: 4261 PALM SPRINGS ELEMENTARY SCHOOL | I185: 4 | J185: 41 | K185: 38 | L185: 109 | M185: 4261 | N185: 4261 PALM SPRINGS ELEMENTARY SCHOOL | O185: 5 | P185: 53 | Q185: 42 | R185: 127
A186: 4261 | B186: 4261 PALM SPRINGS ELEMENTARY SCHOOL | C186: 3 | D186: 52 | E186: 39 | F186: 133 | G186: 4281 | H186: 4281 PALM SPRINGS NORTH ELEMENTARY SCHOOL | I186: 4 | J186: 97 | K186: 60 | L186: 163 | M186: 4281 | N186: 4281 PALM SPRINGS NORTH ELEMENTARY SCHOOL | O186: 5 | P186: 91 | Q186: 54 | R186: 169
A187: 4281 | B187: 4281 PALM SPRINGS NORTH ELEMENTARY SCHOOL | C187: 3 | D187: 101 | E187: 66 | F187: 153 | G187: 4301 | H187: 4301 PARKVIEW ELEMENTARY SCHOOL | I187: 4 | J187: 13 | K187: 32 | L187: 41 | M187: 4301 | N187: 4301 PARKVIEW ELEMENTARY SCHOOL | O187: 5 | P187: 22 | Q187: 39 | R187: 56
A188: 4301 | B188: 4301 PARKVIEW ELEMENTARY SCHOOL | C188: 3 | D188: 19 | E188: 35 | F188: 55 | G188: 4341 | H188: 4341 PARKWAY ELEMENTARY SCHOOL | I188: 4 | J188: 21 | K188: 40 | L188: 52 | M188: 4341 | N188: 4341 PARKWAY ELEMENTARY SCHOOL | O188: 5 | P188: 12 | Q188: 26 | R188: 46
A189: 4341 | B189: 4341 PARKWAY ELEMENTARY SCHOOL | C189: 3 | D189: 25 | E189: 44 | F189: 57 | G189: 4381 | H189: 4381 DR. HENRY E. PERRINE ACADEMY OF THE ARTS | I189: 4 | J189: 104 | K189: 71 | L189: 146 | M189: 4381 | N189: 4381 DR. HENRY E. PERRINE ACADEMY OF THE ARTS | O189: 5 | P189: 94 | Q189: 68 | R189: 138
A190: 4381 | B190: 4381 DR. HENRY E. PERRINE ACADEMY OF THE ARTS | C190: 3 | D190: 91 | E190: 61 | F190: 149 | G190: 4391 | H190: 4391 IRVING & BEATRICE PESKOE K-8 CENTER | I190: 4 | J190: 39 | K190: 39 | L190: 99 | M190: 4391 | N190: 4391 IRVING & BEATRICE PESKOE K-8 CENTER | O190: 5 | P190: 18 | Q190: 25 | R190: 73
A191: 4391 | B191: 4391 IRVING & BEATRICE PESKOE K-8 CENTER | C191: 3 | D191: 36 | E191: 35 | F191: 103 | G191: 4401 | H191: 4401 KELSEY L. PHARR ELEMENTARY SCHOOL | I191: 4 | J191: 22 | K191: 54 | L191: 41 | M191: 4401 | N191: 4401 KELSEY L. PHARR ELEMENTARY SCHOOL | O191: 5 | P191: 11 | Q191: 24 | R191: 45
A192: 4401 | B192: 4401 KELSEY L. PHARR ELEMENTARY SCHOOL | C192: 3 | D192: 13 | E192: 30 | F192: 43 | G192: 4421 | H192: 4421 PINECREST ELEMENTARY SCHOOL | I192: 4 | J192: 149 | K192: 91 | L192: 164 | M192: 4421 | N192: 4421 PINECREST ELEMENTARY SCHOOL | O192: 5 | P192: 150 | Q192: 83 | R192: 180
A193: 4421 | B193: 4421 PINECREST ELEMENTARY SCHOOL | C193: 3 | D193: 141 | E193: 82 | F193: 171 | G193: 4441 | H193: 4441 PINE LAKE ELEMENTARY SCHOOL | I193: 4 | J193: 28 | K193: 44 | L193: 63 | M193: 4441 | N193: 4441 PINE LAKE ELEMENTARY SCHOOL | O193: 5 | P193: 22 | Q193: 34 | R193: 64
A194: 4441 | B194: 4441 PINE LAKE ELEMENTARY SCHOOL | C194: 3 | D194: 17 | E194: 31 | F194: 54 | G194: 4461 | H194: 4461 PINE VILLA ELEMENTARY SCHOOL | I194: 4 | J194: 9 | K194: 24 | L194: 37 | M194: 4461 | N194: 4461 PINE VILLA ELEMENTARY SCHOOL | O194: 5 | P194: 6 | Q194: 21 | R194: 29
A195: =LEFT(B195,4) -> 4461 | B195: 4461 PINE VILLA ELEMENTARY SCHOOL | C195: 3 | D195: 12 | E195: 25 | F195: 48 | G195: =LEFT(H195,4) -> 4491 | H195: 4491 HENRY E.S. REEVES ELEM. SCHOOL | I195: 4 | J195: 35 | K195: 33 | L195: 107 | M195: =LEFT(N195,4) -> 4491 | N195: 4491 HENRY E.S. REEVES ELEM. SCHOOL | O195: 5 | P195: 44 | Q195: 39 | R195: 113
A196: 4491 | B196: 4491 HENRY E.S. REEVES ELEM. SCHOOL | C196: 3 | D196: 42 | E196: 24 | F196: 172 | G196: 4501 | H196: 4501 POINCIANA PARK ELEMENTARY SCHL | I196: 4 | J196: 5 | K196: 16 | L196: 32 | M196: 4501 | N196: 4501 POINCIANA PARK ELEMENTARY SCHL | O196: 5 | P196: 11 | Q196: 29 | R196: 38
A197: 4501 | B197: 4501 POINCIANA PARK ELEMENTARY SCHL | C197: 3 | D197: 8 | E197: 14 | F197: 59 | G197: 4511 | H197: 4511 DR. GILBERT L. PORTER ELEM. | I197: 4 | J197: 74 | K197: 62 | L197: 119 | M197: 4511 | N197: 4511 DR. GILBERT L. PORTER ELEM. | O197: 5 | P197: 81 | Q197: 61 | R197: 132
A198: 4511 | B198: 4511 DR. GILBERT L. PORTER ELEM. | C198: 3 | D198: 67 | E198: 56 | F198: 120 | G198: 4541 | H198: 4541 RAINBOW PARK ELEMENTARY SCHOOL | I198: 4 | J198: 20 | K198: 29 | L198: 68 | M198: 4541 | N198: 4541 RAINBOW PARK ELEMENTARY SCHOOL | O198: 5 | P198: 23 | Q198: 36 | R198: 64
A199: 4541 | B199: 4541 RAINBOW PARK ELEMENTARY SCHOOL | C199: 3 | D199: 21 | E199: 25 | F199: 84 | G199: 4581 | H199: 4581 REDLAND ELEMENTARY SCHOOL | I199: 4 | J199: 66 | K199: 49 | L199: 134 | M199: 4581 | N199: 4581 REDLAND ELEMENTARY SCHOOL | O199: 5 | P199: 50 | Q199: 39 | R199: 128
A200: 4581 | B200: 4581 REDLAND ELEMENTARY SCHOOL | C200: 3 | D200: 66 | E200: 40 | F200: 166 | G200: 4651 | H200: 4651 ETHEL F. BECKFORD/RICHMOND ELE | I200: 4 | J200: 2 | K200: 6 | L200: 33 | M200: 4651 | N200: 4651 ETHEL F. BECKFORD/RICHMOND ELE | O200: 5 | P200: 9 | Q200: 41 | R200: 22
... 77 more rows

Sheet 15 FSA Math (hidden)
A1: Location | B1: School | C1: Grade | D1: Lev 3-5 | F1: Total | G1: Location | H1: School | I1: Grade | J1: Lev 3-5 | L1: Total | M1: Location | N1: School | O1: Grade | P1: Lev 3-5 | R1: Total | S1: Location | T1: School | U1: Grade | V1: Lev 3-5 | X1: Total | Y1: Location | Z1: School | AA1: Grade | AB1: Lev 3-5 | AD1: Total | AE1: Location | AF1: School | AG1: Grade | AH1: Lev 3-5 | AJ1: Total
D2: Ct | E2: % | F2: Ct | J2: Ct | K2: % | L2: Ct | P2: Ct | Q2: % | R2: Ct | V2: Ct | W2: % | X2: Ct | AB2: Ct | AC2: % | AD2: Ct | AH2: Ct | AI2: % | AJ2: Ct
A3: =LEFT(B3,4) -> 0041 | B3: 0041 AIR BASE K-8 CENTER FOR INTERNATIONAL EDUC | C3: 3 | D3: 109 | E3: 87 | F3: 126 | G3: =LEFT(H3,4) -> 0041 | H3: 0041 AIR BASE K-8 CENTER FOR INTERNATIONAL EDUC | I3: 4 | J3: 101 | K3: 81 | L3: 124 | M3: =LEFT(N3,4) -> 0041 | N3: 0041 AIR BASE K-8 CENTER FOR INTERNATIONAL EDUC | O3: 5 | P3: 76 | Q3: 63 | R3: 120 | S3: =LEFT(T3,4) -> 0041 | T3: 0041 AIR BASE K-8 CENTER FOR INTERNATIONAL EDUC | U3: 6 | V3: 89 | W3: 87 | X3: 102 | Y3: =LEFT(Z3,4) -> 0041 | Z3: 0041 AIR BASE K-8 CENTER FOR INTERNATIONAL EDUC | AA3: 7 | AB3: 43 | AC3: 90 | AD3: 48 | AE3: =LEFT(AF3,4) -> 0070 | AF3: 0070 CORAL REEF MONTESSORI ACADEMY CHARTER | AG3: 8 | AH3: 4 | AI3: 40 | AJ3: 10
A4: 0070 | B4: 0070 CORAL REEF MONTESSORI ACADEMY CHARTER | C4: 3 | D4: 38 | E4: 79 | F4: 48 | G4: 0070 | H4: 0070 CORAL REEF MONTESSORI ACADEMY CHARTER | I4: 4 | J4: 27 | K4: 57 | L4: 47 | M4: 0070 | N4: 0070 CORAL REEF MONTESSORI ACADEMY CHARTER | O4: 5 | P4: 14 | Q4: 29 | R4: 48 | S4: 0070 | T4: 0070 CORAL REEF MONTESSORI ACADEMY CHARTER | U4: 6 | V4: 15 | W4: 56 | X4: 27 | Y4: 0070 | Z4: 0070 CORAL REEF MONTESSORI ACADEMY CHARTER | AA4: 7 | AB4: 15 | AC4: 60 | AD4: 25 | AE4: 0071 | AF4: 0071 EUGENIA B. THOMAS K-8 CENTER | AG4: 8 | AH4: 44 | AI4: 49 | AJ4: 90
A5: 0071 | B5: 0071 EUGENIA B. THOMAS K-8 CENTER | C5: 3 | D5: 108 | E5: 50 | F5: 215 | G5: 0071 | H5: 0071 EUGENIA B. THOMAS K-8 CENTER | I5: 4 | J5: 144 | K5: 77 | L5: 186 | M5: 0071 | N5: 0071 EUGENIA B. THOMAS K-8 CENTER | O5: 5 | P5: 106 | Q5: 55 | R5: 191 | S5: 0071 | T5: 0071 EUGENIA B. THOMAS K-8 CENTER | U5: 6 | V5: 98 | W5: 51 | X5: 193 | Y5: 0071 | Z5: 0071 EUGENIA B. THOMAS K-8 CENTER | AA5: 7 | AB5: 63 | AC5: 45 | AD5: 140 | AE5: 0073 | AF5: 0073 MANDARIN LAKES K-8 ACADEMY | AG5: 8 | AH5: 21 | AI5: 26 | AJ5: 80
A6: 0072 | B6: 0072 SUMMERVILLE ADVANTAGE ACADEMY | C6: 3 | D6: 54 | E6: 64 | F6: 85 | G6: 0072 | H6: 0072 SUMMERVILLE ADVANTAGE ACADEMY | I6: 4 | J6: 59 | K6: 68 | L6: 87 | M6: 0072 | N6: 0072 SUMMERVILLE ADVANTAGE ACADEMY | O6: 5 | P6: 40 | Q6: 59 | R6: 68 | S6: 0073 | T6: 0073 MANDARIN LAKES K-8 ACADEMY | U6: 6 | V6: 39 | W6: 36 | X6: 109 | Y6: 0073 | Z6: 0073 MANDARIN LAKES K-8 ACADEMY | AA6: 7 | AB6: 19 | AC6: 21 | AD6: 92 | AE6: 0091 | AF6: 0091 BOB GRAHAM EDUCATION CENTER | AG6: 8 | AH6: 77 | AI6: 56 | AJ6: 138
A7: 0073 | B7: 0073 MANDARIN LAKES K-8 ACADEMY | C7: 3 | D7: 55 | E7: 32 | F7: 172 | G7: 0073 | H7: 0073 MANDARIN LAKES K-8 ACADEMY | I7: 4 | J7: 32 | K7: 32 | L7: 99 | M7: 0073 | N7: 0073 MANDARIN LAKES K-8 ACADEMY | O7: 5 | P7: 29 | Q7: 22 | R7: 133 | S7: 0091 | T7: 0091 BOB GRAHAM EDUCATION CENTER | U7: 6 | V7: 155 | W7: 67 | X7: 232 | Y7: 0091 | Z7: 0091 BOB GRAHAM EDUCATION CENTER | AA7: 7 | AB7: 126 | AC7: 66 | AD7: 190 | AE7: 0092 | AF7: 0092 NORMAN S. EDELCUP/SUNNY ISLES BEACH K-8 | AG7: 8 | AH7: 115 | AI7: 77 | AJ7: 149
A8: 0081 | B8: 0081 LENORA BRAYNON SMITH ELEMENTARY | C8: 3 | D8: 23 | E8: 42 | F8: 55 | G8: 0081 | H8: 0081 LENORA BRAYNON SMITH ELEMENTARY | I8: 4 | J8: 19 | K8: 37 | L8: 52 | M8: 0081 | N8: 0081 LENORA BRAYNON SMITH ELEMENTARY | O8: 5 | P8: 38 | Q8: 57 | R8: 67 | S8: 0092 | T8: 0092 NORMAN S. EDELCUP/SUNNY ISLES BEACH K-8 | U8: 6 | V8: 166 | W8: 74 | X8: 223 | Y8: 0092 | Z8: 0092 NORMAN S. EDELCUP/SUNNY ISLES BEACH K-8 | AA8: 7 | AB8: 139 | AC8: 79 | AD8: 176 | AE8: 0122 | AF8: 0122 DR. ROLANDO ESPINOSA K-8 CENTER | AG8: 8 | AH8: 85 | AI8: 61 | AJ8: 140
A9: 0091 | B9: 0091 BOB GRAHAM EDUCATION CENTER | C9: 3 | D9: 110 | E9: 63 | F9: 176 | G9: 0091 | H9: 0091 BOB GRAHAM EDUCATION CENTER | I9: 4 | J9: 115 | K9: 58 | L9: 200 | M9: 0091 | N9: 0091 BOB GRAHAM EDUCATION CENTER | O9: 5 | P9: 135 | Q9: 63 | R9: 215 | S9: 0122 | T9: 0122 DR. ROLANDO ESPINOSA K-8 CENTER | U9: 6 | V9: 109 | W9: 55 | X9: 198 | Y9: 0122 | Z9: 0122 DR. ROLANDO ESPINOSA K-8 CENTER | AA9: 7 | AB9: 88 | AC9: 59 | AD9: 149 | AE9: 0231 | AF9: 0231 AVENTURA WATERWAYS K-8 CENTER | AG9: 8 | AH9: 59 | AI9: 58 | AJ9: 102
A10: 0092 | B10: 0092 NORMAN S. EDELCUP/SUNNY ISLES BEACH K-8 | C10: 3 | D10: 176 | E10: 79 | F10: 224 | G10: 0092 | H10: 0092 NORMAN S. EDELCUP/SUNNY ISLES BEACH K-8 | I10: 4 | J10: 189 | K10: 76 | L10: 250 | M10: 0092 | N10: 0092 NORMAN S. EDELCUP/SUNNY ISLES BEACH K-8 | O10: 5 | P10: 170 | Q10: 74 | R10: 230 | S10: 0231 | T10: 0231 AVENTURA WATERWAYS K-8 CENTER | U10: 6 | V10: 145 | W10: 65 | X10: 223 | Y10: 0231 | Z10: 0231 AVENTURA WATERWAYS K-8 CENTER | AA10: 7 | AB10: 107 | AC10: 62 | AD10: 173 | AE10: 0241 | AF10: 0241 RUTH K. BROAD BAY HARBOR K-8 CENTER | AG10: 8 | AH10: 41 | AI10: 69 | AJ10: 59
A11: 0100 | B11: 0100 MATER ACADEMY | C11: 3 | D11: 136 | E11: 77 | F11: 176 | G11: 0100 | H11: 0100 MATER ACADEMY | I11: 4 | J11: 127 | K11: 82 | L11: 154 | M11: 0100 | N11: 0100 MATER ACADEMY | O11: 5 | P11: 73 | Q11: 53 | R11: 137 | S11: 0241 | T11: 0241 RUTH K. BROAD BAY HARBOR K-8 CENTER | U11: 6 | V11: 117 | W11: 73 | X11: 161 | Y11: 0241 | Z11: 0241 RUTH K. BROAD BAY HARBOR K-8 CENTER | AA11: 7 | AB11: 80 | AC11: 71 | AD11: 112 | AE11: 0332 | AF11: 0332 SOMERSET ACADEMY (SILVER PALMS) | AG11: 8 | AH11: 56 | AI11: 85 | AJ11: 66
A12: 0101 | B12: 0101 ARCOLA LAKE ELEMENTARY SCHOOL | C12: 3 | D12: 39 | E12: 48 | F12: 81 | G12: 0101 | H12: 0101 ARCOLA LAKE ELEMENTARY SCHOOL | I12: 4 | J12: 32 | K12: 52 | L12: 61 | M12: 0101 | N12: 0101 ARCOLA LAKE ELEMENTARY SCHOOL | O12: 5 | P12: 4 | Q12: 8 | R12: 51 | S12: 0332 | T12: 0332 SOMERSET ACADEMY (SILVER PALMS) | U12: 6 | V12: 117 | W12: 75 | X12: 157 | Y12: 0332 | Z12: 0332 SOMERSET ACADEMY (SILVER PALMS) | AA12: 7 | AB12: 66 | AC12: 71 | AD12: 93 | AE12: 0451 | AF12: 0451 BOWMAN ASHE/DOOLIN K-8 ACADEMY | AG12: 8 | AH12: 25 | AI12: 24 | AJ12: 105
A13: 0102 | B13: 0102 MIAMI COMMUNITY CHARTER SCHOOL | C13: 3 | D13: 59 | E13: 68 | F13: 87 | G13: 0102 | H13: 0102 MIAMI COMMUNITY CHARTER SCHOOL | I13: 4 | J13: 52 | K13: 65 | L13: 80 | M13: 0102 | N13: 0102 MIAMI COMMUNITY CHARTER SCHOOL | O13: 5 | P13: 31 | Q13: 40 | R13: 78 | S13: 0451 | T13: 0451 BOWMAN ASHE/DOOLIN K-8 ACADEMY | U13: 6 | V13: 46 | W13: 38 | X13: 120 | Y13: 0451 | Z13: 0451 BOWMAN ASHE/DOOLIN K-8 ACADEMY | AA13: 7 | AB13: 56 | AC13: 46 | AD13: 122 | AE13: 0651 | AF13: 0651 CAMPBELL DRIVE K-8 CENTER | AG13: 8 | AH13: 10 | AI13: 27 | AJ13: 37
A14: 0111 | B14: 0111 MAYA ANGELOU ELEMENTARY SCHOOL | C14: 3 | D14: 65 | E14: 49 | F14: 133 | G14: 0111 | H14: 0111 MAYA ANGELOU ELEMENTARY SCHOOL | I14: 4 | J14: 58 | K14: 67 | L14: 87 | M14: 0111 | N14: 0111 MAYA ANGELOU ELEMENTARY SCHOOL | O14: 5 | P14: 36 | Q14: 39 | R14: 92 | S14: 0651 | T14: 0651 CAMPBELL DRIVE K-8 CENTER | U14: 6 | V14: 32 | W14: 40 | X14: 81 | Y14: 0651 | Z14: 0651 CAMPBELL DRIVE K-8 CENTER | AA14: 7 | AB14: 34 | AC14: 41 | AD14: 82 | AE14: 0761 | AF14: 0761 FIENBERG/FISHER K-8 CENTER | AG14: 8 | AH14: 34 | AI14: 43 | AJ14: 80
A15: 0121 | B15: 0121 AUBURNDALE ELEMENTARY SCHOOL | C15: 3 | D15: 88 | E15: 57 | F15: 155 | G15: 0121 | H15: 0121 AUBURNDALE ELEMENTARY SCHOOL | I15: 4 | J15: 69 | K15: 48 | L15: 145 | M15: 0121 | N15: 0121 AUBURNDALE ELEMENTARY SCHOOL | O15: 5 | P15: 65 | Q15: 54 | R15: 121 | S15: 0761 | T15: 0761 FIENBERG/FISHER K-8 CENTER | U15: 6 | V15: 42 | W15: 41 | X15: 102 | Y15: 0761 | Z15: 0761 FIENBERG/FISHER K-8 CENTER | AA15: 7 | AB15: 47 | AC15: 47 | AD15: 101 | AE15: 0950 | AF15: 0950 AVENTURA CITY OF EXCELLENCE | AG15: 8 | AH15: 39 | AI15: 93 | AJ15: 42
A16: 0122 | B16: 0122 DR. ROLANDO ESPINOSA K-8 CENTER | C16: 3 | D16: 138 | E16: 64 | F16: 214 | G16: 0122 | H16: 0122 DR. ROLANDO ESPINOSA K-8 CENTER | I16: 4 | J16: 138 | K16: 65 | L16: 212 | M16: 0122 | N16: 0122 DR. ROLANDO ESPINOSA K-8 CENTER | O16: 5 | P16: 90 | Q16: 47 | R16: 190 | S16: 0950 | T16: 0950 AVENTURA CITY OF EXCELLENCE | U16: 6 | V16: 95 | W16: 82 | X16: 116 | Y16: 0950 | Z16: 0950 AVENTURA CITY OF EXCELLENCE | AA16: 7 | AB16: 61 | AC16: 91 | AD16: 67 | AE16: 0961 | AF16: 0961 CORAL GABLES PREPARATORY ACADEMY | AG16: 8 | AH16: 11 | AI16: 35 | AJ16: 31
A17: 0125 | B17: 0125 NORMA BUTLER BOSSARD ELEMENTARY SCHOOL | C17: 3 | D17: 161 | E17: 71 | F17: 227 | G17: 0125 | H17: 0125 NORMA BUTLER BOSSARD ELEMENTARY SCHOOL | I17: 4 | J17: 142 | K17: 75 | L17: 189 | M17: 0125 | N17: 0125 NORMA BUTLER BOSSARD ELEMENTARY SCHOOL | O17: 5 | P17: 132 | Q17: 56 | R17: 234 | S17: 0961 | T17: 0961 CORAL GABLES PREPARATORY ACADEMY | U17: 6 | V17: 72 | W17: 83 | X17: 87 | Y17: 0961 | Z17: 0961 CORAL GABLES PREPARATORY ACADEMY | AA17: 7 | AB17: 17 | AC17: 44 | AD17: 39 | AE17: 1020 | AF17: 1020 YOUTH CO-OP CHARTER SCHOOL | AG17: 8 | AH17: 36 | AI17: 52 | AJ17: 69
A18: 0161 | B18: 0161 AVOCADO ELEMENTARY SCHOOL | C18: 3 | D18: 47 | E18: 35 | F18: 134 | G18: 0201 | H18: 0201 BANYAN ELEMENTARY SCHOOL | I18: 4 | J18: 48 | K18: 71 | L18: 68 | M18: 0201 | N18: 0201 BANYAN ELEMENTARY SCHOOL | O18: 5 | P18: 26 | Q18: 67 | R18: 39 | S18: 1014 | T18: 1014 HIGHLY INQUISITIVE/VERSATILE EDUC(HIVE) PREP | U18: 6 | V18: 23 | W18: 50 | X18: 46 | Y18: 1014 | Z18: 1014 HIGHLY INQUISITIVE/VERSATILE EDUC(HIVE) PREP | AA18: 7 | AC18: NA | AD18: 8 | AE18: 1121 | AF18: 1121 CORAL WAY K-8 CENTER | AG18: 8 | AH18: 26 | AI18: 35 | AJ18: 74
A19: 0201 | B19: 0201 BANYAN ELEMENTARY SCHOOL | C19: 3 | D19: 42 | E19: 69 | F19: 61 | G19: 0211 | H19: 0211 DR. MANUEL C. BARREIRO ELEMENTARY SCHOOL | I19: 4 | J19: 104 | K19: 79 | L19: 132 | M19: 0211 | N19: 0211 DR. MANUEL C. BARREIRO ELEMENTARY SCHOOL | O19: 5 | P19: 111 | Q19: 83 | R19: 134 | S19: 1020 | T19: 1020 YOUTH CO-OP CHARTER SCHOOL | U19: 6 | V19: 24 | W19: 39 | X19: 62 | Y19: 1020 | Z19: 1020 YOUTH CO-OP CHARTER SCHOOL | AA19: 7 | AB19: 12 | AC19: 34 | AD19: 35 | AE19: 1331 | AF19: 1331 DEVON AIRE K-8 CENTER | AG19: 8 | AH19: 65 | AI19: 68 | AJ19: 96
A20: 0211 | B20: 0211 DR. MANUEL C. BARREIRO ELEMENTARY SCHOOL | C20: 3 | D20: 96 | E20: 72 | F20: 134 | G20: 0231 | H20: 0231 AVENTURA WATERWAYS K-8 CENTER | I20: 4 | J20: 167 | K20: 70 | L20: 237 | M20: 0231 | N20: 0231 AVENTURA WATERWAYS K-8 CENTER | O20: 5 | P20: 121 | Q20: 56 | R20: 215 | S20: 1121 | T20: 1121 CORAL WAY K-8 CENTER | U20: 6 | V20: 84 | W20: 54 | X20: 155 | Y20: 1121 | Z20: 1121 CORAL WAY K-8 CENTER | AA20: 7 | AB20: 91 | AC20: 55 | AD20: 164 | AE20: 1401 | AF20: 1401 CHARLES R DREW K-8 CENTER | AG20: 8 | AH20: 8 | AI20: 40 | AJ20: 20
A21: 0231 | B21: 0231 AVENTURA WATERWAYS K-8 CENTER | C21: 3 | D21: 183 | E21: 70 | F21: 262 | G21: 0241 | H21: 0241 RUTH K. BROAD BAY HARBOR K-8 CENTER | I21: 4 | J21: 131 | K21: 86 | L21: 153 | M21: 0241 | N21: 0241 RUTH K. BROAD BAY HARBOR K-8 CENTER | O21: 5 | P21: 116 | Q21: 76 | R21: 152 | S21: 1331 | T21: 1331 DEVON AIRE K-8 CENTER | U21: 6 | V21: 124 | W21: 70 | X21: 177 | Y21: 1331 | Z21: 1331 DEVON AIRE K-8 CENTER | AA21: 7 | AB21: 125 | AC21: 76 | AD21: 165 | AE21: 1441 | AF21: 1441 PAUL LAURENCE DUNBAR K-8 CENTER | AG21: 8 | AH21: 5 | AI21: 38 | AJ21: 13
A22: 0241 | B22: 0241 RUTH K. BROAD BAY HARBOR K-8 CENTER | C22: 3 | D22: 109 | E22: 81 | F22: 134 | G22: 0251 | H22: 0251 ETHEL KOGER BECKHAM ELEMENTARY | I22: 4 | J22: 109 | K22: 88 | L22: 124 | M22: 0251 | N22: 0251 ETHEL KOGER BECKHAM ELEMENTARY | O22: 5 | P22: 104 | Q22: 85 | R22: 122 | S22: 1401 | T22: 1401 CHARLES R DREW K-8 CENTER | U22: 6 | V22: 25 | W22: 46 | X22: 54 | Y22: 1401 | Z22: 1401 CHARLES R DREW K-8 CENTER | AA22: 7 | AB22: 15 | AC22: 36 | AD22: 42 | AE22: 1601 | AF22: 1601 EDISON PARK K-8 CENTER | AG22: 8 | AH22: 6 | AI22: 33 | AJ22: 18
A23: 0251 | B23: 0251 ETHEL KOGER BECKHAM ELEMENTARY | C23: 3 | D23: 112 | E23: 82 | F23: 136 | G23: 0261 | H23: 0261 BEL-AIRE ELEMENTARY SCHOOL | I23: 4 | J23: 22 | K23: 40 | L23: 55 | M23: 0261 | N23: 0261 BEL-AIRE ELEMENTARY SCHOOL | O23: 5 | P23: 23 | Q23: 37 | R23: 62 | S23: 1441 | T23: 1441 PAUL LAURENCE DUNBAR K-8 CENTER | U23: 6 | V23: 6 | W23: 18 | X23: 34 | Y23: 1441 | Z23: 1441 PAUL LAURENCE DUNBAR K-8 CENTER | AA23: 7 | AB23: 4 | AC23: 40 | AD23: 10 | AE23: 1681 | AF23: 1681 LILLIE C. EVANS K-8 CENTER | AG23: 8 | AH23: 4 | AI23: 40 | AJ23: 10
A24: 0261 | B24: 0261 BEL-AIRE ELEMENTARY SCHOOL | C24: 3 | D24: 25 | E24: 36 | F24: 70 | G24: 0271 | H24: 0271 BENT TREE ELEMENTARY SCHOOL | I24: 4 | J24: 54 | K24: 64 | L24: 85 | M24: 0271 | N24: 0271 BENT TREE ELEMENTARY SCHOOL | O24: 5 | P24: 61 | Q24: 75 | R24: 81 | S24: 1601 | T24: 1601 EDISON PARK K-8 CENTER | U24: 6 | V24: 12 | W24: 27 | X24: 44 | Y24: 1601 | Z24: 1601 EDISON PARK K-8 CENTER | AA24: 7 | AB24: 10 | AC24: 31 | AD24: 32 | AE24: 1721 | AF24: 1721 EVERGLADES K-8 CENTER | AG24: 8 | AH24: 22 | AI24: 31 | AJ24: 71
A25: 0271 | B25: 0271 BENT TREE ELEMENTARY SCHOOL | C25: 3 | D25: 38 | E25: 60 | F25: 63 | G25: 0311 | H25: 0311 GOULDS ELEMENTARY SCHOOL | I25: 4 | J25: 41 | K25: 41 | L25: 99 | M25: 0311 | N25: 0311 GOULDS ELEMENTARY SCHOOL | O25: 5 | P25: 26 | Q25: 34 | R25: 77 | S25: 1681 | T25: 1681 LILLIE C. EVANS K-8 CENTER | U25: 6 | V25: 32 | W25: 67 | X25: 48 | Y25: 1681 | Z25: 1681 LILLIE C. EVANS K-8 CENTER | AA25: 7 | AB25: 5 | AC25: 17 | AD25: 29 | AE25: 2041 | AF25: 2041 BENJAMIN FRANKLIN K-8 CENTER | AG25: 8 | AH25: 9 | AI25: 22 | AJ25: 41
A26: 0311 | B26: 0311 GOULDS ELEMENTARY SCHOOL | C26: 3 | D26: 60 | E26: 53 | F26: 114 | G26: 0312 | H26: 0312 MATER GARDENS ACADEMY | I26: 4 | J26: 78 | K26: 83 | L26: 94 | M26: 0312 | N26: 0312 MATER GARDENS ACADEMY | O26: 5 | P26: 83 | Q26: 81 | R26: 103 | S26: 1721 | T26: 1721 EVERGLADES K-8 CENTER | U26: 6 | V26: 45 | W26: 38 | X26: 117 | Y26: 1721 | Z26: 1721 EVERGLADES K-8 CENTER | AA26: 7 | AB26: 79 | AC26: 58 | AD26: 137 | AE26: 2060 | AF26: 2060 THEODORE R. AND THELMA A. GIBSON CHARTER | AG26: 8 | AH26: 0 | AI26: 0 | AJ26: 15
A27: 0312 | B27: 0312 MATER GARDENS ACADEMY | C27: 3 | D27: 84 | E27: 85 | F27: 99 | G27: 0321 | H27: 0321 BISCAYNE ELEMENTARY SCHOOL | I27: 4 | J27: 58 | K27: 62 | L27: 93 | M27: 0321 | N27: 0321 BISCAYNE ELEMENTARY SCHOOL | O27: 5 | P27: 40 | Q27: 40 | R27: 100 | S27: 2003 | T27: 2003 BRIDGEPREP ACADEMY SOUTH | U27: 6 | V27: 27 | W27: 69 | X27: 39 | Y27: 2003 | Z27: 2003 BRIDGEPREP ACADEMY SOUTH | AA27: 7 | AB27: 25 | AC27: 86 | AD27: 29 | AE27: 2701 | AF27: 2701 KENWOOD K-8 CENTER | AG27: 8 | AH27: 44 | AI27: 54 | AJ27: 82
A28: 0321 | B28: 0321 BISCAYNE ELEMENTARY SCHOOL | C28: 3 | D28: 68 | E28: 59 | F28: 115 | G28: 0332 | H28: 0332 SOMERSET ACADEMY (SILVER PALMS) | I28: 4 | J28: 45 | K28: 60 | L28: 75 | M28: 0332 | N28: 0332 SOMERSET ACADEMY (SILVER PALMS) | O28: 5 | P28: 45 | Q28: 60 | R28: 75 | S28: 2041 | T28: 2041 BENJAMIN FRANKLIN K-8 CENTER | U28: 6 | V28: 12 | W28: 22 | X28: 54 | Y28: 2041 | Z28: 2041 BENJAMIN FRANKLIN K-8 CENTER | AA28: 7 | AB28: 14 | AC28: 26 | AD28: 53 | AE28: 2741 | AF28: 2741 KEY BISCAYNE K-8 CENTER | AG28: 8 | AH28: 19 | AI28: 48 | AJ28: 40
A29: 0332 | B29: 0332 SOMERSET ACADEMY (SILVER PALMS) | C29: 3 | D29: 36 | E29: 60 | F29: 60 | G29: 0339 | H29: 0339 SOMERSET ACAD CHARTER ELEM SCHOOL S HOMESTEAD | I29: 4 | J29: 47 | K29: 61 | L29: 77 | M29: 0339 | N29: 0339 SOMERSET ACAD CHARTER ELEM SCHOOL S HOMESTEAD | O29: 5 | P29: 57 | Q29: 76 | R29: 75 | S29: 2060 | T29: 2060 THEODORE R. AND THELMA A. GIBSON CHARTER | U29: 6 | V29: 6 | W29: 19 | X29: 31 | Y29: 2060 | Z29: 2060 THEODORE R. AND THELMA A. GIBSON CHARTER | AA29: 7 | AB29: 10 | AC29: 32 | AD29: 31 | AE29: 2881 | AF29: 2881 LEEWOOD K-8 CENTER | AG29: 8 | AH29: 9 | AI29: 45 | AJ29: 20
A30: 0339 | B30: 0339 SOMERSET ACAD CHARTER ELEM SCHOOL S HOMESTEAD | C30: 3 | D30: 51 | E30: 69 | F30: 74 | G30: 0341 | H30: 0341 ARCHCREEK ELEMENTARY SCHOOL | I30: 4 | J30: 53 | K30: 54 | L30: 99 | M30: 0341 | N30: 0341 ARCHCREEK ELEMENTARY SCHOOL | O30: 5 | P30: 33 | Q30: 39 | R30: 84 | S30: 2241 | T30: 2241 GRATIGNY ELEMENTARY SCHOOL | U30: 6 | V30: 35 | W30: 55 | X30: 64 | Y30: 2701 | Z30: 2701 KENWOOD K-8 CENTER | AA30: 7 | AB30: 64 | AC30: 64 | AD30: 100 | AE30: 2901 | AF30: 2901 LEISURE CITY K-8 CENTER | AG30: 8 | AH30: 12 | AI30: 20 | AJ30: 59
A31: 0341 | B31: 0341 ARCHCREEK ELEMENTARY SCHOOL | C31: 3 | D31: 35 | E31: 39 | F31: 90 | G31: 0342 | H31: 0342 PINECREST ACADEMY (SOUTH CAMPUS) | I31: 4 | J31: 81 | K31: 79 | L31: 103 | M31: 0342 | N31: 0342 PINECREST ACADEMY (SOUTH CAMPUS) | O31: 5 | P31: 92 | Q31: 84 | R31: 110 | S31: 2701 | T31: 2701 KENWOOD K-8 CENTER | U31: 6 | V31: 61 | W31: 50 | X31: 122 | Y31: 2741 | Z31: 2741 KEY BISCAYNE K-8 CENTER | AA31: 7 | AB31: 88 | AC31: 80 | AD31: 110 | AE31: 2911 | AF31: 2911 LINDA LENTIN K-8 CENTER | AG31: 8 | AH31: 34 | AI31: 40 | AJ31: 86
A32: 0342 | B32: 0342 PINECREST ACADEMY (SOUTH CAMPUS) | C32: 3 | D32: 113 | E32: 88 | F32: 128 | G32: 0361 | H32: 0361 BISCAYNE GARDENS ELEMENTARY | I32: 4 | J32: 15 | K32: 28 | L32: 54 | M32: 0361 | N32: 0361 BISCAYNE GARDENS ELEMENTARY | O32: 5 | P32: 20 | Q32: 26 | R32: 77 | S32: 2741 | T32: 2741 KEY BISCAYNE K-8 CENTER | U32: 6 | V32: 136 | W32: 89 | X32: 153 | Y32: 2881 | Z32: 2881 LEEWOOD K-8 CENTER | AA32: 7 | AB32: 62 | AC32: 89 | AD32: 70 | AE32: 3029 | AF32: 3029 DORAL ACADEMY OF TECHNOLOGY | AG32: 8 | AI32: NA | AJ32: 5
A33: 0361 | B33: 0361 BISCAYNE GARDENS ELEMENTARY | C33: 3 | D33: 47 | E33: 53 | F33: 89 | G33: 0400 | H33: 0400 RENAISSANCE ELEMENTARY CHARTER SCHOOL | I33: 4 | J33: 132 | K33: 90 | L33: 147 | M33: 0400 | N33: 0400 RENAISSANCE ELEMENTARY CHARTER SCHOOL | O33: 5 | P33: 123 | Q33: 83 | R33: 149 | S33: 2881 | T33: 2881 LEEWOOD K-8 CENTER | U33: 6 | V33: 66 | W33: 77 | X33: 86 | Y33: 2901 | Z33: 2901 LEISURE CITY K-8 CENTER | AA33: 7 | AB33: 54 | AC33: 49 | AD33: 110 | AE33: 3032 | AF33: 3032 PALM GLADES PREPARATORY ACADEMY | AG33: 8 | AH33: 15 | AI33: 14 | AJ33: 110
A34: 0400 | B34: 0400 RENAISSANCE ELEMENTARY CHARTER SCHOOL | C34: 3 | D34: 137 | E34: 90 | F34: 152 | G34: 0401 | H34: 0401 VAN E. BLANTON ELEMENTARY SCHL | I34: 4 | J34: 38 | K34: 45 | L34: 85 | M34: 0401 | N34: 0401 VAN E. BLANTON ELEMENTARY SCHL | O34: 5 | P34: 27 | Q34: 35 | R34: 77 | S34: 2901 | T34: 2901 LEISURE CITY K-8 CENTER | U34: 6 | V34: 43 | W34: 36 | X34: 121 | Y34: 2911 | Z34: 2911 LINDA LENTIN K-8 CENTER | AA34: 7 | AB34: 43 | AC34: 37 | AD34: 116 | AE34: 3101 | AF34: 3101 FRANK CRAWFORD MARTIN K-8 CENTER | AG34: 8 | AH34: 25 | AI34: 64 | AJ34: 39
A35: 0401 | B35: 0401 VAN E. BLANTON ELEMENTARY SCHL | C35: 3 | D35: 67 | E35: 73 | F35: 92 | G35: 0410 | H35: 0410 ACADEMIR CHARTER SCHOOL WEST | I35: 4 | J35: 79 | K35: 79 | L35: 100 | M35: 0410 | N35: 0410 ACADEMIR CHARTER SCHOOL WEST | O35: 5 | P35: 49 | Q35: 53 | R35: 93 | S35: =LEFT(T35,4) -> 2911 | T35: 2911 LINDA LENTIN K-8 CENTER | U35: 6 | V35: 43 | W35: 47 | X35: 91 | Y35: =LEFT(Z35,4) -> 3029 | Z35: 3029 DORAL ACADEMY OF TECHNOLOGY | AA35: 7 | AB35: 13 | AC35: 93 | AD35: 14 | AE35: =LEFT(AF35,4) -> 3281 | AF35: 3281 MIAMI LAKES K-8 CENTER | AG35: 8 | AH35: 13 | AI35: 21 | AJ35: 62
A36: 0410 | B36: 0410 ACADEMIR CHARTER SCHOOL WEST | C36: 3 | D36: 142 | E36: 93 | F36: 152 | G36: 0441 | H36: 0441 BLUE LAKES ELEMENTARY SCHOOL | I36: 4 | J36: 46 | K36: 70 | L36: 66 | M36: 0441 | N36: 0441 BLUE LAKES ELEMENTARY SCHOOL | O36: 5 | P36: 31 | Q36: 46 | R36: 68 | S36: 3029 | T36: 3029 DORAL ACADEMY OF TECHNOLOGY | U36: 6 | V36: 49 | W36: 96 | X36: 51 | Y36: 3032 | Z36: 3032 PALM GLADES PREPARATORY ACADEMY | AA36: 7 | AB36: 35 | AC36: 30 | AD36: 116 | AE36: 3421 | AF36: 3421 MARCUS A. MILAM K-8 CENTER | AG36: 8 | AH36: 66 | AI36: 58 | AJ36: 114
A37: 0441 | B37: 0441 BLUE LAKES ELEMENTARY SCHOOL | C37: 3 | D37: 38 | E37: 76 | F37: 50 | G37: 0451 | H37: 0451 BOWMAN ASHE/DOOLIN K-8 ACADEMY | I37: 4 | J37: 90 | K37: 77 | L37: 117 | M37: 0451 | N37: 0451 BOWMAN ASHE/DOOLIN K-8 ACADEMY | O37: 5 | P37: 93 | Q37: 64 | R37: 146 | S37: 3032 | T37: 3032 PALM GLADES PREPARATORY ACADEMY | U37: 6 | V37: 22 | W37: 25 | X37: 88 | Y37: 3101 | Z37: 3101 FRANK CRAWFORD MARTIN K-8 CENTER | AA37: 7 | AB37: 84 | AC37: 82 | AD37: 102 | AE37: 3501 | AF37: 3501 MORNINGSIDE K-8 ACADEMY | AG37: 8 | AH37: 8 | AI37: 35 | AJ37: 23
A38: 0451 | B38: 0451 BOWMAN ASHE/DOOLIN K-8 ACADEMY | C38: 3 | D38: 78 | E38: 63 | F38: 124 | G38: 0461 | H38: 0461 BRENTWOOD ELEMENTARY SCHOOL | I38: 4 | J38: 53 | K38: 50 | L38: 106 | M38: 0461 | N38: 0461 BRENTWOOD ELEMENTARY SCHOOL | O38: 5 | P38: 25 | Q38: 25 | R38: 99 | S38: 3033 | T38: 3033 SOMERSET OAKS ACADEMY | U38: 6 | W38: NA | X38: 7 | Y38: 3191 | Z38: 3191 ADA MERRITT K-8 CENTER | AA38: 7 | AB38: 45 | AC38: 78 | AD38: 58 | AE38: 3581 | AF38: 3581 MYRTLE GROVE K-8 CENTER | AG38: 8 | AH38: 12 | AI38: 36 | AJ38: 33
A39: 0461 | B39: 0461 BRENTWOOD ELEMENTARY SCHOOL | C39: 3 | D39: 55 | E39: 49 | F39: 112 | G39: 0481 | H39: 0481 JAMES H. BRIGHT ELEMENTARY/J.W. JOHNSON ELEM | I39: 4 | J39: 55 | K39: 48 | L39: 114 | M39: 0481 | N39: 0481 JAMES H. BRIGHT ELEMENTARY/J.W. JOHNSON ELEM | O39: 5 | P39: 56 | Q39: 39 | R39: 142 | S39: 3101 | T39: 3101 FRANK CRAWFORD MARTIN K-8 CENTER | U39: 6 | V39: 72 | W39: 58 | X39: 124 | Y39: 3281 | Z39: 3281 MIAMI LAKES K-8 CENTER | AA39: 7 | AB39: 100 | AC39: 60 | AD39: 168 | AE39: 3610 | AF39: 3610 KEYS GATE CHARTER SCHOOL | AG39: 8 | AH39: 51 | AI39: 32 | AJ39: 157
A40: 0481 | B40: 0481 JAMES H. BRIGHT ELEMENTARY/J.W. JOHNSON ELEM | C40: 3 | D40: 51 | E40: 43 | F40: 119 | G40: 0510 | H40: 0510 ARCHIMEDEAN ACADEMY | I40: 4 | J40: 94 | K40: 95 | L40: 99 | M40: 0510 | N40: 0510 ARCHIMEDEAN ACADEMY | O40: 5 | P40: 85 | Q40: 98 | R40: 87 | S40: 3191 | T40: 3191 ADA MERRITT K-8 CENTER | U40: 6 | V40: 61 | W40: 81 | X40: 75 | Y40: 3421 | Z40: 3421 MARCUS A. MILAM K-8 CENTER | AA40: 7 | AB40: 46 | AC40: 45 | AD40: 102 | AE40: 3621 | AF40: 3621 COCONUT PALM K-8 ACADEMY | AG40: 8 | AH40: 33 | AI40: 42 | AJ40: 79
A41: 0510 | B41: 0510 ARCHIMEDEAN ACADEMY | C41: 3 | D41: 109 | E41: 89 | F41: 122 | G41: 0520 | H41: 0520 SOMERSET ACADEMY CHARTER | I41: 4 | J41: 80 | K41: 89 | L41: 90 | M41: 0520 | N41: 0520 SOMERSET ACADEMY CHARTER | O41: 5 | P41: 70 | Q41: 71 | R41: 98 | S41: 3281 | T41: 3281 MIAMI LAKES K-8 CENTER | U41: 6 | V41: 118 | W41: 66 | X41: 180 | Y41: 3501 | Z41: 3501 MORNINGSIDE K-8 ACADEMY | AA41: 7 | AB41: 10 | AC41: 27 | AD41: 37 | AE41: 3821 | AF41: 3821 NORTH COUNTY K-8 CENTER | AG41: 8 | AH41: 4 | AI41: 27 | AJ41: 15
A42: 0520 | B42: 0520 SOMERSET ACADEMY CHARTER | C42: 3 | D42: 81 | E42: 72 | F42: 113 | G42: 0521 | H42: 0521 BROADMOOR ELEMENTARY SCHOOL | I42: 4 | J42: 20 | K42: 30 | L42: 66 | M42: 0521 | N42: 0521 BROADMOOR ELEMENTARY SCHOOL | O42: 5 | P42: 27 | Q42: 42 | R42: 64 | S42: 3421 | T42: 3421 MARCUS A. MILAM K-8 CENTER | U42: 6 | V42: 47 | W42: 44 | X42: 106 | Y42: 3581 | Z42: 3581 MYRTLE GROVE K-8 CENTER | AA42: 7 | AB42: 10 | AC42: 18 | AD42: 55 | AE42: 4031 | AF42: 4031 GATEWAY ENVIRONMENTAL K-8 LEARNING CENTER | AG42: 8 | AH42: 27 | AI42: 28 | AJ42: 96
A43: 0521 | B43: 0521 BROADMOOR ELEMENTARY SCHOOL | C43: 3 | D43: 42 | E43: 49 | F43: 86 | G43: 0561 | H43: 0561 W. J. BRYAN ELEMENTARY | I43: 4 | J43: 43 | K43: 42 | L43: 103 | M43: 0561 | N43: 0561 W. J. BRYAN ELEMENTARY | O43: 5 | P43: 51 | Q43: 48 | R43: 107 | S43: 3501 | T43: 3501 MORNINGSIDE K-8 ACADEMY | U43: 6 | V43: 16 | W43: 29 | X43: 55 | Y43: 3610 | Z43: 3610 KEYS GATE CHARTER SCHOOL | AA43: 7 | AB43: 57 | AC43: 26 | AD43: 216 | AE43: 4391 | AF43: 4391 IRVING & BEATRICE PESKOE K-8 CENTER | AG43: 8 | AH43: 2 | AI43: 7 | AJ43: 28
A44: 0561 | B44: 0561 W. J. BRYAN ELEMENTARY | C44: 3 | D44: 67 | E44: 48 | F44: 141 | G44: 0600 | H44: 0600 PINECREST PREPARATORY ACADEMY | I44: 4 | J44: 79 | K44: 71 | L44: 112 | M44: 0600 | N44: 0600 PINECREST PREPARATORY ACADEMY | O44: 5 | P44: 83 | Q44: 70 | R44: 118 | S44: 3581 | T44: 3581 MYRTLE GROVE K-8 CENTER | U44: 6 | V44: 30 | W44: 42 | X44: 71 | Y44: 3621 | Z44: 3621 COCONUT PALM K-8 ACADEMY | AA44: 7 | AB44: 27 | AC44: 25 | AD44: 109 | AE44: 4691 | AF44: 4691 JANE S. ROBERTS K-8 CENTER | AG44: 8 | AH44: 34 | AI44: 68 | AJ44: 50
A45: 0600 | B45: 0600 PINECREST PREPARATORY ACADEMY | C45: 3 | D45: 95 | E45: 76 | F45: 125 | G45: 0641 | H45: 0641 BUNCHE PARK ELEMENTARY SCHOOL | I45: 4 | J45: 10 | K45: 30 | L45: 33 | M45: 0641 | N45: 0641 BUNCHE PARK ELEMENTARY SCHOOL | O45: 5 | P45: 11 | Q45: 39 | R45: 28 | S45: 3600 | T45: 3600 DOWNTOWN MIAMI CHARTER SCHOOL | U45: 6 | V45: 52 | W45: 73 | X45: 71 | Y45: 3821 | Z45: 3821 NORTH COUNTY K-8 CENTER | AA45: 7 | AB45: 16 | AC45: 42 | AD45: 38 | AE45: 5003 | AF45: 5003 SOUTH DADE MIDDLE SCHOOL | AG45: 8 | AH45: 25 | AI45: 24 | AJ45: 103
A46: 0641 | B46: 0641 BUNCHE PARK ELEMENTARY SCHOOL | C46: 3 | D46: 19 | E46: 39 | F46: 49 | G46: 0651 | H46: 0651 CAMPBELL DRIVE K-8 CENTER | I46: 4 | J46: 44 | K46: 45 | L46: 98 | M46: 0651 | N46: 0651 CAMPBELL DRIVE K-8 CENTER | O46: 5 | P46: 35 | Q46: 37 | R46: 95 | S46: 3610 | T46: 3610 KEYS GATE CHARTER SCHOOL | U46: 6 | V46: 124 | W46: 48 | X46: 261 | Y46: 4031 | Z46: 4031 GATEWAY ENVIRONMENTAL K-8 LEARNING CENTER | AA46: 7 | AB46: 61 | AC46: 39 | AD46: 155 | AE46: 5005 | AF46: 5005 DAVID LAWRENCE JR. K-8 CENTER | AG46: 8 | AH46: 33 | AI46: 30 | AJ46: 111
A47: 0651 | B47: 0651 CAMPBELL DRIVE K-8 CENTER | C47: 3 | D47: 68 | E47: 58 | F47: 118 | G47: 0661 | H47: 0661 CARIBBEAN ELEMENTARY SCHOOL | I47: 4 | J47: 34 | K47: 39 | L47: 88 | M47: 0661 | N47: 0661 CARIBBEAN ELEMENTARY SCHOOL | O47: 5 | P47: 19 | Q47: 24 | R47: 79 | S47: 3621 | T47: 3621 COCONUT PALM K-8 ACADEMY | U47: 6 | V47: 60 | W47: 41 | X47: 147 | Y47: 4391 | Z47: 4391 IRVING & BEATRICE PESKOE K-8 CENTER | AA47: 7 | AB47: 25 | AC47: 44 | AD47: 57 | AE47: 5006 | AF47: 5006 EVERGLADES PREPARATORY ACADEMY | AG47: 8 | AH47: 56 | AI47: 34 | AJ47: 167
A48: 0661 | B48: 0661 CARIBBEAN ELEMENTARY SCHOOL | C48: 3 | D48: 41 | E48: 44 | F48: 94 | G48: 0671 | H48: 0671 CALUSA ELEMENTARY SCHOOL | I48: 4 | J48: 113 | K48: 86 | L48: 131 | M48: 0671 | N48: 0671 CALUSA ELEMENTARY SCHOOL | O48: 5 | P48: 119 | Q48: 77 | R48: 154 | S48: 3821 | T48: 3821 NORTH COUNTY K-8 CENTER | U48: 6 | V48: 10 | W48: 25 | X48: 40 | Y48: 4691 | Z48: 4691 JANE S. ROBERTS K-8 CENTER | AA48: 7 | AB48: 76 | AC48: 70 | AD48: 109 | AE48: 5007 | AF48: 5007 LINCOLN-MARTI CHARTER SCHOOL HIALEAH | AG48: 8 | AH48: 7 | AI48: 30 | AJ48: 23
A49: 0671 | B49: 0671 CALUSA ELEMENTARY SCHOOL | C49: 3 | D49: 129 | E49: 83 | F49: 156 | G49: 0681 | H49: 0681 CAROL CITY ELEMENTARY SCHOOL | I49: 4 | J49: 42 | K49: 55 | L49: 76 | M49: 0681 | N49: 0681 CAROL CITY ELEMENTARY SCHOOL | O49: 5 | P49: 16 | Q49: 29 | R49: 56 | S49: 4021 | T49: 4021 OAK GROVE ELEMENTARY SCHOOL | U49: 6 | V49: 15 | W49: 47 | X49: 32 | Y49: 5003 | Z49: 5003 SOUTH DADE MIDDLE SCHOOL | AA49: 7 | AB49: 84 | AC49: 37 | AD49: 229 | AE49: 5010 | AF49: 5010 OXFORD ACADEMY OF MIAMI | AG49: 8 | AH49: 5 | AI49: 45 | AJ49: 11
A50: 0681 | B50: 0681 CAROL CITY ELEMENTARY SCHOOL | C50: 3 | D50: 31 | E50: 48 | F50: 65 | G50: 0721 | H50: 0721 GEORGE W. CARVER ELEMENTARY SCHOOL | I50: 4 | J50: 37 | K50: 57 | L50: 65 | M50: 0721 | N50: 0721 GEORGE W. CARVER ELEMENTARY SCHOOL | O50: 5 | P50: 53 | Q50: 57 | R50: 93 | S50: 4031 | T50: 4031 GATEWAY ENVIRONMENTAL K-8 LEARNING CENTER | U50: 6 | V50: 51 | W50: 30 | X50: 169 | Y50: 5005 | Z50: 5005 DAVID LAWRENCE JR. K-8 CENTER | AA50: 7 | AB50: 62 | AC50: 39 | AD50: 158 | AE50: 5022 | AF50: 5022 BEN GAMLA CHARTER SCHOOL | AG50: 8 | AI50: NA | AJ50: 2
A51: 0721 | B51: 0721 GEORGE W. CARVER ELEMENTARY SCHOOL | C51: 3 | D51: 56 | E51: 65 | F51: 86 | G51: 0761 | H51: 0761 FIENBERG/FISHER K-8 CENTER | I51: 4 | J51: 26 | K51: 33 | L51: 80 | M51: 0761 | N51: 0761 FIENBERG/FISHER K-8 CENTER | O51: 5 | P51: 29 | Q51: 35 | R51: 83 | S51: 4391 | T51: 4391 IRVING & BEATRICE PESKOE K-8 CENTER | U51: 6 | V51: 20 | W51: 29 | X51: 70 | Y51: 5006 | Z51: 5006 EVERGLADES PREPARATORY ACADEMY | AA51: 7 | AB51: 88 | AC51: 52 | AD51: 169 | AE51: 5025 | AF51: 5025 LINCOLN-MARTI CHARTER SCHOOL LITTLE HAVANA | AG51: 8 | AH51: 44 | AI51: 67 | AJ51: 66
A52: 0761 | B52: 0761 FIENBERG/FISHER K-8 CENTER | C52: 3 | D52: 33 | E52: 39 | F52: 85 | G52: 0771 | H52: 0771 DR. WILLIAM A. CHAPMAN ELEMENTARY SCHOOL | I52: 4 | J52: 31 | K52: 46 | L52: 67 | M52: 0771 | N52: 0771 DR. WILLIAM A. CHAPMAN ELEMENTARY SCHOOL | O52: 5 | P52: 25 | Q52: 34 | R52: 73 | S52: 4691 | T52: 4691 JANE S. ROBERTS K-8 CENTER | U52: 6 | V52: 61 | W52: 65 | X52: 94 | Y52: 5007 | Z52: 5007 LINCOLN-MARTI CHARTER SCHOOL HIALEAH | AA52: 7 | AB52: 20 | AC52: 51 | AD52: 39 | AE52: 5029 | AF52: 5029 EXCELSIOR LANGUAGE ACADEMY OF HIALEAH | AG52: 8 | AH52: 6 | AI52: 38 | AJ52: 16
A53: 0771 | B53: 0771 DR. WILLIAM A. CHAPMAN ELEMENTARY SCHOOL | C53: 3 | D53: 39 | E53: 51 | F53: 76 | G53: 0801 | H53: 0801 CITRUS GROVE ELEMENTARY SCHOOL | I53: 4 | J53: 59 | K53: 54 | L53: 110 | M53: 0801 | N53: 0801 CITRUS GROVE ELEMENTARY SCHOOL | O53: 5 | P53: 36 | Q53: 32 | R53: 112 | S53: 5003 | T53: 5003 SOUTH DADE MIDDLE SCHOOL | U53: 6 | V53: 91 | W53: 45 | X53: 204 | Y53: 5010 | Z53: 5010 OXFORD ACADEMY OF MIAMI | AA53: 7 | AC53: NA | AD53: 9 | AE53: 5032 | AF53: 5032 EXCELSIOR CHARTER ACADEMY | AG53: 8 | AH53: 8 | AI53: 31 | AJ53: 26
A54: 0801 | B54: 0801 CITRUS GROVE ELEMENTARY SCHOOL | C54: 3 | D54: 55 | E54: 37 | F54: 150 | G54: 0831 | H54: 0831 CLAUDE PEPPER ELEMENTARY SCHL | I54: 4 | J54: 70 | K54: 69 | L54: 102 | M54: 0831 | N54: 0831 CLAUDE PEPPER ELEMENTARY SCHL | O54: 5 | P54: 77 | Q54: 61 | R54: 127 | S54: 5005 | T54: 5005 DAVID LAWRENCE JR. K-8 CENTER | U54: 6 | V54: 66 | W54: 40 | X54: 164 | Y54: 5022 | Z54: 5022 BEN GAMLA CHARTER SCHOOL | AA54: 7 | AB54: 9 | AC54: 90 | AD54: 10 | AE54: 5044 | AF54: 5044 ACADEMY FOR INTERNATIONAL EDUCATION CHARTER | AG54: 8 | AH54: 11 | AI54: 52 | AJ54: 21
A55: 0831 | B55: 0831 CLAUDE PEPPER ELEMENTARY SCHL | C55: 3 | D55: 76 | E55: 65 | F55: 117 | G55: 0841 | H55: 0841 COCONUT GROVE ELEMENTARY SCHL | I55: 4 | J55: 45 | K55: 71 | L55: 63 | M55: 0841 | N55: 0841 COCONUT GROVE ELEMENTARY SCHL | O55: 5 | P55: 42 | Q55: 68 | R55: 62 | S55: 5006 | T55: 5006 EVERGLADES PREPARATORY ACADEMY | U55: 6 | V55: 55 | W55: 38 | X55: 143 | Y55: 5025 | Z55: 5025 LINCOLN-MARTI CHARTER SCHOOL LITTLE HAVANA | AA55: 7 | AB55: 32 | AC55: 49 | AD55: 65 | AE55: 5045 | AF55: 5045 MATER GROVE ACADEMY | AG55: 8 | AH55: 9 | AI55: 82 | AJ55: 11
A56: 0841 | B56: 0841 COCONUT GROVE ELEMENTARY SCHL | C56: 3 | D56: 54 | E56: 76 | F56: 71 | G56: 0861 | H56: 0861 COLONIAL DRIVE ELEMENTARY SCHL | I56: 4 | J56: 21 | K56: 57 | L56: 37 | M56: 0861 | N56: 0861 COLONIAL DRIVE ELEMENTARY SCHL | O56: 5 | P56: 17 | Q56: 37 | R56: 46 | S56: 5007 | T56: 5007 LINCOLN-MARTI CHARTER SCHOOL HIALEAH | U56: 6 | V56: 21 | W56: 53 | X56: 40 | Y56: 5029 | Z56: 5029 EXCELSIOR LANGUAGE ACADEMY OF HIALEAH | AA56: 7 | AB56: 13 | AC56: 31 | AD56: 42 | AE56: 5046 | AF56: 5046 MATER BRICKELL PREPARATORY ACADEMY | AG56: 8 | AH56: 6 | AI56: 46 | AJ56: 13
A57: 0861 | B57: 0861 COLONIAL DRIVE ELEMENTARY SCHL | C57: 3 | D57: 20 | E57: 43 | F57: 46 | G57: 0881 | H57: 0881 COMSTOCK ELEMENTARY SCHOOL | I57: 4 | J57: 25 | K57: 36 | L57: 70 | M57: 0881 | N57: 0881 COMSTOCK ELEMENTARY SCHOOL | O57: 5 | P57: 22 | Q57: 34 | R57: 64 | S57: 5008 | T57: 5008 SOMERSET GABLES ACADEMY | U57: 6 | W57: NA | X57: 4 | Y57: 5032 | Z57: 5032 EXCELSIOR CHARTER ACADEMY | AA57: 7 | AB57: 1 | AC57: 5 | AD57: 22 | AE57: 5047 | AF57: 5047 MATER ACADEMY MIAMI BEACH | AG57: 8 | AH57: 34 | AI57: 77 | AJ57: 44
A58: 0881 | B58: 0881 COMSTOCK ELEMENTARY SCHOOL | C58: 3 | D58: 32 | E58: 36 | F58: 90 | G58: 0950 | H58: 0950 AVENTURA CITY OF EXCELLENCE | I58: 4 | J58: 99 | K58: 89 | L58: 111 | M58: 0950 | N58: 0950 AVENTURA CITY OF EXCELLENCE | O58: 5 | P58: 98 | Q58: 82 | R58: 120 | S58: 5010 | T58: 5010 OXFORD ACADEMY OF MIAMI | U58: 6 | W58: NA | X58: 5 | Y58: 5044 | Z58: 5044 ACADEMY FOR INTERNATIONAL EDUCATION CHARTER | AA58: 7 | AB58: 29 | AC58: 66 | AD58: 44 | AE58: 5049 | AF58: 5049 PINECREST COVE ACADEMY | AG58: 8 | AH58: 9 | AI58: 45 | AJ58: 20
A59: 0950 | B59: 0950 AVENTURA CITY OF EXCELLENCE | C59: 3 | D59: 96 | E59: 88 | F59: 109 | G59: 0961 | H59: 0961 CORAL GABLES PREPARATORY ACADEMY | I59: 4 | J59: 53 | K59: 70 | L59: 76 | M59: 0961 | N59: 0961 CORAL GABLES PREPARATORY ACADEMY | O59: 5 | P59: 62 | Q59: 67 | R59: 93 | S59: 5020 | T59: 5020 BRIDGEPREP ACADEMY INTERAMERICAN CAMPUS | U59: 6 | W59: NA | X59: 7 | Y59: 5045 | Z59: 5045 MATER GROVE ACADEMY | AA59: 7 | AB59: 10 | AC59: 50 | AD59: 20 | AE59: 5051 | AF59: 5051 ERNEST R. GRAHAM K-8 ACADEMY | AG59: 8 | AH59: 49 | AI59: 52 | AJ59: 94
A60: 0961 | B60: 0961 CORAL GABLES PREPARATORY ACADEMY | C60: 3 | D60: 75 | E60: 97 | F60: 77 | G60: 1001 | H60: 1001 CORAL PARK ELEMENTARY SCHOOL | I60: 4 | J60: 135 | K60: 89 | L60: 152 | M60: 1001 | N60: 1001 CORAL PARK ELEMENTARY SCHOOL | O60: 5 | P60: 147 | Q60: 81 | R60: 181 | S60: 5022 | T60: 5022 BEN GAMLA CHARTER SCHOOL | U60: 6 | V60: 6 | W60: 60 | X60: 10 | Y60: 5046 | Z60: 5046 MATER BRICKELL PREPARATORY ACADEMY | AA60: 7 | AB60: 15 | AC60: 75 | AD60: 20 | AE60: 5101 | AF60: 5101 JOHN I. SMITH K-8 CENTER | AG60: 8 | AH60: 47 | AI60: 47 | AJ60: 101
A61: 1001 | B61: 1001 CORAL PARK ELEMENTARY SCHOOL | C61: 3 | D61: 166 | E61: 88 | F61: 188 | G61: 1010 | H61: 1010 THE CHARTER SCHOOL AT WATERSTONE | I61: 4 | J61: 126 | K61: 66 | L61: 191 | M61: 1010 | N61: 1010 THE CHARTER SCHOOL AT WATERSTONE | O61: 5 | P61: 90 | Q61: 57 | R61: 158 | S61: 5025 | T61: 5025 LINCOLN-MARTI CHARTER SCHOOL LITTLE HAVANA | U61: 6 | V61: 28 | W61: 36 | X61: 78 | Y61: 5047 | Z61: 5047 MATER ACADEMY MIAMI BEACH | AA61: 7 | AB61: 31 | AC61: 65 | AD61: 48 | AE61: 5141 | AF61: 5141 HUBERT O. SIBLEY K-8 ACADEMY | AG61: 8 | AH61: 33 | AI61: 48 | AJ61: 69
A62: 1010 | B62: 1010 THE CHARTER SCHOOL AT WATERSTONE | C62: 3 | D62: 157 | E62: 68 | F62: 230 | G62: 1014 | H62: 1014 HIGHLY INQUISITIVE/VERSATILE EDUC(HIVE) PREP | I62: 4 | J62: 67 | K62: 81 | L62: 83 | M62: 1014 | N62: 1014 HIGHLY INQUISITIVE/VERSATILE EDUC(HIVE) PREP | O62: 5 | P62: 54 | Q62: 81 | R62: 67 | S62: 5029 | T62: 5029 EXCELSIOR LANGUAGE ACADEMY OF HIALEAH | U62: 6 | V62: 6 | W62: 12 | X62: 49 | Y62: 5049 | Z62: 5049 PINECREST COVE ACADEMY | AA62: 7 | AB62: 36 | AC62: 82 | AD62: 44 | AE62: 5241 | AF62: 5241 SOUTH MIAMI K-8 CENTER | AG62: 8 | AH62: 11 | AI62: 44 | AJ62: 25
A63: 1014 | B63: 1014 HIGHLY INQUISITIVE/VERSATILE EDUC(HIVE) PREP | C63: 3 | D63: 81 | E63: 75 | F63: 108 | G63: 1017 | H63: 1017 MATER ACADEMY OF INTERNATIONAL STUDIES | I63: 4 | J63: 43 | K63: 55 | L63: 78 | M63: 1017 | N63: 1017 MATER ACADEMY OF INTERNATIONAL STUDIES | O63: 5 | P63: 10 | Q63: 40 | R63: 25 | S63: 5032 | T63: 5032 EXCELSIOR CHARTER ACADEMY | U63: 6 | V63: 6 | W63: 21 | X63: 29 | Y63: 5051 | Z63: 5051 ERNEST R. GRAHAM K-8 ACADEMY | AA63: 7 | AB63: 66 | AC63: 55 | AD63: 121 | AE63: 5671 | AF63: 5671 VINELAND K-8 CENTER | AG63: 8 | AH63: 29 | AI63: 71 | AJ63: 41
A64: 1017 | B64: 1017 MATER ACADEMY OF INTERNATIONAL STUDIES | C64: 3 | D64: 56 | E64: 51 | F64: 110 | G64: 1020 | H64: 1020 YOUTH CO-OP CHARTER SCHOOL | I64: 4 | J64: 60 | K64: 69 | L64: 87 | M64: 1020 | N64: 1020 YOUTH CO-OP CHARTER SCHOOL | O64: 5 | P64: 50 | Q64: 49 | R64: 103 | S64: 5043 | T64: 5043 LINCOLN-MARTI SCHOOLS INTERNATIONAL CAMPUS | U64: 6 | W64: NA | X64: 5 | Y64: 5101 | Z64: 5101 JOHN I. SMITH K-8 CENTER | AA64: 7 | AB64: 55 | AC64: 44 | AD64: 124 | AE64: 5861 | AF64: 5861 DR. HENRY W MACK/WEST LITTLE RIVER K-8 CENTER | AG64: 8 | AH64: 4 | AI64: 17 | AJ64: 24
A65: 1020 | B65: 1020 YOUTH CO-OP CHARTER SCHOOL | C65: 3 | D65: 47 | E65: 57 | F65: 82 | G65: 1041 | H65: 1041 CORAL REEF ELEMENTARY SCHOOL | I65: 4 | J65: 118 | K65: 80 | L65: 147 | M65: 1041 | N65: 1041 CORAL REEF ELEMENTARY SCHOOL | O65: 5 | P65: 119 | Q65: 85 | R65: 140 | S65: 5044 | T65: 5044 ACADEMY FOR INTERNATIONAL EDUCATION CHARTER | U65: 6 | V65: 27 | W65: 53 | X65: 51 | Y65: 5141 | Z65: 5141 HUBERT O. SIBLEY K-8 ACADEMY | AA65: 7 | AB65: 28 | AC65: 29 | AD65: 97 | AE65: 5901 | AF65: 5901 CARRIE P. MEEK/WESTVIEW K-8 CENTER | AG65: 8 | AH65: 9 | AI65: 19 | AJ65: 48
A66: 1041 | B66: 1041 CORAL REEF ELEMENTARY SCHOOL | C66: 3 | D66: 79 | E66: 73 | F66: 108 | G66: 1081 | H66: 1081 CORAL TERRACE ELEMENTARY SCHL | I66: 4 | J66: 48 | K66: 57 | L66: 84 | M66: 1081 | N66: 1081 CORAL TERRACE ELEMENTARY SCHL | O66: 5 | P66: 36 | Q66: 46 | R66: 79 | S66: 5045 | T66: 5045 MATER GROVE ACADEMY | U66: 6 | V66: 10 | W66: 50 | X66: 20 | Y66: 5241 | Z66: 5241 SOUTH MIAMI K-8 CENTER | AA66: 7 | AB66: 40 | AC66: 63 | AD66: 63 | AE66: 5961 | AF66: 5961 WINSTON PARK K-8 CENTER | AG66: 8 | AH66: 33 | AI66: 45 | AJ66: 74
A67: =LEFT(B67,4) -> 1081 | B67: 1081 CORAL TERRACE ELEMENTARY SCHL | C67: 3 | D67: 37 | E67: 49 | F67: 75 | G67: =LEFT(H67,4) -> 1121 | H67: 1121 CORAL WAY K-8 CENTER | I67: 4 | J67: 79 | K67: 47 | L67: 168 | M67: =LEFT(N67,4) -> 1121 | N67: 1121 CORAL WAY K-8 CENTER | O67: 5 | P67: 89 | Q67: 52 | R67: 170 | S67: =LEFT(T67,4) -> 5046 | T67: 5046 MATER BRICKELL PREPARATORY ACADEMY | U67: 6 | V67: 10 | W67: 53 | X67: 19 | Y67: =LEFT(Z67,4) -> 5671 | Z67: 5671 VINELAND K-8 CENTER | AA67: 7 | AB67: 66 | AC67: 70 | AD67: 94 | AE67: =LEFT(AF67,4) -> 6001 | AF67: 6001 HERBERT A. AMMONS MIDDLE SCHL | AG67: 8 | AH67: 88 | AI67: 92 | AJ67: 96
A68: 1121 | B68: 1121 CORAL WAY K-8 CENTER | C68: 3 | D68: 88 | E68: 55 | F68: 161 | G68: 1161 | H68: 1161 CRESTVIEW ELEMENTARY SCHOOL | I68: 4 | J68: 28 | K68: 62 | L68: 45 | M68: 1161 | N68: 1161 CRESTVIEW ELEMENTARY SCHOOL | O68: 5 | P68: 26 | Q68: 37 | R68: 70 | S68: 5047 | T68: 5047 MATER ACADEMY MIAMI BEACH | U68: 6 | V68: 46 | W68: 72 | X68: 64 | Y68: 5791 | Z68: 5791 WEST HOMESTEAD K-8 CENTER | AA68: 7 | AB68: 19 | AC68: 49 | AD68: 39 | AE68: 6009 | AF68: 6009 MATER EAST ACADEMY MIDDLE SCHOOL | AG68: 8 | AH68: 41 | AI68: 49 | AJ68: 84
A69: 1161 | B69: 1161 CRESTVIEW ELEMENTARY SCHOOL | C69: 3 | D69: 17 | E69: 26 | F69: 65 | G69: 1241 | H69: 1241 CUTLER RIDGE ELEMENTARY SCHOOL | I69: 4 | J69: 74 | K69: 70 | L69: 105 | M69: 1241 | N69: 1241 CUTLER RIDGE ELEMENTARY SCHOOL | O69: 5 | P69: 61 | Q69: 45 | R69: 137 | S69: 5049 | T69: 5049 PINECREST COVE ACADEMY | U69: 6 | V69: 50 | W69: 70 | X69: 71 | Y69: 5861 | Z69: 5861 DR. HENRY W MACK/WEST LITTLE RIVER K-8 CENTER | AA69: 7 | AB69: 14 | AC69: 33 | AD69: 43 | AE69: 6010 | AF69: 6010 FLORIDA INTERNATIONAL ACADEMY | AG69: 8 | AH69: 53 | AI69: 55 | AJ69: 96
A70: 1241 | B70: 1241 CUTLER RIDGE ELEMENTARY SCHOOL | C70: 3 | D70: 58 | E70: 66 | F70: 88 | G70: 1281 | H70: 1281 CYPRESS ELEMENTARY SCHOOL | I70: 4 | J70: 20 | K70: 48 | L70: 42 | M70: 1281 | N70: 1281 CYPRESS ELEMENTARY SCHOOL | O70: 5 | P70: 22 | Q70: 55 | R70: 40 | S70: 5051 | T70: 5051 ERNEST R. GRAHAM K-8 ACADEMY | U70: 6 | V70: 85 | W70: 66 | X70: 129 | Y70: 5901 | Z70: 5901 CARRIE P. MEEK/WESTVIEW K-8 CENTER | AA70: 7 | AB70: 19 | AC70: 31 | AD70: 61 | AE70: 6011 | AF70: 6011 ALLAPATTAH MIDDLE SCHOOL | AG70: 8 | AH70: 35 | AI70: 29 | AJ70: 122
A71: 1281 | B71: 1281 CYPRESS ELEMENTARY SCHOOL | C71: 3 | D71: 44 | E71: 69 | F71: 64 | G71: 1331 | H71: 1331 DEVON AIRE K-8 CENTER | I71: 4 | J71: 142 | K71: 80 | L71: 177 | M71: 1331 | N71: 1331 DEVON AIRE K-8 CENTER | O71: 5 | P71: 109 | Q71: 64 | R71: 169 | S71: 5101 | T71: 5101 JOHN I. SMITH K-8 CENTER | U71: 6 | V71: 88 | W71: 57 | X71: 154 | Y71: 5961 | Z71: 5961 WINSTON PARK K-8 CENTER | AA71: 7 | AB71: 67 | AC71: 60 | AD71: 112 | AE71: 6012 | AF71: 6012 MATER ACADEMY CHARTER MIDDLE | AG71: 8 | AH71: 67 | AI71: 46 | AJ71: 145
A72: 1331 | B72: 1331 DEVON AIRE K-8 CENTER | C72: 3 | D72: 144 | E72: 79 | F72: 182 | G72: 1361 | H72: 1361 FREDERICK R. DOUGLASS ELEM. | I72: 4 | J72: 10 | K72: 32 | L72: 31 | M72: 1361 | N72: 1361 FREDERICK R. DOUGLASS ELEM. | O72: 5 | P72: 15 | Q72: 41 | R72: 37 | S72: 5141 | T72: 5141 HUBERT O. SIBLEY K-8 ACADEMY | U72: 6 | V72: 21 | W72: 28 | X72: 75 | Y72: 6001 | Z72: 6001 HERBERT A. AMMONS MIDDLE SCHL | AA72: 7 | AB72: 291 | AC72: 90 | AD72: 323 | AE72: 6013 | AF72: 6013 SOMERSET ACADEMY CHARTER MIDDLE S HOMESTEAD | AG72: 8 | AH72: 3 | AI72: 23 | AJ72: 13
A73: 1361 | B73: 1361 FREDERICK R. DOUGLASS ELEM. | C73: 3 | D73: 14 | E73: 48 | F73: 29 | G73: 1371 | H73: 1371 MARJORY STONEMAN DOUGLAS ELEM | I73: 4 | J73: 120 | K73: 73 | L73: 165 | M73: 1371 | N73: 1371 MARJORY STONEMAN DOUGLAS ELEM | O73: 5 | P73: 90 | Q73: 56 | R73: 161 | S73: 5241 | T73: 5241 SOUTH MIAMI K-8 CENTER | U73: 6 | V73: 39 | W73: 51 | X73: 77 | Y73: 6004 | Z73: 6004 SOMERSET ACADEMY CHARTER MIDDLE SCHOOL | AA73: 7 | AB73: 31 | AC73: 65 | AD73: 48 | AE73: 6014 | AF73: 6014 IMATER ACADEMY MIDDLE SCHOOL | AG73: 8 | AH73: 43 | AI73: 33 | AJ73: 129
A74: 1371 | B74: 1371 MARJORY STONEMAN DOUGLAS ELEM | C74: 3 | D74: 129 | E74: 73 | F74: 177 | G74: 1401 | H74: 1401 CHARLES R DREW K-8 CENTER | I74: 4 | J74: 15 | K74: 48 | L74: 31 | M74: 1401 | N74: 1401 CHARLES R DREW K-8 CENTER | O74: 5 | P74: 10 | Q74: 29 | R74: 34 | S74: 5671 | T74: 5671 VINELAND K-8 CENTER | U74: 6 | V74: 77 | W74: 68 | X74: 113 | Y74: 6006 | Z74: 6006 ARCHIMEDEAN MIDDLE CONSERVATORY | AA74: 7 | AB74: 5 | AC74: 33 | AD74: 15 | AE74: 6015 | AF74: 6015 SLAM CHARTER MIDDLE SCHOOL | AG74: 8 | AH74: 29 | AI74: 27 | AJ74: 106
A75: 1401 | B75: 1401 CHARLES R DREW K-8 CENTER | C75: 3 | D75: 14 | E75: 34 | F75: 41 | G75: 1441 | H75: 1441 PAUL LAURENCE DUNBAR K-8 CENTER | I75: 4 | J75: 13 | K75: 28 | L75: 47 | M75: 1441 | N75: 1441 PAUL LAURENCE DUNBAR K-8 CENTER | O75: 5 | P75: 14 | Q75: 32 | R75: 44 | S75: 5791 | T75: 5791 WEST HOMESTEAD K-8 CENTER | U75: 6 | V75: 13 | W75: 27 | X75: 48 | Y75: 6009 | Z75: 6009 MATER EAST ACADEMY MIDDLE SCHOOL | AA75: 7 | AB75: 45 | AC75: 41 | AD75: 111 | AE75: 6020 | AF75: 6020 ASPIRA RAUL ARNALDO MARTINEZ CHARTER SCHOOL | AG75: 8 | AH75: 49 | AI75: 28 | AJ75: 178
A76: 1441 | B76: 1441 PAUL LAURENCE DUNBAR K-8 CENTER | C76: 3 | D76: 20 | E76: 36 | F76: 56 | G76: 1481 | H76: 1481 JOHN G. DUPUIS ELEMENTARY SCHL | I76: 4 | J76: 65 | K76: 56 | L76: 116 | M76: 1481 | N76: 1481 JOHN G. DUPUIS ELEMENTARY SCHL | O76: 5 | P76: 57 | Q76: 53 | R76: 107 | S76: 5861 | T76: 5861 DR. HENRY W MACK/WEST LITTLE RIVER K-8 CENTER | U76: 6 | V76: 8 | W76: 14 | X76: 57 | Y76: 6010 | Z76: 6010 FLORIDA INTERNATIONAL ACADEMY | AA76: 7 | AB76: 37 | AC76: 36 | AD76: 103 | AE76: 6021 | AF76: 6021 ARVIDA MIDDLE SCHOOL | AG76: 8 | AH76: 212 | AI76: 65 | AJ76: 327
A77: 1481 | B77: 1481 JOHN G. DUPUIS ELEMENTARY SCHL | C77: 3 | D77: 76 | E77: 68 | F77: 111 | G77: 1521 | H77: 1521 AMELIA EARHART ELEMENTARY SCHL | I77: 4 | J77: 46 | K77: 67 | L77: 69 | M77: 1521 | N77: 1521 AMELIA EARHART ELEMENTARY SCHL | O77: 5 | P77: 35 | Q77: 44 | R77: 79 | S77: 5901 | T77: 5901 CARRIE P. MEEK/WESTVIEW K-8 CENTER | U77: 6 | V77: 14 | W77: 25 | X77: 57 | Y77: 6011 | Z77: 6011 ALLAPATTAH MIDDLE SCHOOL | AA77: 7 | AB77: 24 | AC77: 18 | AD77: 136 | AE77: 6022 | AF77: 6022 PINECREST ACADEMY CHARTER MIDDLE SCHOOL | AG77: 8 | AH77: 72 | AI77: 67 | AJ77: 107
A78: 1521 | B78: 1521 AMELIA EARHART ELEMENTARY SCHL | C78: 3 | D78: 26 | E78: 40 | F78: 65 | G78: 1561 | H78: 1561 EARLINGTON HEIGHTS ELEM. SCHL | I78: 4 | J78: 31 | K78: 48 | L78: 64 | M78: 1561 | N78: 1561 EARLINGTON HEIGHTS ELEM. SCHL | O78: 5 | P78: 24 | Q78: 39 | R78: 62 | S78: 5961 | T78: 5961 WINSTON PARK K-8 CENTER | U78: 6 | V78: 121 | W78: 73 | X78: 166 | Y78: 6012 | Z78: 6012 MATER ACADEMY CHARTER MIDDLE | AA78: 7 | AB78: 274 | AC78: 65 | AD78: 423 | AE78: 6023 | AF78: 6023 ANDOVER MIDDLE SCHOOL | AG78: 8 | AH78: 49 | AI78: 25 | AJ78: 196
A79: 1561 | B79: 1561 EARLINGTON HEIGHTS ELEM. SCHL | C79: 3 | D79: 27 | E79: 28 | F79: 96 | G79: 1601 | H79: 1601 EDISON PARK K-8 CENTER | I79: 4 | J79: 11 | K79: 20 | L79: 54 | M79: 1601 | N79: 1601 EDISON PARK K-8 CENTER | O79: 5 | P79: 12 | Q79: 24 | R79: 49 | S79: 6001 | T79: 6001 HERBERT A. AMMONS MIDDLE SCHL | U79: 6 | V79: 370 | W79: 90 | X79: 409 | Y79: 6013 | Z79: 6013 SOMERSET ACADEMY CHARTER MIDDLE S HOMESTEAD | AA79: 7 | AB79: 28 | AC79: 46 | AD79: 61 | AE79: 6028 | AF79: 6028 RENAISSANCE MIDDLE CHARTER SCHOOL | AG79: 8 | AH79: 53 | AI79: 77 | AJ79: 69
A80: 1601 | B80: 1601 EDISON PARK K-8 CENTER | C80: 3 | D80: 13 | E80: 21 | F80: 62 | G80: 1641 | H80: 1641 EMERSON ELEMENTARY SCHOOL | I80: 4 | J80: 33 | K80: 70 | L80: 47 | M80: 1641 | N80: 1641 EMERSON ELEMENTARY SCHOOL | O80: 5 | P80: 45 | Q80: 65 | R80: 69 | S80: 6003 | T80: 6003 PINECREST ACADEMY MIDDLE SCHOOL NORTH CAMPUS | U80: 6 | V80: 22 | W80: 100 | X80: 22 | Y80: 6014 | Z80: 6014 IMATER ACADEMY MIDDLE SCHOOL | AA80: 7 | AB80: 151 | AC80: 59 | AD80: 258 | AE80: 6030 | AF80: 6030 DORAL ACADEMY CHARTER MIDDLE SCHOOL | AG80: 8 | AH80: 240 | AI80: 85 | AJ80: 282
A81: 1641 | B81: 1641 EMERSON ELEMENTARY SCHOOL | C81: 3 | D81: 48 | E81: 69 | F81: 70 | G81: 1681 | H81: 1681 LILLIE C. EVANS K-8 CENTER | I81: 4 | J81: 29 | K81: 60 | L81: 48 | M81: 1681 | N81: 1681 LILLIE C. EVANS K-8 CENTER | O81: 5 | P81: 7 | Q81: 19 | R81: 36 | S81: 6004 | T81: 6004 SOMERSET ACADEMY CHARTER MIDDLE SCHOOL | U81: 6 | V81: 55 | W81: 79 | X81: 70 | Y81: 6015 | Z81: 6015 SLAM CHARTER MIDDLE SCHOOL | AA81: 7 | AB81: 91 | AC81: 53 | AD81: 172 | AE81: 6031 | AF81: 6031 BROWNSVILLE MIDDLE SCHOOL | AG81: 8 | AH81: 39 | AI81: 19 | AJ81: 206
A82: 1681 | B82: 1681 LILLIE C. EVANS K-8 CENTER | C82: 3 | D82: 16 | E82: 34 | F82: 47 | G82: 1691 | H82: 1691 CHRISTINA M. EVE ELEM. SCHOOL | I82: 4 | J82: 107 | K82: 75 | L82: 142 | M82: 1691 | N82: 1691 CHRISTINA M. EVE ELEM. SCHOOL | O82: 5 | P82: 56 | Q82: 57 | R82: 99 | S82: 6006 | T82: 6006 ARCHIMEDEAN MIDDLE CONSERVATORY | U82: 6 | V82: 115 | W82: 95 | X82: 121 | Y82: 6017 | Z82: 6017 INTERNATIONAL STUDIES VIRTUAL | AA82: 7 | AC82: NA | AD82: 1 | AE82: 6033 | AF82: 6033 MATER ACADEMY LAKES MIDDLE SCHOOL | AG82: 8 | AH82: 132 | AI82: 75 | AJ82: 176
A83: 1691 | B83: 1691 CHRISTINA M. EVE ELEM. SCHOOL | C83: 3 | D83: 106 | E83: 82 | F83: 130 | G83: 1721 | H83: 1721 EVERGLADES K-8 CENTER | I83: 4 | J83: 81 | K83: 74 | L83: 109 | M83: 1721 | N83: 1721 EVERGLADES K-8 CENTER | O83: 5 | P83: 55 | Q83: 52 | R83: 106 | S83: 6009 | T83: 6009 MATER EAST ACADEMY MIDDLE SCHOOL | U83: 6 | V83: 30 | W83: 31 | X83: 96 | Y83: 6020 | Z83: 6020 ASPIRA RAUL ARNALDO MARTINEZ CHARTER SCHOOL | AA83: 7 | AB83: 64 | AC83: 30 | AD83: 211 | AE83: 6040 | AF83: 6040 DOCTORS CHARTER SCHOOL OF MIAMI SHORES | AG83: 8 | AH83: 46 | AI83: 75 | AJ83: 61
A84: 1721 | B84: 1721 EVERGLADES K-8 CENTER | C84: 3 | D84: 91 | E84: 68 | F84: 133 | G84: 1761 | H84: 1761 DAVID FAIRCHILD ELEMENTARY SCHOOL | I84: 4 | J84: 80 | K84: 77 | L84: 104 | M84: 1761 | N84: 1761 DAVID FAIRCHILD ELEMENTARY SCHOOL | O84: 5 | P84: 57 | Q84: 59 | R84: 96 | S84: 6010 | T84: 6010 FLORIDA INTERNATIONAL ACADEMY | U84: 6 | V84: 41 | W84: 37 | X84: 111 | Y84: 6021 | Z84: 6021 ARVIDA MIDDLE SCHOOL | AA84: 7 | AB84: 331 | AC84: 72 | AD84: 460 | AE84: 6041 | AF84: 6041 PAUL W. BELL MIDDLE SCHOOL | AG84: 8 | AH84: 44 | AI84: 34 | AJ84: 128
A85: 1761 | B85: 1761 DAVID FAIRCHILD ELEMENTARY SCHOOL | C85: 3 | D85: 82 | E85: 82 | F85: 100 | G85: 1801 | H85: 1801 FAIRLAWN ELEMENTARY SCHOOL | I85: 4 | J85: 64 | K85: 63 | L85: 102 | M85: 1801 | N85: 1801 FAIRLAWN ELEMENTARY SCHOOL | O85: 5 | P85: 56 | Q85: 55 | R85: 102 | S85: 6011 | T85: 6011 ALLAPATTAH MIDDLE SCHOOL | U85: 6 | V85: 12 | W85: 9 | X85: 128 | Y85: 6022 | Z85: 6022 PINECREST ACADEMY CHARTER MIDDLE SCHOOL | AA85: 7 | AB85: 95 | AC85: 65 | AD85: 147 | AE85: 6042 | AF85: 6042 MATER GARDENS ACADEMY MIDDLE SCHOOL | AG85: 8 | AH85: 28 | AI85: 93 | AJ85: 30
A86: 1801 | B86: 1801 FAIRLAWN ELEMENTARY SCHOOL | C86: 3 | D86: 87 | E86: 73 | F86: 119 | G86: 1811 | H86: 1811 DANTE B. FASCELL ELEM. SCHOOL | I86: 4 | J86: 60 | K86: 77 | L86: 78 | M86: 1811 | N86: 1811 DANTE B. FASCELL ELEM. SCHOOL | O86: 5 | P86: 60 | Q86: 69 | R86: 87 | S86: 6012 | T86: 6012 MATER ACADEMY CHARTER MIDDLE | U86: 6 | V86: 300 | W86: 69 | X86: 437 | Y86: 6023 | Z86: 6023 ANDOVER MIDDLE SCHOOL | AA86: 7 | AB86: 29 | AC86: 16 | AD86: 184 | AE86: 6045 | AF86: 6045 INTERNATIONAL STUDIES CHARTER MIDDLE SCHOOL | AG86: 8 | AH86: 22 | AI86: 76 | AJ86: 29
A87: 1811 | B87: 1811 DANTE B. FASCELL ELEM. SCHOOL | C87: 3 | D87: 53 | E87: 62 | F87: 86 | G87: 1841 | H87: 1841 FLAGAMI ELEMENTARY SCHOOL | I87: 4 | J87: 35 | K87: 55 | L87: 64 | M87: 1841 | N87: 1841 FLAGAMI ELEMENTARY SCHOOL | O87: 5 | P87: 44 | Q87: 65 | R87: 68 | S87: 6013 | T87: 6013 SOMERSET ACADEMY CHARTER MIDDLE S HOMESTEAD | U87: 6 | V87: 40 | W87: 63 | X87: 64 | Y87: 6028 | Z87: 6028 RENAISSANCE MIDDLE CHARTER SCHOOL | AA87: 7 | AB87: 112 | AC87: 76 | AD87: 148 | AE87: 6047 | AF87: 6047 MATER ACAD MIDDLE SCHOOL INTERNAT STUDIES | AG87: 8 | AH87: 12 | AI87: 63 | AJ87: 19
A88: 1841 | B88: 1841 FLAGAMI ELEMENTARY SCHOOL | C88: 3 | D88: 41 | E88: 55 | F88: 75 | G88: 1881 | H88: 1881 HENRY M. FLAGLER ELEM. SCHOOL | I88: 4 | J88: 50 | K88: 41 | L88: 123 | M88: 1881 | N88: 1881 HENRY M. FLAGLER ELEM. SCHOOL | O88: 5 | P88: 44 | Q88: 36 | R88: 121 | S88: 6014 | T88: 6014 IMATER ACADEMY MIDDLE SCHOOL | U88: 6 | V88: 193 | W88: 64 | X88: 300 | Y88: 6030 | Z88: 6030 DORAL ACADEMY CHARTER MIDDLE SCHOOL | AA88: 7 | AB88: 331 | AC88: 81 | AD88: 410 | AE88: 6051 | AF88: 6051 CAROL CITY MIDDLE SCHOOL | AG88: 8 | AH88: 15 | AI88: 12 | AJ88: 130
A89: 1881 | B89: 1881 HENRY M. FLAGLER ELEM. SCHOOL | C89: 3 | D89: 57 | E89: 49 | F89: 116 | G89: 1921 | H89: 1921 FLAMINGO ELEMENTARY SCHOOL | I89: 4 | J89: 54 | K89: 50 | L89: 107 | M89: 1921 | N89: 1921 FLAMINGO ELEMENTARY SCHOOL | O89: 5 | P89: 55 | Q89: 41 | R89: 135 | S89: 6015 | T89: 6015 SLAM CHARTER MIDDLE SCHOOL | U89: 6 | V89: 105 | W89: 56 | X89: 187 | Y89: 6031 | Z89: 6031 BROWNSVILLE MIDDLE SCHOOL | AA89: 7 | AB89: 17 | AC89: 8 | AD89: 205 | AE89: 6052 | AF89: 6052 ZELDA GLAZER MIDDLE SCHOOL | AG89: 8 | AH89: 133 | AI89: 53 | AJ89: 253
A90: 1921 | B90: 1921 FLAMINGO ELEMENTARY SCHOOL | C90: 3 | D90: 48 | E90: 40 | F90: 120 | G90: 2001 | H90: 2001 FLORIDA CITY ELEMENTARY SCHOOL | I90: 4 | J90: 52 | K90: 47 | L90: 110 | M90: 2001 | N90: 2001 FLORIDA CITY ELEMENTARY SCHOOL | O90: 5 | P90: 32 | Q90: 38 | R90: 85 | S90: 6016 | T90: 6016 SOMERSET VIRTUAL ACADEMY | U90: 6 | W90: NA | X90: 1 | Y90: 6033 | Z90: 6033 MATER ACADEMY LAKES MIDDLE SCHOOL | AA90: 7 | AB90: 175 | AC90: 62 | AD90: 284 | AE90: 6060 | AF90: 6060 ASPIRA LEADERSHIP/COLLEGE PREPARATORY ACADEMY | AG90: 8 | AH90: 20 | AI90: 38 | AJ90: 53
A91: 2001 | B91: 2001 FLORIDA CITY ELEMENTARY SCHOOL | C91: 3 | D91: 63 | E91: 48 | F91: 131 | G91: 2003 | H91: 2003 BRIDGEPREP ACADEMY SOUTH | I91: 4 | J91: 47 | K91: 64 | L91: 73 | M91: 2003 | N91: 2003 BRIDGEPREP ACADEMY SOUTH | O91: 5 | P91: 32 | Q91: 70 | R91: 46 | S91: 6017 | T91: 6017 INTERNATIONAL STUDIES VIRTUAL | U91: 6 | W91: NA | X91: 1 | Y91: 6040 | Z91: 6040 DOCTORS CHARTER SCHOOL OF MIAMI SHORES | AA91: 7 | AB91: 67 | AC91: 76 | AD91: 88 | AE91: 6070 | AF91: 6070 ASPIRA ARTS DECO CHARTER | AG91: 8 | AH91: 31 | AI91: 26 | AJ91: 121
A92: 2003 | B92: 2003 BRIDGEPREP ACADEMY SOUTH | C92: 3 | D92: 29 | E92: 66 | F92: 44 | G92: 2006 | H92: 2006 RICHARD ALLEN LEADERSHIP ACADEMY | I92: 4 | J92: 0 | K92: 0 | L92: 12 | M92: 2006 | N92: 2006 RICHARD ALLEN LEADERSHIP ACADEMY | O92: 5 | Q92: NA | R92: 8 | S92: 6018 | T92: 6018 THE SEED SCHOOL OF MIAMI | U92: 6 | V92: 9 | W92: 15 | X92: 61 | Y92: 6041 | Z92: 6041 PAUL W. BELL MIDDLE SCHOOL | AA92: 7 | AB92: 51 | AC92: 35 | AD92: 146 | AE92: 6082 | AF92: 6082 ACADEMIR CHARTER SCHOOL MIDDLE | AG92: 8 | AH92: 11 | AI92: 55 | AJ92: 20
A93: 2006 | B93: 2006 RICHARD ALLEN LEADERSHIP ACADEMY | C93: 3 | E93: NA | F93: 7 | G93: 2007 | H93: 2007 SOMERSET ACADEMY ELEM SCHOOL (S MIAMI CAMPUS) | I93: 4 | J93: 83 | K93: 81 | L93: 102 | M93: 2007 | N93: 2007 SOMERSET ACADEMY ELEM SCHOOL (S MIAMI CAMPUS) | O93: 5 | P93: 82 | Q93: 87 | R93: 94 | S93: 6020 | T93: 6020 ASPIRA RAUL ARNALDO MARTINEZ CHARTER SCHOOL | U93: 6 | V93: 26 | W93: 15 | X93: 177 | Y93: 6042 | Z93: 6042 MATER GARDENS ACADEMY MIDDLE SCHOOL | AA93: 7 | AB93: 35 | AC93: 71 | AD93: 49 | AE93: 6091 | AF93: 6091 CITRUS GROVE MIDDLE SCHOOL | AG93: 8 | AH93: 48 | AI93: 19 | AJ93: 259
A94: 2007 | B94: 2007 SOMERSET ACADEMY ELEM SCHOOL (S MIAMI CAMPUS) | C94: 3 | D94: 69 | E94: 92 | F94: 75 | G94: 2012 | H94: 2012 SOMERSET ARTS ACADEMY | I94: 4 | J94: 22 | K94: 69 | L94: 32 | M94: 2012 | N94: 2012 SOMERSET ARTS ACADEMY | O94: 5 | P94: 34 | Q94: 62 | R94: 55 | S94: 6021 | T94: 6021 ARVIDA MIDDLE SCHOOL | U94: 6 | V94: 284 | W94: 70 | X94: 406 | Y94: 6045 | Z94: 6045 INTERNATIONAL STUDIES CHARTER MIDDLE SCHOOL | AA94: 7 | AB94: 67 | AC94: 84 | AD94: 80 | AE94: 6111 | AF94: 6111 CUTLER BAY ACADEMY OF ADVANCED STUDIES | AG94: 8 | AH94: 72 | AI94: 21 | AJ94: 340
A95: 2012 | B95: 2012 SOMERSET ARTS ACADEMY | C95: 3 | D95: 45 | E95: 65 | F95: 69 | G95: 2013 | H95: 2013 BRIDGEPREP ACADEMY OF GREATER MIAMI | I95: 4 | J95: 20 | K95: 71 | L95: 28 | M95: 2013 | N95: 2013 BRIDGEPREP ACADEMY OF GREATER MIAMI | O95: 5 | P95: 8 | Q95: 36 | R95: 22 | S95: 6022 | T95: 6022 PINECREST ACADEMY CHARTER MIDDLE SCHOOL | U95: 6 | V95: 94 | W95: 62 | X95: 151 | Y95: 6047 | Z95: 6047 MATER ACAD MIDDLE SCHOOL INTERNAT STUDIES | AA95: 7 | AB95: 31 | AC95: 58 | AD95: 53 | AE95: 6121 | AF95: 6121 RUBEN DARIO MIDDLE SCHOOL | AG95: 8 | AH95: 93 | AI95: 42 | AJ95: 220
A96: 2013 | B96: 2013 BRIDGEPREP ACADEMY OF GREATER MIAMI | C96: 3 | D96: 60 | E96: 82 | F96: 73 | G96: 2021 | H96: 2021 GLORIA FLOYD ELEMENTARY SCHOOL | I96: 4 | J96: 51 | K96: 66 | L96: 77 | M96: 2021 | N96: 2021 GLORIA FLOYD ELEMENTARY SCHOOL | O96: 5 | P96: 37 | Q96: 43 | R96: 87 | S96: 6023 | T96: 6023 ANDOVER MIDDLE SCHOOL | U96: 6 | V96: 81 | W96: 34 | X96: 237 | Y96: 6048 | Z96: 6048 MIAMI COMMUNITY CHARTER MIDDLE SCHOOL | AA96: 7 | AB96: 21 | AC96: 31 | AD96: 68 | AE96: 6161 | AF96: 6161 LAWTON CHILES MIDDLE SCHOOL | AG96: 8 | AH96: 25 | AI96: 23 | AJ96: 110
A97: 2021 | B97: 2021 GLORIA FLOYD ELEMENTARY SCHOOL | C97: 3 | D97: 72 | E97: 79 | F97: 91 | G97: 2041 | H97: 2041 BENJAMIN FRANKLIN K-8 CENTER | I97: 4 | J97: 30 | K97: 48 | L97: 63 | M97: 2041 | N97: 2041 BENJAMIN FRANKLIN K-8 CENTER | O97: 5 | P97: 19 | Q97: 29 | R97: 65 | S97: 6028 | T97: 6028 RENAISSANCE MIDDLE CHARTER SCHOOL | U97: 6 | V97: 84 | W97: 55 | X97: 153 | Y97: 6051 | Z97: 6051 CAROL CITY MIDDLE SCHOOL | AA97: 7 | AB97: 18 | AC97: 13 | AD97: 141 | AE97: 6171 | AF97: 6171 HENRY H. FILER MIDDLE SCHOOL | AG97: 8 | AH97: 32 | AI97: 14 | AJ97: 225
A98: 2041 | B98: 2041 BENJAMIN FRANKLIN K-8 CENTER | C98: 3 | D98: 37 | E98: 45 | F98: 83 | G98: 2060 | H98: 2060 THEODORE R. AND THELMA A. GIBSON CHARTER | I98: 4 | J98: 13 | K98: 46 | L98: 28 | M98: 2060 | N98: 2060 THEODORE R. AND THELMA A. GIBSON CHARTER | O98: 5 | P98: 6 | Q98: 27 | R98: 22 | S98: 6030 | T98: 6030 DORAL ACADEMY CHARTER MIDDLE SCHOOL | U98: 6 | V98: 215 | W98: 77 | X98: 281 | Y98: 6052 | Z98: 6052 ZELDA GLAZER MIDDLE SCHOOL | AA98: 7 | AB98: 162 | AC98: 54 | AD98: 301 | AE98: 6211 | AF98: 6211 GLADES MIDDLE SCHOOL | AG98: 8 | AH98: 138 | AI98: 55 | AJ98: 252
A99: 2060 | B99: 2060 THEODORE R. AND THELMA A. GIBSON CHARTER | C99: 3 | D99: 7 | E99: 18 | F99: 40 | G99: 2081 | H99: 2081 FULFORD ELEMENTARY SCHOOL | I99: 4 | J99: 37 | K99: 40 | L99: 92 | M99: 2081 | N99: 2081 FULFORD ELEMENTARY SCHOOL | O99: 5 | P99: 20 | Q99: 26 | R99: 76 | S99: =LEFT(T99,4) -> 6031 | T99: 6031 BROWNSVILLE MIDDLE SCHOOL | U99: 6 | V99: 23 | W99: 12 | X99: 196 | Y99: =LEFT(Z99,4) -> 6053 | Z99: 6053 SOMERSET ACADEMY CHARTER MIDDLE SOUTH MIAMI | AA99: 7 | AB99: 34 | AC99: 76 | AD99: 45 | AE99: =LEFT(AF99,4) -> 6221 | AF99: 6221 HAMMOCKS MIDDLE SCHOOL | AG99: 8 | AH99: 138 | AI99: 51 | AJ99: 268
A100: 2081 | B100: 2081 FULFORD ELEMENTARY SCHOOL | C100: 3 | D100: 53 | E100: 68 | F100: 78 | G100: 2111 | H100: 2111 HIALEAH GARDENS ELEM. SCHOOL | I100: 4 | J100: 85 | K100: 60 | L100: 142 | M100: 2111 | N100: 2111 HIALEAH GARDENS ELEM. SCHOOL | O100: 5 | P100: 83 | Q100: 59 | R100: 141 | S100: 6033 | T100: 6033 MATER ACADEMY LAKES MIDDLE SCHOOL | U100: 6 | V100: 189 | W100: 70 | X100: 269 | Y100: 6060 | Z100: 6060 ASPIRA LEADERSHIP/COLLEGE PREPARATORY ACADEMY | AA100: 7 | AB100: 31 | AC100: 40 | AD100: 77 | AE100: 6231 | AF100: 6231 HIALEAH MIDDLE SCHOOL | AG100: 8 | AH100: 52 | AI100: 23 | AJ100: 226
A101: 2111 | B101: 2111 HIALEAH GARDENS ELEM. SCHOOL | C101: 3 | D101: 96 | E101: 76 | F101: 127 | G101: 2151 | H101: 2151 JACK DAVID GORDON ELEMENTARY SCHOOL | I101: 4 | J101: 123 | K101: 67 | L101: 183 | M101: 2151 | N101: 2151 JACK DAVID GORDON ELEMENTARY SCHOOL | O101: 5 | P101: 108 | Q101: 56 | R101: 192 | S101: 6040 | T101: 6040 DOCTORS CHARTER SCHOOL OF MIAMI SHORES | U101: 6 | V101: 66 | W101: 61 | X101: 109 | Y101: 6070 | Z101: 6070 ASPIRA ARTS DECO CHARTER | AA101: 7 | AB101: 26 | AC101: 18 | AD101: 145 | AE101: 6241 | AF101: 6241 HIGHLAND OAKS MIDDLE SCHOOL | AG101: 8 | AH101: 83 | AI101: 35 | AJ101: 234
A102: 2151 | B102: 2151 JACK DAVID GORDON ELEMENTARY SCHOOL | C102: 3 | D102: 127 | E102: 73 | F102: 173 | G102: 2161 | H102: 2161 GOLDEN GLADES ELEMENTARY SCHL | I102: 4 | J102: 7 | K102: 27 | L102: 26 | M102: 2161 | N102: 2161 GOLDEN GLADES ELEMENTARY SCHL | O102: 5 | P102: 7 | Q102: 27 | R102: 26 | S102: 6041 | T102: 6041 PAUL W. BELL MIDDLE SCHOOL | U102: 6 | V102: 50 | W102: 37 | X102: 135 | Y102: 6071 | Z102: 6071 GEORGE WASHINGTON CARVER MIDDLE SCHOOL | AA102: 7 | AB102: 230 | AC102: 93 | AD102: 246 | AE102: 6251 | AF102: 6251 HOMESTEAD MIDDLE SCHOOL | AG102: 8 | AH102: 26 | AI102: 13 | AJ102: 196
A103: 2161 | B103: 2161 GOLDEN GLADES ELEMENTARY SCHL | C103: 3 | D103: 13 | E103: 30 | F103: 43 | G103: 2181 | H103: 2181 JOELLA GOOD ELEMENTARY SCHOOL | I103: 4 | J103: 109 | K103: 75 | L103: 146 | M103: 2181 | N103: 2181 JOELLA GOOD ELEMENTARY SCHOOL | O103: 5 | P103: 107 | Q103: 66 | R103: 163 | S103: 6042 | T103: 6042 MATER GARDENS ACADEMY MIDDLE SCHOOL | U103: 6 | V103: 61 | W103: 85 | X103: 72 | Y103: 6082 | Z103: 6082 ACADEMIR CHARTER SCHOOL MIDDLE | AA103: 7 | AB103: 23 | AC103: 38 | AD103: 60 | AE103: 6281 | AF103: 6281 THOMAS JEFFERSON MIDDLE SCHOOL | AG103: 8 | AH103: 23 | AI103: 25 | AJ103: 93
A104: 2181 | B104: 2181 JOELLA GOOD ELEMENTARY SCHOOL | C104: 3 | D104: 80 | E104: 49 | F104: 163 | G104: 2191 | H104: 2191 SPANISH LAKE ELEMENTARY SCHOOL | I104: 4 | J104: 186 | K104: 67 | L104: 278 | M104: 2191 | N104: 2191 SPANISH LAKE ELEMENTARY SCHOOL | O104: 5 | P104: 182 | Q104: 56 | R104: 323 | S104: 6043 | T104: 6043 SOMERSET ACAD CHARTER MIDDLE (COUNTRY PALMS) | U104: 6 | V104: 22 | W104: 63 | X104: 35 | Y104: 6091 | Z104: 6091 CITRUS GROVE MIDDLE SCHOOL | AA104: 7 | AB104: 60 | AC104: 21 | AD104: 285 | AE104: 6301 | AF104: 6301 JOHN F. KENNEDY MIDDLE SCHOOL | AG104: 8 | AH104: 76 | AI104: 34 | AJ104: 222
A105: 2191 | B105: 2191 SPANISH LAKE ELEMENTARY SCHOOL | C105: 3 | D105: 179 | E105: 61 | F105: 293 | G105: 2241 | H105: 2241 GRATIGNY ELEMENTARY SCHOOL | I105: 4 | J105: 26 | K105: 33 | L105: 79 | M105: 2241 | N105: 2241 GRATIGNY ELEMENTARY SCHOOL | O105: 5 | P105: 23 | Q105: 27 | R105: 84 | S105: 6045 | T105: 6045 INTERNATIONAL STUDIES CHARTER MIDDLE SCHOOL | U105: 6 | V105: 78 | W105: 81 | X105: 96 | Y105: 6111 | Z105: 6111 CUTLER BAY ACADEMY OF ADVANCED STUDIES | AA105: 7 | AB105: 81 | AC105: 26 | AD105: 310 | AE105: 6331 | AF105: 6331 KINLOCH PARK MIDDLE SCHOOL | AG105: 8 | AH105: 105 | AI105: 29 | AJ105: 357
A106: 2241 | B106: 2241 GRATIGNY ELEMENTARY SCHOOL | C106: 3 | D106: 28 | E106: 30 | F106: 93 | G106: 2261 | H106: 2261 GREENGLADE ELEMENTARY SCHOOL | I106: 4 | J106: 48 | K106: 70 | L106: 69 | M106: 2261 | N106: 2261 GREENGLADE ELEMENTARY SCHOOL | O106: 5 | P106: 52 | Q106: 60 | R106: 87 | S106: 6047 | T106: 6047 MATER ACAD MIDDLE SCHOOL INTERNAT STUDIES | U106: 6 | V106: 33 | W106: 70 | X106: 47 | Y106: 6121 | Z106: 6121 RUBEN DARIO MIDDLE SCHOOL | AA106: 7 | AB106: 60 | AC106: 27 | AD106: 222 | AE106: 6351 | AF106: 6351 LAKE STEVENS MIDDLE SCHOOL | AG106: 8 | AH106: 84 | AI106: 52 | AJ106: 161
A107: 2261 | B107: 2261 GREENGLADE ELEMENTARY SCHOOL | C107: 3 | D107: 52 | E107: 68 | F107: 76 | G107: 2281 | H107: 2281 GREYNOLDS PARK ELEMENTARY SCHL | I107: 4 | J107: 49 | K107: 50 | L107: 98 | M107: 2281 | N107: 2281 GREYNOLDS PARK ELEMENTARY SCHL | O107: 5 | P107: 49 | Q107: 45 | R107: 109 | S107: 6048 | T107: 6048 MIAMI COMMUNITY CHARTER MIDDLE SCHOOL | U107: 6 | V107: 28 | W107: 29 | X107: 97 | Y107: 6128 | Z107: 6128 SOMERSET ACADEMY BAY MIDDLE SCHOOL | AA107: 7 | AB107: 14 | AC107: 54 | AD107: 26 | AE107: 6361 | AF107: 6361 JOSE DE DIEGO MIDDLE SCHOOL | AG107: 8 | AH107: 45 | AI107: 20 | AJ107: 222
A108: 2281 | B108: 2281 GREYNOLDS PARK ELEMENTARY SCHL | C108: 3 | D108: 63 | E108: 53 | F108: 119 | G108: 2321 | H108: 2321 GULFSTREAM ELEMENTARY SCHOOL | I108: 4 | J108: 41 | K108: 59 | L108: 70 | M108: 2321 | N108: 2321 GULFSTREAM ELEMENTARY SCHOOL | O108: 5 | P108: 36 | Q108: 46 | R108: 78 | S108: 6051 | T108: 6051 CAROL CITY MIDDLE SCHOOL | U108: 6 | V108: 14 | W108: 11 | X108: 126 | Y108: 6161 | Z108: 6161 LAWTON CHILES MIDDLE SCHOOL | AA108: 7 | AB108: 85 | AC108: 39 | AD108: 219 | AE108: 6391 | AF108: 6391 MADISON MIDDLE SCHOOL | AG108: 8 | AH108: 14 | AI108: 12 | AJ108: 120
A109: 2321 | B109: 2321 GULFSTREAM ELEMENTARY SCHOOL | C109: 3 | D109: 58 | E109: 65 | F109: 89 | G109: 2331 | H109: 2331 CHARLES R HADLEY ELEM SCHOOL | I109: 4 | J109: 95 | K109: 67 | L109: 141 | M109: 2331 | N109: 2331 CHARLES R HADLEY ELEM SCHOOL | O109: 5 | P109: 65 | Q109: 44 | R109: 147 | S109: 6052 | T109: 6052 ZELDA GLAZER MIDDLE SCHOOL | U109: 6 | V109: 317 | W109: 62 | X109: 512 | Y109: 6171 | Z109: 6171 HENRY H. FILER MIDDLE SCHOOL | AA109: 7 | AB109: 99 | AC109: 33 | AD109: 301 | AE109: 6411 | AF109: 6411 HORACE MANN MIDDLE SCHOOL | AG109: 8 | AH109: 43 | AI109: 23 | AJ109: 183
A110: 2331 | B110: 2331 CHARLES R HADLEY ELEM SCHOOL | C110: 3 | D110: 116 | E110: 67 | F110: 174 | G110: 2341 | H110: 2341 JOE HALL ELEMENTARY SCHOOL | I110: 4 | J110: 76 | K110: 77 | L110: 99 | M110: 2341 | N110: 2341 JOE HALL ELEMENTARY SCHOOL | O110: 5 | P110: 55 | Q110: 53 | R110: 103 | S110: 6053 | T110: 6053 SOMERSET ACADEMY CHARTER MIDDLE SOUTH MIAMI | U110: 6 | V110: 62 | W110: 84 | X110: 74 | Y110: 6211 | Z110: 6211 GLADES MIDDLE SCHOOL | AA110: 7 | AB110: 138 | AC110: 48 | AD110: 288 | AE110: 6441 | AF110: 6441 HOWARD D. MCMILLAN MIDDLE SCHOOL | AG110: 8 | AH110: 33 | AI110: 30 | AJ110: 110
A111: 2341 | B111: 2341 JOE HALL ELEMENTARY SCHOOL | C111: 3 | D111: 63 | E111: 72 | F111: 88 | G111: 2351 | H111: 2351 ENEIDA M. HARTNER ELEM. SCHOOL | I111: 4 | J111: 26 | K111: 39 | L111: 67 | M111: 2351 | N111: 2351 ENEIDA M. HARTNER ELEM. SCHOOL | O111: 5 | P111: 13 | Q111: 17 | R111: 76 | S111: 6060 | T111: 6060 ASPIRA LEADERSHIP/COLLEGE PREPARATORY ACADEMY | U111: 6 | V111: 22 | W111: 37 | X111: 59 | Y111: 6221 | Z111: 6221 HAMMOCKS MIDDLE SCHOOL | AA111: 7 | AB111: 101 | AC111: 39 | AD111: 257 | AE111: 6501 | AF111: 6501 MIAMI LAKES MIDDLE SCHOOL | AG111: 8 | AH111: 48 | AI111: 31 | AJ111: 154
A112: 2351 | B112: 2351 ENEIDA M. HARTNER ELEM. SCHOOL | C112: 3 | D112: 45 | E112: 52 | F112: 86 | G112: 2361 | H112: 2361 HIALEAH ELEMENTARY SCHOOL | I112: 4 | J112: 54 | K112: 50 | L112: 109 | M112: 2361 | N112: 2361 HIALEAH ELEMENTARY SCHOOL | O112: 5 | P112: 42 | Q112: 39 | R112: 109 | S112: 6070 | T112: 6070 ASPIRA ARTS DECO CHARTER | U112: 6 | V112: 22 | W112: 14 | X112: 152 | Y112: 6231 | Z112: 6231 HIALEAH MIDDLE SCHOOL | AA112: 7 | AB112: 62 | AC112: 26 | AD112: 241 | AE112: 6521 | AF112: 6521 MIAMI SPRINGS MIDDLE SCHOOL | AG112: 8 | AH112: 119 | AI112: 34 | AJ112: 353
A113: 2361 | B113: 2361 HIALEAH ELEMENTARY SCHOOL | C113: 3 | D113: 71 | E113: 51 | F113: 140 | G113: 2371 | H113: 2371 WEST HIALEAH GARDENS ELEMENTARY SCHOOL | I113: 4 | J113: 130 | K113: 56 | L113: 234 | M113: 2371 | N113: 2371 WEST HIALEAH GARDENS ELEMENTARY SCHOOL | O113: 5 | P113: 118 | Q113: 53 | R113: 221 | S113: 6071 | T113: 6071 GEORGE WASHINGTON CARVER MIDDLE SCHOOL | U113: 6 | V113: 329 | W113: 95 | X113: 346 | Y113: 6241 | Z113: 6241 HIGHLAND OAKS MIDDLE SCHOOL | AA113: 7 | AB113: 78 | AC113: 31 | AD113: 254 | AE113: 6541 | AF113: 6541 NAUTILUS MIDDLE SCHOOL | AG113: 8 | AH113: 68 | AI113: 31 | AJ113: 222
A114: 2371 | B114: 2371 WEST HIALEAH GARDENS ELEMENTARY SCHOOL | C114: 3 | D114: 77 | E114: 41 | F114: 189 | G114: 2401 | H114: 2401 HIBISCUS ELEMENTARY SCHOOL | I114: 4 | J114: 54 | K114: 75 | L114: 72 | M114: 2401 | N114: 2401 HIBISCUS ELEMENTARY SCHOOL | O114: 5 | P114: 43 | Q114: 68 | R114: 63 | S114: 6082 | T114: 6082 ACADEMIR CHARTER SCHOOL MIDDLE | U114: 6 | V114: 62 | W114: 65 | X114: 96 | Y114: 6251 | Z114: 6251 HOMESTEAD MIDDLE SCHOOL | AA114: 7 | AB114: 32 | AC114: 15 | AD114: 219 | AE114: 6571 | AF114: 6571 NORLAND MIDDLE SCHOOL | AG114: 8 | AH114: 61 | AI114: 24 | AJ114: 254
A115: 2401 | B115: 2401 HIBISCUS ELEMENTARY SCHOOL | C115: 3 | D115: 47 | E115: 65 | F115: 72 | G115: 2441 | H115: 2441 VIRGINIA A BOONE-HIGHLAND OAKS | I115: 4 | J115: 77 | K115: 70 | L115: 110 | M115: 2441 | N115: 2441 VIRGINIA A BOONE-HIGHLAND OAKS | O115: 5 | P115: 94 | Q115: 70 | R115: 134 | S115: 6083 | T115: 6083 JUST ARTS AND MANAGEMENT CHARTER MIDDLE | U115: 6 | V115: 93 | W115: 93 | X115: 100 | Y115: 6281 | Z115: 6281 THOMAS JEFFERSON MIDDLE SCHOOL | AA115: 7 | AB115: 22 | AC115: 21 | AD115: 106 | AE115: 6591 | AF115: 6591 NORTH DADE MIDDLE SCHOOL | AG115: 8 | AH115: 37 | AI115: 19 | AJ115: 191
A116: 2441 | B116: 2441 VIRGINIA A BOONE-HIGHLAND OAKS | C116: 3 | D116: 92 | E116: 69 | F116: 133 | G116: 2501 | H116: 2501 HOLMES ELEMENTARY SCHOOL | I116: 4 | J116: 24 | K116: 35 | L116: 68 | M116: 2501 | N116: 2501 HOLMES ELEMENTARY SCHOOL | O116: 5 | P116: 27 | Q116: 38 | R116: 71 | S116: 6091 | T116: 6091 CITRUS GROVE MIDDLE SCHOOL | U116: 6 | V116: 34 | W116: 13 | X116: 258 | Y116: 6301 | Z116: 6301 JOHN F. KENNEDY MIDDLE SCHOOL | AA116: 7 | AB116: 109 | AC116: 37 | AD116: 297 | AE116: 6611 | AF116: 6611 COUNTRY CLUB MIDDLE SCHOOL | AG116: 8 | AH116: 95 | AI116: 33 | AJ116: 286
A117: 2501 | B117: 2501 HOLMES ELEMENTARY SCHOOL | C117: 3 | D117: 42 | E117: 30 | F117: 141 | G117: 2511 | H117: 2511 ZORA NEALE HURSTON ELEMENTARY SCHOOL | I117: 4 | J117: 79 | K117: 72 | L117: 110 | M117: 2511 | N117: 2511 ZORA NEALE HURSTON ELEMENTARY SCHOOL | O117: 5 | P117: 81 | Q117: 60 | R117: 135 | S117: 6111 | T117: 6111 CUTLER BAY ACADEMY OF ADVANCED STUDIES | U117: 6 | V117: 61 | W117: 19 | X117: 317 | Y117: 6331 | Z117: 6331 KINLOCH PARK MIDDLE SCHOOL | AA117: 7 | AB117: 141 | AC117: 33 | AD117: 429 | AE117: 6631 | AF117: 6631 NORTH MIAMI MIDDLE SCHOOL | AG117: 8 | AH117: 85 | AI117: 36 | AJ117: 234
A118: 2511 | B118: 2511 ZORA NEALE HURSTON ELEMENTARY SCHOOL | C118: 3 | D118: 78 | E118: 71 | F118: 110 | G118: 2521 | H118: 2521 OLIVER HOOVER ELEMENTARY SCHL | I118: 4 | J118: 77 | K118: 61 | L118: 127 | M118: 2521 | N118: 2521 OLIVER HOOVER ELEMENTARY SCHL | O118: 5 | P118: 106 | Q118: 72 | R118: 147 | S118: 6121 | T118: 6121 RUBEN DARIO MIDDLE SCHOOL | U118: 6 | V118: 53 | W118: 27 | X118: 196 | Y118: 6351 | Z118: 6351 LAKE STEVENS MIDDLE SCHOOL | AA118: 7 | AB118: 72 | AC118: 34 | AD118: 209 | AE118: 6681 | AF118: 6681 PALM SPRINGS MIDDLE SCHOOL | AG118: 8 | AH118: 70 | AI118: 23 | AJ118: 307
A119: 2521 | B119: 2521 OLIVER HOOVER ELEMENTARY SCHL | C119: 3 | D119: 98 | E119: 78 | F119: 126 | G119: 2541 | H119: 2541 HOWARD DRIVE ELEMENTARY SCHOOL | I119: 4 | J119: 70 | K119: 67 | L119: 104 | M119: 2541 | N119: 2541 HOWARD DRIVE ELEMENTARY SCHOOL | O119: 5 | P119: 59 | Q119: 55 | R119: 108 | S119: 6128 | T119: 6128 SOMERSET ACADEMY BAY MIDDLE SCHOOL | U119: 6 | V119: 10 | W119: 63 | X119: 16 | Y119: 6361 | Z119: 6361 JOSE DE DIEGO MIDDLE SCHOOL | AA119: 7 | AB119: 29 | AC119: 15 | AD119: 193 | AE119: 6701 | AF119: 6701 PALMETTO MIDDLE SCHOOL | AG119: 8 | AH119: 72 | AI119: 45 | AJ119: 161
A120: 2541 | B120: 2541 HOWARD DRIVE ELEMENTARY SCHOOL | C120: 3 | D120: 79 | E120: 71 | F120: 111 | G120: 2581 | H120: 2581 MADIE IVES COMMUNITY ELEMENTARY SCHOOL | I120: 4 | J120: 69 | K120: 63 | L120: 110 | M120: 2581 | N120: 2581 MADIE IVES COMMUNITY ELEMENTARY SCHOOL | O120: 5 | P120: 63 | Q120: 61 | R120: 103 | S120: 6161 | T120: 6161 LAWTON CHILES MIDDLE SCHOOL | U120: 6 | V120: 127 | W120: 46 | X120: 276 | Y120: 6391 | Z120: 6391 MADISON MIDDLE SCHOOL | AA120: 7 | AB120: 37 | AC120: 23 | AD120: 158 | AE120: 6741 | AF120: 6741 PONCE DE LEON MIDDLE SCHOOL | AG120: 8 | AH120: 31 | AI120: 16 | AJ120: 192
A121: 2581 | B121: 2581 MADIE IVES COMMUNITY ELEMENTARY SCHOOL | C121: 3 | D121: 73 | E121: 51 | F121: 144 | G121: 2641 | H121: 2641 KENDALE ELEMENTARY SCHOOL | I121: 4 | J121: 64 | K121: 74 | L121: 87 | M121: 2641 | N121: 2641 KENDALE ELEMENTARY SCHOOL | O121: 5 | P121: 63 | Q121: 73 | R121: 86 | S121: 6171 | T121: 6171 HENRY H. FILER MIDDLE SCHOOL | U121: 6 | V121: 53 | W121: 19 | X121: 273 | Y121: 6411 | Z121: 6411 HORACE MANN MIDDLE SCHOOL | AA121: 7 | AB121: 58 | AC121: 24 | AD121: 243 | AE121: 6751 | AF121: 6751 HIALEAH GARDENS MIDDLE SCHOOL | AG121: 8 | AH121: 56 | AI121: 28 | AJ121: 200
A122: 2641 | B122: 2641 KENDALE ELEMENTARY SCHOOL | C122: 3 | D122: 59 | E122: 77 | F122: 77 | G122: 2651 | H122: 2651 KENDALE LAKES ELEMENTARY SCHL | I122: 4 | J122: 72 | K122: 70 | L122: 103 | M122: 2651 | N122: 2651 KENDALE LAKES ELEMENTARY SCHL | O122: 5 | P122: 89 | Q122: 72 | R122: 123 | S122: 6211 | T122: 6211 GLADES MIDDLE SCHOOL | U122: 6 | V122: 159 | W122: 49 | X122: 325 | Y122: 6441 | Z122: 6441 HOWARD D. MCMILLAN MIDDLE SCHOOL | AA122: 7 | AB122: 67 | AC122: 36 | AD122: 187 | AE122: 6761 | AF122: 6761 REDLAND MIDDLE SCHOOL | AG122: 8 | AH122: 29 | AI122: 16 | AJ122: 180
A123: 2651 | B123: 2651 KENDALE LAKES ELEMENTARY SCHL | C123: 3 | D123: 73 | E123: 63 | F123: 116 | G123: 2661 | H123: 2661 KENSINGTON PARK ELEM. SCHOOL | I123: 4 | J123: 83 | K123: 50 | L123: 167 | M123: 2661 | N123: 2661 KENSINGTON PARK ELEM. SCHOOL | O123: 5 | P123: 86 | Q123: 49 | R123: 177 | S123: 6221 | T123: 6221 HAMMOCKS MIDDLE SCHOOL | U123: 6 | V123: 142 | W123: 46 | X123: 311 | Y123: 6501 | Z123: 6501 MIAMI LAKES MIDDLE SCHOOL | AA123: 7 | AB123: 110 | AC123: 38 | AD123: 288 | AE123: 6771 | AF123: 6771 JORGE MAS CANOSA MIDDLE SCHOOL | AG123: 8 | AH123: 103 | AI123: 32 | AJ123: 323
A124: 2661 | B124: 2661 KENSINGTON PARK ELEM. SCHOOL | C124: 3 | D124: 100 | E124: 53 | F124: 189 | G124: 2701 | H124: 2701 KENWOOD K-8 CENTER | I124: 4 | J124: 58 | K124: 52 | L124: 111 | M124: 2701 | N124: 2701 KENWOOD K-8 CENTER | O124: 5 | P124: 53 | Q124: 46 | R124: 116 | S124: 6231 | T124: 6231 HIALEAH MIDDLE SCHOOL | U124: 6 | V124: 51 | W124: 24 | X124: 211 | Y124: 6521 | Z124: 6521 MIAMI SPRINGS MIDDLE SCHOOL | AA124: 7 | AB124: 99 | AC124: 27 | AD124: 368 | AE124: 6781 | AF124: 6781 RICHMOND HEIGHTS MIDDLE SCHOOL | AG124: 8 | AH124: 9 | AI124: 9 | AJ124: 101
A125: 2701 | B125: 2701 KENWOOD K-8 CENTER | C125: 3 | D125: 76 | E125: 75 | F125: 102 | G125: 2741 | H125: 2741 KEY BISCAYNE K-8 CENTER | I125: 4 | J125: 156 | K125: 86 | L125: 181 | M125: 2741 | N125: 2741 KEY BISCAYNE K-8 CENTER | O125: 5 | P125: 167 | Q125: 85 | R125: 196 | S125: 6241 | T125: 6241 HIGHLAND OAKS MIDDLE SCHOOL | U125: 6 | V125: 176 | W125: 45 | X125: 394 | Y125: 6541 | Z125: 6541 NAUTILUS MIDDLE SCHOOL | AA125: 7 | AB125: 111 | AC125: 42 | AD125: 264 | AE125: 6801 | AF125: 6801 RIVIERA MIDDLE SCHOOL | AG125: 8 | AH125: 23 | AI125: 20 | AJ125: 116
A126: 2741 | B126: 2741 KEY BISCAYNE K-8 CENTER | C126: 3 | D126: 159 | E126: 86 | F126: 184 | G126: 2781 | H126: 2781 KINLOCH PARK ELEMENTARY SCHOOL | I126: 4 | J126: 66 | K126: 57 | L126: 115 | M126: 2781 | N126: 2781 KINLOCH PARK ELEMENTARY SCHOOL | O126: 5 | P126: 54 | Q126: 41 | R126: 131 | S126: 6251 | T126: 6251 HOMESTEAD MIDDLE SCHOOL | U126: 6 | V126: 55 | W126: 28 | X126: 193 | Y126: 6571 | Z126: 6571 NORLAND MIDDLE SCHOOL | AA126: 7 | AB126: 57 | AC126: 21 | AD126: 274 | AE126: 6821 | AF126: 6821 ROCKWAY MIDDLE SCHOOL | AG126: 8 | AH126: 75 | AI126: 35 | AJ126: 216
A127: 2781 | B127: 2781 KINLOCH PARK ELEMENTARY SCHOOL | C127: 3 | D127: 70 | E127: 54 | F127: 129 | G127: 2801 | H127: 2801 LAKE STEVENS ELEMENTARY SCHOOL | I127: 4 | J127: 10 | K127: 23 | L127: 44 | M127: 2801 | N127: 2801 LAKE STEVENS ELEMENTARY SCHOOL | O127: 5 | P127: 22 | Q127: 58 | R127: 38 | S127: 6281 | T127: 6281 THOMAS JEFFERSON MIDDLE SCHOOL | U127: 6 | V127: 11 | W127: 20 | X127: 55 | Y127: 6591 | Z127: 6591 NORTH DADE MIDDLE SCHOOL | AA127: 7 | AB127: 32 | AC127: 18 | AD127: 178 | AE127: 6841 | AF127: 6841 SHENANDOAH MIDDLE SCHOOL | AG127: 8 | AH127: 76 | AI127: 29 | AJ127: 263
A128: 2801 | B128: 2801 LAKE STEVENS ELEMENTARY SCHOOL | C128: 3 | D128: 17 | E128: 36 | F128: 47 | G128: 2821 | H128: 2821 LAKEVIEW ELEMENTARY SCHOOL | I128: 4 | J128: 31 | K128: 63 | L128: 49 | M128: 2821 | N128: 2821 LAKEVIEW ELEMENTARY SCHOOL | O128: 5 | P128: 30 | Q128: 50 | R128: 60 | S128: 6301 | T128: 6301 JOHN F. KENNEDY MIDDLE SCHOOL | U128: 6 | V128: 178 | W128: 47 | X128: 380 | Y128: 6611 | Z128: 6611 COUNTRY CLUB MIDDLE SCHOOL | AA128: 7 | AB128: 92 | AC128: 29 | AD128: 314 | AE128: 6861 | AF128: 6861 SOUTHWOOD MIDDLE SCHOOL | AG128: 8 | AH128: 66 | AI128: 40 | AJ128: 166
A129: 2821 | B129: 2821 LAKEVIEW ELEMENTARY SCHOOL | C129: 3 | D129: 35 | E129: 48 | F129: 73 | G129: 2881 | H129: 2881 LEEWOOD K-8 CENTER | I129: 4 | J129: 73 | K129: 81 | L129: 90 | M129: 2881 | N129: 2881 LEEWOOD K-8 CENTER | O129: 5 | P129: 80 | Q129: 73 | R129: 109 | S129: 6331 | T129: 6331 KINLOCH PARK MIDDLE SCHOOL | U129: 6 | V129: 63 | W129: 19 | X129: 334 | Y129: 6631 | Z129: 6631 NORTH MIAMI MIDDLE SCHOOL | AA129: 7 | AB129: 83 | AC129: 25 | AD129: 329 | AE129: 6881 | AF129: 6881 SOUTH MIAMI MIDDLE SCHOOL | AG129: 8 | AH129: 52 | AI129: 42 | AJ129: 125
A130: 2881 | B130: 2881 LEEWOOD K-8 CENTER | C130: 3 | D130: 63 | E130: 75 | F130: 84 | G130: 2891 | H130: 2891 WILLIAM H. LEHMAN ELEMENTARY SCHOOL | I130: 4 | J130: 78 | K130: 83 | L130: 94 | M130: 2891 | N130: 2891 WILLIAM H. LEHMAN ELEMENTARY SCHOOL | O130: 5 | P130: 100 | Q130: 84 | R130: 119 | S130: 6351 | T130: 6351 LAKE STEVENS MIDDLE SCHOOL | U130: 6 | V130: 60 | W130: 29 | X130: 208 | Y130: 6681 | Z130: 6681 PALM SPRINGS MIDDLE SCHOOL | AA130: 7 | AB130: 93 | AC130: 29 | AD130: 320 | AE130: 6901 | AF130: 6901 W. R. THOMAS MIDDLE SCHOOL | AG130: 8 | AH130: 39 | AI130: 35 | AJ130: 111
A131: =LEFT(B131,4) -> 2891 | B131: 2891 WILLIAM H. LEHMAN ELEMENTARY SCHOOL | C131: 3 | D131: 77 | E131: 68 | F131: 114 | G131: =LEFT(H131,4) -> 2901 | H131: 2901 LEISURE CITY K-8 CENTER | I131: 4 | J131: 43 | K131: 44 | L131: 98 | M131: =LEFT(N131,4) -> 2901 | N131: 2901 LEISURE CITY K-8 CENTER | O131: 5 | P131: 20 | Q131: 21 | R131: 97 | S131: =LEFT(T131,4) -> 6361 | T131: 6361 JOSE DE DIEGO MIDDLE SCHOOL | U131: 6 | V131: 24 | W131: 12 | X131: 193 | Y131: =LEFT(Z131,4) -> 6701 | Z131: 6701 PALMETTO MIDDLE SCHOOL | AA131: 7 | AB131: 209 | AC131: 66 | AD131: 315 | AE131: =LEFT(AF131,4) -> 6921 | AF131: 6921 LAMAR LOUISE CURRY MIDDLE SCHL | AG131: 8 | AH131: 48 | AI131: 29 | AJ131: 164
A132: 2901 | B132: 2901 LEISURE CITY K-8 CENTER | C132: 3 | D132: 41 | E132: 38 | F132: 109 | G132: 2911 | H132: 2911 LINDA LENTIN K-8 CENTER | I132: 4 | J132: 37 | K132: 39 | L132: 94 | M132: 2911 | N132: 2911 LINDA LENTIN K-8 CENTER | O132: 5 | P132: 34 | Q132: 35 | R132: 97 | S132: 6391 | T132: 6391 MADISON MIDDLE SCHOOL | U132: 6 | V132: 30 | W132: 21 | X132: 142 | Y132: 6741 | Z132: 6741 PONCE DE LEON MIDDLE SCHOOL | AA132: 7 | AB132: 108 | AC132: 36 | AD132: 301 | AE132: 6961 | AF132: 6961 WEST MIAMI MIDDLE SCHOOL | AG132: 8 | AH132: 42 | AI132: 22 | AJ132: 192
A133: 2911 | B133: 2911 LINDA LENTIN K-8 CENTER | C133: 3 | D133: 45 | E133: 47 | F133: 95 | G133: 2941 | H133: 2941 LAURA C. SAUNDERS ELEM. SCHOOL | I133: 4 | J133: 45 | K133: 48 | L133: 93 | M133: 2941 | N133: 2941 LAURA C. SAUNDERS ELEM. SCHOOL | O133: 5 | P133: 52 | Q133: 50 | R133: 103 | S133: 6411 | T133: 6411 HORACE MANN MIDDLE SCHOOL | U133: 6 | V133: 58 | W133: 26 | X133: 224 | Y133: 6751 | Z133: 6751 HIALEAH GARDENS MIDDLE SCHOOL | AA133: 7 | AB133: 260 | AC133: 51 | AD133: 513 | AE133: 7001 | AF133: 7001 MIAMI-DADE ONLINE ACAD-VIRTUAL INSTRUC PROG | AG133: 8 | AH133: 11 | AI133: 73 | AJ133: 15
A134: 2941 | B134: 2941 LAURA C. SAUNDERS ELEM. SCHOOL | C134: 3 | D134: 45 | E134: 35 | F134: 127 | G134: 2981 | H134: 2981 LIBERTY CITY ELEMENTARY SCHOOL | I134: 4 | J134: 18 | K134: 40 | L134: 45 | M134: 2981 | N134: 2981 LIBERTY CITY ELEMENTARY SCHOOL | O134: 5 | P134: 16 | Q134: 41 | R134: 39 | S134: 6441 | T134: 6441 HOWARD D. MCMILLAN MIDDLE SCHOOL | U134: 6 | V134: 210 | W134: 71 | X134: 297 | Y134: 6761 | Z134: 6761 REDLAND MIDDLE SCHOOL | AA134: 7 | AB134: 33 | AC134: 19 | AD134: 175 | AE134: 7056 | AF134: 7056 YOUNG MEN'S PREPARATORY ACADEMY | AG134: 8 | AH134: 13 | AI134: 48 | AJ134: 27
A135: 2981 | B135: 2981 LIBERTY CITY ELEMENTARY SCHOOL | C135: 3 | D135: 28 | E135: 45 | F135: 62 | G135: 3021 | H135: 3021 JESSE J. MCCRARY, JR. ELEMENTARY SCHOOL | I135: 4 | J135: 34 | K135: 46 | L135: 74 | M135: 3021 | N135: 3021 JESSE J. MCCRARY, JR. ELEMENTARY SCHOOL | O135: 5 | P135: 34 | Q135: 46 | R135: 74 | S135: 6501 | T135: 6501 MIAMI LAKES MIDDLE SCHOOL | U135: 6 | V135: 174 | W135: 53 | X135: 330 | Y135: 6771 | Z135: 6771 JORGE MAS CANOSA MIDDLE SCHOOL | AA135: 7 | AB135: 241 | AC135: 45 | AD135: 530 | AE135: 7059 | AF135: 7059 MIAMI ARTS CHARTER | AG135: 8 | AH135: 132 | AI135: 82 | AJ135: 161
A136: 3021 | B136: 3021 JESSE J. MCCRARY, JR. ELEMENTARY SCHOOL | C136: 3 | D136: 37 | E136: 38 | F136: 97 | G136: 3025 | H136: 3025 ADVANTAGE ACADEMY SANTA FE | I136: 4 | J136: 31 | K136: 70 | L136: 44 | M136: 3025 | N136: 3025 ADVANTAGE ACADEMY SANTA FE | O136: 5 | P136: 7 | Q136: 41 | R136: 17 | S136: 6521 | T136: 6521 MIAMI SPRINGS MIDDLE SCHOOL | U136: 6 | V136: 118 | W136: 30 | X136: 392 | Y136: 6781 | Z136: 6781 RICHMOND HEIGHTS MIDDLE SCHOOL | AA136: 7 | AB136: 20 | AC136: 13 | AD136: 157 | AE136: 7262 | AF136: 7262 CITY OF HIALEAH EDUCATION ACADEMY | AG136: 8 | AH136: 14 | AI136: 67 | AJ136: 21
A137: 3025 | B137: 3025 ADVANTAGE ACADEMY SANTA FE | C137: 3 | D137: 46 | E137: 61 | F137: 75 | G137: 3030 | H137: 3030 DORAL ACADEMY | I137: 4 | J137: 169 | K137: 95 | L137: 177 | M137: 3030 | N137: 3030 DORAL ACADEMY | O137: 5 | P137: 129 | Q137: 83 | R137: 156 | S137: 6541 | T137: 6541 NAUTILUS MIDDLE SCHOOL | U137: 6 | V137: 129 | W137: 45 | X137: 284 | Y137: 6801 | Z137: 6801 RIVIERA MIDDLE SCHOOL | AA137: 7 | AB137: 44 | AC137: 32 | AD137: 136 | AE137: 7291 | AF137: 7291 JOSE MARTI MAST 6-12 ACADEMY | AG137: 8 | AI137: NA | AJ137: 3
A138: 3030 | B138: 3030 DORAL ACADEMY | C138: 3 | D138: 167 | E138: 84 | F138: 200 | G138: 3033 | H138: 3033 SOMERSET OAKS ACADEMY | I138: 4 | J138: 27 | K138: 61 | L138: 44 | M138: 3033 | N138: 3033 SOMERSET OAKS ACADEMY | O138: 5 | P138: 2 | Q138: 11 | R138: 18 | S138: 6571 | T138: 6571 NORLAND MIDDLE SCHOOL | U138: 6 | V138: 45 | W138: 17 | X138: 262 | Y138: 6821 | Z138: 6821 ROCKWAY MIDDLE SCHOOL | AA138: 7 | AB138: 128 | AC138: 43 | AD138: 295 | AE138: 7351 | AF138: 7351 ARTHUR AND POLLY MAYS CONSERVATORY OF THE ART | AG138: 8 | AH138: 17 | AI138: 33 | AJ138: 52
A139: 3033 | B139: 3033 SOMERSET OAKS ACADEMY | C139: 3 | D139: 32 | E139: 56 | F139: 57 | G139: 3034 | H139: 3034 BRIDGEPREP ACADEMY OF VILLAGE GREEN | I139: 4 | J139: 9 | K139: 60 | L139: 15 | M139: 3034 | N139: 3034 BRIDGEPREP ACADEMY OF VILLAGE GREEN | O139: 5 | P139: 8 | Q139: 67 | R139: 12 | S139: 6591 | T139: 6591 NORTH DADE MIDDLE SCHOOL | U139: 6 | V139: 41 | W139: 19 | X139: 216 | Y139: 6841 | Z139: 6841 SHENANDOAH MIDDLE SCHOOL | AA139: 7 | AB139: 90 | AC139: 29 | AD139: 308 | AE139: 7631 | AF139: 7631 MIAMI MACARTHUR SOUTH | AG139: 8 | AH139: 2 | AI139: 12 | AJ139: 17
A140: 3034 | B140: 3034 BRIDGEPREP ACADEMY OF VILLAGE GREEN | C140: 3 | D140: 21 | E140: 57 | F140: 37 | G140: 3035 | H140: 3035 RAMZ ACADEMY K-5 MIAMI CAMPUS | I140: 4 | J140: 15 | K140: 65 | L140: 23 | M140: 3035 | N140: 3035 RAMZ ACADEMY K-5 MIAMI CAMPUS | O140: 5 | P140: 2 | Q140: 9 | R140: 22 | S140: 6611 | T140: 6611 COUNTRY CLUB MIDDLE SCHOOL | U140: 6 | V140: 33 | W140: 14 | X140: 231 | Y140: 6861 | Z140: 6861 SOUTHWOOD MIDDLE SCHOOL | AA140: 7 | AB140: 343 | AC140: 71 | AD140: 480 | AE140: 7812 | AF140: 7812 MIAMI BRIDGE SOUTH | AG140: 8 | AI140: NA | AJ140: 1
A141: 3035 | B141: 3035 RAMZ ACADEMY K-5 MIAMI CAMPUS | C141: 3 | D141: 22 | E141: 54 | F141: 41 | G141: 3041 | H141: 3041 LORAH PARK ELEMENTARY SCHOOL | I141: 4 | J141: 32 | K141: 39 | L141: 83 | M141: 3041 | N141: 3041 LORAH PARK ELEMENTARY SCHOOL | O141: 5 | P141: 21 | Q141: 33 | R141: 64 | S141: 6631 | T141: 6631 NORTH MIAMI MIDDLE SCHOOL | U141: 6 | V141: 65 | W141: 23 | X141: 280 | Y141: 6881 | Z141: 6881 SOUTH MIAMI MIDDLE SCHOOL | AA141: 7 | AB141: 220 | AC141: 75 | AD141: 294 | AE141: 7819 | AF141: 7819 BOYSTOWN | AG141: 8 | AI141: NA | AJ141: 2
A142: 3041 | B142: 3041 LORAH PARK ELEMENTARY SCHOOL | C142: 3 | D142: 31 | E142: 46 | F142: 68 | G142: 3051 | H142: 3051 TOUSSAINT L'OUVERTURE ELEM. | I142: 4 | J142: 18 | K142: 28 | L142: 65 | M142: 3051 | N142: 3051 TOUSSAINT L'OUVERTURE ELEM. | O142: 5 | P142: 11 | Q142: 16 | R142: 70 | S142: 6681 | T142: 6681 PALM SPRINGS MIDDLE SCHOOL | U142: 6 | V142: 87 | W142: 31 | X142: 280 | Y142: 6901 | Z142: 6901 W. R. THOMAS MIDDLE SCHOOL | AA142: 7 | AB142: 108 | AC142: 53 | AD142: 205 | AE142: 7823 | AF142: 7823 HERE'S HELP | AG142: 8 | AI142: NA | AJ142: 6
A143: 3051 | B143: 3051 TOUSSAINT L'OUVERTURE ELEM. | C143: 3 | D143: 31 | E143: 34 | F143: 90 | G143: 3061 | H143: 3061 LUDLAM ELEMENTARY SCHOOL | I143: 4 | J143: 43 | K143: 75 | L143: 57 | M143: 3061 | N143: 3061 LUDLAM ELEMENTARY SCHOOL | O143: 5 | P143: 34 | Q143: 62 | R143: 55 | S143: 6701 | T143: 6701 PALMETTO MIDDLE SCHOOL | U143: 6 | V143: 201 | W143: 57 | X143: 355 | Y143: 6921 | Z143: 6921 LAMAR LOUISE CURRY MIDDLE SCHL | AA143: 7 | AB143: 172 | AC143: 56 | AD143: 305 | AE143: 7835 | AF143: 7835 RICHMOND PERRINE OPTIMIST | AG143: 8 | AI143: NA | AJ143: 9
A144: 3061 | B144: 3061 LUDLAM ELEMENTARY SCHOOL | C144: 3 | D144: 51 | E144: 81 | F144: 63 | G144: 3100 | H144: 3100 MATER ACADEMY EAST CHARTER | I144: 4 | J144: 69 | K144: 95 | L144: 73 | M144: 3100 | N144: 3100 MATER ACADEMY EAST CHARTER | O144: 5 | P144: 55 | Q144: 83 | R144: 66 | S144: 6741 | T144: 6741 PONCE DE LEON MIDDLE SCHOOL | U144: 6 | V144: 235 | W144: 62 | X144: 381 | Y144: 6961 | Z144: 6961 WEST MIAMI MIDDLE SCHOOL | AA144: 7 | AB144: 111 | AC144: 40 | AD144: 276 | AE144: 7840 | AF144: 7840 TURNER/GUILFORD/KNIGHT | AG144: 8 | AI144: NA | AJ144: 5
A145: 3100 | B145: 3100 MATER ACADEMY EAST CHARTER | C145: 3 | D145: 86 | E145: 92 | F145: 93 | G145: 3101 | H145: 3101 FRANK CRAWFORD MARTIN K-8 CENTER | I145: 4 | J145: 97 | K145: 81 | L145: 120 | M145: 3101 | N145: 3101 FRANK CRAWFORD MARTIN K-8 CENTER | O145: 5 | P145: 106 | Q145: 71 | R145: 150 | S145: 6751 | T145: 6751 HIALEAH GARDENS MIDDLE SCHOOL | U145: 6 | V145: 57 | W145: 31 | X145: 183 | Y145: 7001 | Z145: 7001 MIAMI-DADE ONLINE ACAD-VIRTUAL INSTRUC PROG | AA145: 7 | AB145: 6 | AC145: 46 | AD145: 13 | AE145: 7860 | AF145: 7860 SECONDARY STUDENT SUCCESS CENTER 801 | AG145: 8 | AH145: 0 | AI145: 0 | AJ145: 14
A146: 3101 | B146: 3101 FRANK CRAWFORD MARTIN K-8 CENTER | C146: 3 | D146: 107 | E146: 78 | F146: 137 | G146: 3111 | H146: 3111 WESLEY MATTHEWS ELEM. SCHOOL | I146: 4 | J146: 57 | K146: 75 | L146: 76 | M146: 3111 | N146: 3111 WESLEY MATTHEWS ELEM. SCHOOL | O146: 5 | P146: 58 | Q146: 67 | R146: 87 | S146: 6761 | T146: 6761 REDLAND MIDDLE SCHOOL | U146: 6 | V146: 23 | W146: 15 | X146: 152 | Y146: 7055 | Z146: 7055 YOUNG WOMENS PREPARATORY ACADEMY | AA146: 7 | AB146: 29 | AC146: 74 | AD146: 39 | AE146: 7861 | AF146: 7861 SECONDARY STUDENT SUCCESS CENTER 802 | AG146: 8 | AH146: 0 | AI146: 0 | AJ146: 12
A147: 3111 | B147: 3111 WESLEY MATTHEWS ELEM. SCHOOL | C147: 3 | D147: 56 | E147: 72 | F147: 78 | G147: 3141 | H147: 3141 MEADOWLANE ELEMENTARY SCHOOL | I147: 4 | J147: 89 | K147: 53 | L147: 168 | M147: 3141 | N147: 3141 MEADOWLANE ELEMENTARY SCHOOL | O147: 5 | P147: 115 | Q147: 65 | R147: 177 | S147: 6771 | T147: 6771 JORGE MAS CANOSA MIDDLE SCHOOL | U147: 6 | V147: 329 | W147: 52 | X147: 627 | Y147: 7056 | Z147: 7056 YOUNG MEN'S PREPARATORY ACADEMY | AA147: 7 | AB147: 3 | AC147: 11 | AD147: 27 | AE147: 7862 | AF147: 7862 SECONDARY STUDENT SUCCESS CENTER 803 | AG147: 8 | AH147: 1 | AI147: 10 | AJ147: 10
A148: 3141 | B148: 3141 MEADOWLANE ELEMENTARY SCHOOL | C148: 3 | D148: 110 | E148: 69 | F148: 160 | G148: 3181 | H148: 3181 MELROSE ELEMENTARY SCHOOL | I148: 4 | J148: 46 | K148: 59 | L148: 78 | M148: 3181 | N148: 3181 MELROSE ELEMENTARY SCHOOL | O148: 5 | P148: 31 | Q148: 33 | R148: 93 | S148: 6781 | T148: 6781 RICHMOND HEIGHTS MIDDLE SCHOOL | U148: 6 | V148: 52 | W148: 27 | X148: 191 | Y148: 7059 | Z148: 7059 MIAMI ARTS CHARTER | AA148: 7 | AB148: 122 | AC148: 60 | AD148: 202 | AE148: 7863 | AF148: 7863 SECONDARY STUDENT SUCCESS CENTER-804 | AG148: 8 | AH148: 0 | AI148: 0 | AJ148: 10
A149: 3181 | B149: 3181 MELROSE ELEMENTARY SCHOOL | C149: 3 | D149: 48 | E149: 52 | F149: 92 | G149: 3191 | H149: 3191 ADA MERRITT K-8 CENTER | I149: 4 | J149: 74 | K149: 93 | L149: 80 | M149: 3191 | N149: 3191 ADA MERRITT K-8 CENTER | O149: 5 | P149: 73 | Q149: 90 | R149: 81 | S149: 6801 | T149: 6801 RIVIERA MIDDLE SCHOOL | U149: 6 | V149: 86 | W149: 41 | X149: 212 | Y149: 7262 | Z149: 7262 CITY OF HIALEAH EDUCATION ACADEMY | AA149: 7 | AB149: 18 | AC149: 32 | AD149: 57 | AE149: 8101 | AF149: 8101 JAN MANN OPPORTUNITY SCHOOL | AG149: 8 | AH149: 0 | AI149: 0 | AJ149: 30
A150: 3191 | B150: 3191 ADA MERRITT K-8 CENTER | C150: 3 | D150: 77 | E150: 96 | F150: 80 | G150: 3241 | H150: 3241 MIAMI GARDENS ELEMENTARY SCHL | I150: 4 | J150: 21 | K150: 49 | L150: 43 | M150: 3241 | N150: 3241 MIAMI GARDENS ELEMENTARY SCHL | O150: 5 | P150: 22 | Q150: 85 | R150: 26 | S150: 6821 | T150: 6821 ROCKWAY MIDDLE SCHOOL | U150: 6 | V150: 168 | W150: 51 | X150: 331 | Y150: 7291 | Z150: 7291 JOSE MARTI MAST 6-12 ACADEMY | AA150: 7 | AB150: 75 | AC150: 81 | AD150: 93 | AE150: 8121 | AF150: 8121 COPE CENTER NORTH | AG150: 8 | AI150: NA | AJ150: 4
A151: 3241 | B151: 3241 MIAMI GARDENS ELEMENTARY SCHL | C151: 3 | D151: 33 | E151: 69 | F151: 48 | G151: 3261 | H151: 3261 MIAMI HEIGHTS ELEMENTARY SCHL | I151: 4 | J151: 96 | K151: 69 | L151: 140 | M151: 3261 | N151: 3261 MIAMI HEIGHTS ELEMENTARY SCHL | O151: 5 | P151: 90 | Q151: 51 | R151: 175 | S151: 6841 | T151: 6841 SHENANDOAH MIDDLE SCHOOL | U151: 6 | V151: 139 | W151: 33 | X151: 423 | Y151: 7351 | Z151: 7351 ARTHUR AND POLLY MAYS CONSERVATORY OF THE ART | AA151: 7 | AB151: 18 | AC151: 29 | AD151: 62 | AE151: 8131 | AF151: 8131 DOROTHY M. WALLACE COPE CENTER | AG151: 8 | AI151: NA | AJ151: 3
A152: 3261 | B152: 3261 MIAMI HEIGHTS ELEMENTARY SCHL | C152: 3 | D152: 105 | E152: 58 | F152: 182 | G152: 3281 | H152: 3281 MIAMI LAKES K-8 CENTER | I152: 4 | J152: 108 | K152: 78 | L152: 138 | M152: 3281 | N152: 3281 MIAMI LAKES K-8 CENTER | O152: 5 | P152: 87 | Q152: 60 | R152: 144 | S152: 6861 | T152: 6861 SOUTHWOOD MIDDLE SCHOOL | U152: 6 | V152: 315 | W152: 65 | X152: 483 | Y152: 7631 | Z152: 7631 MIAMI MACARTHUR SOUTH | AA152: 7 | AB152: 3 | AC152: 18 | AD152: 17 | AE152: 8151 | AF152: 8151 ROBERT RENICK EDUCATION CENTER | AG152: 8 | AI152: NA | AJ152: 6
A153: 3281 | B153: 3281 MIAMI LAKES K-8 CENTER | C153: 3 | D153: 92 | E153: 60 | F153: 153 | G153: 3301 | H153: 3301 MIAMI PARK ELEMENTARY SCHOOL | I153: 4 | J153: 13 | K153: 28 | L153: 46 | M153: 3301 | N153: 3301 MIAMI PARK ELEMENTARY SCHOOL | O153: 5 | P153: 15 | Q153: 39 | R153: 38 | S153: 6881 | T153: 6881 SOUTH MIAMI MIDDLE SCHOOL | U153: 6 | V153: 202 | W153: 67 | X153: 301 | Y153: 7819 | Z153: 7819 BOYSTOWN | AA153: 7 | AC153: NA | AD153: 1 | AE153: 8181 | AF153: 8181 RUTH OWENS KRUSE EDUCATION CENTER | AG153: 8 | AH153: 2 | AI153: 15 | AJ153: 13
A154: 3301 | B154: 3301 MIAMI PARK ELEMENTARY SCHOOL | C154: 3 | D154: 20 | E154: 36 | F154: 55 | G154: 3341 | H154: 3341 MIAMI SHORES ELEMENTARY SCHOOL | I154: 4 | J154: 63 | K154: 56 | L154: 112 | M154: 3341 | N154: 3341 MIAMI SHORES ELEMENTARY SCHOOL | O154: 5 | P154: 64 | Q154: 48 | R154: 133 | S154: 6901 | T154: 6901 W. R. THOMAS MIDDLE SCHOOL | U154: 6 | V154: 237 | W154: 69 | X154: 344 | Y154: 7832 | Z154: 7832 MIAMI BRIDGE NORTH | AA154: 7 | AC154: NA | AD154: 1 | AE154: 9732 | AF154: 9732 BRUCIE BALL EDUCATIONAL CENTER | AG154: 8 | AH154: 3 | AI154: 30 | AJ154: 10
A155: 3341 | B155: 3341 MIAMI SHORES ELEMENTARY SCHOOL | C155: 3 | D155: 86 | E155: 51 | F155: 169 | G155: 3381 | H155: 3381 MIAMI SPRINGS ELEMENTARY SCHL | I155: 4 | J155: 42 | K155: 60 | L155: 70 | M155: 3381 | N155: 3381 MIAMI SPRINGS ELEMENTARY SCHL | O155: 5 | P155: 37 | Q155: 48 | R155: 77 | S155: 6921 | T155: 6921 LAMAR LOUISE CURRY MIDDLE SCHL | U155: 6 | V155: 191 | W155: 56 | X155: 340 | Y155: 7835 | Z155: 7835 RICHMOND PERRINE OPTIMIST | AA155: 7 | AC155: NA | AD155: 5 | AE155: 9999 | AF155: 9999 MIAMI-DADE COUNTY | AG155: 8 | AH155: 5883 | AI155: 38 | AJ155: 15680
A156: 3381 | B156: 3381 MIAMI SPRINGS ELEMENTARY SCHL | C156: 3 | D156: 45 | E156: 57 | F156: 79 | G156: 3421 | H156: 3421 MARCUS A. MILAM K-8 CENTER | I156: 4 | J156: 33 | K156: 43 | L156: 76 | M156: 3421 | N156: 3421 MARCUS A. MILAM K-8 CENTER | O156: 5 | P156: 31 | Q156: 30 | R156: 102 | S156: 6961 | T156: 6961 WEST MIAMI MIDDLE SCHOOL | U156: 6 | V156: 87 | W156: 32 | X156: 272 | Y156: 7840 | Z156: 7840 TURNER/GUILFORD/KNIGHT | AA156: 7 | AC156: NA | AD156: 3
A157: 3421 | B157: 3421 MARCUS A. MILAM K-8 CENTER | C157: 3 | D157: 36 | E157: 44 | F157: 81 | G157: 3431 | H157: 3431 PHYLLIS R. MILLER ELEM. SCHOOL | I157: 4 | J157: 59 | K157: 66 | L157: 90 | M157: 3431 | N157: 3431 PHYLLIS R. MILLER ELEM. SCHOOL | O157: 5 | P157: 66 | Q157: 59 | R157: 112 | S157: 6997 | T157: 6997 MATER VIRTUAL ACAD CHARTER MIDDLE/HIGH SCHOOL | U157: 6 | W157: NA | X157: 1 | Y157: 7860 | Z157: 7860 SECONDARY STUDENT SUCCESS CENTER 801 | AA157: 7 | AC157: NA | AD157: 6
A158: 3431 | B158: 3431 PHYLLIS R. MILLER ELEM. SCHOOL | C158: 3 | D158: 49 | E158: 53 | F158: 92 | G158: 3501 | H158: 3501 MORNINGSIDE K-8 ACADEMY | I158: 4 | J158: 21 | K158: 31 | L158: 67 | M158: 3501 | N158: 3501 MORNINGSIDE K-8 ACADEMY | O158: 5 | P158: 16 | Q158: 36 | R158: 44 | S158: 7001 | T158: 7001 MIAMI-DADE ONLINE ACAD-VIRTUAL INSTRUC PROG | U158: 6 | V158: 15 | W158: 71 | X158: 21 | Y158: 7861 | Z158: 7861 SECONDARY STUDENT SUCCESS CENTER 802 | AA158: 7 | AC158: NA | AD158: 7
A159: 3501 | B159: 3501 MORNINGSIDE K-8 ACADEMY | C159: 3 | D159: 43 | E159: 61 | F159: 70 | G159: 3541 | H159: 3541 ROBERT RUSSA MOTON ELEMENTARY SCHOOL | I159: 4 | J159: 10 | K159: 27 | L159: 37 | M159: 3541 | N159: 3541 ROBERT RUSSA MOTON ELEMENTARY SCHOOL | O159: 5 | P159: 7 | Q159: 32 | R159: 22 | S159: 7055 | T159: 7055 YOUNG WOMENS PREPARATORY ACADEMY | U159: 6 | V159: 82 | W159: 85 | X159: 96 | Y159: 7862 | Z159: 7862 SECONDARY STUDENT SUCCESS CENTER 803 | AA159: 7 | AC159: NA | AD159: 6
A160: 3541 | B160: 3541 ROBERT RUSSA MOTON ELEMENTARY SCHOOL | C160: 3 | D160: 18 | E160: 29 | F160: 63 | G160: 3581 | H160: 3581 MYRTLE GROVE K-8 CENTER | I160: 4 | J160: 32 | K160: 52 | L160: 62 | M160: 3581 | N160: 3581 MYRTLE GROVE K-8 CENTER | O160: 5 | P160: 12 | Q160: 19 | R160: 62 | S160: 7056 | T160: 7056 YOUNG MEN'S PREPARATORY ACADEMY | U160: 6 | V160: 14 | W160: 42 | X160: 33 | Y160: 7863 | Z160: 7863 SECONDARY STUDENT SUCCESS CENTER-804 | AA160: 7 | AB160: 0 | AC160: 0 | AD160: 18
A161: 3581 | B161: 3581 MYRTLE GROVE K-8 CENTER | C161: 3 | D161: 40 | E161: 56 | F161: 72 | G161: 3600 | H161: 3600 DOWNTOWN MIAMI CHARTER SCHOOL | I161: 4 | J161: 53 | K161: 55 | L161: 97 | M161: 3600 | N161: 3600 DOWNTOWN MIAMI CHARTER SCHOOL | O161: 5 | P161: 50 | Q161: 59 | R161: 85 | S161: 7059 | T161: 7059 MIAMI ARTS CHARTER | U161: 6 | V161: 154 | W161: 66 | X161: 232 | Y161: 8101 | Z161: 8101 JAN MANN OPPORTUNITY SCHOOL | AA161: 7 | AB161: 0 | AC161: 0 | AD161: 13
A162: 3600 | B162: 3600 DOWNTOWN MIAMI CHARTER SCHOOL | C162: 3 | D162: 42 | E162: 44 | F162: 95 | G162: 3610 | H162: 3610 KEYS GATE CHARTER SCHOOL | I162: 4 | J162: 149 | K162: 57 | L162: 263 | M162: 3610 | N162: 3610 KEYS GATE CHARTER SCHOOL | O162: 5 | P162: 139 | Q162: 52 | R162: 268 | S162: 7262 | T162: 7262 CITY OF HIALEAH EDUCATION ACADEMY | U162: 6 | V162: 36 | W162: 62 | X162: 58 | Y162: 8121 | Z162: 8121 COPE CENTER NORTH | AA162: 7 | AC162: NA | AD162: 2
A163: 3610 | B163: 3610 KEYS GATE CHARTER SCHOOL | C163: 3 | D163: 156 | E163: 60 | F163: 262 | G163: 3621 | H163: 3621 COCONUT PALM K-8 ACADEMY | I163: 4 | J163: 89 | K163: 51 | L163: 175 | M163: 3621 | N163: 3621 COCONUT PALM K-8 ACADEMY | O163: 5 | P163: 45 | Q163: 28 | R163: 160 | S163: =LEFT(T163,4) -> 7291 | T163: 7291 JOSE MARTI MAST 6-12 ACADEMY | U163: 6 | V163: 121 | W163: 80 | X163: 151 | Y163: =LEFT(Z163,4) -> 8151 | Z163: 8151 ROBERT RENICK EDUCATION CENTER | AA163: 7 | AC163: NA | AD163: 6
A164: 3621 | B164: 3621 COCONUT PALM K-8 ACADEMY | C164: 3 | D164: 110 | E164: 63 | F164: 175 | G164: 3661 | H164: 3661 NATURAL BRIDGE ELEMENTARY SCHL | I164: 4 | J164: 43 | K164: 44 | L164: 97 | M164: 3661 | N164: 3661 NATURAL BRIDGE ELEMENTARY SCHL | O164: 5 | P164: 36 | Q164: 46 | R164: 79 | S164: 7351 | T164: 7351 ARTHUR AND POLLY MAYS CONSERVATORY OF THE ART | U164: 6 | V164: 39 | W164: 29 | X164: 133 | Y164: 8181 | Z164: 8181 RUTH OWENS KRUSE EDUCATION CENTER | AA164: 7 | AC164: NA | AD164: 7
A165: 3661 | B165: 3661 NATURAL BRIDGE ELEMENTARY SCHL | C165: 3 | D165: 54 | E165: 55 | F165: 99 | G165: 3701 | H165: 3701 NORLAND ELEMENTARY SCHOOL | I165: 4 | J165: 42 | K165: 47 | L165: 90 | M165: 3701 | N165: 3701 NORLAND ELEMENTARY SCHOOL | O165: 5 | P165: 44 | Q165: 51 | R165: 87 | S165: 7631 | T165: 7631 MIAMI MACARTHUR SOUTH | U165: 6 | W165: NA | X165: 7 | Y165: 9732 | Z165: 9732 BRUCIE BALL EDUCATIONAL CENTER | AA165: 7 | AB165: 6 | AC165: 38 | AD165: 16
A166: 3701 | B166: 3701 NORLAND ELEMENTARY SCHOOL | C166: 3 | D166: 49 | E166: 50 | F166: 98 | G166: 3741 | H166: 3741 NORTH BEACH ELEMENTARY SCHOOL | I166: 4 | J166: 149 | K166: 88 | L166: 169 | M166: 3741 | N166: 3741 NORTH BEACH ELEMENTARY SCHOOL | O166: 5 | P166: 139 | Q166: 81 | R166: 171 | S166: 7835 | T166: 7835 RICHMOND PERRINE OPTIMIST | U166: 6 | W166: NA | X166: 5 | Y166: 9999 | Z166: 9999 MIAMI-DADE COUNTY | AA166: 7 | AB166: 10403 | AC166: 46 | AD166: 22728
A167: 3741 | B167: 3741 NORTH BEACH ELEMENTARY SCHOOL | C167: 3 | D167: 136 | E167: 83 | F167: 163 | G167: 3781 | H167: 3781 BARBARA HAWKINS ELEM. SCHOOL | I167: 4 | J167: 21 | K167: 49 | L167: 43 | M167: 3781 | N167: 3781 BARBARA HAWKINS ELEM. SCHOOL | O167: 5 | P167: 29 | Q167: 48 | R167: 60 | S167: 7840 | T167: 7840 TURNER/GUILFORD/KNIGHT | U167: 6 | W167: NA | X167: 2
A168: 3781 | B168: 3781 BARBARA HAWKINS ELEM. SCHOOL | C168: 3 | D168: 20 | E168: 37 | F168: 54 | G168: 3821 | H168: 3821 NORTH COUNTY K-8 CENTER | I168: 4 | J168: 25 | K168: 45 | L168: 56 | M168: 3821 | N168: 3821 NORTH COUNTY K-8 CENTER | O168: 5 | P168: 18 | Q168: 40 | R168: 45 | S168: 7860 | T168: 7860 SECONDARY STUDENT SUCCESS CENTER 801 | U168: 6 | W168: NA | X168: 1
A169: 3821 | B169: 3821 NORTH COUNTY K-8 CENTER | C169: 3 | D169: 25 | E169: 48 | F169: 52 | G169: 3861 | H169: 3861 NORTH GLADE ELEMENTARY SCHOOL | I169: 4 | J169: 28 | K169: 54 | L169: 52 | M169: 3861 | N169: 3861 NORTH GLADE ELEMENTARY SCHOOL | O169: 5 | P169: 25 | Q169: 48 | R169: 52 | S169: 7861 | T169: 7861 SECONDARY STUDENT SUCCESS CENTER 802 | U169: 6 | W169: NA | X169: 2
A170: 3861 | B170: 3861 NORTH GLADE ELEMENTARY SCHOOL | C170: 3 | D170: 21 | E170: 46 | F170: 46 | G170: 3901 | H170: 3901 NORTH HIALEAH ELEMENTARY SCHL | I170: 4 | J170: 53 | K170: 52 | L170: 101 | M170: 3901 | N170: 3901 NORTH HIALEAH ELEMENTARY SCHL | O170: 5 | P170: 53 | Q170: 54 | R170: 98 | S170: 7862 | T170: 7862 SECONDARY STUDENT SUCCESS CENTER 803 | U170: 6 | W170: NA | X170: 2
A171: 3901 | B171: 3901 NORTH HIALEAH ELEMENTARY SCHL | C171: 3 | D171: 49 | E171: 44 | F171: 111 | G171: 3941 | H171: 3941 NORTH MIAMI ELEMENTARY SCHOOL | I171: 4 | J171: 43 | K171: 61 | L171: 71 | M171: 3941 | N171: 3941 NORTH MIAMI ELEMENTARY SCHOOL | O171: 5 | P171: 27 | Q171: 39 | R171: 69 | S171: 7863 | T171: 7863 SECONDARY STUDENT SUCCESS CENTER-804 | U171: 6 | W171: NA | X171: 8
A172: 3941 | B172: 3941 NORTH MIAMI ELEMENTARY SCHOOL | C172: 3 | D172: 43 | E172: 48 | F172: 89 | G172: 3981 | H172: 3981 NORTH TWIN LAKES ELEMENTARY SCHOOL | I172: 4 | J172: 57 | K172: 77 | L172: 74 | M172: 3981 | N172: 3981 NORTH TWIN LAKES ELEMENTARY SCHOOL | O172: 5 | P172: 52 | Q172: 65 | R172: 80 | S172: 8101 | T172: 8101 JAN MANN OPPORTUNITY SCHOOL | U172: 6 | W172: NA | X172: 4
A173: 3981 | B173: 3981 NORTH TWIN LAKES ELEMENTARY SCHOOL | C173: 3 | D173: 62 | E173: 65 | F173: 95 | G173: 4000 | H173: 4000 MIAMI CHILDREN'S MUSEUM CHARTER SCHOOL | I173: 4 | J173: 34 | K173: 71 | L173: 48 | M173: 4000 | N173: 4000 MIAMI CHILDREN'S MUSEUM CHARTER SCHOOL | O173: 5 | P173: 28 | Q173: 58 | R173: 48 | S173: 8151 | T173: 8151 ROBERT RENICK EDUCATION CENTER | U173: 6 | V173: 0 | W173: 0 | X173: 12
A174: 4000 | B174: 4000 MIAMI CHILDREN'S MUSEUM CHARTER SCHOOL | C174: 3 | D174: 34 | E174: 68 | F174: 50 | G174: 4001 | H174: 4001 NORWOOD ELEMENTARY SCHOOL | I174: 4 | J174: 66 | K174: 73 | L174: 90 | M174: 4001 | N174: 4001 NORWOOD ELEMENTARY SCHOOL | O174: 5 | P174: 32 | Q174: 51 | R174: 63 | S174: 8181 | T174: 8181 RUTH OWENS KRUSE EDUCATION CENTER | U174: 6 | W174: NA | X174: 7
A175: 4001 | B175: 4001 NORWOOD ELEMENTARY SCHOOL | C175: 3 | D175: 50 | E175: 57 | F175: 88 | G175: 4012 | H175: 4012 SOMERSET ACADEMY AT SILVER PALMS | I175: 4 | J175: 54 | K175: 73 | L175: 74 | M175: 4012 | N175: 4012 SOMERSET ACADEMY AT SILVER PALMS | O175: 5 | P175: 53 | Q175: 74 | R175: 72 | S175: 9732 | T175: 9732 BRUCIE BALL EDUCATIONAL CENTER | U175: 6 | W175: NA | X175: 8
A176: 4012 | B176: 4012 SOMERSET ACADEMY AT SILVER PALMS | C176: 3 | D176: 69 | E176: 77 | F176: 90 | G176: 4021 | H176: 4021 OAK GROVE ELEMENTARY SCHOOL | I176: 4 | J176: 40 | K176: 47 | L176: 86 | M176: 4021 | N176: 4021 OAK GROVE ELEMENTARY SCHOOL | O176: 5 | P176: 43 | Q176: 53 | R176: 81 | S176: 9999 | T176: 9999 MIAMI-DADE COUNTY | U176: 6 | V176: 12431 | W176: 49 | X176: 25299
A177: 4021 | B177: 4021 OAK GROVE ELEMENTARY SCHOOL | C177: 3 | D177: 39 | E177: 42 | F177: 92 | G177: 4031 | H177: 4031 GATEWAY ENVIRONMENTAL K-8 LEARNING CENTER | I177: 4 | J177: 75 | K177: 36 | L177: 208 | M177: 4031 | N177: 4031 GATEWAY ENVIRONMENTAL K-8 LEARNING CENTER | O177: 5 | P177: 96 | Q177: 52 | R177: 186
A178: 4031 | B178: 4031 GATEWAY ENVIRONMENTAL K-8 LEARNING CENTER | C178: 3 | D178: 91 | E178: 36 | F178: 255 | G178: 4061 | H178: 4061 OJUS ELEMENTARY SCHOOL | I178: 4 | J178: 82 | K178: 61 | L178: 134 | M178: 4061 | N178: 4061 OJUS ELEMENTARY SCHOOL | O178: 5 | P178: 92 | Q178: 62 | R178: 148
A179: 4061 | B179: 4061 OJUS ELEMENTARY SCHOOL | C179: 3 | D179: 116 | E179: 69 | F179: 168 | G179: 4071 | H179: 4071 AGENORIA S PASCHAL/OLINDA ELEMENTARY SCHOOL | I179: 4 | J179: 39 | K179: 75 | L179: 52 | M179: 4071 | N179: 4071 AGENORIA S PASCHAL/OLINDA ELEMENTARY SCHOOL | O179: 5 | P179: 24 | Q179: 44 | R179: 54
A180: 4071 | B180: 4071 AGENORIA S PASCHAL/OLINDA ELEMENTARY SCHOOL | C180: 3 | D180: 40 | E180: 62 | F180: 65 | G180: 7581 | H180: 7581 I PREPARATORY ACADEMY | I180: 4 | J180: 37 | K180: 88 | L180: 42 | M180: 7581 | N180: 7581 I PREPARATORY ACADEMY | O180: 5 | P180: 16 | Q180: 76 | R180: 21
A181: 7581 | B181: 7581 I PREPARATORY ACADEMY | C181: 3 | D181: 44 | E181: 83 | F181: 53 | G181: 4091 | H181: 4091 OLYMPIA HEIGHTS ELEM. SCHOOL | I181: 4 | J181: 62 | K181: 68 | L181: 91 | M181: 4091 | N181: 4091 OLYMPIA HEIGHTS ELEM. SCHOOL | O181: 5 | P181: 35 | Q181: 47 | R181: 74
A182: 4091 | B182: 4091 OLYMPIA HEIGHTS ELEM. SCHOOL | C182: 3 | D182: 48 | E182: 55 | F182: 88 | G182: 4121 | H182: 4121 DR. ROBERT B. INGRAM/OPA-LOCKA ELEMENTARY | I182: 4 | J182: 18 | K182: 36 | L182: 50 | M182: 4121 | N182: 4121 DR. ROBERT B. INGRAM/OPA-LOCKA ELEMENTARY | O182: 5 | P182: 8 | Q182: 14 | R182: 56
A183: 4121 | B183: 4121 DR. ROBERT B. INGRAM/OPA-LOCKA ELEMENTARY | C183: 3 | D183: 22 | E183: 31 | F183: 71 | G183: 4171 | H183: 4171 ORCHARD VILLA ELEMENTARY SCHL | I183: 4 | J183: 28 | K183: 48 | L183: 58 | M183: 4171 | N183: 4171 ORCHARD VILLA ELEMENTARY SCHL | O183: 5 | P183: 23 | Q183: 52 | R183: 44
A184: 4171 | B184: 4171 ORCHARD VILLA ELEMENTARY SCHL | C184: 3 | D184: 21 | E184: 37 | F184: 57 | G184: 4221 | H184: 4221 PALMETTO ELEMENTARY SCHOOL | I184: 4 | J184: 75 | K184: 83 | L184: 90 | M184: 4221 | N184: 4221 PALMETTO ELEMENTARY SCHOOL | O184: 5 | P184: 105 | Q184: 87 | R184: 121
A185: 4221 | B185: 4221 PALMETTO ELEMENTARY SCHOOL | C185: 3 | D185: 89 | E185: 74 | F185: 120 | G185: 4241 | H185: 4241 PALM LAKES ELEMENTARY SCHOOL | I185: 4 | J185: 77 | K185: 62 | L185: 125 | M185: 4241 | N185: 4241 PALM LAKES ELEMENTARY SCHOOL | O185: 5 | P185: 80 | Q185: 59 | R185: 136
A186: 4241 | B186: 4241 PALM LAKES ELEMENTARY SCHOOL | C186: 3 | D186: 71 | E186: 44 | F186: 160 | G186: 4261 | H186: 4261 PALM SPRINGS ELEMENTARY SCHOOL | I186: 4 | J186: 63 | K186: 58 | L186: 109 | M186: 4261 | N186: 4261 PALM SPRINGS ELEMENTARY SCHOOL | O186: 5 | P186: 69 | Q186: 54 | R186: 128
A187: 4261 | B187: 4261 PALM SPRINGS ELEMENTARY SCHOOL | C187: 3 | D187: 58 | E187: 44 | F187: 133 | G187: 4281 | H187: 4281 PALM SPRINGS NORTH ELEMENTARY SCHOOL | I187: 4 | J187: 124 | K187: 75 | L187: 166 | M187: 4281 | N187: 4281 PALM SPRINGS NORTH ELEMENTARY SCHOOL | O187: 5 | P187: 100 | Q187: 59 | R187: 170
A188: 4281 | B188: 4281 PALM SPRINGS NORTH ELEMENTARY SCHOOL | C188: 3 | D188: 102 | E188: 67 | F188: 153 | G188: 4301 | H188: 4301 PARKVIEW ELEMENTARY SCHOOL | I188: 4 | J188: 17 | K188: 41 | L188: 41 | M188: 4301 | N188: 4301 PARKVIEW ELEMENTARY SCHOOL | O188: 5 | P188: 13 | Q188: 22 | R188: 58
A189: 4301 | B189: 4301 PARKVIEW ELEMENTARY SCHOOL | C189: 3 | D189: 26 | E189: 47 | F189: 55 | G189: 4341 | H189: 4341 PARKWAY ELEMENTARY SCHOOL | I189: 4 | J189: 18 | K189: 35 | L189: 52 | M189: 4341 | N189: 4341 PARKWAY ELEMENTARY SCHOOL | O189: 5 | P189: 11 | Q189: 24 | R189: 46
A190: 4341 | B190: 4341 PARKWAY ELEMENTARY SCHOOL | C190: 3 | D190: 25 | E190: 44 | F190: 57 | G190: 4381 | H190: 4381 DR. HENRY E. PERRINE ACADEMY OF THE ARTS | I190: 4 | J190: 104 | K190: 71 | L190: 147 | M190: 4381 | N190: 4381 DR. HENRY E. PERRINE ACADEMY OF THE ARTS | O190: 5 | P190: 91 | Q190: 66 | R190: 138
A191: 4381 | B191: 4381 DR. HENRY E. PERRINE ACADEMY OF THE ARTS | C191: 3 | D191: 93 | E191: 62 | F191: 150 | G191: 4391 | H191: 4391 IRVING & BEATRICE PESKOE K-8 CENTER | I191: 4 | J191: 46 | K191: 47 | L191: 97 | M191: 4391 | N191: 4391 IRVING & BEATRICE PESKOE K-8 CENTER | O191: 5 | P191: 26 | Q191: 36 | R191: 73
A192: 4391 | B192: 4391 IRVING & BEATRICE PESKOE K-8 CENTER | C192: 3 | D192: 40 | E192: 40 | F192: 101 | G192: 4401 | H192: 4401 KELSEY L. PHARR ELEMENTARY SCHOOL | I192: 4 | J192: 23 | K192: 56 | L192: 41 | M192: 4401 | N192: 4401 KELSEY L. PHARR ELEMENTARY SCHOOL | O192: 5 | P192: 15 | Q192: 33 | R192: 46
A193: 4401 | B193: 4401 KELSEY L. PHARR ELEMENTARY SCHOOL | C193: 3 | D193: 20 | E193: 47 | F193: 43 | G193: 4421 | H193: 4421 PINECREST ELEMENTARY SCHOOL | I193: 4 | J193: 145 | K193: 88 | L193: 164 | M193: 4421 | N193: 4421 PINECREST ELEMENTARY SCHOOL | O193: 5 | P193: 144 | Q193: 80 | R193: 181
A194: 4421 | B194: 4421 PINECREST ELEMENTARY SCHOOL | C194: 3 | D194: 155 | E194: 91 | F194: 170 | G194: 4441 | H194: 4441 PINE LAKE ELEMENTARY SCHOOL | I194: 4 | J194: 30 | K194: 47 | L194: 64 | M194: 4441 | N194: 4441 PINE LAKE ELEMENTARY SCHOOL | O194: 5 | P194: 24 | Q194: 37 | R194: 65
A195: =LEFT(B195,4) -> 4441 | B195: 4441 PINE LAKE ELEMENTARY SCHOOL | C195: 3 | D195: 22 | E195: 42 | F195: 53 | G195: =LEFT(H195,4) -> 4461 | H195: 4461 PINE VILLA ELEMENTARY SCHOOL | I195: 4 | J195: 13 | K195: 35 | L195: 37 | M195: =LEFT(N195,4) -> 4461 | N195: 4461 PINE VILLA ELEMENTARY SCHOOL | O195: 5 | P195: 6 | Q195: 21 | R195: 29
A196: 4461 | B196: 4461 PINE VILLA ELEMENTARY SCHOOL | C196: 3 | D196: 24 | E196: 49 | F196: 49 | G196: 4491 | H196: 4491 HENRY E.S. REEVES ELEM. SCHOOL | I196: 4 | J196: 33 | K196: 31 | L196: 107 | M196: 4491 | N196: 4491 HENRY E.S. REEVES ELEM. SCHOOL | O196: 5 | P196: 64 | Q196: 57 | R196: 113
A197: 4491 | B197: 4491 HENRY E.S. REEVES ELEM. SCHOOL | C197: 3 | D197: 77 | E197: 45 | F197: 170 | G197: 4501 | H197: 4501 POINCIANA PARK ELEMENTARY SCHL | I197: 4 | J197: 14 | K197: 42 | L197: 33 | M197: 4501 | N197: 4501 POINCIANA PARK ELEMENTARY SCHL | O197: 5 | P197: 17 | Q197: 45 | R197: 38
A198: 4501 | B198: 4501 POINCIANA PARK ELEMENTARY SCHL | C198: 3 | D198: 27 | E198: 46 | F198: 59 | G198: 4511 | H198: 4511 DR. GILBERT L. PORTER ELEM. | I198: 4 | J198: 86 | K198: 74 | L198: 117 | M198: 4511 | N198: 4511 DR. GILBERT L. PORTER ELEM. | O198: 5 | P198: 83 | Q198: 62 | R198: 133
A199: 4511 | B199: 4511 DR. GILBERT L. PORTER ELEM. | C199: 3 | D199: 93 | E199: 78 | F199: 119 | G199: 4541 | H199: 4541 RAINBOW PARK ELEMENTARY SCHOOL | I199: 4 | J199: 25 | K199: 38 | L199: 66 | M199: 4541 | N199: 4541 RAINBOW PARK ELEMENTARY SCHOOL | O199: 5 | P199: 30 | Q199: 47 | R199: 64
A200: 4541 | B200: 4541 RAINBOW PARK ELEMENTARY SCHOOL | C200: 3 | D200: 17 | E200: 20 | F200: 84 | G200: 4581 | H200: 4581 REDLAND ELEMENTARY SCHOOL | I200: 4 | J200: 85 | K200: 63 | L200: 135 | M200: 4581 | N200: 4581 REDLAND ELEMENTARY SCHOOL | O200: 5 | P200: 33 | Q200: 26 | R200: 128
... 77 more rows

Sheet 15 FSA Alg1 (hidden)
A1: Location | B1: School | D1: Lev 3-5 | F1: Total
D2: Ct | E2: % | F2: Ct
A3: =LEFT(B3,4) -> 0070 | B3: 0070 CORAL REEF MONTESSORI ACADEMY CHARTER | C3: Total | D3: 12 | E3: 100 | F3: 12
A4: 0071 | B4: 0071 EUGENIA B. THOMAS K-8 CENTER | C4: Total | D4: 56 | E4: 86 | F4: 65
A5: 0073 | B5: 0073 MANDARIN LAKES K-8 ACADEMY | C5: Total | D5: 5 | E5: 50 | F5: 10
A6: 0091 | B6: 0091 BOB GRAHAM EDUCATION CENTER | C6: Total | D6: 69 | E6: 96 | F6: 72
A7: 0092 | B7: 0092 NORMAN S. EDELCUP/SUNNY ISLES BEACH K-8 | C7: Total | D7: 41 | E7: 100 | F7: 41
A8: 0122 | B8: 0122 DR. ROLANDO ESPINOSA K-8 CENTER | C8: Total | D8: 43 | E8: 98 | F8: 44
A9: 0231 | B9: 0231 AVENTURA WATERWAYS K-8 CENTER | C9: Total | D9: 57 | E9: 89 | F9: 64
A10: 0241 | B10: 0241 RUTH K. BROAD BAY HARBOR K-8 CENTER | C10: Total | D10: 83 | E10: 92 | F10: 90
A11: 0332 | B11: 0332 SOMERSET ACADEMY (SILVER PALMS) | C11: Total | D11: 64 | E11: 82 | F11: 78
A12: 0451 | B12: 0451 BOWMAN ASHE/DOOLIN K-8 ACADEMY | C12: Total | D12: 35 | E12: 76 | F12: 46
A13: 0651 | B13: 0651 CAMPBELL DRIVE K-8 CENTER | C13: Total | D13: 24 | E13: 83 | F13: 29
A14: 0761 | B14: 0761 FIENBERG/FISHER K-8 CENTER | C14: Total | D14: 20 | E14: 100 | F14: 20
A15: 0950 | B15: 0950 AVENTURA CITY OF EXCELLENCE | C15: Total | D15: 49 | E15: 100 | F15: 49
A16: 0961 | B16: 0961 CORAL GABLES PREPARATORY ACADEMY | C16: Total | D16: 43 | E16: 83 | F16: 52
A17: 1014 | B17: 1014 HIGHLY INQUISITIVE/VERSATILE EDUC(HIVE) PREP | C17: Total | E17: NA | F17: 1
A18: 1020 | B18: 1020 YOUTH CO-OP CHARTER SCHOOL | C18: Total | D18: 26 | E18: 93 | F18: 28
A19: 1121 | B19: 1121 CORAL WAY K-8 CENTER | C19: Total | D19: 61 | E19: 72 | F19: 85
A20: 1331 | B20: 1331 DEVON AIRE K-8 CENTER | C20: Total | D20: 84 | E20: 95 | F20: 88
A21: 1401 | B21: 1401 CHARLES R DREW K-8 CENTER | C21: Total | D21: 13 | E21: 93 | F21: 14
A22: 1601 | B22: 1601 EDISON PARK K-8 CENTER | C22: Total | E22: NA | F22: 9
A23: 1681 | B23: 1681 LILLIE C. EVANS K-8 CENTER | C23: Total | D23: 37 | E23: 93 | F23: 40
A24: 1721 | B24: 1721 EVERGLADES K-8 CENTER | C24: Total | D24: 67 | E24: 92 | F24: 73
A25: 2041 | B25: 2041 BENJAMIN FRANKLIN K-8 CENTER | C25: Total | D25: 5 | E25: 31 | F25: 16
A26: 2060 | B26: 2060 THEODORE R. AND THELMA A. GIBSON CHARTER | C26: Total | D26: 2 | E26: 13 | F26: 16
A27: 2701 | B27: 2701 KENWOOD K-8 CENTER | C27: Total | D27: 64 | E27: 100 | F27: 64
A28: 2741 | B28: 2741 KEY BISCAYNE K-8 CENTER | C28: Total | D28: 65 | E28: 86 | F28: 76
A29: 2881 | B29: 2881 LEEWOOD K-8 CENTER | C29: Total | D29: 50 | E29: 94 | F29: 53
A30: 2901 | B30: 2901 LEISURE CITY K-8 CENTER | C30: Total | D30: 35 | E30: 69 | F30: 51
A31: 2911 | B31: 2911 LINDA LENTIN K-8 CENTER | C31: Total | D31: 21 | E31: 100 | F31: 21
A32: 3029 | B32: 3029 DORAL ACADEMY OF TECHNOLOGY | C32: Total | D32: 63 | E32: 100 | F32: 63
A33: 3032 | B33: 3032 PALM GLADES PREPARATORY ACADEMY | C33: Total | D33: 10 | E33: 25 | F33: 40
A34: 3101 | B34: 3101 FRANK CRAWFORD MARTIN K-8 CENTER | C34: Total | D34: 64 | E34: 98 | F34: 65
A35: 3191 | B35: 3191 ADA MERRITT K-8 CENTER | C35: Total | D35: 50 | E35: 85 | F35: 59
A36: 3281 | B36: 3281 MIAMI LAKES K-8 CENTER | C36: Total | D36: 75 | E36: 82 | F36: 91
A37: 3421 | B37: 3421 MARCUS A. MILAM K-8 CENTER | C37: Total | D37: 24 | E37: 96 | F37: 25
A38: 3581 | B38: 3581 MYRTLE GROVE K-8 CENTER | C38: Total | D38: 19 | E38: 73 | F38: 26
A39: 3610 | B39: 3610 KEYS GATE CHARTER SCHOOL | C39: Total | D39: 80 | E39: 74 | F39: 108
A40: 3621 | B40: 3621 COCONUT PALM K-8 ACADEMY | C40: Total | D40: 24 | E40: 75 | F40: 32
A41: 3821 | B41: 3821 NORTH COUNTY K-8 CENTER | C41: Total | D41: 15 | E41: 94 | F41: 16
A42: 4031 | B42: 4031 GATEWAY ENVIRONMENTAL K-8 LEARNING CENTER | C42: Total | D42: 23 | E42: 43 | F42: 54
A43: 4391 | B43: 4391 IRVING & BEATRICE PESKOE K-8 CENTER | C43: Total | D43: 10 | E43: 53 | F43: 19
A44: 4691 | B44: 4691 JANE S. ROBERTS K-8 CENTER | C44: Total | D44: 37 | E44: 100 | F44: 37
A45: 5003 | B45: 5003 SOUTH DADE MIDDLE SCHOOL | C45: Total | D45: 84 | E45: 69 | F45: 122
A46: 5005 | B46: 5005 DAVID LAWRENCE JR. K-8 CENTER | C46: Total | D46: 53 | E46: 90 | F46: 59
A47: 5006 | B47: 5006 EVERGLADES PREPARATORY ACADEMY | C47: Total | D47: 39 | E47: 93 | F47: 42
A48: 5007 | B48: 5007 LINCOLN-MARTI CHARTER SCHOOL HIALEAH | C48: Total | D48: 6 | E48: 60 | F48: 10
A49: 5022 | B49: 5022 BEN GAMLA CHARTER SCHOOL | C49: Total | D49: 9 | E49: 69 | F49: 13
A50: 5032 | B50: 5032 EXCELSIOR CHARTER ACADEMY | C50: Total | D50: 2 | E50: 13 | F50: 15
A51: 5044 | B51: 5044 ACADEMY FOR INTERNATIONAL EDUCATION CHARTER | C51: Total | D51: 15 | E51: 63 | F51: 24
A52: 5045 | B52: 5045 MATER GROVE ACADEMY | C52: Total | E52: NA | F52: 8
A53: 5046 | B53: 5046 MATER BRICKELL PREPARATORY ACADEMY | C53: Total | E53: NA | F53: 6
A54: 5047 | B54: 5047 MATER ACADEMY MIAMI BEACH | C54: Total | E54: NA | F54: 1
A55: 5049 | B55: 5049 PINECREST COVE ACADEMY | C55: Total | D55: 43 | E55: 78 | F55: 55
A56: 5101 | B56: 5101 JOHN I. SMITH K-8 CENTER | C56: Total | D56: 22 | E56: 92 | F56: 24
A57: 5141 | B57: 5141 HUBERT O. SIBLEY K-8 ACADEMY | C57: Total | D57: 27 | E57: 100 | F57: 27
A58: 5241 | B58: 5241 SOUTH MIAMI K-8 CENTER | C58: Total | D58: 41 | E58: 80 | F58: 51
A59: 5671 | B59: 5671 VINELAND K-8 CENTER | C59: Total | D59: 39 | E59: 100 | F59: 39
A60: 5861 | B60: 5861 DR. HENRY W MACK/WEST LITTLE RIVER K-8 CENTER | C60: Total | D60: 10 | E60: 43 | F60: 23
A61: 5901 | B61: 5901 CARRIE P. MEEK/WESTVIEW K-8 CENTER | C61: Total | D61: 12 | E61: 60 | F61: 20
A62: 5961 | B62: 5961 WINSTON PARK K-8 CENTER | C62: Total | D62: 82 | E62: 88 | F62: 93
A63: 6001 | B63: 6001 HERBERT A. AMMONS MIDDLE SCHL | C63: Total | D63: 266 | E63: 90 | F63: 294
A64: 6004 | B64: 6004 SOMERSET ACADEMY CHARTER MIDDLE SCHOOL | C64: Total | D64: 28 | E64: 67 | F64: 42
A65: 6006 | B65: 6006 ARCHIMEDEAN MIDDLE CONSERVATORY | C65: Total | D65: 94 | E65: 85 | F65: 110
A66: 6009 | B66: 6009 MATER EAST ACADEMY MIDDLE SCHOOL | C66: Total | D66: 28 | E66: 85 | F66: 33
A67: =LEFT(B67,4) -> 6010 | B67: 6010 FLORIDA INTERNATIONAL ACADEMY | C67: Total | D67: 19 | E67: 66 | F67: 29
A68: 6011 | B68: 6011 ALLAPATTAH MIDDLE SCHOOL | C68: Total | D68: 19 | E68: 95 | F68: 20
A69: 6012 | B69: 6012 MATER ACADEMY CHARTER MIDDLE | C69: Total | D69: 302 | E69: 90 | F69: 337
A70: 6013 | B70: 6013 SOMERSET ACADEMY CHARTER MIDDLE S HOMESTEAD | C70: Total | D70: 50 | E70: 62 | F70: 81
A71: 6014 | B71: 6014 IMATER ACADEMY MIDDLE SCHOOL | C71: Total | D71: 58 | E71: 81 | F71: 72
A72: 6015 | B72: 6015 SLAM CHARTER MIDDLE SCHOOL | C72: Total | D72: 29 | E72: 64 | F72: 45
A73: 6016 | B73: 6016 SOMERSET VIRTUAL ACADEMY | C73: Total | E73: NA | F73: 7
A74: 6017 | B74: 6017 INTERNATIONAL STUDIES VIRTUAL | C74: Total | E74: NA | F74: 1
A75: 6020 | B75: 6020 ASPIRA RAUL ARNALDO MARTINEZ CHARTER SCHOOL | C75: Total | D75: 19 | E75: 76 | F75: 25
A76: 6021 | B76: 6021 ARVIDA MIDDLE SCHOOL | C76: Total | D76: 119 | E76: 100 | F76: 119
A77: 6022 | B77: 6022 PINECREST ACADEMY CHARTER MIDDLE SCHOOL | C77: Total | D77: 82 | E77: 87 | F77: 94
A78: 6023 | B78: 6023 ANDOVER MIDDLE SCHOOL | C78: Total | D78: 51 | E78: 53 | F78: 96
A79: 6028 | B79: 6028 RENAISSANCE MIDDLE CHARTER SCHOOL | C79: Total | D79: 62 | E79: 94 | F79: 66
A80: 6030 | B80: 6030 DORAL ACADEMY CHARTER MIDDLE SCHOOL | C80: Total | D80: 211 | E80: 96 | F80: 219
A81: 6031 | B81: 6031 BROWNSVILLE MIDDLE SCHOOL | C81: Total | D81: 9 | E81: 43 | F81: 21
A82: 6033 | B82: 6033 MATER ACADEMY LAKES MIDDLE SCHOOL | C82: Total | D82: 108 | E82: 97 | F82: 111
A83: 6040 | B83: 6040 DOCTORS CHARTER SCHOOL OF MIAMI SHORES | C83: Total | D83: 87 | E83: 89 | F83: 98
A84: 6041 | B84: 6041 PAUL W. BELL MIDDLE SCHOOL | C84: Total | D84: 22 | E84: 92 | F84: 24
A85: 6042 | B85: 6042 MATER GARDENS ACADEMY MIDDLE SCHOOL | C85: Total | D85: 66 | E85: 99 | F85: 67
A86: 6045 | B86: 6045 INTERNATIONAL STUDIES CHARTER MIDDLE SCHOOL | C86: Total | D86: 71 | E86: 82 | F86: 87
A87: 6047 | B87: 6047 MATER ACAD MIDDLE SCHOOL INTERNAT STUDIES | C87: Total | D87: 18 | E87: 90 | F87: 20
A88: 6048 | B88: 6048 MIAMI COMMUNITY CHARTER MIDDLE SCHOOL | C88: Total | D88: 26 | E88: 26 | F88: 101
A89: 6051 | B89: 6051 CAROL CITY MIDDLE SCHOOL | C89: Total | D89: 7 | E89: 54 | F89: 13
A90: 6052 | B90: 6052 ZELDA GLAZER MIDDLE SCHOOL | C90: Total | D90: 152 | E90: 89 | F90: 170
A91: 6053 | B91: 6053 SOMERSET ACADEMY CHARTER MIDDLE SOUTH MIAMI | C91: Total | D91: 26 | E91: 79 | F91: 33
A92: 6060 | B92: 6060 ASPIRA LEADERSHIP/COLLEGE PREPARATORY ACADEMY | C92: Total | D92: 47 | E92: 65 | F92: 72
A93: 6070 | B93: 6070 ASPIRA ARTS DECO CHARTER | C93: Total | D93: 35 | E93: 73 | F93: 48
A94: 6071 | B94: 6071 GEORGE WASHINGTON CARVER MIDDLE SCHOOL | C94: Total | D94: 279 | E94: 91 | F94: 308
A95: 6081 | B95: 6081 CUTLER BAY ACADEMY OF ADVANCED STUDIES | C95: Total | D95: 50 | E95: 65 | F95: 77
A96: 6082 | B96: 6082 ACADEMIR CHARTER SCHOOL MIDDLE | C96: Total | D96: 24 | E96: 73 | F96: 33
A97: 6091 | B97: 6091 CITRUS GROVE MIDDLE SCHOOL | C97: Total | D97: 16 | E97: 84 | F97: 19
A98: 6111 | B98: 6111 CUTLER BAY ACADEMY OF ADVANCED STUDIES | C98: Total | D98: 45 | E98: 80 | F98: 56
A99: 6121 | B99: 6121 RUBEN DARIO MIDDLE SCHOOL | C99: Total | D99: 14 | E99: 88 | F99: 16
A100: 6161 | B100: 6161 LAWTON CHILES MIDDLE SCHOOL | C100: Total | D100: 31 | E100: 60 | F100: 52
A101: 6171 | B101: 6171 HENRY H. FILER MIDDLE SCHOOL | C101: Total | D101: 90 | E101: 75 | F101: 120
A102: 6211 | B102: 6211 GLADES MIDDLE SCHOOL | C102: Total | D102: 172 | E102: 86 | F102: 200
A103: 6221 | B103: 6221 HAMMOCKS MIDDLE SCHOOL | C103: Total | D103: 100 | E103: 64 | F103: 157
A104: 6231 | B104: 6231 HIALEAH MIDDLE SCHOOL | C104: Total | D104: 31 | E104: 61 | F104: 51
A105: 6241 | B105: 6241 HIGHLAND OAKS MIDDLE SCHOOL | C105: Total | D105: 120 | E105: 77 | F105: 156
A106: 6251 | B106: 6251 HOMESTEAD MIDDLE SCHOOL | C106: Total | D106: 40 | E106: 50 | F106: 80
A107: 6281 | B107: 6281 THOMAS JEFFERSON MIDDLE SCHOOL | C107: Total | D107: 16 | E107: 62 | F107: 26
A108: 6301 | B108: 6301 JOHN F. KENNEDY MIDDLE SCHOOL | C108: Total | D108: 153 | E108: 89 | F108: 171
A109: 6331 | B109: 6331 KINLOCH PARK MIDDLE SCHOOL | C109: Total | D109: 70 | E109: 82 | F109: 85
A110: 6351 | B110: 6351 LAKE STEVENS MIDDLE SCHOOL | C110: Total | D110: 49 | E110: 84 | F110: 58
A111: 6361 | B111: 6361 JOSE DE DIEGO MIDDLE SCHOOL | C111: Total | E111: NA | F111: 7
A112: 6391 | B112: 6391 MADISON MIDDLE SCHOOL | C112: Total | D112: 30 | E112: 57 | F112: 53
A113: 6411 | B113: 6411 HORACE MANN MIDDLE SCHOOL | C113: Total | D113: 31 | E113: 86 | F113: 36
A114: 6441 | B114: 6441 HOWARD D. MCMILLAN MIDDLE SCHOOL | C114: Total | D114: 183 | E114: 94 | F114: 195
A115: 6501 | B115: 6501 MIAMI LAKES MIDDLE SCHOOL | C115: Total | D115: 115 | E115: 75 | F115: 153
A116: 6521 | B116: 6521 MIAMI SPRINGS MIDDLE SCHOOL | C116: Total | D116: 104 | E116: 91 | F116: 114
A117: 6541 | B117: 6541 NAUTILUS MIDDLE SCHOOL | C117: Total | D117: 110 | E117: 88 | F117: 125
A118: 6571 | B118: 6571 NORLAND MIDDLE SCHOOL | C118: Total | D118: 32 | E118: 68 | F118: 47
A119: 6591 | B119: 6591 NORTH DADE MIDDLE SCHOOL | C119: Total | D119: 35 | E119: 44 | F119: 79
A120: 6611 | B120: 6611 COUNTRY CLUB MIDDLE SCHOOL | C120: Total | D120: 35 | E120: 78 | F120: 45
A121: 6631 | B121: 6631 NORTH MIAMI MIDDLE SCHOOL | C121: Total | D121: 54 | E121: 64 | F121: 85
A122: 6681 | B122: 6681 PALM SPRINGS MIDDLE SCHOOL | C122: Total | D122: 81 | E122: 60 | F122: 134
A123: 6701 | B123: 6701 PALMETTO MIDDLE SCHOOL | C123: Total | D123: 178 | E123: 92 | F123: 194
A124: 6741 | B124: 6741 PONCE DE LEON MIDDLE SCHOOL | C124: Total | D124: 139 | E124: 71 | F124: 197
A125: 6751 | B125: 6751 HIALEAH GARDENS MIDDLE SCHOOL | C125: Total | D125: 293 | E125: 59 | F125: 496
A126: 6761 | B126: 6761 REDLAND MIDDLE SCHOOL | C126: Total | D126: 18 | E126: 86 | F126: 21
A127: 6771 | B127: 6771 JORGE MAS CANOSA MIDDLE SCHOOL | C127: Total | D127: 198 | E127: 69 | F127: 285
A128: 6781 | B128: 6781 RICHMOND HEIGHTS MIDDLE SCHOOL | C128: Total | D128: 47 | E128: 45 | F128: 104
A129: 6801 | B129: 6801 RIVIERA MIDDLE SCHOOL | C129: Total | D129: 99 | E129: 67 | F129: 147
A130: 6821 | B130: 6821 ROCKWAY MIDDLE SCHOOL | C130: Total | D130: 109 | E130: 89 | F130: 123
A131: =LEFT(B131,4) -> 6841 | B131: 6841 SHENANDOAH MIDDLE SCHOOL | C131: Total | D131: 78 | E131: 72 | F131: 109
A132: 6861 | B132: 6861 SOUTHWOOD MIDDLE SCHOOL | C132: Total | D132: 218 | E132: 88 | F132: 247
A133: 6881 | B133: 6881 SOUTH MIAMI MIDDLE SCHOOL | C133: Total | D133: 196 | E133: 95 | F133: 206
A134: 6901 | B134: 6901 W. R. THOMAS MIDDLE SCHOOL | C134: Total | D134: 253 | E134: 88 | F134: 289
A135: 6921 | B135: 6921 LAMAR LOUISE CURRY MIDDLE SCHL | C135: Total | D135: 161 | E135: 72 | F135: 224
A136: 6961 | B136: 6961 WEST MIAMI MIDDLE SCHOOL | C136: Total | D136: 93 | E136: 83 | F136: 112
A137: 6997 | B137: 6997 MATER VIRTUAL ACAD CHARTER MIDDLE/HIGH SCHOOL | C137: Total | E137: NA | F137: 2
A138: 7001 | B138: 7001 MIAMI-DADE ONLINE ACAD-VIRTUAL INSTRUC PROG | C138: Total | D138: 13 | E138: 87 | F138: 15
A139: 7005 | B139: 7005 ITECH@THOMAS A EDISON EDUCATIONAL CENTER | C139: Total | D139: 16 | E139: 24 | F139: 67
A140: 7007 | B140: 7007 INTERNATIONAL STUDIES CHARTER | C140: Total | D140: 21 | E140: 72 | F140: 29
A141: 7008 | B141: 7008 BIOTECH@RICHMOND HEIGHTS 9-12 HIGH SCHOOL | C141: Total | D141: 18 | E141: 25 | F141: 72
A142: 7009 | B142: 7009 DORAL PERFORMING ARTS & ENTERTAINMENT ACADEMY | C142: Total | D142: 28 | E142: 85 | F142: 33
A143: 7011 | B143: 7011 AMERICAN SENIOR HIGH SCHOOL | C143: Total | D143: 51 | E143: 16 | F143: 329
A144: 7014 | B144: 7014 MATER PERFORMING ARTS & ENTERTAINMENT ACADEMY | C144: Total | D144: 11 | E144: 73 | F144: 15
A145: 7015 | B145: 7015 STELLAR LEADERSHIP ACADEMY | C145: Total | D145: 0 | E145: 0 | F145: 40
A146: 7016 | B146: 7016 SPORTS LEADERSHIP OF MIAMI CHARTER HIGH | C146: Total | D146: 18 | E146: 25 | F146: 73
A147: 7018 | B147: 7018 MATER ACADEMY LAKES HIGH SCHOOL | C147: Total | D147: 122 | E147: 64 | F147: 192
A148: 7020 | B148: 7020 DORAL ACADEMY CHARTER HIGH SCHOOL | C148: Total | D148: 201 | E148: 83 | F148: 241
A149: 7021 | B149: 7021 CENTER FOR INTERNATIONAL EDUCATION | C149: Total | D149: 18 | E149: 72 | F149: 25
A150: 7022 | B150: 7022 ACADEMY OF ARTS & MINDS | C150: Total | D150: 15 | E150: 31 | F150: 48
A151: 7024 | B151: 7024 MATER ACADEMY HIGH OF INTERNATIONAL STUDIES | C151: Total | D151: 9 | E151: 56 | F151: 16
A152: 7025 | B152: 7025 MATER ACADEMY HIGH SCHOOL (MIAMI BEACH) | C152: Total | D152: 16 | E152: 59 | F152: 27
A153: 7025 | B153: 7025 MATER ACADEMY HIGH SCHOOL (MIAMI BEACH) | C153: Total | D153: 16 | E153: 59 | F153: 27
A154: 7032 | B154: 7032 PALM GLADES PREPARATORY ACADEMY HIGH SCHOOL | C154: Total | D154: 7 | E154: 9 | F154: 79
A155: 7033 | B155: 7033 LAW ENFORCEMENT OFFICERS MEMORIAL HIGH SCHOOL | C155: Total | D155: 24 | E155: 47 | F155: 51
A156: 7034 | B156: 7034 SOMERSET ACADEMY CHARTER HIGH (S HOMESTEAD) | C156: Total | D156: 7 | E156: 44 | F156: 16
A157: 7037 | B157: 7037 MATER ACADEMY EAST CHARTER HIGH SCHOOL | C157: Total | D157: 15 | E157: 27 | F157: 55
A158: 7042 | B158: 7042 SOMERSET ACADEMY CHARTER HIGH SCHOOL | C158: Total | D158: 47 | E158: 48 | F158: 98
A159: 7048 | B159: 7048 ALONZO & TRACY MOURNING SENIOR HIGH BISCAYNE | C159: Total | D159: 154 | E159: 52 | F159: 298
A160: 7049 | B160: 7049 WESTLAND HIALEAH SENIOR HIGH SCHOOL | C160: Total | D160: 161 | E160: 50 | F160: 323
A161: 7050 | B161: 7050 KEYS GATE CHARTER HIGH SCHOOL | C161: Total | D161: 69 | E161: 36 | F161: 194
A162: 7051 | B162: 7051 G. HOLMES BRADDOCK SENIOR HIGH | C162: Total | D162: 128 | E162: 28 | F162: 458
A163: 7053 | B163: 7053 PINECREST PREPARATORY ACADEMY CHARTER HIGH | C163: Total | D163: 51 | E163: 60 | F163: 85
A164: 7055 | B164: 7055 YOUNG WOMENS PREPARATORY ACADEMY | C164: Total | D164: 61 | E164: 77 | F164: 79
A165: 7056 | B165: 7056 YOUNG MEN'S PREPARATORY ACADEMY | C165: Total | D165: 12 | E165: 35 | F165: 34
A166: 7058 | B166: 7058 MIAMI COMMUNITY CHARTER HIGH SCHOOL | C166: Total | D166: 5 | E166: 10 | F166: 52
A167: 7059 | B167: 7059 MIAMI ARTS CHARTER | C167: Total | D167: 123 | E167: 73 | F167: 168
A168: 7060 | B168: 7060 EVERGLADES PREPARATORY ACADEMY HIGH SCHOOL | C168: Total | D168: 36 | E168: 30 | F168: 120
A169: 7062 | B169: 7062 MAVERICKS HIGH OF NORTH MIAMI DADE COUNTY | C169: Total | D169: 4 | E169: 4 | F169: 92
A170: 7065 | B170: 7065 MAVERICKS HIGH OF SOUTH MIAMI DADE COUNTY | C170: Total | D170: 1 | E170: 3 | F170: 34
A171: 7066 | B171: 7066 LBA CONSTRUCTION AND BUSINESS MANAGEMENT ACAD | C171: Total | D171: 11 | E171: 31 | F171: 35
A172: 7067 | B172: 7067 GREEN SPRINGS HIGH SCHOOL CHARTER | C172: Total | E172: NA | F172: 4
A173: 7068 | B173: 7068 NORTH GARDENS HIGH SCHOOL CHARTER | C173: Total | E173: NA | F173: 8
A174: 7069 | B174: 7069 NORTH PARK HIGH SCHOOL | C174: Total | E174: NA | F174: 8
A175: 7070 | B175: 7070 YOUTH CO-OP PREPARATORY HIGH SCHOOL | C175: Total | D175: 46 | E175: 72 | F175: 64
A176: 7071 | B176: 7071 CORAL GABLES SENIOR HIGH SCHOOL | C176: Total | D176: 76 | E176: 18 | F176: 426
A177: 7080 | B177: 7080 CHARTER HIGH SCHOOL OF THE AMERICAS | C177: Total | D177: 20 | E177: 49 | F177: 41
A178: 7081 | B178: 7081 DESIGN & ARCHITECTURE SENIOR HIGH | C178: Total | D178: 24 | E178: 77 | F178: 31
A179: 7090 | B179: 7090 IMATER PREPARATORY ACADEMY HIGH SCHOOL | C179: Total | D179: 50 | E179: 42 | F179: 120
A180: 7101 | B180: 7101 CORAL REEF SENIOR HIGH SCHOOL | C180: Total | D180: 144 | E180: 63 | F180: 230
A181: 7111 | B181: 7111 HIALEAH SENIOR HIGH SCHOOL | C181: Total | D181: 62 | E181: 15 | F181: 422
A182: 7121 | B182: 7121 JOHN A. FERGUSON SR HIGH | C182: Total | D182: 202 | E182: 43 | F182: 465
A183: 7131 | B183: 7131 HIALEAH-MIAMI LAKES SR. HIGH | C183: Total | D183: 72 | E183: 25 | F183: 284
A184: 7141 | B184: 7141 DR MICHAEL M. KROP SENIOR HIGH | C184: Total | D184: 183 | E184: 46 | F184: 401
A185: 7151 | B185: 7151 HOMESTEAD SENIOR HIGH SCHOOL | C185: Total | D185: 88 | E185: 23 | F185: 385
A186: 7160 | B186: 7160 MATER ACADEMY CHARTER HIGH | C186: Total | D186: 105 | E186: 54 | F186: 195
A187: 7161 | B187: 7161 MAST ACADEMY | C187: Total | D187: 54 | E187: 87 | F187: 62
A188: 7171 | B188: 7171 MEDICAL ACADEMY FOR SCIENCE/TECH @ HOMESTEAD | C188: Total | E188: NA | F188: 3
A189: 7191 | B189: 7191 HIALEAH GARDENS SENIOR HIGH SCHOOL | C189: Total | D189: 129 | E189: 38 | F189: 342
A190: 7201 | B190: 7201 MIAMI BEACH SENIOR HIGH SCHOOL | C190: Total | D190: 123 | E190: 37 | F190: 336
A191: 7231 | B191: 7231 MIAMI CAROL CITY SENIOR HIGH | C191: Total | D191: 40 | E191: 16 | F191: 246
A192: 7241 | B192: 7241 RONALD W. REAGAN/DORAL SENIOR HIGH SCHOOL | C192: Total | D192: 145 | E192: 43 | F192: 336
A193: 7251 | B193: 7251 MIAMI CENTRAL SENIOR HIGH SCHL | C193: Total | D193: 69 | E193: 20 | F193: 348
A194: 7262 | B194: 7262 CITY OF HIALEAH EDUCATION ACADEMY | C194: Total | D194: 59 | E194: 46 | F194: 127
A195: =LEFT(B195,4) -> 7271 | B195: 7271 MIAMI CORAL PARK SENIOR HIGH | C195: Total | D195: 110 | E195: 26 | F195: 417
A196: 7291 | B196: 7291 JOSE MARTI MAST 6-12 ACADEMY | C196: Total | D196: 156 | E196: 99 | F196: 157
A197: 7301 | B197: 7301 MIAMI EDISON SENIOR HIGH SCHL | C197: Total | D197: 34 | E197: 22 | F197: 154
A198: 7341 | B198: 7341 MIAMI JACKSON SENIOR HIGH SCHL | C198: Total | D198: 114 | E198: 31 | F198: 363
A199: 7351 | B199: 7351 ARTHUR AND POLLY MAYS CONSERVATORY OF THE ART | C199: Total | D199: 53 | E199: 42 | F199: 125
A200: 7361 | B200: 7361 MIAMI KILLIAN SENIOR HIGH SCHL | C200: Total | D200: 131 | E200: 35 | F200: 379
... 60 more rows

Sheet 15 FSA Geo (hidden)
B1: CLICK HERE TO RETURN TO "SELECT REPORT"
A2: VD | B2: School | C2: Grade | D2: Lev 3-5 | F2: Total
D3: Ct | E3: % | F3: Ct
A4: =LEFT(B4,4) -> 0070 | B4: 0070 CORAL REEF MONTESSORI ACADEMY CHARTER | C4: Total | E4: NA | F4: 3
A5: 0071 | B5: 0071 EUGENIA B. THOMAS K-8 CENTER | C5: Total | D5: 20 | E5: 100 | F5: 20
A6: 0091 | B6: 0091 BOB GRAHAM EDUCATION CENTER | C6: Total | E6: NA | F6: 8
A7: 0092 | B7: 0092 NORMAN S. EDELCUP/SUNNY ISLES BEACH K-8 | C7: Total | D7: 11 | E7: 100 | F7: 11
A8: 0122 | B8: 0122 DR. ROLANDO ESPINOSA K-8 CENTER | C8: Total | D8: 23 | E8: 100 | F8: 23
A9: 0231 | B9: 0231 AVENTURA WATERWAYS K-8 CENTER | C9: Total | D9: 37 | E9: 95 | F9: 39
A10: 0241 | B10: 0241 RUTH K. BROAD BAY HARBOR K-8 CENTER | C10: Total | D10: 22 | E10: 100 | F10: 22
A11: 0332 | B11: 0332 SOMERSET ACADEMY (SILVER PALMS) | C11: Total | D11: 14 | E11: 100 | F11: 14
A12: 0950 | B12: 0950 AVENTURA CITY OF EXCELLENCE | C12: Total | D12: 51 | E12: 100 | F12: 51
A13: 0961 | B13: 0961 CORAL GABLES PREPARATORY ACADEMY | C13: Total | D13: 18 | E13: 100 | F13: 18
A14: 1020 | B14: 1020 YOUTH CO-OP CHARTER SCHOOL | C14: Total | D14: 18 | E14: 86 | F14: 21
A15: 1331 | B15: 1331 DEVON AIRE K-8 CENTER | C15: Total | D15: 30 | E15: 97 | F15: 31
A16: 1681 | B16: 1681 LILLIE C. EVANS K-8 CENTER | C16: Total | E16: NA | F16: 7
A17: 2060 | B17: 2060 THEODORE R. AND THELMA A. GIBSON CHARTER | C17: Total | E17: NA | F17: 1
A18: 2741 | B18: 2741 KEY BISCAYNE K-8 CENTER | C18: Total | D18: 15 | E18: 100 | F18: 15
A19: 3029 | B19: 3029 DORAL ACADEMY OF TECHNOLOGY | C19: Total | D19: 51 | E19: 98 | F19: 52
A20: 3101 | B20: 3101 FRANK CRAWFORD MARTIN K-8 CENTER | C20: Total | D20: 38 | E20: 100 | F20: 38
A21: 3191 | B21: 3191 ADA MERRITT K-8 CENTER | C21: Total | D21: 25 | E21: 100 | F21: 25
A22: 3581 | B22: 3581 MYRTLE GROVE K-8 CENTER | C22: Total | E22: NA | F22: 1
A23: 3610 | B23: 3610 KEYS GATE CHARTER SCHOOL | C23: Total | D23: 34 | E23: 59 | F23: 58
A24: 3621 | B24: 3621 COCONUT PALM K-8 ACADEMY | C24: Total | D24: 19 | E24: 86 | F24: 22
A25: 4031 | B25: 4031 GATEWAY ENVIRONMENTAL K-8 LEARNING CENTER | C25: Total | E25: NA | F25: 1
A26: 5005 | B26: 5005 DAVID LAWRENCE JR. K-8 CENTER | C26: Total | D26: 39 | E26: 98 | F26: 40
A27: 5006 | B27: 5006 EVERGLADES PREPARATORY ACADEMY | C27: Total | D27: 10 | E27: 100 | F27: 10
A28: 5032 | B28: 5032 EXCELSIOR CHARTER ACADEMY | C28: Total | F28: 5
A29: 5051 | B29: 5051 ERNEST R. GRAHAM K-8 ACADEMY | C29: Total | D29: 27 | E29: 84 | F29: 32
A30: 5101 | B30: 5101 JOHN I. SMITH K-8 CENTER | C30: Total | D30: 10 | E30: 100 | F30: 10
A31: 5241 | B31: 5241 SOUTH MIAMI K-8 CENTER | C31: Total | E31: NA | F31: 1
A32: 5961 | B32: 5961 WINSTON PARK K-8 CENTER | C32: Total | D32: 27 | E32: 100 | F32: 27
A33: 6001 | B33: 6001 HERBERT A. AMMONS MIDDLE SCHL | C33: Total | D33: 72 | E33: 95 | F33: 76
A34: 6004 | B34: 6004 SOMERSET ACADEMY CHARTER MIDDLE SCHOOL | C34: Total | D34: 23 | E34: 92 | F34: 25
A35: 6006 | B35: 6006 ARCHIMEDEAN MIDDLE CONSERVATORY | C35: Total | D35: 76 | E35: 94 | F35: 81
A36: =LEFT(B36,4) -> 6010 | B36: 6010 FLORIDA INTERNATIONAL ACADEMY | C36: Total | D36: 9 | E36: 53 | F36: 17
A37: 6011 | B37: 6011 ALLAPATTAH MIDDLE SCHOOL | C37: Total | E37: NA | F37: 8
A38: 6012 | B38: 6012 MATER ACADEMY CHARTER MIDDLE | C38: Total | D38: 61 | E38: 100 | F38: 61
A39: 6014 | B39: 6014 IMATER ACADEMY MIDDLE SCHOOL | C39: Total | E39: NA | F39: 1
A40: 6016 | B40: 6016 SOMERSET VIRTUAL ACADEMY | C40: Total | E40: NA | F40: 3
A41: 6017 | B41: 6017 INTERNATIONAL STUDIES VIRTUAL | C41: Total | E41: NA | F41: 2
A42: 6020 | B42: 6020 ASPIRA RAUL ARNALDO MARTINEZ CHARTER SCHOOL | C42: Total | E42: NA | F42: 1
A43: 6021 | B43: 6021 ARVIDA MIDDLE SCHOOL | C43: Total | D43: 50 | E43: 100 | F43: 50
A44: 6022 | B44: 6022 PINECREST ACADEMY CHARTER MIDDLE SCHOOL | C44: Total | D44: 23 | E44: 96 | F44: 24
A45: 6023 | B45: 6023 ANDOVER MIDDLE SCHOOL | C45: Total | D45: 28 | E45: 52 | F45: 54
A46: 6030 | B46: 6030 DORAL ACADEMY CHARTER MIDDLE SCHOOL | C46: Total | D46: 74 | E46: 97 | F46: 76
A47: 6031 | B47: 6031 BROWNSVILLE MIDDLE SCHOOL | C47: Total | E47: NA | F47: 9
A48: 6033 | B48: 6033 MATER ACADEMY LAKES MIDDLE SCHOOL | C48: Total | F48: 5
A49: 6040 | B49: 6040 DOCTORS CHARTER SCHOOL OF MIAMI SHORES | C49: Total | D49: 47 | E49: 61 | F49: 77
A50: 6045 | B50: 6045 INTERNATIONAL STUDIES CHARTER MIDDLE SCHOOL | C50: Total | D50: 11 | E50: 100 | F50: 11
A51: 6048 | B51: 6048 MIAMI COMMUNITY CHARTER MIDDLE SCHOOL | C51: Total | D51: 16 | E51: 84 | F51: 19
A52: 6052 | B52: 6052 ZELDA GLAZER MIDDLE SCHOOL | C52: Total | D52: 100 | E52: 76 | F52: 131
A53: 6071 | B53: 6071 GEORGE WASHINGTON CARVER MIDDLE SCHOOL | C53: Total | D53: 70 | E53: 100 | F53: 70
A54: 6081 | B54: 6081 CUTLER BAY ACADEMY OF ADVANCED STUDIES | C54: Total | D54: 92 | E54: 71 | F54: 129
A55: 6082 | B55: 6082 ACADEMIR CHARTER SCHOOL MIDDLE | C55: Total | E55: NA | F55: 2
A56: 6111 | B56: 6111 CUTLER BAY ACADEMY OF ADVANCED STUDIES | C56: Total | F56: 5
A57: 6121 | B57: 6121 RUBEN DARIO MIDDLE SCHOOL | C57: Total | D57: 18 | E57: 100 | F57: 18
A58: 6161 | B58: 6161 LAWTON CHILES MIDDLE SCHOOL | C58: Total | D58: 13 | E58: 93 | F58: 14
A59: 6211 | B59: 6211 GLADES MIDDLE SCHOOL | C59: Total | D59: 70 | E59: 95 | F59: 74
A60: 6221 | B60: 6221 HAMMOCKS MIDDLE SCHOOL | C60: Total | D60: 33 | E60: 87 | F60: 38
A61: 6241 | B61: 6241 HIGHLAND OAKS MIDDLE SCHOOL | C61: Total | D61: 119 | E61: 94 | F61: 126
A62: 6251 | B62: 6251 HOMESTEAD MIDDLE SCHOOL | C62: Total | E62: NA | F62: 9
A63: 6301 | B63: 6301 JOHN F. KENNEDY MIDDLE SCHOOL | C63: Total | D63: 81 | E63: 98 | F63: 83
A64: 6351 | B64: 6351 LAKE STEVENS MIDDLE SCHOOL | C64: Total | E64: NA | F64: 1
A65: 6361 | B65: 6361 JOSE DE DIEGO MIDDLE SCHOOL | C65: Total | E65: NA | F65: 1
A66: 6411 | B66: 6411 HORACE MANN MIDDLE SCHOOL | C66: Total | D66: 19 | E66: 95 | F66: 20
A67: 6441 | B67: 6441 HOWARD D. MCMILLAN MIDDLE SCHOOL | C67: Total | D67: 100 | E67: 99 | F67: 101
A68: =LEFT(B68,4) -> 6501 | B68: 6501 MIAMI LAKES MIDDLE SCHOOL | C68: Total | D68: 65 | E68: 93 | F68: 70
A69: 6521 | B69: 6521 MIAMI SPRINGS MIDDLE SCHOOL | C69: Total | D69: 39 | E69: 95 | F69: 41
A70: 6541 | B70: 6541 NAUTILUS MIDDLE SCHOOL | C70: Total | D70: 68 | E70: 97 | F70: 70
A71: 6571 | B71: 6571 NORLAND MIDDLE SCHOOL | C71: Total | D71: 23 | E71: 58 | F71: 40
A72: 6591 | B72: 6591 NORTH DADE MIDDLE SCHOOL | C72: Total | D72: 22 | E72: 81 | F72: 27
A73: 6611 | B73: 6611 COUNTRY CLUB MIDDLE SCHOOL | C73: Total | D73: 11 | E73: 85 | F73: 13
A74: 6701 | B74: 6701 PALMETTO MIDDLE SCHOOL | C74: Total | D74: 29 | E74: 100 | F74: 29
A75: 6741 | B75: 6741 PONCE DE LEON MIDDLE SCHOOL | C75: Total | D75: 71 | E75: 93 | F75: 76
A76: 6751 | B76: 6751 HIALEAH GARDENS MIDDLE SCHOOL | C76: Total | D76: 266 | E76: 76 | F76: 349
A77: 6771 | B77: 6771 JORGE MAS CANOSA MIDDLE SCHOOL | C77: Total | D77: 121 | E77: 98 | F77: 124
A78: 6781 | B78: 6781 RICHMOND HEIGHTS MIDDLE SCHOOL | C78: Total | D78: 15 | E78: 71 | F78: 21
A79: 6801 | B79: 6801 RIVIERA MIDDLE SCHOOL | C79: Total | D79: 51 | E79: 94 | F79: 54
A80: 6821 | B80: 6821 ROCKWAY MIDDLE SCHOOL | C80: Total | D80: 23 | E80: 100 | F80: 23
A81: 6841 | B81: 6841 SHENANDOAH MIDDLE SCHOOL | C81: Total | D81: 39 | E81: 95 | F81: 41
A82: 6861 | B82: 6861 SOUTHWOOD MIDDLE SCHOOL | C82: Total | D82: 24 | E82: 100 | F82: 24
A83: 6881 | B83: 6881 SOUTH MIAMI MIDDLE SCHOOL | C83: Total | E83: NA | F83: 1
A84: 6901 | B84: 6901 W. R. THOMAS MIDDLE SCHOOL | C84: Total | D84: 170 | E84: 89 | F84: 191
A85: 6921 | B85: 6921 LAMAR LOUISE CURRY MIDDLE SCHL | C85: Total | D85: 50 | E85: 93 | F85: 54
